Workbook

Sheet Planilha Orçamentária
A1: Ministério da Integração e do Desenvolvimento Regional
A2: Companhia de desenvolvimento dos Vales do São Francisco e do Parnaíba
A4: PLANILHA ORÇAMENTÁRIA - ORÇAMENTO NÃO DESONERADO
A5: OBRA: | B5: =UPPER("SERVIÇOS DE MANUTENÇÃO E OBRAS CIVIS NA BARRAGEM ÁGUA FRIA") -> SERVIÇOS DE MANUTENÇÃO E OBRAS CIVIS NA BARRAGEM ÁGUA FRIA | F5: BDI (serv.): | H5: ='BDI serv'!D22 -> 0.2378 | I5: Bancos
A6: LOCAL: | B6: BARRAGEM ÁGUA FRIA, FLORESTA/PE | F6: BDI (forn.): | H6: ='BDI forn'!E6 -> 0.147 | I6: 03/2024 - SINAPI/PE
A7: DATA BASE: | B7: 2024-05-15 | E7: Encargos sociais Horistas: | H7: ='Encargos Sociais'!E47 -> 1.1398 | I7: 01/2024 - SICRO/PE
A8: PRAZO: | B8: 120 DIAS | E8: Encargos sociais - Mensalista: | H8: ='Encargos Sociais'!F47 -> 0.7
A9: ITEM | B9: REFERÊNCIA | D9: DESCRIÇÃO | E9: UNID. | F9: QUANT. | G9: CUSTO UNITÁRIO | H9: PREÇO UNITÁRIO | I9: PREÇO TOTAL | J9: TIPO de BDI | K9: CLASSIF
B10: FONTE | C10: CÓDIGO
A11: 1 | D11: ADMINISTRAÇÃO DA OBRA | I11: =SUM(I12:I12) -> 118778.9909 | K11: ss | L11: COMENTÁRIOS
A12: 1.1 | B12: PRÓPRIA | C12: CPU.01 | D12: Administração Local | E12: mês | F12: 4 | G12: =SUMIFS(CPU!$H:$H,CPU!$B:$B,'Planilha Orçamentária'!$A12,CPU!$I:$I,"ss")+SUMIFS(CPU!$H:$H,CPU!$B:$B,'Planilha Orçamentária'!$A12,CPU!$I:$I,"mdo")+SUMIF('Comp SINAPI PE 12-2023 Onerado'!G:G,'Planilha Orçamentária'!C12,'Comp SINAPI PE 12-2023 Onerado'!K:K)+SUMIF('Ins SINAPI PE 12-2023 Onerado'!A:A,'Planilha Orçamentária'!C12,'Ins SINAPI PE 12-2023 Onerado'!E:E) -> 23989.94 | H12: =IF(J12="SERV",G12*(1+$H$5),G12*(1+$H$6)) -> 29694.74773 | I12: =IF(J12="SERV",G12*F12*(1+$H$5),G12*F12*(1+$H$6)) -> 118778.9909 | J12: serv | K12: s
A14: 2 | D14: SERVIÇOS PRELIMINARES | I14: =SUM(I15,I17,I19) -> 47117.96483 | K14: ss
A15: 2.1 | D15: Mobilização e desmobilização | I15: =SUM(I16) -> 7451.011368
A16: 2.1.1 | B16: PRÓPRIA | C16: CPU.02 | D16: Mobilização e desmobilização de instalação do canteiro | E16: un | F16: 1 | G16: =SUMIFS(CPU!$H:$H,CPU!$B:$B,'Planilha Orçamentária'!$A16,CPU!$I:$I,"ss")+SUMIFS(CPU!$H:$H,CPU!$B:$B,'Planilha Orçamentária'!$A16,CPU!$I:$I,"mdo")+SUMIF('Comp SINAPI PE 12-2023 Onerado'!G:G,'Planilha Orçamentária'!C16,'Comp SINAPI PE 12-2023 Onerado'!K:K)+SUMIF('Ins SINAPI PE 12-2023 Onerado'!A:A,'Planilha Orçamentária'!C16,'Ins SINAPI PE 12-2023 Onerado'!E:E) -> 6019.56 | H16: =IF(J16="SERV",G16*(1+$H$5),G16*(1+$H$6)) -> 7451.011368 | I16: =IF(J16="SERV",G16*F16*(1+$H$5),G16*F16*(1+$H$6)) -> 7451.011368 | J16: serv | K16: s | L16: =I16/2 -> 3725.505684
A17: 2.2 | D17: Canteiro de obras | I17: =SUM(I18) -> 37437.32908 | L17: =L16/I14 -> 0.07906762733
A18: 2.2.1 | B18: PRÓPRIA | C18: CPU.03 | D18: Execução de canteiro de obras, inclusive, limpeza, refeitório, sanitários e central de formas | E18: m² | F18: ='Memorial de cálculo'!H33 -> 28.5 | G18: =SUMIFS(CPU!$H:$H,CPU!$B:$B,'Planilha Orçamentária'!$A18,CPU!$I:$I,"ss")+SUMIFS(CPU!$H:$H,CPU!$B:$B,'Planilha Orçamentária'!$A18,CPU!$I:$I,"mdo")+SUMIF('Comp SINAPI PE 12-2023 Onerado'!G:G,'Planilha Orçamentária'!C18,'Comp SINAPI PE 12-2023 Onerado'!K:K)+SUMIF('Ins SINAPI PE 12-2023 Onerado'!A:A,'Planilha Orçamentária'!C18,'Ins SINAPI PE 12-2023 Onerado'!E:E) -> 1061.23 | H18: =IF(J18="SERV",G18*(1+$H$5),G18*(1+$H$6)) -> 1313.590494 | I18: =IF(J18="SERV",G18*F18*(1+$H$5),G18*F18*(1+$H$6)) -> 37437.32908 | J18: serv
A19: 2.3 | D19: Sinalização | I19: =SUM(I20:I20) -> 2229.624384
A20: 2.3.1 | B20: PRÓPRIA | C20: CPU.04 | D20: PLACA DE OBRA EM CHAPA DE ACO GALVANIZADO | E20: m² | F20: ='Memorial de cálculo'!H75 -> 2 | G20: =SUMIFS(CPU!$H:$H,CPU!$B:$B,'Planilha Orçamentária'!$A20,CPU!$I:$I,"ss")+SUMIFS(CPU!$H:$H,CPU!$B:$B,'Planilha Orçamentária'!$A20,CPU!$I:$I,"mdo")+SUMIF('Comp SINAPI PE 12-2023 Onerado'!G:G,'Planilha Orçamentária'!C20,'Comp SINAPI PE 12-2023 Onerado'!K:K)+SUMIF('Ins SINAPI PE 12-2023 Onerado'!A:A,'Planilha Orçamentária'!C20,'Ins SINAPI PE 12-2023 Onerado'!E:E) -> 900.64 | H20: =IF(J20="SERV",G20*(1+$H$5),G20*(1+$H$6)) -> 1114.812192 | I20: =IF(J20="SERV",G20*F20*(1+$H$5),G20*F20*(1+$H$6)) -> 2229.624384 | J20: serv | K20: s
A22: 3 | D22: CORTE DA VEGETAÇÃO E REMOÇÃO DAS RAIZES | I22: =SUM(I23) -> 50363.73018 | K22: ss
A23: 3.1 | D23: Remoção da vegetação | I23: =SUM(I24:I25) -> 50363.73018 | K23: s
A24: 3.1.1 | B24: PRÓPRIA | C24: CPU.05 | D24: Limpeza de vegetação | E24: m² | F24: ='Memorial de cálculo'!H96 -> 4000 | G24: =SUMIFS(CPU!$H:$H,CPU!$B:$B,'Planilha Orçamentária'!$A24,CPU!$I:$I,"ss")+SUMIFS(CPU!$H:$H,CPU!$B:$B,'Planilha Orçamentária'!$A24,CPU!$I:$I,"mdo")+SUMIF('Comp SINAPI PE 12-2023 Onerado'!G:G,'Planilha Orçamentária'!C24,'Comp SINAPI PE 12-2023 Onerado'!K:K)+SUMIF('Ins SINAPI PE 12-2023 Onerado'!A:A,'Planilha Orçamentária'!C24,'Ins SINAPI PE 12-2023 Onerado'!E:E) -> 9.64 | H24: =IF(J24="SERV",G24*(1+$H$5),G24*(1+$H$6)) -> 11.932392 | I24: =IF(J24="SERV",G24*F24*(1+$H$5),G24*F24*(1+$H$6)) -> 47729.568 | J24: serv | K24: s
A25: 3.1.2 | B25: PRÓPRIA | C25: CPU.06 | D25: Corte de tronco e remoção de raiz | E25: un | F25: ='Memorial de cálculo'!H115 -> 5 | G25: =SUMIFS(CPU!$H:$H,CPU!$B:$B,'Planilha Orçamentária'!$A25,CPU!$I:$I,"ss")+SUMIFS(CPU!$H:$H,CPU!$B:$B,'Planilha Orçamentária'!$A25,CPU!$I:$I,"mdo")+SUMIF('Comp SINAPI PE 12-2023 Onerado'!G:G,'Planilha Orçamentária'!C25,'Comp SINAPI PE 12-2023 Onerado'!K:K)+SUMIF('Ins SINAPI PE 12-2023 Onerado'!A:A,'Planilha Orçamentária'!C25,'Ins SINAPI PE 12-2023 Onerado'!E:E) -> 425.62 | H25: =IF(J25="SERV",G25*(1+$H$5),G25*(1+$H$6)) -> 526.832436 | I25: =IF(J25="SERV",G25*F25*(1+$H$5),G25*F25*(1+$H$6)) -> 2634.16218 | J25: serv | K25: s
A27: 4 | D27: ESGOTAMENTO COM BOMBA | I27: =SUM(I28) -> 264.196032 | K27: ss
A28: 4.1 | D28: Esgotamento da água acumulada à jusante | I28: =SUM(I29:I29) -> 264.196032
A29: 4.1.1 | B29: SINAPI | C29: 104482 | D29: =PROPER(IF(K29="i",VLOOKUP(C29,'Ins SINAPI PE 12-2023 Onerado'!$A$8:$E$5189,2,0),VLOOKUP(C29,'Comp SINAPI PE 12-2023 Onerado'!$G$7:$K$7500,2,0))) -> Esgotamento De Vala Com Bomba Submersível. Af_12/2022 | E29: =LOWER(IF(K29="i",VLOOKUP(C29,'Ins SINAPI PE 12-2023 Onerado'!$A$8:$E$5189,3,0),VLOOKUP(C29,'Comp SINAPI PE 12-2023 Onerado'!$G$7:$K$7500,3,0))) -> h | F29: ='Memorial de cálculo'!H136 -> 8 | G29: =SUMIFS(CPU!$H:$H,CPU!$B:$B,'Planilha Orçamentária'!$A29,CPU!$I:$I,"ss")+SUMIFS(CPU!$H:$H,CPU!$B:$B,'Planilha Orçamentária'!$A29,CPU!$I:$I,"mdo")+SUMIF('Comp SINAPI PE 12-2023 Onerado'!G:G,'Planilha Orçamentária'!C29,'Comp SINAPI PE 12-2023 Onerado'!K:K)+SUMIF('Ins SINAPI PE 12-2023 Onerado'!A:A,'Planilha Orçamentária'!C29,'Ins SINAPI PE 12-2023 Onerado'!E:E) -> 26.68 | H29: =IF(J29="SERV",G29*(1+$H$5),G29*(1+$H$6)) -> 33.024504 | I29: =IF(J29="SERV",G29*F29*(1+$H$5),G29*F29*(1+$H$6)) -> 264.196032 | J29: serv | K29: s
A31: 5 | D31: RECUPERAÇÃO DA CRISTA E DO PARAMENTO DE JUSANTE | I31: =SUM(I32) -> 352814.3673 | K31: ss
A32: 5.1 | D32: Recuperação da Crista e Paramento de Jusante | I32: =SUM(I33:I36) -> 352814.3673
A33: 5.1.1 | B33: PRÓPRIA | C33: CPU.07 | D33: Demolição de argamassa | E33: m² | F33: ='Memorial de cálculo'!H144 -> 1386 | G33: =SUMIFS(CPU!$H:$H,CPU!$B:$B,'Planilha Orçamentária'!$A33,CPU!$I:$I,"ss")+SUMIFS(CPU!$H:$H,CPU!$B:$B,'Planilha Orçamentária'!$A33,CPU!$I:$I,"mdo")+SUMIF('Comp SINAPI PE 12-2023 Onerado'!G:G,'Planilha Orçamentária'!C33,'Comp SINAPI PE 12-2023 Onerado'!K:K)+SUMIF('Ins SINAPI PE 12-2023 Onerado'!A:A,'Planilha Orçamentária'!C33,'Ins SINAPI PE 12-2023 Onerado'!E:E) -> 10.78 | H33: =IF(J33="SERV",G33*(1+$H$5),G33*(1+$H$6)) -> 13.343484 | I33: =IF(J33="SERV",G33*F33*(1+$H$5),G33*F33*(1+$H$6)) -> 18494.06882 | J33: serv | K33: s
A34: 5.1.2 | B34: PRÓPRIA | C34: CPU.08 | D34: Limpeza da superfície | E34: m² | F34: ='Memorial de cálculo'!H164 -> 1386 | G34: =SUMIFS(CPU!$H:$H,CPU!$B:$B,'Planilha Orçamentária'!$A34,CPU!$I:$I,"ss")+SUMIFS(CPU!$H:$H,CPU!$B:$B,'Planilha Orçamentária'!$A34,CPU!$I:$I,"mdo")+SUMIF('Comp SINAPI PE 12-2023 Onerado'!G:G,'Planilha Orçamentária'!C34,'Comp SINAPI PE 12-2023 Onerado'!K:K)+SUMIF('Ins SINAPI PE 12-2023 Onerado'!A:A,'Planilha Orçamentária'!C34,'Ins SINAPI PE 12-2023 Onerado'!E:E) -> 1.83 | H34: =IF(J34="SERV",G34*(1+$H$5),G34*(1+$H$6)) -> 2.265174 | I34: =IF(J34="SERV",G34*F34*(1+$H$5),G34*F34*(1+$H$6)) -> 3139.531164 | J34: serv | K34: s
A35: 5.1.3 | B35: PRÓPRIA | C35: CPU.09 | D35: Tratamento de fissuras com injeção de adesivo estrutural à base de resina epóxi de baixa viscosidade - fornecimento e aplicação mecanizada | E35: un | F35: 1 | G35: =SUMIFS(CPU!$H:$H,CPU!$B:$B,'Planilha Orçamentária'!$A35,CPU!$I:$I,"ss")+SUMIFS(CPU!$H:$H,CPU!$B:$B,'Planilha Orçamentária'!$A35,CPU!$I:$I,"mdo")+SUMIF('Comp SINAPI PE 12-2023 Onerado'!G:G,'Planilha Orçamentária'!C35,'Comp SINAPI PE 12-2023 Onerado'!K:K)+SUMIF('Ins SINAPI PE 12-2023 Onerado'!A:A,'Planilha Orçamentária'!C35,'Ins SINAPI PE 12-2023 Onerado'!E:E) -> 5116.86 | H35: =IF(J35="SERV",G35*(1+$H$5),G35*(1+$H$6)) -> 6333.649308 | I35: =IF(J35="SERV",G35*F35*(1+$H$5),G35*F35*(1+$H$6)) -> 6333.649308 | J35: serv | K35: s
A36: 5.1.4 | B36: PRÓPRIA | C36: CPU.10 | D36: Chapisco, emboço e reboco | E36: m² | F36: ='Memorial de cálculo'!H203 -> 1386 | G36: =SUMIFS(CPU!$H:$H,CPU!$B:$B,'Planilha Orçamentária'!$A36,CPU!$I:$I,"ss")+SUMIFS(CPU!$H:$H,CPU!$B:$B,'Planilha Orçamentária'!$A36,CPU!$I:$I,"mdo")+SUMIF('Comp SINAPI PE 12-2023 Onerado'!G:G,'Planilha Orçamentária'!C36,'Comp SINAPI PE 12-2023 Onerado'!K:K)+SUMIF('Ins SINAPI PE 12-2023 Onerado'!A:A,'Planilha Orçamentária'!C36,'Ins SINAPI PE 12-2023 Onerado'!E:E) -> 189.35 | H36: =IF(J36="SERV",G36*(1+$H$5),G36*(1+$H$6)) -> 234.37743 | I36: =IF(J36="SERV",G36*F36*(1+$H$5),G36*F36*(1+$H$6)) -> 324847.118 | J36: serv | K36: s
A38: 6 | D38: RECUPERAÇÃO DA BACIA DE DISSIPAÇÃO | I38: =SUM(I39) -> 22264.60567 | K38: ss
A39: 6.1 | D39: Recuperação da bacia de dissipação | I39: =SUM(I40:I43) -> 22264.60567
A40: 6.1.1 | B40: PRÓPRIA | C40: CPU.07 | D40: Demolição de argamassa | E40: m² | F40: ='Memorial de cálculo'!H218 -> 220 | G40: =G33 -> 10.78 | H40: =IF(J40="SERV",G40*(1+$H$5),G40*(1+$H$6)) -> 13.343484 | I40: =IF(J40="SERV",G40*F40*(1+$H$5),G40*F40*(1+$H$6)) -> 2935.56648 | J40: serv | K40: s
A41: 6.1.2 | B41: PRÓPRIA | C41: CPU.08 | D41: Limpeza da superfície | E41: m² | F41: ='Memorial de cálculo'!H238 -> 220 | G41: =G34 -> 1.83 | H41: =IF(J41="SERV",G41*(1+$H$5),G41*(1+$H$6)) -> 2.265174 | I41: =IF(J41="SERV",G41*F41*(1+$H$5),G41*F41*(1+$H$6)) -> 498.33828 | J41: serv | K41: s
A42: 6.1.3 | B42: PRÓPRIA | C42: CPU.11 | D42: Concreto em buracos | E42: m² | F42: ='Memorial de cálculo'!H250 -> 1 | G42: =SUMIFS(CPU!$H:$H,CPU!$B:$B,'Planilha Orçamentária'!$A42,CPU!$I:$I,"ss")+SUMIFS(CPU!$H:$H,CPU!$B:$B,'Planilha Orçamentária'!$A42,CPU!$I:$I,"mdo")+SUMIF('Comp SINAPI PE 12-2023 Onerado'!G:G,'Planilha Orçamentária'!C42,'Comp SINAPI PE 12-2023 Onerado'!K:K)+SUMIF('Ins SINAPI PE 12-2023 Onerado'!A:A,'Planilha Orçamentária'!C42,'Ins SINAPI PE 12-2023 Onerado'!E:E) -> 913.04 | H42: =IF(J42="SERV",G42*(1+$H$5),G42*(1+$H$6)) -> 1130.160912 | I42: =IF(J42="SERV",G42*F42*(1+$H$5),G42*F42*(1+$H$6)) -> 1130.160912 | J42: serv | K42: s
A43: 6.1.4 | B43: PRÓPRIA | C43: CPU.12 | D43: Execução de contrapiso em argamassa | E43: m² | F43: ='Memorial de cálculo'!H263 -> 220 | G43: =SUMIFS(CPU!$H:$H,CPU!$B:$B,'Planilha Orçamentária'!$A43,CPU!$I:$I,"ss")+SUMIFS(CPU!$H:$H,CPU!$B:$B,'Planilha Orçamentária'!$A43,CPU!$I:$I,"mdo")+SUMIF('Comp SINAPI PE 12-2023 Onerado'!G:G,'Planilha Orçamentária'!C43,'Comp SINAPI PE 12-2023 Onerado'!K:K)+SUMIF('Ins SINAPI PE 12-2023 Onerado'!A:A,'Planilha Orçamentária'!C43,'Ins SINAPI PE 12-2023 Onerado'!E:E) -> 65 | H43: 80.457 | I43: =IF(J43="SERV",G43*F43*(1+$H$5),G43*F43*(1+$H$6)) -> 17700.54 | J43: serv | K43: s
A45: 7 | D45: RECUPERAÇÃO DA OMBREIRA | I45: =SUM(I46) -> 3354.878657 | K45: ss
A46: 7.1 | D46: Recuperação da Ombreira Direita | I46: =SUM(I47:I48) -> 3354.878657
A47: 7.1.1 | B47: PRÓPRIA | C47: CPU.08 | D47: Limpeza da superfície | E47: m² | F47: ='Memorial de cálculo'!H276 -> 25.2 | G47: =G41 -> 1.83 | H47: =IF(J47="SERV",G47*(1+$H$5),G47*(1+$H$6)) -> 2.265174 | I47: =IF(J47="SERV",G47*F47*(1+$H$5),G47*F47*(1+$H$6)) -> 57.0823848 | J47: serv | K47: s
A48: 7.1.2 | B48: PRÓPRIA | C48: CPU.13 | D48: Injeção de adesivo estrutural à base de resina epóxi de baixa viscosidade para tratamento de fissuras em estruturas de concreto - fornecimento e aplicação mecanizada | E48: un | F48: 1 | G48: =SUMIFS(CPU!$H:$H,CPU!$B:$B,'Planilha Orçamentária'!$A48,CPU!$I:$I,"ss")+SUMIFS(CPU!$H:$H,CPU!$B:$B,'Planilha Orçamentária'!$A48,CPU!$I:$I,"mdo")+SUMIF('Comp SINAPI PE 12-2023 Onerado'!G:G,'Planilha Orçamentária'!C48,'Comp SINAPI PE 12-2023 Onerado'!K:K)+SUMIF('Ins SINAPI PE 12-2023 Onerado'!A:A,'Planilha Orçamentária'!C48,'Ins SINAPI PE 12-2023 Onerado'!E:E) -> 2664.24 | H48: =IF(J48="SERV",G48*(1+$H$5),G48*(1+$H$6)) -> 3297.796272 | I48: =IF(J48="SERV",G48*F48*(1+$H$5),G48*F48*(1+$H$6)) -> 3297.796272 | J48: serv | K48: s
A50: 8 | D50: SERVIÇOS COMPLEMENTARES | I50: =SUM(I51,I53) -> 10379.81946 | K50: ss
A51: 8.1 | D51: Instalação de placas de aviso | I51: =SUM(I52:I52) -> 5574.06096
A52: 8.1.1 | B52: PRÓPRIA | C52: CPU.03 | D52: PLACA DE OBRA EM CHAPA DE ACO GALVANIZADO | E52: m² | F52: 5 | G52: =CPU!H48 -> 900.64 | H52: =IF(J52="SERV",G52*(1+$H$5),G52*(1+$H$6)) -> 1114.812192 | I52: =IF(J52="SERV",G52*F52*(1+$H$5),G52*F52*(1+$H$6)) -> 5574.06096 | J52: serv | K52: s | L52: 5 placas de 1 m²
A53: 8.2 | D53: Instalação de mourões para medida de cota d’água | I53: =SUM(I54) -> 4805.7585
A54: 8.2.1 | B54: PRÓPRIA | C54: CPU.14 | D54: Instalação de mourões para medida de cota d’água | E54: un | F54: 10 | G54: =CPU!H162 -> 388.25 | H54: =IF(J54="SERV",G54*(1+$H$5),G54*(1+$H$6)) -> 480.57585 | I54: =IF(J54="SERV",G54*F54*(1+$H$5),G54*F54*(1+$H$6)) -> 4805.7585 | J54: serv | K54: s
K55: s
D57: TOTAL Sem BDI: | I57: =SUMPRODUCT(F11:F56,G11:G56) -> 489043.911
D58: BDI: | I58: =I57*H5 -> 116294.642
D59: TOTAL Com BDI: | I59: =SUM(I57:I58) -> 605338.553

Sheet Planilha Orçamentária Desoner (hidden)
A1: Ministério da Integração e do Desenvolvimento Regional
A2: Companhia de desenvolvimento dos Vales do São Francisco e do Parnaíba
A4: PLANILHA ORÇAMENTÁRIA - ORÇAMENTO DESONERADO
A5: OBRA: | B5: =UPPER("SERVIÇOS DE MANUTENÇÃO E OBRAS CIVIS NA ESTRUTURA DA BARRAGEM E EQUIPAMENTO HIDROMECÂNICO") -> SERVIÇOS DE MANUTENÇÃO E OBRAS CIVIS NA ESTRUTURA DA BARRAGEM E EQUIPAMENTO HIDROMECÂNICO | G5: BDI (serv.): | H5: ='BDI serv Desonerado'!D22 -> 0.3351 | I5: Bancos
A6: LOCAL: | B6: BARRAGEM POÇO DO MAGRO, GUANAMBI/BA | G6: BDI (forn.): | H6: ='BDI forn Desonerado'!D22 -> 0.212 | I6: 05/2023 - SINAPI/BA
A7: DATA BASE: | B7: 2023-05-01 | E7: Encargos sociais Horistas: | H7: ='Encargos Sociais'!C47 -> 0.8435 | I7: 01/2023 - SICRO/BA
A8: PRAZO: | B8: 120 DIAS | E8: Encargos sociais - Mensalista: | H8: ='Encargos Sociais'!D47 -> 0.4641 | I8: 04/2023 - ORSE
A9: ITEM | B9: REFERÊNCIA | D9: DESCRIÇÃO | E9: UNID. | F9: QUANT. | G9: CUSTO UNITÁRIO | H9: PREÇO UNITÁRIO | I9: PREÇO TOTAL | J9: TIPO de BDI | K9: CLASSIF
B10: FONTE | C10: CÓDIGO
A11: 1 | D11: ADMINISTRAÇÃO LOCAL | I11: =SUM(I12:I12) -> 41837.86849 | K11: ss
A12: 1.1 | B12: PRÓPRIA | C12: CPU.01 | D12: ADMINISTRAÇÃO LOCAL | E12: MÊS | F12: ='Planilha Orçamentária'!F12 -> 4 | G12: =SUMIFS('CPU DES'!$H:$H,'CPU DES'!$B:$B,'Planilha Orçamentária Desoner'!$A12,'CPU DES'!$I:$I,"ss")+SUMIFS('CPU DES'!$H:$H,'CPU DES'!$B:$B,'Planilha Orçamentária Desoner'!$A12,'CPU DES'!$I:$I,"mdo")+SUMIF('Comp SINAPI BA 05-2023 Desoner'!G:G,'Planilha Orçamentária Desoner'!C12,'Comp SINAPI BA 05-2023 Desoner'!K:K)+SUMIF('Ins SINAPI BA 05-2023 Desoner'!A:A,'Planilha Orçamentária Desoner'!C12,'Ins SINAPI BA 05-2023 Desoner'!E:E) -> 7834.22 | H12: =IF(J12="SERV",G12*(1+$H$5),G12*(1+$H$6)) -> 10459.46712 | I12: =IF(J12="SERV",G12*F12*(1+$H$5),G12*F12*(1+$H$6)) -> 41837.86849 | J12: serv | K12: s
A14: 2 | D14: SERVIÇOS PRELIMINARES | I14: =SUM(I15,I21) ->  | K14: ss
A15: 2.1 | D15: Canteiro de obras | I15: =SUM(I16:I20) ->  | K15: s
A16: 2.1.1 | B16: SINAPI | C16: 98525 | D16: =PROPER(IF(K16="i",VLOOKUP(C16,'Ins SINAPI BA 05-2023 Desoner'!$A$8:$E$5189,2,0),VLOOKUP(C16,'Comp SINAPI BA 05-2023 Desoner'!$G$7:$K$7500,2,0))) -> Limpeza Mecanizada De Camada Vegetal, Vegetação E Pequenas Árvores (Diâmetro De Tronco Menor Que 0,20 M), Com Trator De Esteiras.Af_05/2018 | E16: =LOWER(IF(K16="i",VLOOKUP(C16,'Ins SINAPI BA 05-2023 Desoner'!$A$8:$E$5189,3,0),VLOOKUP(C16,'Comp SINAPI BA 05-2023 Desoner'!$G$7:$K$7500,3,0))) -> m2 | F16: ='Planilha Orçamentária'!#REF! ->  | G16: =SUMIFS('CPU DES'!$H:$H,'CPU DES'!$B:$B,'Planilha Orçamentária Desoner'!$A16,'CPU DES'!$I:$I,"ss")+SUMIFS('CPU DES'!$H:$H,'CPU DES'!$B:$B,'Planilha Orçamentária Desoner'!$A16,'CPU DES'!$I:$I,"mdo")+SUMIF('Comp SINAPI BA 05-2023 Desoner'!G:G,'Planilha Orçamentária Desoner'!C16,'Comp SINAPI BA 05-2023 Desoner'!K:K)+SUMIF('Ins SINAPI BA 05-2023 Desoner'!A:A,'Planilha Orçamentária Desoner'!C16,'Ins SINAPI BA 05-2023 Desoner'!E:E) -> 0.37 | H16: =IF(J16="SERV",G16*(1+$H$5),G16*(1+$H$6)) -> 0.493987 | I16: =IF(J16="SERV",G16*F16*(1+$H$5),G16*F16*(1+$H$6)) ->  | J16: serv | K16: s
A17: 2.1.2 | B17: SINAPI | C17: 94975 | D17: =PROPER(IF(K17="i",VLOOKUP(C17,'Ins SINAPI BA 05-2023 Desoner'!$A$8:$E$5189,2,0),VLOOKUP(C17,'Comp SINAPI BA 05-2023 Desoner'!$G$7:$K$7500,2,0))) -> Concreto Fck = 15Mpa, Traço 1:3,4:3,5 (Em Massa Seca De Cimento/ Areia Média/ Brita 1) - Preparo Manual. Af_05/2021 | E17: =LOWER(IF(K17="i",VLOOKUP(C17,'Ins SINAPI BA 05-2023 Desoner'!$A$8:$E$5189,3,0),VLOOKUP(C17,'Comp SINAPI BA 05-2023 Desoner'!$G$7:$K$7500,3,0))) -> m3 | F17: ='Planilha Orçamentária'!#REF! ->  | G17: =SUMIFS('CPU DES'!$H:$H,'CPU DES'!$B:$B,'Planilha Orçamentária Desoner'!$A17,'CPU DES'!$I:$I,"ss")+SUMIFS('CPU DES'!$H:$H,'CPU DES'!$B:$B,'Planilha Orçamentária Desoner'!$A17,'CPU DES'!$I:$I,"mdo")+SUMIF('Comp SINAPI BA 05-2023 Desoner'!G:G,'Planilha Orçamentária Desoner'!C17,'Comp SINAPI BA 05-2023 Desoner'!K:K)+SUMIF('Ins SINAPI BA 05-2023 Desoner'!A:A,'Planilha Orçamentária Desoner'!C17,'Ins SINAPI BA 05-2023 Desoner'!E:E) -> 510.11 | H17: =IF(J17="SERV",G17*(1+$H$5),G17*(1+$H$6)) -> 681.047861 | I17: =IF(J17="SERV",G17*F17*(1+$H$5),G17*F17*(1+$H$6)) ->  | J17: serv | K17: s
A18: 2.1.3 | B18: SINAPI | C18: 93210 | D18: =PROPER(IF(K18="i",VLOOKUP(C18,'Ins SINAPI BA 05-2023 Desoner'!$A$8:$E$5189,2,0),VLOOKUP(C18,'Comp SINAPI BA 05-2023 Desoner'!$G$7:$K$7500,2,0))) -> Execução De Refeitório Em Canteiro De Obra Em Chapa De Madeira Compensada, Não Incluso Mobiliário E Equipamentos. Af_02/2016 | E18: =LOWER(IF(K18="i",VLOOKUP(C18,'Ins SINAPI BA 05-2023 Desoner'!$A$8:$E$5189,3,0),VLOOKUP(C18,'Comp SINAPI BA 05-2023 Desoner'!$G$7:$K$7500,3,0))) -> m2 | F18: ='Planilha Orçamentária'!#REF! ->  | G18: =SUMIFS('CPU DES'!$H:$H,'CPU DES'!$B:$B,'Planilha Orçamentária Desoner'!$A18,'CPU DES'!$I:$I,"ss")+SUMIFS('CPU DES'!$H:$H,'CPU DES'!$B:$B,'Planilha Orçamentária Desoner'!$A18,'CPU DES'!$I:$I,"mdo")+SUMIF('Comp SINAPI BA 05-2023 Desoner'!G:G,'Planilha Orçamentária Desoner'!C18,'Comp SINAPI BA 05-2023 Desoner'!K:K)+SUMIF('Ins SINAPI BA 05-2023 Desoner'!A:A,'Planilha Orçamentária Desoner'!C18,'Ins SINAPI BA 05-2023 Desoner'!E:E) -> 602.5 | H18: 804.39775 | J18: serv | K18: s
A19: 2.1.4 | B19: SINAPI | C19: 93212 | D19: =PROPER(IF(K19="i",VLOOKUP(C19,'Ins SINAPI BA 05-2023 Desoner'!$A$8:$E$5189,2,0),VLOOKUP(C19,'Comp SINAPI BA 05-2023 Desoner'!$G$7:$K$7500,2,0))) -> Execução De Sanitário E Vestiário Em Canteiro De Obra Em Chapa De Madeira Compensada, Não Incluso Mobiliário. Af_02/2016 | E19: =LOWER(IF(K19="i",VLOOKUP(C19,'Ins SINAPI BA 05-2023 Desoner'!$A$8:$E$5189,3,0),VLOOKUP(C19,'Comp SINAPI BA 05-2023 Desoner'!$G$7:$K$7500,3,0))) -> m2 | F19: ='Planilha Orçamentária'!#REF! ->  | G19: =SUMIFS('CPU DES'!$H:$H,'CPU DES'!$B:$B,'Planilha Orçamentária Desoner'!$A19,'CPU DES'!$I:$I,"ss")+SUMIFS('CPU DES'!$H:$H,'CPU DES'!$B:$B,'Planilha Orçamentária Desoner'!$A19,'CPU DES'!$I:$I,"mdo")+SUMIF('Comp SINAPI BA 05-2023 Desoner'!G:G,'Planilha Orçamentária Desoner'!C19,'Comp SINAPI BA 05-2023 Desoner'!K:K)+SUMIF('Ins SINAPI BA 05-2023 Desoner'!A:A,'Planilha Orçamentária Desoner'!C19,'Ins SINAPI BA 05-2023 Desoner'!E:E) -> 1003.35 | H19: 1339.572585 | J19: serv | K19: s
A20: 2.1.5 | B20: SINAPI | C20: 93583 | D20: =PROPER(IF(K20="i",VLOOKUP(C20,'Ins SINAPI BA 05-2023 Desoner'!$A$8:$E$5189,2,0),VLOOKUP(C20,'Comp SINAPI BA 05-2023 Desoner'!$G$7:$K$7500,2,0))) -> Execução De Central De Fôrmas, Produção De Argamassa Ou Concreto Em Canteiro De Obra, Não Incluso Mobiliário E Equipamentos. Af_04/2016 | E20: =LOWER(IF(K20="i",VLOOKUP(C20,'Ins SINAPI BA 05-2023 Desoner'!$A$8:$E$5189,3,0),VLOOKUP(C20,'Comp SINAPI BA 05-2023 Desoner'!$G$7:$K$7500,3,0))) -> m2 | F20: ='Planilha Orçamentária'!#REF! ->  | G20: =SUMIFS('CPU DES'!$H:$H,'CPU DES'!$B:$B,'Planilha Orçamentária Desoner'!$A20,'CPU DES'!$I:$I,"ss")+SUMIFS('CPU DES'!$H:$H,'CPU DES'!$B:$B,'Planilha Orçamentária Desoner'!$A20,'CPU DES'!$I:$I,"mdo")+SUMIF('Comp SINAPI BA 05-2023 Desoner'!G:G,'Planilha Orçamentária Desoner'!C20,'Comp SINAPI BA 05-2023 Desoner'!K:K)+SUMIF('Ins SINAPI BA 05-2023 Desoner'!A:A,'Planilha Orçamentária Desoner'!C20,'Ins SINAPI BA 05-2023 Desoner'!E:E) -> 463.26 | H20: 618.498426 | J20: serv | K20: s
A21: 2.2 | D21: Sinalização | I21: =SUM(I22:I22) -> 1175.15502 | K21: s
A22: 2.2.1 | B22: PRÓPRIA | C22: CPU.02 | D22: PLACA DE OBRA EM CHAPA DE ACO GALVANIZADO | E22: m² | F22: ='Planilha Orçamentária'!F20 -> 2 | G22: =SUMIFS('CPU DES'!$H:$H,'CPU DES'!$B:$B,'Planilha Orçamentária Desoner'!$A22,'CPU DES'!$I:$I,"ss")+SUMIFS('CPU DES'!$H:$H,'CPU DES'!$B:$B,'Planilha Orçamentária Desoner'!$A22,'CPU DES'!$I:$I,"mdo")+SUMIF('Comp SINAPI BA 05-2023 Desoner'!G:G,'Planilha Orçamentária Desoner'!C22,'Comp SINAPI BA 05-2023 Desoner'!K:K)+SUMIF('Ins SINAPI BA 05-2023 Desoner'!A:A,'Planilha Orçamentária Desoner'!C22,'Ins SINAPI BA 05-2023 Desoner'!E:E) -> 440.1 | H22: =IF(J22="SERV",G22*(1+$H$5),G22*(1+$H$6)) -> 587.57751 | I22: =IF(J22="SERV",G22*F22*(1+$H$5),G22*F22*(1+$H$6)) -> 1175.15502 | J22: serv | K22: i
A24: 3 | D24: LIMPEZA DA REGIÃO A JUSANTE | I24: =SUM(I25) ->  | K24: ss
A25: 3.1 | D25: Remoção da vegetação a jusante | I25: =SUM(I26:I29) ->  | K25: s
A26: 3.1.1 | B26: SINAPI | C26: 98525 | D26: =PROPER(IF(K26="i",VLOOKUP(C26,'Ins SINAPI BA 05-2023 Desoner'!$A$8:$E$5189,2,0),VLOOKUP(C26,'Comp SINAPI BA 05-2023 Desoner'!$G$7:$K$7500,2,0))) -> Limpeza Mecanizada De Camada Vegetal, Vegetação E Pequenas Árvores (Diâmetro De Tronco Menor Que 0,20 M), Com Trator De Esteiras.Af_05/2018 | E26: =LOWER(IF(K26="i",VLOOKUP(C26,'Ins SINAPI BA 05-2023 Desoner'!$A$8:$E$5189,3,0),VLOOKUP(C26,'Comp SINAPI BA 05-2023 Desoner'!$G$7:$K$7500,3,0))) -> m2 | F26: ='Planilha Orçamentária'!F24 -> 4000 | G26: =SUMIFS('CPU DES'!$H:$H,'CPU DES'!$B:$B,'Planilha Orçamentária Desoner'!$A26,'CPU DES'!$I:$I,"ss")+SUMIFS('CPU DES'!$H:$H,'CPU DES'!$B:$B,'Planilha Orçamentária Desoner'!$A26,'CPU DES'!$I:$I,"mdo")+SUMIF('Comp SINAPI BA 05-2023 Desoner'!G:G,'Planilha Orçamentária Desoner'!C26,'Comp SINAPI BA 05-2023 Desoner'!K:K)+SUMIF('Ins SINAPI BA 05-2023 Desoner'!A:A,'Planilha Orçamentária Desoner'!C26,'Ins SINAPI BA 05-2023 Desoner'!E:E) -> 0.37 | H26: =IF(J26="SERV",G26*(1+$H$5),G26*(1+$H$6)) -> 0.493987 | I26: =IF(J26="SERV",G26*F26*(1+$H$5),G26*F26*(1+$H$6)) -> 1975.948 | J26: serv | K26: s
A27: 3.1.2 | B27: EMBASA | C27: 02.04.04 | D27: CORTE DE ARVORE COM DESTOCAMENTO MANUAL,C/DIAMETRO ENTRE 15 E 30cm | E27: UN | F27: ='Planilha Orçamentária'!#REF! ->  | G27: 60.7 | H27: =IF(J27="SERV",G27*(1+$H$5),G27*(1+$H$6)) -> 81.04057 | I27: =IF(J27="SERV",G27*F27*(1+$H$5),G27*F27*(1+$H$6)) ->  | J27: serv | K27: s
A28: 3.1.3 | B28: EMBASA | C28: 15.92.02 | D28: LIMPEZA E DESOBSTRUCAO DE REDES DE ESGOTO / DRENAGEM | E28: H | F28: ='Planilha Orçamentária'!#REF! ->  | G28: 160.18 | H28: =IF(J28="SERV",G28*(1+$H$5),G28*(1+$H$6)) -> 213.856318 | I28: =IF(J28="SERV",G28*F28*(1+$H$5),G28*F28*(1+$H$6)) ->  | J28: serv | K28: s
A29: 3.1.4 | B29: SINAPI | C29: 97912 | D29: =PROPER(IF(K29="i",VLOOKUP(C29,'Ins SINAPI BA 05-2023 Desoner'!$A$8:$E$5189,2,0),VLOOKUP(C29,'Comp SINAPI BA 05-2023 Desoner'!$G$7:$K$7500,2,0))) -> Transporte Com Caminhão Basculante De 6 M³, Em Via Urbana Em Leito Natural (Unidade: M3Xkm). Af_07/2020 | E29: =LOWER(IF(K29="i",VLOOKUP(C29,'Ins SINAPI BA 05-2023 Desoner'!$A$8:$E$5189,3,0),VLOOKUP(C29,'Comp SINAPI BA 05-2023 Desoner'!$G$7:$K$7500,3,0))) -> m3xkm | F29: ='Planilha Orçamentária'!#REF! ->  | G29: =SUMIFS('CPU DES'!$H:$H,'CPU DES'!$B:$B,'Planilha Orçamentária Desoner'!$A29,'CPU DES'!$I:$I,"ss")+SUMIFS('CPU DES'!$H:$H,'CPU DES'!$B:$B,'Planilha Orçamentária Desoner'!$A29,'CPU DES'!$I:$I,"mdo")+SUMIF('Comp SINAPI BA 05-2023 Desoner'!G:G,'Planilha Orçamentária Desoner'!C29,'Comp SINAPI BA 05-2023 Desoner'!K:K)+SUMIF('Ins SINAPI BA 05-2023 Desoner'!A:A,'Planilha Orçamentária Desoner'!C29,'Ins SINAPI BA 05-2023 Desoner'!E:E) -> 3.41 | H29: =IF(J29="SERV",G29*(1+$H$5),G29*(1+$H$6)) -> 4.552691 | I29: =IF(J29="SERV",G29*F29*(1+$H$5),G29*F29*(1+$H$6)) ->  | J29: serv | K29: s
A31: 4 | D31: OPERAÇÃO SUBAQUÁTICA | I31: =SUM(I32,I35) ->  | K31: ss
A32: 4.1 | D32: Inspeção e Laudo da região subaquática | I32: =SUM(I33:I34) -> 
A33: 4.1.1 | B33: PRÓPRIA | C33: CPU.03 | D33: Mobilização da Equipe, Camara Hiperbarica e todos os equipamentos de mergulho envolvidos na operação | E33: un | F33: ='Planilha Orçamentária'!#REF! ->  | G33: =SUMIFS(CPU!$H:$H,CPU!$B:$B,'Planilha Orçamentária'!#REF!,CPU!$I:$I,"ss")+SUMIFS(CPU!$H:$H,CPU!$B:$B,'Planilha Orçamentária'!#REF!,CPU!$I:$I,"mdo")+SUMIF('Comp SINAPI PE 12-2023 Onerado'!G:G,'Planilha Orçamentária'!#REF!,'Comp SINAPI PE 12-2023 Onerado'!K:K)+SUMIF('Ins SINAPI PE 12-2023 Onerado'!A:A,'Planilha Orçamentária'!#REF!,'Ins SINAPI PE 12-2023 Onerado'!E:E) -> 0 | H33: =IF(J33="SERV",G33*(1+$H$5),G33*(1+$H$6)) -> 0 | I33: =IF(J33="SERV",G33*F33*(1+$H$5),G33*F33*(1+$H$6)) ->  | J33: serv | K33: s
A34: 4.1.2 | B34: SICRO | C34: 4816024 | D34: Operação de mergulho dependente em profundidade de até 30 m - inclusive descompressão | E34: h | F34: ='Planilha Orçamentária'!#REF! ->  | G34: 255.2 | H34: =IF(K34="SERV",G34*(1+$H$5),G34*(1+$H$6)) -> 309.3024 | I34: =IF(J34="SERV",G34*F34*(1+$H$5),G34*F34*(1+$H$6)) ->  | J34: serv | K34: s
A35: 4.2 | D35: Vedação/Abertura da tomada d'água | I35: =SUM(I36:I37) -> 
A36: 4.2.1 | B36: PRÓPRIA | C36: CPU.04 | D36: Vedação da entrada da tomada d’água com chapas metálicas | E36: un | F36: ='Planilha Orçamentária'!#REF! ->  | G36: =SUMIFS(CPU!$H:$H,CPU!$B:$B,'Planilha Orçamentária'!#REF!,CPU!$I:$I,"ss")+SUMIFS(CPU!$H:$H,CPU!$B:$B,'Planilha Orçamentária'!#REF!,CPU!$I:$I,"mdo")+SUMIF('Comp SINAPI PE 12-2023 Onerado'!G:G,'Planilha Orçamentária'!#REF!,'Comp SINAPI PE 12-2023 Onerado'!K:K)+SUMIF('Ins SINAPI PE 12-2023 Onerado'!A:A,'Planilha Orçamentária'!#REF!,'Ins SINAPI PE 12-2023 Onerado'!E:E) -> 0 | H36: =IF(J36="SERV",G36*(1+$H$5),G36*(1+$H$6)) -> 0 | J36: serv | K36: s
A37: 4.2.2 | B37: PRÓPRIA | C37: CPU.05 | D37: Remoção da vedação da entrada da tomada d’água com chapas metálicas | E37: un | F37: ='Planilha Orçamentária'!#REF! ->  | G37: =SUMIFS(CPU!$H:$H,CPU!$B:$B,'Planilha Orçamentária'!#REF!,CPU!$I:$I,"ss")+SUMIFS(CPU!$H:$H,CPU!$B:$B,'Planilha Orçamentária'!#REF!,CPU!$I:$I,"mdo")+SUMIF('Comp SINAPI PE 12-2023 Onerado'!G:G,'Planilha Orçamentária'!#REF!,'Comp SINAPI PE 12-2023 Onerado'!K:K)+SUMIF('Ins SINAPI PE 12-2023 Onerado'!A:A,'Planilha Orçamentária'!#REF!,'Ins SINAPI PE 12-2023 Onerado'!E:E) -> 0 | H37: 0 | J37: serv | K37: s
A39: 5 | D39: MANUTENÇÃO NOS DISPOSITIVOS DE CONTROLE | I39: =SUM(I40,I47) -> 
A40: 5.1 | D40: Manutenção das válvulas | I40: =SUM(I41:I46) -> 
A41: 5.1.1 | B41: SINAPI | C41: 98524 | D41: =PROPER(IF(K41="i",VLOOKUP(C41,'Ins SINAPI BA 05-2023 Desoner'!$A$8:$E$5189,2,0),VLOOKUP(C41,'Comp SINAPI BA 05-2023 Desoner'!$G$7:$K$7500,2,0))) -> Limpeza Manual De Vegetação Em Terreno Com Enxada.Af_05/2018 | E41: =LOWER(IF(K41="i",VLOOKUP(C41,'Ins SINAPI BA 05-2023 Desoner'!$A$8:$E$5189,3,0),VLOOKUP(C41,'Comp SINAPI BA 05-2023 Desoner'!$G$7:$K$7500,3,0))) -> m2 | F41: ='Planilha Orçamentária'!#REF! ->  | G41: =SUMIFS('CPU DES'!$H:$H,'CPU DES'!$B:$B,'Planilha Orçamentária Desoner'!$A41,'CPU DES'!$I:$I,"ss")+SUMIFS('CPU DES'!$H:$H,'CPU DES'!$B:$B,'Planilha Orçamentária Desoner'!$A41,'CPU DES'!$I:$I,"mdo")+SUMIF('Comp SINAPI BA 05-2023 Desoner'!G:G,'Planilha Orçamentária Desoner'!C41,'Comp SINAPI BA 05-2023 Desoner'!K:K)+SUMIF('Ins SINAPI BA 05-2023 Desoner'!A:A,'Planilha Orçamentária Desoner'!C41,'Ins SINAPI BA 05-2023 Desoner'!E:E) -> 2.9 | H41: =IF(J41="SERV",G41*(1+$H$5),G41*(1+$H$6)) -> 3.87179 | I41: =IF(J41="SERV",G41*F41*(1+$H$5),G41*F41*(1+$H$6)) ->  | J41: serv | K41: s
A42: 5.1.2 | B42: EMBASA | C42: 12.99.10 | D42: DESMONT. DE PECAS, CONEXOES, VALVULAS, APARELHOS E ACESSORIOS DE FERRO FUNDIDO DUCTIL OU ACO CARBONO, JUNTA TRAVADA, EXTERNA MECANICA OU FLANGEADA C/ DIAMETROS DE 700 A 1200 MM | E42: kg | F42: ='Planilha Orçamentária'!#REF! ->  | G42: 1.21 | H42: =IF(J42="SERV",G42*(1+$H$5),G42*(1+$H$6)) -> 1.615471 | I42: =IF(J42="SERV",G42*F42*(1+$H$5),G42*F42*(1+$H$6)) ->  | J42: serv | K42: s
A43: 5.1.3 | B43: EMBASA | C43: 62.01.53 | D43: MANUTENCAO EM VALVULAS (VRP, NIVEL E ANTI-GOLPE), VENTOSAS E REGISTROS ACIMA DE 16" ATÉ 24" POLEGADAS | E43: un | F43: ='Planilha Orçamentária'!#REF! ->  | G43: 581.86 | H43: =IF(J43="SERV",G43*(1+$H$5),G43*(1+$H$6)) -> 776.841286 | J43: serv | K43: s
A44: 5.1.4 | B44: EMBASA | C44: M012309000/M012309045 | D44: PARAFUSOS C/ PORCA P/ VALVULA BORBOLETA C/ FLANGE PN 10 - AWWA / PBFW10 DN 700 48,900 kg | E44: PC | F44: ='Planilha Orçamentária'!#REF! ->  | G44: 5.36 | H44: 7.156136 | J44: serv | K44: s
A45: 5.1.5 | B45: EMBASA | C45: 15.07.46 | D45: (REVISADA) - PINTURA EPOXI EM SURPEFICIE METALICA, INCL. LIXAMENTO E FUNDO EPOXI ANTICORROSIVO, DUAS DEMAOS | E45: m² | F45: ='Planilha Orçamentária'!#REF! ->  | G45: 75.54 | H45: 100.853454 | J45: serv | K45: s
A46: 5.1.6 | B46: EMBASA | C46: 12.02.07 | D46: MONT. DE PECAS, CONEXOES, VALVULAS, APARELHOS E ACESSORIOS DE FERRO FUNDIDO DUCTIL OU ACO CARBONO, JUNTA TRAVADA, EXTERNA MECANICA OU FLANGEADA C/ DIAMETROSDE 700 A 1200 mm. | E46: kg | F46: ='Planilha Orçamentária'!#REF! ->  | G46: 1.21 | H46: 1.615471 | J46: serv | K46: s
A47: 5.2 | D47: Instalação de dispositivo de drenagem na caixa de válvulas | I47: =SUM(I48:I50) -> 
A48: 5.2.1 | B48: SINAPI | C48: 97627 | D48: =PROPER(IF(K48="i",VLOOKUP(C48,'Ins SINAPI BA 05-2023 Desoner'!$A$8:$E$5189,2,0),VLOOKUP(C48,'Comp SINAPI BA 05-2023 Desoner'!$G$7:$K$7500,2,0))) -> Demolição De Pilares E Vigas Em Concreto Armado, De Forma Mecanizada Com Martelete, Sem Reaproveitamento. Af_12/2017 | E48: =LOWER(IF(K48="i",VLOOKUP(C48,'Ins SINAPI BA 05-2023 Desoner'!$A$8:$E$5189,3,0),VLOOKUP(C48,'Comp SINAPI BA 05-2023 Desoner'!$G$7:$K$7500,3,0))) -> m3 | F48: ='Planilha Orçamentária'!#REF! ->  | G48: =SUMIFS('CPU DES'!$H:$H,'CPU DES'!$B:$B,'Planilha Orçamentária Desoner'!$A48,'CPU DES'!$I:$I,"ss")+SUMIFS('CPU DES'!$H:$H,'CPU DES'!$B:$B,'Planilha Orçamentária Desoner'!$A48,'CPU DES'!$I:$I,"mdo")+SUMIF('Comp SINAPI BA 05-2023 Desoner'!G:G,'Planilha Orçamentária Desoner'!C48,'Comp SINAPI BA 05-2023 Desoner'!K:K)+SUMIF('Ins SINAPI BA 05-2023 Desoner'!A:A,'Planilha Orçamentária Desoner'!C48,'Ins SINAPI BA 05-2023 Desoner'!E:E) -> 311.2 | H48: =IF(J48="SERV",G48*(1+$H$5),G48*(1+$H$6)) -> 415.48312 | I48: =IF(J48="SERV",G48*F48*(1+$H$5),G48*F48*(1+$H$6)) ->  | J48: serv | K48: s
A49: 5.2.2 | B49: SINAPI | C49: 89714 | D49: =PROPER(IF(K49="i",VLOOKUP(C49,'Ins SINAPI BA 05-2023 Desoner'!$A$8:$E$5189,2,0),VLOOKUP(C49,'Comp SINAPI BA 05-2023 Desoner'!$G$7:$K$7500,2,0))) -> Tubo Pvc, Serie Normal, Esgoto Predial, Dn 100 Mm, Fornecido E Instalado Em Ramal De Descarga Ou Ramal De Esgoto Sanitário. Af_08/2022 | E49: =LOWER(IF(K49="i",VLOOKUP(C49,'Ins SINAPI BA 05-2023 Desoner'!$A$8:$E$5189,3,0),VLOOKUP(C49,'Comp SINAPI BA 05-2023 Desoner'!$G$7:$K$7500,3,0))) -> m | F49: ='Planilha Orçamentária'!#REF! ->  | G49: =SUMIFS('CPU DES'!$H:$H,'CPU DES'!$B:$B,'Planilha Orçamentária Desoner'!$A49,'CPU DES'!$I:$I,"ss")+SUMIFS('CPU DES'!$H:$H,'CPU DES'!$B:$B,'Planilha Orçamentária Desoner'!$A49,'CPU DES'!$I:$I,"mdo")+SUMIF('Comp SINAPI BA 05-2023 Desoner'!G:G,'Planilha Orçamentária Desoner'!C49,'Comp SINAPI BA 05-2023 Desoner'!K:K)+SUMIF('Ins SINAPI BA 05-2023 Desoner'!A:A,'Planilha Orçamentária Desoner'!C49,'Ins SINAPI BA 05-2023 Desoner'!E:E) -> 36.26 | H49: =IF(J49="SERV",G49*(1+$H$5),G49*(1+$H$6)) -> 48.410726 | I49: =IF(J49="SERV",G49*F49*(1+$H$5),G49*F49*(1+$H$6)) ->  | J49: serv | K49: s
A50: 5.2.3 | B50: SINAPI | C50: 103682 | D50: =PROPER(IF(K50="i",VLOOKUP(C50,'Ins SINAPI BA 05-2023 Desoner'!$A$8:$E$5189,2,0),VLOOKUP(C50,'Comp SINAPI BA 05-2023 Desoner'!$G$7:$K$7500,2,0))) -> Concretagem De Vigas E Lajes, Fck=25 Mpa, Para Qualquer Tipo De Laje Com Baldes Em Edificação Térrea - Lançamento, Adensamento E Acabamento. Af_02/2022 | E50: =LOWER(IF(K50="i",VLOOKUP(C50,'Ins SINAPI BA 05-2023 Desoner'!$A$8:$E$5189,3,0),VLOOKUP(C50,'Comp SINAPI BA 05-2023 Desoner'!$G$7:$K$7500,3,0))) -> m3 | F50: ='Planilha Orçamentária'!#REF! ->  | G50: =SUMIFS('CPU DES'!$H:$H,'CPU DES'!$B:$B,'Planilha Orçamentária Desoner'!$A50,'CPU DES'!$I:$I,"ss")+SUMIFS('CPU DES'!$H:$H,'CPU DES'!$B:$B,'Planilha Orçamentária Desoner'!$A50,'CPU DES'!$I:$I,"mdo")+SUMIF('Comp SINAPI BA 05-2023 Desoner'!G:G,'Planilha Orçamentária Desoner'!C50,'Comp SINAPI BA 05-2023 Desoner'!K:K)+SUMIF('Ins SINAPI BA 05-2023 Desoner'!A:A,'Planilha Orçamentária Desoner'!C50,'Ins SINAPI BA 05-2023 Desoner'!E:E) -> 962.12 | H50: 1284.526412 | J50: serv | K50: s
A52: 6 | D52: RECUPERAÇÃO | I52: =SUM(I53,I63,I69) ->  | K52: ss
A53: 6.1 | D53: Paramento a jusante | I53: =SUM(I54:I62) -> 
A54: 6.1.1 | B54: SINAPI | C54: 41805 | D54: =PROPER(IF(K54="i",VLOOKUP(C54,'Ins SINAPI BA 05-2023 Desoner'!$A$8:$E$5189,2,0),VLOOKUP(C54,'Comp SINAPI BA 05-2023 Desoner'!$G$7:$K$7500,2,0))) -> Locacao De Andaime Suspenso Ou Balancim Manual, Capacidade De Carga Total De Aproximadamente 250 Kg/M2, Plataforma De 1,50 M X 0,80 M (C X L), Cabo De 45 M | E54: =LOWER(IF(K54="i",VLOOKUP(C54,'Ins SINAPI BA 05-2023 Desoner'!$A$8:$E$5189,3,0),VLOOKUP(C54,'Comp SINAPI BA 05-2023 Desoner'!$G$7:$K$7500,3,0))) -> mes | F54: ='Planilha Orçamentária'!#REF! ->  | G54: =SUMIFS('CPU DES'!$H:$H,'CPU DES'!$B:$B,'Planilha Orçamentária Desoner'!$A54,'CPU DES'!$I:$I,"ss")+SUMIFS('CPU DES'!$H:$H,'CPU DES'!$B:$B,'Planilha Orçamentária Desoner'!$A54,'CPU DES'!$I:$I,"mdo")+SUMIF('Comp SINAPI BA 05-2023 Desoner'!G:G,'Planilha Orçamentária Desoner'!C54,'Comp SINAPI BA 05-2023 Desoner'!K:K)+SUMIF('Ins SINAPI BA 05-2023 Desoner'!A:A,'Planilha Orçamentária Desoner'!C54,'Ins SINAPI BA 05-2023 Desoner'!E:E) -> 425 | H54: =IF(J54="SERV",G54*(1+$H$5),G54*(1+$H$6)) -> 567.4175 | I54: =IF(J54="SERV",G54*F54*(1+$H$5),G54*F54*(1+$H$6)) ->  | J54: serv | K54: i
A55: 6.1.2 | B55: SICRO | C55: 3806402 | D55: Limpeza em superfície de concreto com jateamento d'água sob pressão | E55: m2 | F55: ='Planilha Orçamentária'!#REF! ->  | G55: 2.3 | H55: =IF(J55="SERV",G55*(1+$H$5),G55*(1+$H$6)) -> 3.07073 | I55: =IF(J55="SERV",G55*F55*(1+$H$5),G55*F55*(1+$H$6)) ->  | J55: serv | K55: s
A56: 6.1.3 | B56: SICRO | C56: 3806413 | D56: Apicoamento mecanizado de concreto | E56: m2 | F56: =F55 ->  | G56: 20.4 | H56: =IF(J56="SERV",G56*(1+$H$5),G56*(1+$H$6)) -> 27.23604 | J56: serv | K56: s
A57: 6.1.4 | B57: SICRO | C57: 4915645 | D57: Injeção de adesivo estrutural à base de resina epóxi de baixa viscosidade para tratamento de fissuras em estruturas de concreto - fornecimento e aplicação mecanizada | E57: kg | F57: ='Planilha Orçamentária'!#REF! ->  | G57: 272.61 | H57: 363.961611 | J57: serv | K57: s
A58: 6.1.5 | B58: SINAPI | C58: 92264 | D58: =PROPER(IF(K58="i",VLOOKUP(C58,'Ins SINAPI BA 05-2023 Desoner'!$A$8:$E$5189,2,0),VLOOKUP(C58,'Comp SINAPI BA 05-2023 Desoner'!$G$7:$K$7500,2,0))) -> Fabricação De Fôrma Para Pilares E Estruturas Similares, Em Chapa De Madeira Compensada Plastificada, E = 18 Mm. Af_09/2020 | E58: =LOWER(IF(K58="i",VLOOKUP(C58,'Ins SINAPI BA 05-2023 Desoner'!$A$8:$E$5189,3,0),VLOOKUP(C58,'Comp SINAPI BA 05-2023 Desoner'!$G$7:$K$7500,3,0))) -> m2 | F58: ='Planilha Orçamentária'!#REF! ->  | G58: =SUMIFS('CPU DES'!$H:$H,'CPU DES'!$B:$B,'Planilha Orçamentária Desoner'!$A58,'CPU DES'!$I:$I,"ss")+SUMIFS('CPU DES'!$H:$H,'CPU DES'!$B:$B,'Planilha Orçamentária Desoner'!$A58,'CPU DES'!$I:$I,"mdo")+SUMIF('Comp SINAPI BA 05-2023 Desoner'!G:G,'Planilha Orçamentária Desoner'!C58,'Comp SINAPI BA 05-2023 Desoner'!K:K)+SUMIF('Ins SINAPI BA 05-2023 Desoner'!A:A,'Planilha Orçamentária Desoner'!C58,'Ins SINAPI BA 05-2023 Desoner'!E:E) -> 204.44 | H58: 272.947844 | J58: serv | K58: s
A59: 6.1.6 | B59: PRÓPRIA | C59: CPU.06 | D59: ARGAMASSA TRACO 1:3 (CIMENTO E AREIA), PREPARO MANUAL, INCLUSO ADITIVO IMPERMEABILIZANTE | E59: m3 | F59: ='Planilha Orçamentária'!#REF! ->  | G59: =SUMIFS(CPU!$H:$H,CPU!$B:$B,'Planilha Orçamentária'!#REF!,CPU!$I:$I,"ss")+SUMIFS(CPU!$H:$H,CPU!$B:$B,'Planilha Orçamentária'!#REF!,CPU!$I:$I,"mdo")+SUMIF('Comp SINAPI PE 12-2023 Onerado'!G:G,'Planilha Orçamentária'!#REF!,'Comp SINAPI PE 12-2023 Onerado'!K:K)+SUMIF('Ins SINAPI PE 12-2023 Onerado'!A:A,'Planilha Orçamentária'!#REF!,'Ins SINAPI PE 12-2023 Onerado'!E:E) -> 0 | H59: 0 | J59: serv | K59: s
A60: 6.1.7 | B60: SINAPI | C60: 97912 | D60: =PROPER(IF(K60="i",VLOOKUP(C60,'Ins SINAPI BA 05-2023 Desoner'!$A$8:$E$5189,2,0),VLOOKUP(C60,'Comp SINAPI BA 05-2023 Desoner'!$G$7:$K$7500,2,0))) -> Transporte Com Caminhão Basculante De 6 M³, Em Via Urbana Em Leito Natural (Unidade: M3Xkm). Af_07/2020 | E60: =LOWER(IF(K60="i",VLOOKUP(C60,'Ins SINAPI BA 05-2023 Desoner'!$A$8:$E$5189,3,0),VLOOKUP(C60,'Comp SINAPI BA 05-2023 Desoner'!$G$7:$K$7500,3,0))) -> m3xkm | F60: ='Planilha Orçamentária'!#REF! ->  | G60: =SUMIFS('CPU DES'!$H:$H,'CPU DES'!$B:$B,'Planilha Orçamentária Desoner'!$A60,'CPU DES'!$I:$I,"ss")+SUMIFS('CPU DES'!$H:$H,'CPU DES'!$B:$B,'Planilha Orçamentária Desoner'!$A60,'CPU DES'!$I:$I,"mdo")+SUMIF('Comp SINAPI BA 05-2023 Desoner'!G:G,'Planilha Orçamentária Desoner'!C60,'Comp SINAPI BA 05-2023 Desoner'!K:K)+SUMIF('Ins SINAPI BA 05-2023 Desoner'!A:A,'Planilha Orçamentária Desoner'!C60,'Ins SINAPI BA 05-2023 Desoner'!E:E) -> 3.41 | H60: =IF(J60="SERV",G60*(1+$H$5),G60*(1+$H$6)) -> 4.552691 | I60: =IF(J60="SERV",G60*F60*(1+$H$5),G60*F60*(1+$H$6)) ->  | J60: serv | K60: s
A61: 6.1.8 | B61: PRÓPRIA | C61: CPU.07 | D61: CURA QUÍMICA | E61: m2 | F61: ='Planilha Orçamentária'!#REF! ->  | G61: =SUMIFS(CPU!$H:$H,CPU!$B:$B,'Planilha Orçamentária'!#REF!,CPU!$I:$I,"ss")+SUMIFS(CPU!$H:$H,CPU!$B:$B,'Planilha Orçamentária'!#REF!,CPU!$I:$I,"mdo")+SUMIF('Comp SINAPI PE 12-2023 Onerado'!G:G,'Planilha Orçamentária'!#REF!,'Comp SINAPI PE 12-2023 Onerado'!K:K)+SUMIF('Ins SINAPI PE 12-2023 Onerado'!A:A,'Planilha Orçamentária'!#REF!,'Ins SINAPI PE 12-2023 Onerado'!E:E) -> 0 | H61: 0 | J61: serv | K61: s
A62: 6.1.9 | B62: SICRO | C62: 3808043 | D62: Pintura manual com nata de cimento - 3 demãos | E62: m2 | F62: ='Planilha Orçamentária'!#REF! ->  | G62: 3.79 | H62: 5.060029 | J62: serv | K62: s
A63: 6.2 | D63: Crista | I63: =SUM(I64:I68) -> 
A64: 6.2.1 | B64: SICRO | C64: 3806402 | D64: Limpeza em superfície de concreto com jateamento d'água sob pressão | E64: m2 | F64: ='Planilha Orçamentária'!#REF! ->  | G64: 2.3 | H64: =IF(J64="SERV",G64*(1+$H$5),G64*(1+$H$6)) -> 3.07073 | I64: =IF(J64="SERV",G64*F64*(1+$H$5),G64*F64*(1+$H$6)) ->  | J64: serv | K64: s
A65: 6.2.2 | B65: SICRO | C65: 4915645 | D65: Injeção de adesivo estrutural à base de resina epóxi de baixa viscosidade para tratamento de fissuras em estruturas de concreto - fornecimento e aplicação mecanizada | E65: kg | F65: ='Planilha Orçamentária'!#REF! ->  | G65: 272.61 | H65: =IF(J65="SERV",G65*(1+$H$5),G65*(1+$H$6)) -> 363.961611 | I65: =IF(J65="SERV",G65*F65*(1+$H$5),G65*F65*(1+$H$6)) ->  | J65: serv | K65: s
A66: 6.2.3 | B66: PRÓPRIA | C66: CPU.06 | D66: ARGAMASSA TRACO 1:3 (CIMENTO E AREIA), PREPARO MANUAL, INCLUSO ADITIVO IMPERMEABILIZANTE | E66: m3 | F66: ='Planilha Orçamentária'!#REF! ->  | G66: =G59 -> 0 | H66: =IF(J66="SERV",G66*(1+$H$5),G66*(1+$H$6)) -> 0 | J66: serv | K66: s
A67: 6.2.4 | B67: SINAPI | C67: 97912 | D67: =PROPER(IF(K67="i",VLOOKUP(C67,'Ins SINAPI BA 05-2023 Desoner'!$A$8:$E$5189,2,0),VLOOKUP(C67,'Comp SINAPI BA 05-2023 Desoner'!$G$7:$K$7500,2,0))) -> Transporte Com Caminhão Basculante De 6 M³, Em Via Urbana Em Leito Natural (Unidade: M3Xkm). Af_07/2020 | E67: =LOWER(IF(K67="i",VLOOKUP(C67,'Ins SINAPI PE 12-2023 Onerado'!$A$8:$E$5189,3,0),VLOOKUP(C67,'Comp SINAPI PE 12-2023 Onerado'!$G$7:$K$7500,3,0))) -> m3xkm | F67: ='Planilha Orçamentária'!#REF! ->  | G67: =SUMIFS('CPU DES'!$H:$H,'CPU DES'!$B:$B,'Planilha Orçamentária Desoner'!$A67,'CPU DES'!$I:$I,"ss")+SUMIFS('CPU DES'!$H:$H,'CPU DES'!$B:$B,'Planilha Orçamentária Desoner'!$A67,'CPU DES'!$I:$I,"mdo")+SUMIF('Comp SINAPI BA 05-2023 Desoner'!G:G,'Planilha Orçamentária Desoner'!C67,'Comp SINAPI BA 05-2023 Desoner'!K:K)+SUMIF('Ins SINAPI BA 05-2023 Desoner'!A:A,'Planilha Orçamentária Desoner'!C67,'Ins SINAPI BA 05-2023 Desoner'!E:E) -> 3.41 | H67: =IF(J67="SERV",G67*(1+$H$5),G67*(1+$H$6)) -> 4.552691 | I67: =IF(J67="SERV",G67*F67*(1+$H$5),G67*F67*(1+$H$6)) ->  | J67: serv | K67: s
A68: 6.2.5 | B68: PRÓPRIA | C68: CPU.07 | D68: CURA QUÍMICA | E68: m2 | F68: ='Planilha Orçamentária'!#REF! ->  | G68: =G61 -> 0 | H68: =IF(J68="SERV",G68*(1+$H$5),G68*(1+$H$6)) -> 0 | J68: serv | K68: s
A69: 6.3 | D69: Vertedouro | I69: =SUM(I70:I72) -> 
A70: 6.3.1 | B70: SICRO | C70: 3806402 | D70: Limpeza em superfície de concreto com jateamento d'água sob pressão | E70: m2 | F70: ='Planilha Orçamentária'!#REF! ->  | G70: 2.3 | H70: =IF(J70="SERV",G70*(1+$H$5),G70*(1+$H$6)) -> 3.07073 | I70: =IF(J70="SERV",G70*F70*(1+$H$5),G70*F70*(1+$H$6)) ->  | J70: serv | K70: s
A71: 6.3.2 | B71: SICRO | C71: 4915645 | D71: Injeção de adesivo estrutural à base de resina epóxi de baixa viscosidade para tratamento de fissuras em estruturas de concreto - fornecimento e aplicação mecanizada | E71: kg | F71: ='Planilha Orçamentária'!#REF! ->  | G71: 272.61 | H71: =IF(J71="SERV",G71*(1+$H$5),G71*(1+$H$6)) -> 363.961611 | I71: =IF(J71="SERV",G71*F71*(1+$H$5),G71*F71*(1+$H$6)) ->  | J71: serv | K71: s
A72: 6.3.3 | B72: SICRO | C72: 4915694 | D72: Limpeza, serragem e enchimento de fissuras niveladas com abertura entre 0,4 mm e 1,0 mm e profundidade de 25 mm em estruturas de concreto com selante elástico a frio (BASEADO SICRO 4915694) | E72: m | F72: ='Planilha Orçamentária'!#REF! ->  | G72: 27 | H72: 36.0477 | J72: serv | K72: s
A74: 7 | D74: DIQUE | I74: =SUM(I75,I82) -> 
A75: 7.1 | D75: Investigação do maciço | I75: =SUM(I76:I81) -> 
A76: 7.1.1 | B76: EMBASA | C76: 32.02.01 | D76: SONDAGEM A PERCUSSÃO | E76: m | F76: ='Planilha Orçamentária'!#REF! ->  | G76: 101.49 | H76: =IF(J76="SERV",G76*(1+$H$5),G76*(1+$H$6)) -> 135.499299 | I76: =IF(J76="SERV",G76*F76*(1+$H$5),G76*F76*(1+$H$6)) ->  | J76: serv | K76: s
A77: 7.1.2 | B77: EMBASA | C77: 34.01.43 | D77: ENSAIO DE PERMEABILIDADE COM CARGA CONSTANTE | E77: un | F77: ='Planilha Orçamentária'!#REF! ->  | G77: 501.25 | H77: =IF(J77="SERV",G77*(1+$H$5),G77*(1+$H$6)) -> 669.218875 | I77: =IF(J77="SERV",G77*F77*(1+$H$5),G77*F77*(1+$H$6)) ->  | J77: serv | K77: s
A78: 7.1.3 | B78: EMBASA | C78: 34.02.04 | D78: "ANALISE GRANULOMETRICA POR PENEIRAMENTO E SEDIMENTACAO EM "TOP SOIL" | E78: un | F78: ='Planilha Orçamentária'!#REF! ->  | G78: 223.64 | H78: 298.581764 | J78: serv | K78: s
A79: 7.1.4 | B79: EMBASA | C79: 34.01.16 | D79: MASSA ESPECIFICA REAL DOS GRAOS | E79: un | F79: ='Planilha Orçamentária'!#REF! ->  | G79: 65.78 | H79: 87.822878 | J79: serv | K79: s
A80: 7.1.5 | B80: EMBASA | C80: 34.01.07 | D80: DETERMINACAO DE LIMITE DE LIQUIDEZ (NBR - 06459) | E80: un | F80: ='Planilha Orçamentária'!#REF! ->  | G80: 86.09 | H80: 114.938759 | J80: serv | K80: s
A81: 7.1.6 | B81: EMBASA | C81: 34.01.10 | D81: DETERMINACAO DE LIMITE DE PLASTICIDADE (NBR - 07180) | E81: un | F81: ='Planilha Orçamentária'!#REF! ->  | G81: 77.48 | H81: 103.443548 | J81: serv | K81: s
A82: 7.2 | D82: Recuperação do maciço | I82: =SUM(I83:I85) -> 
A83: 7.2.1 | B83: SINAPI | C83: 93358 | D83: =PROPER(IF(K83="i",VLOOKUP(C83,'Ins SINAPI BA 05-2023 Desoner'!$A$8:$E$5189,2,0),VLOOKUP(C83,'Comp SINAPI BA 05-2023 Desoner'!$G$7:$K$7500,2,0))) -> Escavação Manual De Vala Com Profundidade Menor Ou Igual A 1,30 M. Af_02/2021 | E83: =LOWER(IF(K83="i",VLOOKUP(C83,'Ins SINAPI BA 05-2023 Desoner'!$A$8:$E$5189,3,0),VLOOKUP(C83,'Comp SINAPI BA 05-2023 Desoner'!$G$7:$K$7500,3,0))) -> m3 | F83: ='Planilha Orçamentária'!#REF! ->  | G83: =SUMIFS('CPU DES'!$H:$H,'CPU DES'!$B:$B,'Planilha Orçamentária Desoner'!$A83,'CPU DES'!$I:$I,"ss")+SUMIFS('CPU DES'!$H:$H,'CPU DES'!$B:$B,'Planilha Orçamentária Desoner'!$A83,'CPU DES'!$I:$I,"mdo")+SUMIF('Comp SINAPI BA 05-2023 Desoner'!G:G,'Planilha Orçamentária Desoner'!C83,'Comp SINAPI BA 05-2023 Desoner'!K:K)+SUMIF('Ins SINAPI BA 05-2023 Desoner'!A:A,'Planilha Orçamentária Desoner'!C83,'Ins SINAPI BA 05-2023 Desoner'!E:E) -> 77.73 | H83: =IF(J83="SERV",G83*(1+$H$5),G83*(1+$H$6)) -> 103.777323 | I83: =IF(J83="SERV",G83*F83*(1+$H$5),G83*F83*(1+$H$6)) ->  | J83: serv | K83: s
A84: 7.2.2 | B84: SINAPI | C84: 99814 | D84: =PROPER(IF(K84="i",VLOOKUP(C84,'Ins SINAPI BA 05-2023 Desoner'!$A$8:$E$5189,2,0),VLOOKUP(C84,'Comp SINAPI BA 05-2023 Desoner'!$G$7:$K$7500,2,0))) -> Limpeza De Superfície Com Jato De Alta Pressão. Af_04/2019 | E84: =LOWER(IF(K84="i",VLOOKUP(C84,'Ins SINAPI BA 05-2023 Desoner'!$A$8:$E$5189,3,0),VLOOKUP(C84,'Comp SINAPI BA 05-2023 Desoner'!$G$7:$K$7500,3,0))) -> m2 | F84: ='Planilha Orçamentária'!#REF! ->  | G84: =SUMIFS('CPU DES'!$H:$H,'CPU DES'!$B:$B,'Planilha Orçamentária Desoner'!$A84,'CPU DES'!$I:$I,"ss")+SUMIFS('CPU DES'!$H:$H,'CPU DES'!$B:$B,'Planilha Orçamentária Desoner'!$A84,'CPU DES'!$I:$I,"mdo")+SUMIF('Comp SINAPI BA 05-2023 Desoner'!G:G,'Planilha Orçamentária Desoner'!C84,'Comp SINAPI BA 05-2023 Desoner'!K:K)+SUMIF('Ins SINAPI BA 05-2023 Desoner'!A:A,'Planilha Orçamentária Desoner'!C84,'Ins SINAPI BA 05-2023 Desoner'!E:E) -> 1.77 | H84: 2.363127 | J84: serv | K84: s
A85: 7.2.3 | B85: SICRO | C85: 3816196 | D85: Injeção de nata de cimento | E85: m3 | F85: ='Planilha Orçamentária'!#REF! ->  | G85: 1205.45 | H85: 1609.396295 | J85: serv | K85: s
A87: 8 | D87: SERVIÇOS AUXILIARES | I87: =SUM(I88) -> 
A88: 8.1 | D88: Análise da qualidade da água | I88: =SUM(I89:I91) -> 
A89: 8.1.1 | B89: SEDOP | C89: PT0009 | D89: Analise fisico-quimica da agua | E89: un | F89: ='Planilha Orçamentária'!#REF! ->  | G89: 236.71 | H89: =IF(J89="SERV",G89*(1+$H$5),G89*(1+$H$6)) -> 316.031521 | I89: =IF(J89="SERV",G89*F89*(1+$H$5),G89*F89*(1+$H$6)) ->  | J89: serv | K89: s
A90: 8.1.2 | B90: SEDOP | C90: PT0010 | D90: Analise bacteriologica | E90: un | F90: ='Planilha Orçamentária'!#REF! ->  | G90: 210.75 | H90: 281.372325 | J90: serv | K90: s
A91: 8.1.3 | B91: SEDOP | C91: PT0019 | D91: Relatório de analises e testes | E91: un | F91: ='Planilha Orçamentária'!#REF! ->  | G91: 1511.88 | H91: 2018.510988 | J91: serv | K91: s
D93: TOTAL Sem BDI: | I93: =SUMPRODUCT(F11:F92,G11:G92) -> 
D94: BDI: | I94: =I93*H5 -> 
D95: TOTAL COM BDI: | I95: =SUM(I93:I94) -> 

Sheet Memorial de cálculo
A1: Ministério da Integração e do Desenvolvimento Regional
A2: Companhia de desenvolvimento dos Vales do São Francisco e do Parnaíba
A4: MEMORIAL DE CÁLCULO
A5: OBRA: | B5: ='Planilha Orçamentária'!B5 -> SERVIÇOS DE MANUTENÇÃO E OBRAS CIVIS NA BARRAGEM ÁGUA FRIA | D5: DESLOCAMENTO - Petrolina para NAZARÉ DO PICO (km): | H5: 317
A6: LOCAL: | B6: ='Planilha Orçamentária'!B6 -> BARRAGEM ÁGUA FRIA, FLORESTA/PE | D6: DESLOCAMENTO - NAZARÉ DO PICO para Floresta (km) | H6: =H7+H8 -> 41
A7: DATA BASE: | B7: ='Planilha Orçamentária'!B7 -> 2024-05-15 | D7: VIA URBANA PAVIMENTADA - NAZARÉ DO PICO para Floresta (km) | H7: 30
A8: PRAZO: | B8: ='Planilha Orçamentária'!B8 -> 120 DIAS | D8: REVESTIMENTO PRIMÁRIO - NAZARÉ DO PICO para Floresta (km) | H8: 11
A9: ITEM | B9: DESCRIÇÃO | C9: UNID. | D9: QUANT. | E9: COMP. (M) | F9: LARG. (M) | G9: ALT. (M) | H9: TOTAL
A10: 1 | B10: =VLOOKUP(A10,'Planilha Orçamentária'!$A$8:$E$5227,4,0) -> ADMINISTRAÇÃO DA OBRA
A11: 1.1 | B11: =VLOOKUP(A11,'Planilha Orçamentária'!$A$8:$E$5168,4,0) -> Administração Local | C11: =VLOOKUP(A11,'Planilha Orçamentária'!$A$8:$E$5168,5,0) -> mês | D11: QUANT.PESSOAS | E11: HORAS DIÁRIA | F11: DIAS TRABALHADOS NO MÊS | G11: MESES | H11: 4
A12: 90778 | B12: =CPU!D16 -> Engenheiro Civil De Obra Pleno Com Encargos Complementares | C12: =CPU!E16 -> h | D12: 1 | E12: 1.5 | F12: =4*5 -> 20 | G12: 1.5 | H12: =D12*E12*F12 -> 30
A13: 93572 | B13: =CPU!D17 -> Encarregado Geral De Obras Com Encargos Complementares | C13: =CPU!E17 -> mes | D13: 1 | E13: 1 | F13: 24 | H13: =D13*(E13/30)*F13 -> 0.8
A14: 100289 | B14: =CPU!D18 -> Vigia Noturno Com Encargos Complementares (BASEADO EM 100289) | C14: =CPU!E18 -> h | D14: 4 | E14: 12 | F14: 15 | G14: 12 | H14: =D14*E14*F14 -> 720
A16: 2 | B16: =VLOOKUP(A16,'Planilha Orçamentária'!$A$8:$E$5227,4,0) -> SERVIÇOS PRELIMINARES
A17: 2.1.1 | B17: =VLOOKUP(A17,'Planilha Orçamentária'!$A$8:$E$5227,4,0) -> Mobilização e desmobilização de instalação do canteiro | H17: 1
A18: E9134 | B18: Miniônibus com capacidade para 30 passageiros - 111 Kw | C18: chp | H18: =H20 -> 7.925
C19: Distancia (km) | D19: Velocidade média (Km/h) | E19: Tempo (h) | F19: N. viagens | H19: Total
C20: =H5 -> 317 | D20: 80 | E20: =C20/D20 -> 3.9625 | F20: 2 | H20: =F20*E20 -> 7.925
A21: E9134 | B21: Miniônibus com capacidade para 30 passageiros - 111 Kw | C21: chi | H21: =H23 -> 8.075
C22: Diaria (h) | D22: Hora prod. | E22: Tempo (h) | F22: N. dias | H22: Total
C23: 8 | D23: =E20*F20 -> 7.925 | E23: =(F23*C23)-D23 -> 8.075 | F23: 2 | H23: =E23 -> 8.075
A24: 100946 | B24: =PROPER(IF(I24="i",VLOOKUP(A24,'[44]Ins SINAPI PE 11-2023 Onerado'!$A$8:$E$5189,2,0),VLOOKUP(A24,'[44]Comp SINAPI PE 11-2023 Onerado'!$G$7:$K$7500,2,0))) -> Transporte Com Caminhão Carroceria 9T, Em Via Urbana Em Revestimento Primário (Unidade: Txkm). Af_07/2020 | C24: =IF(G24="i",VLOOKUP(A24,'[44]Ins SINAPI PE 11-2023 Onerado'!$A$8:$E$5189,3,0),VLOOKUP(A24,'[44]Comp SINAPI PE 11-2023 Onerado'!$G$7:$K$7500,3,0)) -> TXKM | H24: =C26*D26*E26 -> 110
C25: T | D25: km | E25: N. viagens
C26: 5 | D26: =H8 -> 11 | E26: =ROUNDUP(C26/9,0)*2 -> 2
A27: 100947 | B27: =PROPER(IF(I27="i",VLOOKUP(A27,'[44]Ins SINAPI PE 11-2023 Onerado'!$A$8:$E$5189,2,0),VLOOKUP(A27,'[44]Comp SINAPI PE 11-2023 Onerado'!$G$7:$K$7500,2,0))) -> Transporte Com Caminhão Carroceria 9T, Em Via Urbana Pavimentada, Dmt Até 30Km (Unidade: Txkm). Af_07/2020 | C27: =IF(G27="i",VLOOKUP(A27,'[44]Ins SINAPI PE 11-2023 Onerado'!$A$8:$E$5189,3,0),VLOOKUP(A27,'[44]Comp SINAPI PE 11-2023 Onerado'!$G$7:$K$7500,3,0)) -> TXKM | H27: =C29*D29*E29 -> 300
C28: T | D28: km | E28: N. viagens
C29: 5 | D29: 30 | E29: =ROUNDUP(C29/9,0)*2 -> 2
A30: 100948 | B30: =PROPER(IF(I30="i",VLOOKUP(A30,'[44]Ins SINAPI PE 11-2023 Onerado'!$A$8:$E$5189,2,0),VLOOKUP(A30,'[44]Comp SINAPI PE 11-2023 Onerado'!$G$7:$K$7500,2,0))) -> Transporte Com Caminhão Carroceria 9T, Em Via Urbana Pavimentada, Adicional Para Dmt Excedente A 30 Km (Unidade: Txkm). Af_07/2020 | C30: =IF(G30="i",VLOOKUP(A30,'[44]Ins SINAPI PE 11-2023 Onerado'!$A$8:$E$5189,3,0),VLOOKUP(A30,'[44]Comp SINAPI PE 11-2023 Onerado'!$G$7:$K$7500,3,0)) -> TXKM | H30: =C32*D32*E32 -> 2760
C31: T | D31: km | E31: N. viagens
C32: 5 | D32: =H5-30-H8 -> 276 | E32: =ROUNDUP(C32/9,0)*2 -> 2
A33: 2.2.1 | B33: =VLOOKUP(A33,'Planilha Orçamentária'!$A$8:$E$5168,4,0) -> Execução de canteiro de obras, inclusive, limpeza, refeitório, sanitários e central de formas | C33: m2 | H33: =H46+H51+H56 -> 28.5
A35: 98524 | B35: Limpeza Manual De Vegetação Em Terreno Com Enxada.Af_05/2018 | C35: m2 | H35: =H46+H51+H56 -> 28.5
B36: Mão de obra | D36: QUANT.PESSOAS | E36: RENDIMENTO (H/M2) | F36: m2 | G36: HORAS | H36: DIAS
B37: 88316 SERVENTE COM ENCARGOS COMPLEMENTARES | C37: h | D37: 1 | E37: =0.0718/D37 -> 0.0718 | F37: 1 | G37: =F37*(E37) -> 0.0718 | H37: =G37/8 -> 0.008975
B38: 88441 JARDINEIRO COM ENCARGOS COMPLEMENTARES | C38: h | D38: 1 | E38: =0.0718/D38 -> 0.0718 | F38: 1 | G38: =F38*(E38) -> 0.0718 | H38: =G38/8 -> 0.008975
B39: Hospedagem | D39: =SUMPRODUCT(D37:D38,H37:H38) -> 0.01795 | H39: =ROUNDUP(D39,0) -> 1
A41: 94975 | B41: Concreto Fck = 15Mpa, Traço 1:3,4:3,5 (Em Massa Seca De Cimento/ Areia Média/ Brita 1) - Preparo Manual. Af_05/2021 | C41: m3 | D41: =H35 -> 28.5 | G41: 0.05 | H41: =D41*G41 -> 1.425
B42: Mão de obra | D42: QUANT.PESSOAS | E42: RENDIMENTO (H/M3) | F42: m3 | G42: HORAS | H42: DIAS
B43: 88316 SERVENTE COM ENCARGOS COMPLEMENTARES | C43: h | D43: 1 | E43: =6.2067/D43 -> 6.2067 | F43: =1/28.5 -> 0.0350877193 | G43: =F43*(E43) -> 0.2177789474 | H43: =G43/8 -> 0.02722236842
B44: Hospedagem | D44: =SUMPRODUCT(D43,H43) -> 0.02722236842 | H44: =ROUNDUP(D44,0) -> 1
A46: 93210 | B46: Execução De Refeitório Em Canteiro De Obra Em Chapa De Madeira Compensada, Não Incluso Mobiliário E Equipamentos. Af_02/2016 | C46: m2 | D46: 1 | E46: 3 | F46: 2.5 | H46: =D46*E46*F46 -> 7.5
B47: Mão de obra | D47: QUANT.PESSOAS | E47: RENDIMENTO (H/M2) | F47: m2 | G47: HORAS | H47: DIAS
B48: 88262 CARPINTEIRO DE FORMAS COM ENCARGOS COMPLEMENTARES | C48: h | D48: 2 | E48: =1.1155/D48 -> 0.55775 | F48: 1 | G48: =F48*(E48) -> 0.55775 | H48: =G48/8 -> 0.06971875
B49: Hospedagem | D49: =SUMPRODUCT(D48,H48) -> 0.1394375 | H49: =ROUNDUP(D49,0) -> 1
A51: 93212 | B51: Execução De Sanitário E Vestiário Em Canteiro De Obra Em Chapa De Madeira Compensada, Não Incluso Mobiliário. Af_02/2016 | C51: m2 | D51: 1 | E51: 4.5 | F51: 2 | H51: =D51*E51*F51 -> 9
B52: Mão de obra | D52: QUANT.PESSOAS | E52: RENDIMENTO (H/M2) | F52: m2 | G52: HORAS | H52: DIAS
B53: 88262 CARPINTEIRO DE FORMAS COM ENCARGOS COMPLEMENTARES | C53: h | D53: 2 | E53: =1.1155/D53 -> 0.55775 | F53: 1 | G53: =F53*(E53) -> 0.55775 | H53: =G53/8 -> 0.06971875
B54: Hospedagem | D54: =SUMPRODUCT(D53,H53) -> 0.1394375 | H54: =ROUNDUP(D54,0) -> 1
A56: 93583 | B56: Execução De Central De Fôrmas, Produção De Argamassa Ou Concreto Em Canteiro De Obra, Não Incluso Mobiliário E Equipamentos. Af_04/2016 | C56: m2 | D56: 1 | E56: 4 | F56: 3 | H56: =D56*E56*F56 -> 12
B57: Mão de obra | D57: QUANT.PESSOAS | E57: RENDIMENTO (H/M2) | F57: m2 | G57: HORAS | H57: DIAS
B58: 88262 CARPINTEIRO DE FORMAS COM ENCARGOS COMPLEMENTARES | C58: h | D58: 2 | E58: =1.1155/D58 -> 0.55775 | F58: 1 | G58: =F58*(E58) -> 0.55775 | H58: =G58/8 -> 0.06971875
B59: Hospedagem | D59: =SUMPRODUCT(D58,H58) -> 0.1394375 | H59: =ROUNDUP(D59,0) -> 1
B61: Hospedagem total | C61: m2 | D61: =D39+D44+D49+D54+D59 -> 0.4634848684 | H61: =H37+H43+H48+H53+H58 -> 0.2453536184 | I61: =H61*28.5 -> 6.992578125
A62: 100946 | B62: =PROPER(IF(I62="i",VLOOKUP(A62,'[44]Ins SINAPI PE 11-2023 Onerado'!$A$8:$E$5189,2,0),VLOOKUP(A62,'[44]Comp SINAPI PE 11-2023 Onerado'!$G$7:$K$7500,2,0))) -> Transporte Com Caminhão Carroceria 9T, Em Via Urbana Em Revestimento Primário (Unidade: Txkm). Af_07/2020 | C62: =IF(G62="i",VLOOKUP(A62,'[44]Ins SINAPI PE 11-2023 Onerado'!$A$8:$E$5189,3,0),VLOOKUP(A62,'[44]Comp SINAPI PE 11-2023 Onerado'!$G$7:$K$7500,3,0)) -> TXKM | H62: =C64*D64*E64 -> 11
C63: T | D63: km | E63: N. viagens
C64: 1 | D64: =$H$8 -> 11 | E64: =ROUNDUP(C64/9,0) -> 1
A65: 100947 | B65: =PROPER(IF(I65="i",VLOOKUP(A65,'[44]Ins SINAPI PE 11-2023 Onerado'!$A$8:$E$5189,2,0),VLOOKUP(A65,'[44]Comp SINAPI PE 11-2023 Onerado'!$G$7:$K$7500,2,0))) -> Transporte Com Caminhão Carroceria 9T, Em Via Urbana Pavimentada, Dmt Até 30Km (Unidade: Txkm). Af_07/2020 | C65: =IF(G65="i",VLOOKUP(A65,'[44]Ins SINAPI PE 11-2023 Onerado'!$A$8:$E$5189,3,0),VLOOKUP(A65,'[44]Comp SINAPI PE 11-2023 Onerado'!$G$7:$K$7500,3,0)) -> TXKM | H65: =C67*D67*E67 -> 30
C66: T | D66: km | E66: N. viagens
C67: 1 | D67: =$H$7 -> 30 | E67: =ROUNDUP(C67/9,0) -> 1
A68: E9134 | B68: Miniônibus com capacidade para 30 passageiros - 111 Kw | C68: chp | H68: =H70/H33 -> 0.251754386
C69: Distancia (km) | D69: Velocidade média (Km/h) | E69: Tempo (h) | F69: N. viagens | H69: Total
C70: =$H$6 -> 41 | D70: 80 | E70: =C70/D70 -> 0.5125 | F70: =2*(ROUNDUP(H33*H61,0)) -> 14 | H70: =F70*E70 -> 7.175
A71: E9134 | B71: Miniônibus com capacidade para 30 passageiros - 111 Kw | C71: chi | H71: =H73/H33 -> 1.713157895
C72: Diaria (h) | D72: Hora prod. | E72: Tempo (h) | F72: N. dias | H72: Total
C73: 8 | D73: =E70*F70 -> 7.175 | E73: =(F73*C73)-D73 -> 48.825 | F73: =F70/2 -> 7 | H73: =E73 -> 48.825
A75: ='Planilha Orçamentária'!A20:A20 -> 2.3.1 | B75: =VLOOKUP(A75,'Planilha Orçamentária'!$A$8:$E$5168,4,0) -> PLACA DE OBRA EM CHAPA DE ACO GALVANIZADO | C75: =VLOOKUP(A75,'Planilha Orçamentária'!$A$8:$E$5168,5,0) -> m² | H75: =H76 -> 2
B76: Área da Placa | D76: 1 | E76: 2 | F76: 1 | H76: =D76*E76*F76 -> 2
B77: Mão de obra | D77: QUANT.PESSOAS | E77: RENDIMENTO (H/M2) | F77: m2 | G77: HORAS | H77: DIAS
A78: 1 | B78: 88262 CARPINTEIRO DE FORMAS COM ENCARGOS COMPLEMENTARES | C78: h | D78: 1 | E78: =1/D78 -> 1 | F78: 1 | G78: =F78*(E78) -> 1 | H78: =G78/8 -> 0.125
A79: 2 | B79: 88316 SERVENTE COM ENCARGOS COMPLEMENTARES | C79: h | D79: 1 | E79: =2/D79 -> 2 | F79: 1 | G79: =F79*(E79) -> 2 | H79: =G79/8 -> 0.25
B80: Hospedagem | D80: =SUMPRODUCT(D78:D79,H78:H79) -> 0.375 | H80: =ROUNDUP(D80,0) -> 1
A81: 100946 | B81: =PROPER(IF(I81="i",VLOOKUP(A81,'[44]Ins SINAPI PE 11-2023 Onerado'!$A$8:$E$5189,2,0),VLOOKUP(A81,'[44]Comp SINAPI PE 11-2023 Onerado'!$G$7:$K$7500,2,0))) -> Transporte Com Caminhão Carroceria 9T, Em Via Urbana Em Revestimento Primário (Unidade: Txkm). Af_07/2020 | C81: =IF(G81="i",VLOOKUP(A81,'[44]Ins SINAPI PE 11-2023 Onerado'!$A$8:$E$5189,3,0),VLOOKUP(A81,'[44]Comp SINAPI PE 11-2023 Onerado'!$G$7:$K$7500,3,0)) -> TXKM | H81: =C83*D83*E83 -> 11
C82: T | D82: km | E82: N. viagens
C83: 1 | D83: =$H$8 -> 11 | E83: =ROUNDUP(C83/9,0) -> 1
A84: 100947 | B84: =PROPER(IF(I84="i",VLOOKUP(A84,'[44]Ins SINAPI PE 11-2023 Onerado'!$A$8:$E$5189,2,0),VLOOKUP(A84,'[44]Comp SINAPI PE 11-2023 Onerado'!$G$7:$K$7500,2,0))) -> Transporte Com Caminhão Carroceria 9T, Em Via Urbana Pavimentada, Dmt Até 30Km (Unidade: Txkm). Af_07/2020 | C84: =IF(G84="i",VLOOKUP(A84,'[44]Ins SINAPI PE 11-2023 Onerado'!$A$8:$E$5189,3,0),VLOOKUP(A84,'[44]Comp SINAPI PE 11-2023 Onerado'!$G$7:$K$7500,3,0)) -> TXKM | H84: =C86*D86*E86 -> 30
C85: T | D85: km | E85: N. viagens
C86: 1 | D86: =$H$7 -> 30 | E86: =ROUNDUP(C86/9,0) -> 1
A87: E9134 | B87: Miniônibus com capacidade para 30 passageiros - 111 Kw | C87: chp | H87: =H89/H75 -> 0.5125
C88: Distancia (km) | D88: Velocidade média (Km/h) | E88: Tempo (h) | F88: N. viagens | H88: Total
C89: =H6 -> 41 | D89: 80 | E89: =C89/D89 -> 0.5125 | F89: 2 | H89: =F89*E89 -> 1.025
A90: E9134 | B90: Miniônibus com capacidade para 30 passageiros - 111 Kw | C90: chi | H90: =H92/H75 -> 3.4875
C91: Diaria (h) | D91: Hora prod. | E91: Tempo (h) | F91: N. dias | H91: Total
C92: 8 | D92: =E89*F89 -> 1.025 | E92: =(F92*C92)-D92 -> 6.975 | F92: 1 | H92: =E92 -> 6.975
A94: 3 | B94: =VLOOKUP(A94,'Planilha Orçamentária'!$A$8:$E$5227,4,0) -> CORTE DA VEGETAÇÃO E REMOÇÃO DAS RAIZES
A96: ='Planilha Orçamentária'!A24 -> 3.1.1 | B96: =VLOOKUP(A96,'Planilha Orçamentária'!$A$8:$E$5168,4,0) -> Limpeza de vegetação | C96: =VLOOKUP(A96,'Planilha Orçamentária'!$A$8:$E$5168,5,0) -> m² | H96: =H97 -> 4000
B97: Área para corte e poda de vegetação | H97: 4000
B98: CÁLCULO DA MÃO DE OBRA (8H DIÁRIA) | C98: m2 | D98: QUANT.PESSOAS | E98: RENDIMENTO (H/m²) | F98: m2 | G98: HORAS | H98: DIAS
A99: 1 | B99: 88316 SERVENTE COM ENCARGOS COMPLEMENTARES | C99: h | D99: 3 | E99: =0.0718/D99 -> 0.02393333333 | F99: 1 | G99: =F99*(E99) -> 0.02393333333 | H99: =G99/8 -> 0.002991666667
A100: 2 | B100: 88441 JARDINEIRO COM ENCARGOS COMPLEMENTARES | C100: h | D100: 3 | E100: =0.0718/D100 -> 0.02393333333 | F100: 1 | G100: =F100*(E100) -> 0.02393333333 | H100: =G100/8 -> 0.002991666667
B101: Hospedagem | D101: =SUMPRODUCT(D99:D100,H99:H100) -> 0.01795 | H101: =ROUNDUP(D101,0) -> 1
A102: E9134 | B102: Miniônibus com capacidade para 30 passageiros - 111 Kw | C102: chp | H102: =H104/H97 -> 0.003075
C103: Distancia (km) | D103: Velocidade média (Km/h) | E103: Tempo (h) | F103: N. viagens | H103: Total
C104: =$H$6 -> 41 | D104: 80 | E104: =C104/D104 -> 0.5125 | F104: =ROUNDUP(H97*H99,0)*2 -> 24 | H104: =F104*E104 -> 12.3
A105: E9134 | B105: Miniônibus com capacidade para 30 passageiros - 111 Kw | C105: chi | H105: =H107/H96 -> 0.020925
C106: Diaria (h) | D106: Hora prod. | E106: Tempo (h) | F106: N. dias | H106: Total
C107: 8 | D107: =E104*F104 -> 12.3 | E107: =(F107*C107)-D107 -> 83.7 | F107: =F104/2 -> 12 | H107: =E107 -> 83.7
A108: 97913 | B108: Transporte Com Caminhão Basculante De 6 M³, Em Via Urbana Em Revestimento Primário (Unidade: M3Xkm). Af_07/2020 | C108: =LOWER(IF(I108="i",VLOOKUP(A108,'Ins SINAPI PE 12-2023 Onerado'!$A$8:$E$5189,3,0),VLOOKUP(A108,'Comp SINAPI PE 12-2023 Onerado'!$G$7:$K$7500,3,0))) -> m3xkm | H108: =H110/H96 -> 0.1155
C109: m3 | D109: km | E109: N. viagens
B110: Cáculo da qtd de entulho (4000*0,01) = 40 m3 | C110: 40 | D110: =$H$8 -> 11 | E110: =ROUNDUP(C110/6,0) -> 7 | H110: =6*D110*E110 -> 462
A111: 97914 | B111: Transporte Com Caminhão Basculante De 6 M³, Em Via Urbana Pavimentada, Dmt Até 30 Km (Unidade: M3Xkm). Af_07/2020 | C111: =LOWER(IF(I111="i",VLOOKUP(A111,'Ins SINAPI PE 12-2023 Onerado'!$A$8:$E$5189,3,0),VLOOKUP(A111,'Comp SINAPI PE 12-2023 Onerado'!$G$7:$K$7500,3,0))) -> m3xkm | H111: =H113/H96 -> 0.315
C112: m3 | D112: km | E112: N. viagens
B113: Cáculo da qtd de entulho (4000*0,01) = 40 m3 | C113: 40 | D113: =$H$7 -> 30 | E113: =ROUNDUP(C113/6,0) -> 7 | H113: =6*D113*E113 -> 1260
A115: 3.1.2 | B115: =VLOOKUP(A115,'Planilha Orçamentária'!$A$8:$E$5168,4,0) -> Corte de tronco e remoção de raiz | C115: =VLOOKUP(A115,'Planilha Orçamentária'!$A$8:$E$5168,5,0) -> un | H115: =H116 -> 5
B116: Quantidade estimada através das imagens obtidas na visita técnica (Contém na especificação técnica) | D116: 5 | H116: =D116 -> 5
B117: CÁLCULO DA MÃO DE OBRA (8H DIÁRIA) | C117: un | D117: QUANT.PESSOAS | E117: RENDIMENTO (H/UN) | F117: UN. | G117: HORAS | H117: DIAS
A118: 1 | B118: 88316 SERVENTE COM ENCARGOS COMPLEMENTARES | C118: h | D118: 1 | E118: =1.5444/D118 -> 1.5444 | F118: 1 | G118: =F118*(E118) -> 1.5444 | H118: =G118/8 -> 0.19305
A119: 2 | B119: 88441 JARDINEIRO COM ENCARGOS COMPLEMENTARES | C119: h | D119: 1 | E119: =1.5444/D119 -> 1.5444 | F119: 1 | G119: =F119*(E119) -> 1.5444 | H119: =G119/8 -> 0.19305
B120: Hospedagem | D120: =SUMPRODUCT(D118:D119,H118:H119) -> 0.3861 | H120: =ROUNDUP(D120,0) -> 1
A121: E9134 | B121: Miniônibus com capacidade para 30 passageiros - 111 Kw | C121: chp | H121: =H123/H115 -> 0.205
C122: Distancia (km) | D122: Velocidade média (Km/h) | E122: Tempo (h) | F122: N. viagens | H122: Total
C123: =$H$6 -> 41 | D123: 80 | E123: =C123/D123 -> 0.5125 | F123: 2 | H123: =F123*E123 -> 1.025
A124: E9134 | B124: Miniônibus com capacidade para 30 passageiros - 111 Kw | C124: chi | H124: =H126/H115 -> 1.395
C125: Diaria (h) | D125: Hora prod. | E125: Tempo (h) | F125: N. dias | H125: Total
C126: 8 | D126: =E123*F123 -> 1.025 | E126: =(F126*C126)-D126 -> 6.975 | F126: 1 | H126: =E126 -> 6.975
A127: 97913 | B127: Transporte Com Caminhão Basculante De 6 M³, Em Via Urbana Em Revestimento Primário (Unidade: M3Xkm). Af_07/2020 | C127: =LOWER(IF(I127="i",VLOOKUP(A127,'Ins SINAPI PE 12-2023 Onerado'!$A$8:$E$5189,3,0),VLOOKUP(A127,'Comp SINAPI PE 12-2023 Onerado'!$G$7:$K$7500,3,0))) -> m3xkm | H127: =H129/H115 -> 5.5
B128: Estimou-se 0,5m³ por árvore | C128: m3 | D128: km | E128: N. viagens
B129: Cáculo da qtd de entulho (5*0,5) = 2,5 m3 | C129: 2.5 | D129: =$H$8 -> 11 | E129: =ROUNDUP(C129/6,0) -> 1 | H129: =C129*D129*E129 -> 27.5
A130: 97914 | B130: Transporte Com Caminhão Basculante De 6 M³, Em Via Urbana Pavimentada, Dmt Até 30 Km (Unidade: M3Xkm). Af_07/2020 | C130: =LOWER(IF(I130="i",VLOOKUP(A130,'Ins SINAPI PE 12-2023 Onerado'!$A$8:$E$5189,3,0),VLOOKUP(A130,'Comp SINAPI PE 12-2023 Onerado'!$G$7:$K$7500,3,0))) -> m3xkm | H130: =H132/H115 -> 6
B131: Estimou-se 0,5m³ por árvore | C131: m3 | D131: km | E131: N. viagens
B132: Cáculo da qtd de entulho (5*0,5) = 2,5 m3 | C132: 2.5 | D132: =$H$7 -> 30 | E132: =ROUNDUP(C132/6,0) -> 1 | H132: =D132*E132 -> 30
A134: 4 | B134: =VLOOKUP(A134,'Planilha Orçamentária'!$A$8:$E$5227,4,0) -> ESGOTAMENTO COM BOMBA
A136: 4.1.1 | B136: =VLOOKUP(A136,'Planilha Orçamentária'!$A$8:$E$5168,4,0) -> Esgotamento De Vala Com Bomba Submersível. Af_12/2022 | C136: =VLOOKUP(A136,'Planilha Orçamentária'!$A$8:$E$5168,5,0) -> h | H136: =H137 -> 8
B137: Estimativa de horas necessárias para drenar a água ao decorrer da obra | D137: 8 | H137: =D137 -> 8
B138: CÁLCULO DA MÃO DE OBRA (8H DIÁRIA) | C138: h | D138: QUANT.PESSOAS | E138: RENDIMENTO (H/H) | F138: H | G138: HORAS | H138: DIAS
B139: 88264 ELETRICISTA COM ENCARGOS COMPLEMENTARES | C139: h | D139: 1 | E139: =1/D139 -> 1 | F139: =D137 -> 8 | G139: =F139*(E139) -> 8 | H139: =G139/8 -> 1
B140: Hospedagem | D140: =SUMPRODUCT(D138:D139,H138:H139) -> 1 | H140: =ROUNDUP(D140,0) -> 1
A142: 5 | B142: =VLOOKUP(A142,'Planilha Orçamentária'!$A$8:$E$5227,4,0) -> RECUPERAÇÃO DA CRISTA E DO PARAMENTO DE JUSANTE
A144: 5.1.1 | B144: =VLOOKUP(A144,'Planilha Orçamentária'!$A$8:$E$5168,4,0) -> Demolição de argamassa | C144: =VLOOKUP(A144,'Planilha Orçamentária'!$A$8:$E$5168,5,0) -> m² | H144: =H145 -> 1386
E145: 110 | G145: 12.6 | H145: =E145*G145 -> 1386
B146: CÁLCULO DA MÃO DE OBRA (8H DIÁRIA) | C146: m2 | D146: QUANT.PESSOAS | E146: RENDIMENTO (H/m²) | F146: m² | G146: HORAS | H146: DIAS
B147: 88309 PEDREIRO COM ENCARGOS COMPLEMENTARES | C147: h | D147: 2 | E147: =0.1151/D147 -> 0.05755 | F147: =H144/1386 -> 1 | G147: =F147*(E147) -> 0.05755 | H147: =G147/8 -> 0.00719375
B148: 88316 SERVENTE COM ENCARGOS COMPLEMENTARES | C148: h | D148: 4 | E148: =0.3872/D148 -> 0.0968 | F148: =F147 -> 1 | G148: =F148*(E148) -> 0.0968 | H148: =G148/8 -> 0.0121
B149: Hospedagem | D149: =SUMPRODUCT(D147:D148,H147:H148) -> 0.0627875 | H149: =ROUNDUP(D149,0) -> 1
A150: E9134 | B150: Miniônibus com capacidade para 30 passageiros - 111 Kw | C150: chp | H150: =H152/H144 -> 0.01257215007
C151: Distancia (km) | D151: Velocidade média (Km/h) | E151: Tempo (h) | F151: N. viagens | H151: Total
C152: =$H$6 -> 41 | D152: 80 | E152: =C152/D152 -> 0.5125 | F152: =ROUNDUP(H145*H148,0)*2 -> 34 | H152: =F152*E152 -> 17.425
A153: E9134 | B153: Miniônibus com capacidade para 30 passageiros - 111 Kw | C153: chi | H153: =H155/H144 -> 0.08555194805
C154: Diaria (h) | D154: Hora prod. | E154: Tempo (h) | F154: N. dias | H154: Total
C155: 8 | D155: =E152*F152 -> 17.425 | E155: =(F155*C155)-D155 -> 118.575 | F155: =F152/2 -> 17 | H155: =E155 -> 118.575
A156: 97913 | B156: Transporte Com Caminhão Basculante De 6 M³, Em Via Urbana Em Revestimento Primário (Unidade: M3Xkm). Af_07/2020 | C156: =LOWER(IF(I156="i",VLOOKUP(A156,'Ins SINAPI PE 12-2023 Onerado'!$A$8:$E$5189,3,0),VLOOKUP(A156,'Comp SINAPI PE 12-2023 Onerado'!$G$7:$K$7500,3,0))) -> m3xkm | H156: =H158/H144 -> 0.033
B157: Empolamento de 30% | C157: m3 | D157: km | E157: N. viagens
B158: Cáculo da qtd de entulho (1386*0,01*0,30) = 2,5 m3 | C158: =H144*0.01*0.3 -> 4.158 | D158: =$H$8 -> 11 | E158: =ROUNDUP(C158/6,0) -> 1 | H158: =C158*D158*E158 -> 45.738
A159: 97914 | B159: Transporte Com Caminhão Basculante De 6 M³, Em Via Urbana Pavimentada, Dmt Até 30 Km (Unidade: M3Xkm). Af_07/2020 | C159: =LOWER(IF(I159="i",VLOOKUP(A159,'Ins SINAPI PE 12-2023 Onerado'!$A$8:$E$5189,3,0),VLOOKUP(A159,'Comp SINAPI PE 12-2023 Onerado'!$G$7:$K$7500,3,0))) -> m3xkm | H159: =H161/H144 -> 0.09
B160: Empolamento de 30% | C160: m3 | D160: km | E160: N. viagens
B161: Cáculo da qtd de entulho (1386*0,01*0,30) = 2,5 m3 | C161: =H144*0.01*0.3 -> 4.158 | D161: =$H$7 -> 30 | E161: =ROUNDUP(C161/6,0) -> 1 | H161: =C161*D161*E161 -> 124.74
A164: 5.1.2 | B164: =VLOOKUP(A164,'Planilha Orçamentária'!$A$8:$E$5168,4,0) -> Limpeza da superfície | C164: =VLOOKUP(A164,'Planilha Orçamentária'!$A$8:$E$5168,5,0) -> m² | H164: =H165 -> 1386
E165: 110 | G165: 12.6 | H165: =E165*G165 -> 1386
B166: CÁLCULO DA MÃO DE OBRA (8H DIÁRIA) | C166: m2 | D166: QUANT.PESSOAS | E166: RENDIMENTO (H/m²) | F166: m² | G166: HORAS | H166: DIAS
B167: 88316 SERVENTE COM ENCARGOS COMPLEMENTARES | C167: h | D167: 2 | E167: =0.089/D167 -> 0.0445 | F167: =H165/1386 -> 1 | G167: =F167*(E167) -> 0.0445 | H167: =G167/8 -> 0.0055625
B168: Hospedagem | D168: =SUMPRODUCT(D166:D167,H166:H167) -> 0.011125 | H168: =ROUNDUP(D168,0) -> 1
A169: E9134 | B169: Miniônibus com capacidade para 30 passageiros - 111 Kw | C169: chp | H169: =H171/H164 -> 0.005916305916
C170: Distancia (km) | D170: Velocidade média (Km/h) | E170: Tempo (h) | F170: N. viagens | H170: Total
C171: =$H$6 -> 41 | D171: 80 | E171: =C171/D171 -> 0.5125 | F171: =ROUNDUP(H164*H167,0)*2 -> 16 | H171: =F171*E171 -> 8.2
A172: E9134 | B172: Miniônibus com capacidade para 30 passageiros - 111 Kw | C172: chi | H172: =H174/H164 -> 0.04025974026
C173: Diaria (h) | D173: Hora prod. | E173: Tempo (h) | F173: N. dias | H173: Total
C174: 8 | D174: =E171*F171 -> 8.2 | E174: =(F174*C174)-D174 -> 55.8 | F174: =F171/2 -> 8 | H174: =E174 -> 55.8
A176: 5.1.3 | B176: =VLOOKUP(A176,'Planilha Orçamentária'!$A$8:$E$5168,4,0) -> Tratamento de fissuras com injeção de adesivo estrutural à base de resina epóxi de baixa viscosidade - fornecimento e aplicação mecanizada | C176: =VLOOKUP(A176,'Planilha Orçamentária'!$A$8:$E$5168,5,0) -> un | H176: =H177 -> 18.9
B177: Fator do fabricante 0,25kg/m | C177: 0.25 | D177: 6 | G177: 12.6 | H177: =C177*D177*G177 -> 18.9
B178: CÁLCULO DA MÃO DE OBRA (8H DIÁRIA) | C178: kg | D178: QUANT.PESSOAS | E178: RENDIMENTO (H/kg) | F178: kg | G178: HORAS | H178: DIAS
B179: P9824 Servente | C179: h | D179: 30 | E179: =3/D179 -> 0.1 | F179: =H177 -> 18.9 | G179: =F179*(E179) -> 1.89 | H179: =G179/8 -> 0.23625
B180: Hospedagem | D180: =SUMPRODUCT(D178:D179,H178:H179) -> 7.0875 | H180: =ROUNDUP(D180,0) -> 8
A181: E9134 | B181: Miniônibus com capacidade para 30 passageiros - 111 Kw | C181: chp | H181: =H183 -> 0.24215625
C182: Distancia (km) | D182: Velocidade média (Km/h) | E182: Tempo (h) | F182: N. viagens | H182: Total
C183: =$H$6 -> 41 | D183: 80 | E183: =C183/D183 -> 0.5125 | F183: =H179*2 -> 0.4725 | H183: =F183*E183 -> 0.24215625
A184: E9134 | B184: Miniônibus com capacidade para 30 passageiros - 111 Kw | C184: chi | H184: =H186 -> 1.64784375
C185: Diaria (h) | D185: Hora prod. | E185: Tempo (h) | F185: N. dias | H185: Total
C186: 8 | D186: =E183*F183 -> 0.24215625 | E186: =(F186*C186)-D186 -> 1.64784375 | F186: =F183/2 -> 0.23625 | H186: =E186 -> 1.64784375
A188: 5.1.4 | B188: =VLOOKUP(A188,'Planilha Orçamentária'!$A$8:$E$5168,4,0) -> Chapisco, emboço e reboco | C188: =VLOOKUP(A188,'Planilha Orçamentária'!$A$8:$E$5168,5,0) -> m² | H188: =H203 -> 1386
B189: Chapisco | C189: m³ | H189: =H190 -> 5.544
B190: Considerou-se 4 mm | D190: 0.004 | E190: 110 | G190: 12.6 | H190: =D190*E190*G190 -> 5.544
B192: CÁLCULO DA MÃO DE OBRA (8H DIÁRIA) | C192: m3 | D192: QUANT.PESSOAS | E192: RENDIMENTO (H/³) | F192: m3 | G192: HORAS | H192: DIAS
B193: 88309 PEDREIRO COM ENCARGOS COMPLEMENTARES | C193: h | D193: 1 | E193: =0.1394/D193 -> 0.1394 | F193: =H190/1386 -> 0.004 | G193: =F193*(E193) -> 0.0005576 | H193: =G193/8 -> 6.97e-05
B194: 88316 SERVENTE COM ENCARGOS COMPLEMENTARES | C194: h | D194: 1 | E194: =0.0465/D194 -> 0.0465 | F194: =H190/1386 -> 0.004 | G194: =F194*(E194) -> 0.000186 | H194: =G194/8 -> 2.325e-05
B195: Hospedagem | D195: =SUMPRODUCT(D193:D194,H193:H194) -> 9.295e-05 | H195: =ROUNDUP(D195,0) -> 1
A196: E9134 | B196: Miniônibus com capacidade para 30 passageiros - 111 Kw | C196: chp | H196: =H198/H188 -> 0.0007395382395
C197: Distancia (km) | D197: Velocidade média (Km/h) | E197: Tempo (h) | F197: N. viagens | H197: Total
C198: =$H$6 -> 41 | D198: 80 | E198: =C198/D198 -> 0.5125 | F198: =ROUNDUP(H189*H194,0)*2 -> 2 | H198: =F198*E198 -> 1.025
A199: E9134 | B199: Miniônibus com capacidade para 30 passageiros - 111 Kw | C199: chi | H199: =H201/H188 -> 0.005032467532
C200: Diaria (h) | D200: Hora prod. | E200: Tempo (h) | F200: N. dias | H200: Total
C201: 8 | D201: =E198*F198 -> 1.025 | E201: =(F201*C201)-D201 -> 6.975 | F201: =F198/2 -> 1 | H201: =E201 -> 6.975
B203: Massa única (emboço+reboco) | C203: m² | H203: =H204 -> 1386
E204: 110 | G204: 12.6 | H204: =E204*G204 -> 1386
B206: CÁLCULO DA MÃO DE OBRA (8H DIÁRIA) | C206: m2 | D206: QUANT.PESSOAS | E206: RENDIMENTO (H/m2) | F206: m2 | G206: HORAS | H206: DIAS
B207: 88309 PEDREIRO COM ENCARGOS COMPLEMENTARES | C207: h | D207: 6 | E207: =1.723/D207 -> 0.2871666667 | F207: =H204/1386 -> 1 | G207: =F207*(E207) -> 0.2871666667 | H207: =G207/8 -> 0.03589583333
B208: 88316 SERVENTE COM ENCARGOS COMPLEMENTARES | C208: h | D208: 6 | E208: =1.723/D208 -> 0.2871666667 | F208: =H204/1386 -> 1 | G208: =F208*(E208) -> 0.2871666667 | H208: =G208/8 -> 0.03589583333
B209: Hospedagem | D209: =SUMPRODUCT(D207:D208,H207:H208) -> 0.43075 | H209: =ROUNDUP(D209,0) -> 1
A210: E9134 | B210: Miniônibus com capacidade para 30 passageiros - 111 Kw | C210: chp | H210: =H212/H203 -> 0.03697691198
C211: Distancia (km) | D211: Velocidade média (Km/h) | E211: Tempo (h) | F211: N. viagens | H211: Total
C212: =$H$6 -> 41 | D212: 80 | E212: =C212/D212 -> 0.5125 | F212: =ROUNDUP(H203*H208,0)*2 -> 100 | H212: =F212*E212 -> 51.25
A213: E9134 | B213: Miniônibus com capacidade para 30 passageiros - 111 Kw | C213: chi | H213: =H215/H203 -> 0.2516233766
C214: Diaria (h) | D214: Hora prod. | E214: Tempo (h) | F214: N. dias | H214: Total
C215: 8 | D215: =E212*F212 -> 51.25 | E215: =(F215*C215)-D215 -> 348.75 | F215: =F212/2 -> 50 | H215: =E215 -> 348.75
A218: 6.1.1 | B218: =VLOOKUP(A218,'Planilha Orçamentária'!$A$8:$E$5168,4,0) -> Demolição de argamassa | C218: =VLOOKUP(A218,'Planilha Orçamentária'!$A$8:$E$5168,5,0) -> m² | H218: =H219 -> 220
E219: 110 | F219: 2 | H219: =E219*F219 -> 220
B220: CÁLCULO DA MÃO DE OBRA (8H DIÁRIA) | C220: m2 | D220: QUANT.PESSOAS | E220: RENDIMENTO (H/m²) | F220: m² | G220: HORAS | H220: DIAS
B221: 88309 PEDREIRO COM ENCARGOS COMPLEMENTARES | C221: h | D221: 3 | E221: =0.1151/D221 -> 0.03836666667 | F221: 1 | G221: =F221*(E221) -> 0.03836666667 | H221: =G221/8 -> 0.004795833333
B222: 88316 SERVENTE COM ENCARGOS COMPLEMENTARES | C222: h | D222: 6 | E222: =0.3872/D222 -> 0.06453333333 | F222: 1 | G222: =F222*(E222) -> 0.06453333333 | H222: =G222/8 -> 0.008066666667
B223: Hospedagem | D223: =SUMPRODUCT(D221:D222,H221:H222) -> 0.0627875 | H223: =ROUNDUP(D223,0) -> 1
A224: E9134 | B224: Miniônibus com capacidade para 30 passageiros - 111 Kw | C224: chp | H224: =H226/H218 -> 0.009318181818
C225: Distancia (km) | D225: Velocidade média (Km/h) | E225: Tempo (h) | F225: N. viagens | H225: Total
... 84 more rows

Sheet CPU
B1: Ministério da Integração e do Desenvolvimento Regional
B2: Companhia de Desenvolvimento dos Vales do São Francisco e do Parnaíba
B4: COMPOSIÇÕES DE PREÇOS UNITÁRIOS - ORÇAMENTO NÃO DESONERADO
B5: OBRA: | C5: ='Planilha Orçamentária'!B5 -> SERVIÇOS DE MANUTENÇÃO E OBRAS CIVIS NA BARRAGEM ÁGUA FRIA | F5: BDI (serv.): | G5: ='BDI serv'!D22 -> 0.2378
B6: LOCAL: | C6: ='Planilha Orçamentária'!B6 -> BARRAGEM ÁGUA FRIA, FLORESTA/PE | F6: BDI (forn.): | G6: ='BDI forn'!E6 -> 0.147
B7: DATA BASE: | C7: 2024-05-01
B8: PRAZO: | C8: 120 DIAS
B10: REFERÊNCIA | C10: CÓDIGO | D10: DESCRIÇÃO | E10: UNIDADE | F10: ÍNDICE | G10: CUSTO UNITÁRIO | H10: PREÇO TOTAL
B11: ='Planilha Orçamentária'!A12 -> 1.1 | C11: =VLOOKUP($B11,'Planilha Orçamentária'!$A$11:$I$479,3,) -> CPU.01 | D11: =VLOOKUP($B11,'Planilha Orçamentária'!$A$11:$I$479,4,) -> Administração Local | E11: =VLOOKUP($B11,'Planilha Orçamentária'!$A$11:$I$479,5,) -> mês | H11: =SUM(H15,H14,H13,H12) -> 23989.94 | I11: S | J11: COMENTÁRIOS
B12: =B11 -> 1.1 | D12: MATERIAL | H12: 0 | I12: ss
B13: =B11 -> 1.1 | D13: EQUIPAMENTOS | H13: 0 | I13: ss
B14: =B11 -> 1.1 | D14: SERVIÇOS | H14: 0 | I14: ss
B15: =B11 -> 1.1 | D15: MÃO DE OBRA | H15: =SUM(H16:H18) -> 23989.94 | I15: mdo
B16: SINAPI | C16: 90778 | D16: =PROPER(IF(K16="i",VLOOKUP(C16,'Ins SINAPI PE 12-2023 Onerado'!$A$8:$E$5189,2,0),VLOOKUP(C16,'Comp SINAPI PE 12-2023 Onerado'!$G$7:$K$7500,2,0))) -> Engenheiro Civil De Obra Pleno Com Encargos Complementares | E16: =LOWER(IF(K16="i",VLOOKUP(C16,'Ins SINAPI PE 12-2023 Onerado'!$A$8:$E$5189,3,0),VLOOKUP(C16,'Comp SINAPI PE 12-2023 Onerado'!$G$7:$K$7500,3,0))) -> h | F16: ='Memorial de cálculo'!H12 -> 30 | G16: =IF(I16="i",VLOOKUP(C16,'Ins SINAPI PE 12-2023 Onerado'!$A$8:$E$5189,5,0),VLOOKUP(C16,'Comp SINAPI PE 12-2023 Onerado'!$G$7:$K$7500,5,0)) -> 126.7 | H16: =ROUND(F16*G16,2) -> 3801 | I16: ca
B17: SINAPI | C17: 93572 | D17: =PROPER(IF(K17="i",VLOOKUP(C17,'Ins SINAPI PE 12-2023 Onerado'!$A$8:$E$5189,2,0),VLOOKUP(C17,'Comp SINAPI PE 12-2023 Onerado'!$G$7:$K$7500,2,0))) -> Encarregado Geral De Obras Com Encargos Complementares | E17: =LOWER(IF(K17="i",VLOOKUP(C17,'Ins SINAPI PE 12-2023 Onerado'!$A$8:$E$5189,3,0),VLOOKUP(C17,'Comp SINAPI PE 12-2023 Onerado'!$G$7:$K$7500,3,0))) -> mes | F17: ='Memorial de cálculo'!H13 -> 0.8 | G17: =IF(I17="i",VLOOKUP(C17,'Ins SINAPI PE 12-2023 Onerado'!$A$8:$E$5189,5,0),VLOOKUP(C17,'Comp SINAPI PE 12-2023 Onerado'!$G$7:$K$7500,5,0)) -> 6840.17 | H17: =ROUND(F17*G17,2) -> 5472.14 | I17: ca
B18: SINAPI | C18: 100289 | D18: Vigia Noturno Com Encargos Complementares (BASEADO EM 100289) | E18: =LOWER(IF(K18="i",VLOOKUP(C18,'Ins SINAPI PE 12-2023 Onerado'!$A$8:$E$5189,3,0),VLOOKUP(C18,'Comp SINAPI PE 12-2023 Onerado'!$G$7:$K$7500,3,0))) -> h | F18: ='Memorial de cálculo'!H14 -> 720 | G18: =IF(I18="i",VLOOKUP(C18,'Ins SINAPI PE 12-2023 Onerado'!$A$8:$E$5189,5,0),VLOOKUP(C18,'Comp SINAPI PE 12-2023 Onerado'!$G$7:$K$7500,5,0)) -> 20.44 | H18: =ROUND(F18*G18,2) -> 14716.8 | I18: ca | J18: considerando 4 vigias intercalando em dupla na jornada de 12/36
B20: ='Planilha Orçamentária'!A16 -> 2.1.1 | C20: =VLOOKUP($B20,'Planilha Orçamentária'!$A$11:$I$479,3,) -> CPU.02 | D20: =VLOOKUP($B20,'Planilha Orçamentária'!$A$11:$I$479,4,) -> Mobilização e desmobilização de instalação do canteiro | E20: =VLOOKUP($B20,'Planilha Orçamentária'!$A$11:$I$479,5,) -> un | F20: 1 | H20: =SUM(H21,H22,H28,H29) -> 6019.56 | I20: S | J20: mobilização e desmobilização de Petrolina a barragem
B21: =B20 -> 2.1.1 | D21: MATERIAL | H21: 0 | I21: ss
B22: =B20 -> 2.1.1 | D22: EQUIPAMENTOS | H22: =SUM(H23:H27) -> 5689.48 | I22: ss
B23: SICRO | C23: E9134 | D23: Miniônibus com capacidade para 30 passageiros - 111 Kw | E23: chp | F23: ='Memorial de cálculo'!H18 -> 7.925 | G23: 217.79 | H23: =ROUND(F23*G23,2) -> 1725.99 | J23: considerando 80 km/h
B24: SICRO | C24: E9134 | D24: Miniônibus com capacidade para 30 passageiros - 111 Kw | E24: chi | F24: ='Memorial de cálculo'!H21 -> 8.075 | G24: 74.24 | H24: =ROUND(F24*G24,2) -> 599.49
B25: SINAPI | C25: 100946 | D25: =IF(I25="i",VLOOKUP(C25,'Ins SINAPI PE 12-2023 Onerado'!$A$8:$E$5189,2,0),VLOOKUP(C25,'Comp SINAPI PE 12-2023 Onerado'!$G$7:$K$7500,2,0)) -> TRANSPORTE COM CAMINHÃO CARROCERIA 9T, EM VIA URBANA EM REVESTIMENTO PRIMÁRIO (UNIDADE: TXKM). AF_07/2020 | E25: =IF(I25="i",VLOOKUP(C25,'Ins SINAPI PE 12-2023 Onerado'!$A$8:$E$5189,3,0),VLOOKUP(C25,'Comp SINAPI PE 12-2023 Onerado'!$G$7:$K$7500,3,0)) -> TXKM | F25: ='Memorial de cálculo'!H24 -> 110 | G25: =IF(I25="i",VLOOKUP(C25,'Ins SINAPI PE 12-2023 Onerado'!$A$8:$E$5189,5,0),VLOOKUP(C25,'Comp SINAPI PE 12-2023 Onerado'!$G$7:$K$7500,5,0)) -> 2.42 | H25: =ROUND(F25*G25,2) -> 266.2 | I25: ca | J25: considerando 5 toneladas de carga
B26: SINAPI | C26: 100947 | D26: =IF(I26="i",VLOOKUP(C26,'Ins SINAPI PE 12-2023 Onerado'!$A$8:$E$5189,2,0),VLOOKUP(C26,'Comp SINAPI PE 12-2023 Onerado'!$G$7:$K$7500,2,0)) -> TRANSPORTE COM CAMINHÃO CARROCERIA 9T, EM VIA URBANA PAVIMENTADA, DMT ATÉ 30KM (UNIDADE: TXKM). AF_07/2020 | E26: =IF(I26="i",VLOOKUP(C26,'Ins SINAPI PE 12-2023 Onerado'!$A$8:$E$5189,3,0),VLOOKUP(C26,'Comp SINAPI PE 12-2023 Onerado'!$G$7:$K$7500,3,0)) -> TXKM | F26: ='Memorial de cálculo'!H27 -> 300 | G26: =IF(I26="i",VLOOKUP(C26,'Ins SINAPI PE 12-2023 Onerado'!$A$8:$E$5189,5,0),VLOOKUP(C26,'Comp SINAPI PE 12-2023 Onerado'!$G$7:$K$7500,5,0)) -> 2.23 | H26: =ROUND(F26*G26,2) -> 669 | I26: ca
B27: SINAPI | C27: 100948 | D27: =IF(I27="i",VLOOKUP(C27,'Ins SINAPI PE 12-2023 Onerado'!$A$8:$E$5189,2,0),VLOOKUP(C27,'Comp SINAPI PE 12-2023 Onerado'!$G$7:$K$7500,2,0)) -> TRANSPORTE COM CAMINHÃO CARROCERIA 9T, EM VIA URBANA PAVIMENTADA, ADICIONAL PARA DMT EXCEDENTE A 30 KM (UNIDADE: TXKM). AF_07/2020 | E27: =IF(I27="i",VLOOKUP(C27,'Ins SINAPI PE 12-2023 Onerado'!$A$8:$E$5189,3,0),VLOOKUP(C27,'Comp SINAPI PE 12-2023 Onerado'!$G$7:$K$7500,3,0)) -> TXKM | F27: ='Memorial de cálculo'!H30 -> 2760 | G27: =IF(I27="i",VLOOKUP(C27,'Ins SINAPI PE 12-2023 Onerado'!$A$8:$E$5189,5,0),VLOOKUP(C27,'Comp SINAPI PE 12-2023 Onerado'!$G$7:$K$7500,5,0)) -> 0.88 | H27: 2428.8 | I27: ca
B28: =B20 -> 2.1.1 | D28: SERVIÇOS | H28: 0 | I28: ss
B29: =B20 -> 2.1.1 | D29: MÃO DE OBRA | H29: =H30 -> 330.08 | I29: ss
B30: SINAPI | C30: 88284 | D30: =PROPER(IF(K30="i",VLOOKUP(C30,'Ins SINAPI PE 12-2023 Onerado'!$A$8:$E$5189,2,0),VLOOKUP(C30,'Comp SINAPI PE 12-2023 Onerado'!$G$7:$K$7500,2,0))) -> Motorista De Veículo Leve Com Encargos Complementares | E30: =LOWER(IF(K30="i",VLOOKUP(C30,'Ins SINAPI PE 12-2023 Onerado'!$A$8:$E$5189,3,0),VLOOKUP(C30,'Comp SINAPI PE 12-2023 Onerado'!$G$7:$K$7500,3,0))) -> h | F30: =F23+F24 -> 16 | G30: =IF(I30="i",VLOOKUP(C30,'Ins SINAPI PE 12-2023 Onerado'!$A$8:$E$5189,5,0),VLOOKUP(C30,'Comp SINAPI PE 12-2023 Onerado'!$G$7:$K$7500,5,0)) -> 20.63 | H30: =ROUND(F30*G30,2) -> 330.08 | I30: ca
I31: x
B32: ='Planilha Orçamentária'!A18 -> 2.2.1 | C32: =VLOOKUP($B32,'Planilha Orçamentária'!$A$11:$I$479,3,) -> CPU.03 | D32: =VLOOKUP($B32,'Planilha Orçamentária'!$A$11:$I$479,4,) -> Execução de canteiro de obras, inclusive, limpeza, refeitório, sanitários e central de formas | E32: =VLOOKUP($B32,'Planilha Orçamentária'!$A$11:$I$479,5,) -> m² | F32: 1 | H32: =SUM(H33,H34,H35,H46) -> 1061.23 | I32: S
B33: =B32 -> 2.2.1 | D33: MATERIAL | H33: 0 | I33: ss
B34: =B32 -> 2.2.1 | D34: EQUIPAMENTOS | H34: 0 | I34: ss
B35: =B32 -> 2.2.1 | D35: SERVIÇOS | H35: =SUM(H36:H45) -> 1061.23 | I35: ss
B36: SINAPI | C36: 98524 | D36: =PROPER(IF(K36="i",VLOOKUP(C36,'Ins SINAPI PE 12-2023 Onerado'!$A$8:$E$5189,2,0),VLOOKUP(C36,'Comp SINAPI PE 12-2023 Onerado'!$G$7:$K$7500,2,0))) -> Limpeza Manual De Vegetação Em Terreno Com Enxada. Af_03/2024 | E36: =LOWER(IF(K36="i",VLOOKUP(C36,'Ins SINAPI PE 12-2023 Onerado'!$A$8:$E$5189,3,0),VLOOKUP(C36,'Comp SINAPI PE 12-2023 Onerado'!$G$7:$K$7500,3,0))) -> m2 | F36: 1 | G36: =IF(I36="i",VLOOKUP(C36,'Ins SINAPI PE 12-2023 Onerado'!$A$8:$E$5189,5,0),VLOOKUP(C36,'Comp SINAPI PE 12-2023 Onerado'!$G$7:$K$7500,5,0)) -> 4.32 | H36: =ROUND(F36*G36,2) -> 4.32 | I36: ca | J36: =F36*28.5 -> 28.5 | K36: =G36*J36 -> 123.12
B37: SINAPI | C37: 94975 | D37: =PROPER(IF(K37="i",VLOOKUP(C37,'Ins SINAPI PE 12-2023 Onerado'!$A$8:$E$5189,2,0),VLOOKUP(C37,'Comp SINAPI PE 12-2023 Onerado'!$G$7:$K$7500,2,0))) -> Concreto Fck = 15Mpa, Traço 1:3,4:3,5 (Em Massa Seca De Cimento/ Areia Média/ Brita 1) - Preparo Manual. Af_05/2021 | E37: =LOWER(IF(K37="i",VLOOKUP(C37,'Ins SINAPI PE 12-2023 Onerado'!$A$8:$E$5189,3,0),VLOOKUP(C37,'Comp SINAPI PE 12-2023 Onerado'!$G$7:$K$7500,3,0))) -> m3 | F37: =1.43/28.5 -> 0.0501754386 | G37: =IF(I37="i",VLOOKUP(C37,'Ins SINAPI PE 12-2023 Onerado'!$A$8:$E$5189,5,0),VLOOKUP(C37,'Comp SINAPI PE 12-2023 Onerado'!$G$7:$K$7500,5,0)) -> 479.76 | H37: 24.07 | I37: ca | J37: =F37*28.5 -> 1.43 | K37: =G37*J37 -> 686.0568
B38: SINAPI | C38: 93210 | D38: EXECUÇÃO DE REFEITÓRIO EM CANTEIRO DE OBRA EM CHAPA DE MADEIRA COMPENSADA, NÃO INCLUSO MOBILIÁRIO E EQUIPAMENTOS. AF_02/2016 | E38: m3 | F38: =7.5/28.5 -> 0.2631578947 | G38: 632.64 | H38: 166.48 | I38: ca | J38: 7.5 | K38: 4744.8 | L38: 2023-12-01
B39: SINAPI | C39: 93212 | D39: EXECUÇÃO DE SANITÁRIO E VESTIÁRIO EM CANTEIRO DE OBRA EM CHAPA DE MADEIRA COMPENSADA, NÃO INCLUSO MOBILIÁRIO. AF_02/2016 | E39: m² | F39: =9/28.5 -> 0.3157894737 | G39: 1038.41 | H39: 327.92 | I39: ca | J39: 9 | K39: 9345.69
B40: SINAPI | C40: 93583 | D40: EXECUÇÃO DE CENTRAL DE FÔRMAS, PRODUÇÃO DE ARGAMASSA OU CONCRETO EM CANTEIRO DE OBRA, NÃO INCLUSO MOBILIÁRIO E EQUIPAMENTOS. AF_04/2016 | E40: m² | F40: =12/28.5 -> 0.4210526316 | G40: 514.11 | H40: 216.47 | I40: ca | J40: 12 | K40: 6169.32
B41: SINAPI | C41: 100946 | D41: TRANSPORTE COM CAMINHÃO CARROCERIA 9T, EM VIA URBANA EM REVESTIMENTO PRIMÁRIO (UNIDADE: TXKM). AF_07/2020 | E41: =IF(I41="i",VLOOKUP(C41,'Ins SINAPI PE 12-2023 Onerado'!$A$8:$E$5189,3,0),VLOOKUP(C41,'Comp SINAPI PE 12-2023 Onerado'!$G$7:$K$7500,3,0)) -> TXKM | F41: ='Memorial de cálculo'!H62 -> 11 | G41: =IF(I41="i",VLOOKUP(C41,'Ins SINAPI PE 12-2023 Onerado'!$A$8:$E$5189,5,0),VLOOKUP(C41,'Comp SINAPI PE 12-2023 Onerado'!$G$7:$K$7500,5,0)) -> 2.42 | H41: 26.62 | I41: ca | J41: 313.5 | K41: 758.67
B42: SINAPI | C42: 100947 | D42: TRANSPORTE COM CAMINHÃO CARROCERIA 9T, EM VIA URBANA PAVIMENTADA, DMT ATÉ 30KM (UNIDADE: TXKM). AF_07/2020 | E42: =IF(I42="i",VLOOKUP(C42,'Ins SINAPI PE 12-2023 Onerado'!$A$8:$E$5189,3,0),VLOOKUP(C42,'Comp SINAPI PE 12-2023 Onerado'!$G$7:$K$7500,3,0)) -> TXKM | F42: ='Memorial de cálculo'!H65 -> 30 | G42: =IF(I42="i",VLOOKUP(C42,'Ins SINAPI PE 12-2023 Onerado'!$A$8:$E$5189,5,0),VLOOKUP(C42,'Comp SINAPI PE 12-2023 Onerado'!$G$7:$K$7500,5,0)) -> 2.23 | H42: 66.9 | I42: ca | J42: 855 | K42: 1906.65
B43: CPU Hospedagem | C43: CODE | D43: Hospedagem | E43: un | F43: ='Memorial de cálculo'!D39+'Memorial de cálculo'!D44+'Memorial de cálculo'!D49+'Memorial de cálculo'!D54+'Memorial de cálculo'!D59 -> 0.4634848684 | G43: ='CPU HOSPEDAGEM'!C15 -> 100.1867083 | H43: =ROUND(F43*G43,2) -> 46.44 | J43: 13.20931875 | K43: 1323.398165
B44: SICRO | C44: E9134 | D44: Miniônibus com capacidade para 30 passageiros - 111 Kw | E44: chp | F44: ='Memorial de cálculo'!H68 -> 0.251754386 | G44: 217.79 | H44: =ROUND(F44*G44,2) -> 54.83 | I44: ca | J44: 7.175 | K44: 1562.64325
B45: SICRO | C45: E9134 | D45: Miniônibus com capacidade para 30 passageiros - 111 Kw | E45: chi | F45: ='Memorial de cálculo'!H71 -> 1.713157895 | G45: 74.24 | H45: 127.18 | I45: ca | J45: 48.825 | K45: 3624.768
B46: =B32 -> 2.2.1 | D46: MÃO DE OBRA | H46: 0 | I46: ss
I47: x
B48: ='Planilha Orçamentária'!A20 -> 2.3.1 | C48: =VLOOKUP($B48,'Planilha Orçamentária'!$A$11:$I$479,3,) -> CPU.04 | D48: =VLOOKUP($B48,'Planilha Orçamentária'!$A$11:$I$479,4,) -> PLACA DE OBRA EM CHAPA DE ACO GALVANIZADO | E48: =VLOOKUP($B48,'Planilha Orçamentária'!$A$11:$I$479,5,) -> m² | H48: =SUM(H49,H62,H55,H56) -> 900.64 | I48: S
B49: =B48 -> 2.3.1 | D49: MATERIAL | H49: =SUM(H50:H54) -> 333.36 | I49: SS
B50: SINAPI | C50: 4417 | D50: =IF(I50="i",VLOOKUP(C50,'Ins SINAPI PE 12-2023 Onerado'!$A$8:$E$5189,2,0),VLOOKUP(C50,'Comp SINAPI PE 12-2023 Onerado'!$G$7:$K$6879,2,0)) -> SARRAFO NAO APARELHADO *2,5 X 7* CM, EM MACARANDUBA/MASSARANDUBA, ANGELIM, PEROBA-ROSA OU EQUIVALENTE DA REGIAO - BRUTA | E50: =IF(I50="i",VLOOKUP(C50,'Ins SINAPI PE 12-2023 Onerado'!$A$8:$E$5189,3,0),VLOOKUP(C50,'Comp SINAPI PE 12-2023 Onerado'!$G$7:$K$7500,3,0)) -> M | F50: =2 -> 2 | G50: =IF(I50="i",VLOOKUP(C50,'Ins SINAPI PE 12-2023 Onerado'!$A$8:$E$5189,5,0),VLOOKUP(C50,'Comp SINAPI PE 12-2023 Onerado'!$G$7:$K$7500,5,0)) -> 8.3 | H50: =ROUND(F50*G50,2) -> 16.6 | I50: I | J50: =F50*2 -> 4 | K50: =G50*J50 -> 33.2
B51: SINAPI | C51: 4430 | D51: =IF(I51="i",VLOOKUP(C51,'Ins SINAPI PE 12-2023 Onerado'!$A$8:$E$5189,2,0),VLOOKUP(C51,'Comp SINAPI PE 12-2023 Onerado'!$G$7:$K$6879,2,0)) -> CAIBRO NAO APARELHADO *5 X 6* CM, EM MACARANDUBA/MASSARANDUBA, ANGELIM OU EQUIVALENTE DA REGIAO - BRUTA | E51: =IF(I51="i",VLOOKUP(C51,'Ins SINAPI PE 12-2023 Onerado'!$A$8:$E$5189,3,0),VLOOKUP(C51,'Comp SINAPI PE 12-2023 Onerado'!$G$7:$K$7500,3,0)) -> M | F51: =4 -> 4 | G51: =IF(I51="i",VLOOKUP(C51,'Ins SINAPI PE 12-2023 Onerado'!$A$8:$E$5189,5,0),VLOOKUP(C51,'Comp SINAPI PE 12-2023 Onerado'!$G$7:$K$7500,5,0)) -> 15.25 | H51: =ROUND(F51*G51,2) -> 61 | I51: I | J51: =F51*2 -> 8 | K51: =G51*J51 -> 122
B52: SINAPI | C52: 4813 | D52: =IF(I52="i",VLOOKUP(C52,'Ins SINAPI PE 12-2023 Onerado'!$A$8:$E$5189,2,0),VLOOKUP(C52,'Comp SINAPI PE 12-2023 Onerado'!$G$7:$K$6879,2,0)) -> PLACA DE OBRA (PARA CONSTRUCAO CIVIL) EM CHAPA GALVANIZADA *N. 22*, ADESIVADA, DE *2,4 X 1,2* M (SEM POSTES PARA FIXACAO) | E52: =IF(I52="i",VLOOKUP(C52,'Ins SINAPI PE 12-2023 Onerado'!$A$8:$E$5189,3,0),VLOOKUP(C52,'Comp SINAPI PE 12-2023 Onerado'!$G$7:$K$7500,3,0)) -> M2 | F52: =1 -> 1 | G52: =IF(I52="i",VLOOKUP(C52,'Ins SINAPI PE 12-2023 Onerado'!$A$8:$E$5189,5,0),VLOOKUP(C52,'Comp SINAPI PE 12-2023 Onerado'!$G$7:$K$7500,5,0)) -> 250 | H52: 250 | I52: I | J52: 2 | K52: 500
B53: SINAPI | C53: 5075 | D53: =IF(I53="i",VLOOKUP(C53,'Ins SINAPI PE 12-2023 Onerado'!$A$8:$E$5189,2,0),VLOOKUP(C53,'Comp SINAPI PE 12-2023 Onerado'!$G$7:$K$6879,2,0)) -> PREGO DE ACO POLIDO COM CABECA 18 X 30 (2 3/4 X 10) | E53: =IF(I53="i",VLOOKUP(C53,'Ins SINAPI PE 12-2023 Onerado'!$A$8:$E$5189,3,0),VLOOKUP(C53,'Comp SINAPI PE 12-2023 Onerado'!$G$7:$K$7500,3,0)) -> KG | F53: =0.11 -> 0.11 | G53: =IF(I53="i",VLOOKUP(C53,'Ins SINAPI PE 12-2023 Onerado'!$A$8:$E$5189,5,0),VLOOKUP(C53,'Comp SINAPI PE 12-2023 Onerado'!$G$7:$K$7500,5,0)) -> 16.17 | H53: 1.78 | I53: I | J53: 0.22 | K53: 3.5574
B54: SINAPI | C54: 94962 | D54: =IF(I54="i",VLOOKUP(C54,'Ins SINAPI PE 12-2023 Onerado'!$A$8:$E$5189,2,0),VLOOKUP(C54,'Comp SINAPI PE 12-2023 Onerado'!$G$7:$K$6879,2,0)) -> CONCRETO MAGRO PARA LASTRO, TRAÇO 1:4,5:4,5 (EM MASSA SECA DE CIMENTO/ AREIA MÉDIA/ BRITA 1) - PREPARO MECÂNICO COM BETONEIRA 400 L. AF_05/2021 | E54: =IF(I54="i",VLOOKUP(C54,'Ins SINAPI PE 12-2023 Onerado'!$A$8:$E$5189,3,0),VLOOKUP(C54,'Comp SINAPI PE 12-2023 Onerado'!$G$7:$K$7500,3,0)) -> M3 | F54: =0.01 -> 0.01 | G54: =IF(I54="i",VLOOKUP(C54,'Ins SINAPI PE 12-2023 Onerado'!$A$8:$E$5189,5,0),VLOOKUP(C54,'Comp SINAPI PE 12-2023 Onerado'!$G$7:$K$7500,5,0)) -> 398.48 | H54: 3.98 | I54: ca | J54: 0.02 | K54: 7.9696
B55: =B48 -> 2.3.1 | D55: EQUIPAMENTOS | H55: 0 | I55: SS
B56: =B48 -> 2.3.1 | D56: SERVIÇOS | H56: =SUM(H57:H61) -> 501.62 | I56: SS
B57: SINAPI | C57: 100946 | D57: TRANSPORTE COM CAMINHÃO CARROCERIA 9T, EM VIA URBANA EM REVESTIMENTO PRIMÁRIO (UNIDADE: TXKM). AF_07/2020 | E57: =IF(I57="i",VLOOKUP(C57,'Ins SINAPI PE 12-2023 Onerado'!$A$8:$E$5189,3,0),VLOOKUP(C57,'Comp SINAPI PE 12-2023 Onerado'!$G$7:$K$7500,3,0)) -> TXKM | F57: ='Memorial de cálculo'!H81 -> 11 | G57: =IF(I57="i",VLOOKUP(C57,'Ins SINAPI PE 12-2023 Onerado'!$A$8:$E$5189,5,0),VLOOKUP(C57,'Comp SINAPI PE 12-2023 Onerado'!$G$7:$K$7500,5,0)) -> 2.42 | H57: =ROUND(F57*G57,2) -> 26.62 | I57: ca | J57: =F57*2 -> 22 | K57: 53.24
B58: SINAPI | C58: 100947 | D58: TRANSPORTE COM CAMINHÃO CARROCERIA 9T, EM VIA URBANA PAVIMENTADA, DMT ATÉ 30KM (UNIDADE: TXKM). AF_07/2020 | E58: =IF(I58="i",VLOOKUP(C58,'Ins SINAPI PE 12-2023 Onerado'!$A$8:$E$5189,3,0),VLOOKUP(C58,'Comp SINAPI PE 12-2023 Onerado'!$G$7:$K$7500,3,0)) -> TXKM | F58: ='Memorial de cálculo'!H84 -> 30 | G58: =IF(I58="i",VLOOKUP(C58,'Ins SINAPI PE 12-2023 Onerado'!$A$8:$E$5189,5,0),VLOOKUP(C58,'Comp SINAPI PE 12-2023 Onerado'!$G$7:$K$7500,5,0)) -> 2.23 | H58: 66.9 | I58: ca | J58: =F58*2 -> 60 | K58: 133.8
D59: Hospedagem | E59: un | F59: ='Memorial de cálculo'!D80 -> 0.375 | G59: ='CPU HOSPEDAGEM'!C15 -> 100.1867083 | H59: 37.57 | I59: ca | J59: 0.75 | K59: 75.14003125
B60: SICRO | C60: E9134 | D60: Miniônibus com capacidade para 30 passageiros - 111 Kw | E60: chp | F60: ='Memorial de cálculo'!H87 -> 0.5125 | G60: =G44 -> 217.79 | H60: 111.62 | I60: ca | J60: 1.025 | K60: 223.23475
B61: SICRO | C61: E9134 | D61: Miniônibus com capacidade para 30 passageiros - 111 Kw | E61: chi | F61: ='Memorial de cálculo'!H90 -> 3.4875 | G61: =G45 -> 74.24 | H61: 258.91 | I61: ca | J61: 6.975 | K61: 517.824
B62: =B48 -> 2.3.1 | D62: MÃO DE OBRA | H62: =SUM(H63:H64) -> 65.66 | I62: ss | J62: 0 | K62: 0
B63: SINAPI | C63: 88262 | D63: =IF(I63="i",VLOOKUP(C63,'Ins SINAPI PE 12-2023 Onerado'!$A$8:$E$5189,2,0),VLOOKUP(C63,'Comp SINAPI PE 12-2023 Onerado'!$G$7:$K$7500,2,0)) -> CARPINTEIRO DE FORMAS COM ENCARGOS COMPLEMENTARES | E63: =IF(I63="i",VLOOKUP(C63,'Ins SINAPI PE 12-2023 Onerado'!$A$8:$E$5189,3,0),VLOOKUP(C63,'Comp SINAPI PE 12-2023 Onerado'!$G$7:$K$7500,3,0)) -> H | F63: 1 | G63: =IF(I63="i",VLOOKUP(C63,'Ins SINAPI PE 12-2023 Onerado'!$A$8:$E$5189,5,0),VLOOKUP(C63,'Comp SINAPI PE 12-2023 Onerado'!$G$7:$K$7500,5,0)) -> 25.1 | H63: =ROUND(F63*G63,2) -> 25.1 | I63: ca | J63: 2 | K63: 50.2
B64: SINAPI | C64: 88316 | D64: =IF(I64="i",VLOOKUP(C64,'Ins SINAPI PE 12-2023 Onerado'!$A$8:$E$5189,2,0),VLOOKUP(C64,'Comp SINAPI PE 12-2023 Onerado'!$G$7:$K$7500,2,0)) -> SERVENTE COM ENCARGOS COMPLEMENTARES | E64: =IF(I64="i",VLOOKUP(C64,'Ins SINAPI PE 12-2023 Onerado'!$A$8:$E$5189,3,0),VLOOKUP(C64,'Comp SINAPI PE 12-2023 Onerado'!$G$7:$K$7500,3,0)) -> H | F64: 2 | G64: =IF(I64="i",VLOOKUP(C64,'Ins SINAPI PE 12-2023 Onerado'!$A$8:$E$5189,5,0),VLOOKUP(C64,'Comp SINAPI PE 12-2023 Onerado'!$G$7:$K$7500,5,0)) -> 20.28 | H64: =ROUND(F64*G64,2) -> 40.56 | I64: ca | J64: 4 | K64: 81.12
B66: ='Planilha Orçamentária'!A24 -> 3.1.1 | C66: =VLOOKUP($B66,'Planilha Orçamentária'!$A$11:$I$479,3,) -> CPU.05 | D66: =VLOOKUP($B66,'Planilha Orçamentária'!$A$11:$I$479,4,) -> Limpeza de vegetação | E66: =VLOOKUP($B66,'Planilha Orçamentária'!$A$11:$I$479,5,) -> m² | H66: =H67+H68+H69+H76 -> 9.64 | I66: S
B67: =B66 -> 3.1.1 | D67: MATERIAL | H67: 0 | I67: SS
B68: =B66 -> 3.1.1 | D68: EQUIPAMENTOS | H68: 0 | I68: SS
B69: =B66 -> 3.1.1 | D69: SERVIÇOS | H69: =SUM(H70:H75) -> 9.64 | I69: SS
B70: SINAPI | C70: 98524 | D70: =PROPER(IF(K70="i",VLOOKUP(C70,'Ins SINAPI PE 12-2023 Onerado'!$A$8:$E$5189,2,0),VLOOKUP(C70,'Comp SINAPI PE 12-2023 Onerado'!$G$7:$K$7500,2,0))) -> Limpeza Manual De Vegetação Em Terreno Com Enxada. Af_03/2024 | E70: =LOWER(IF(K70="i",VLOOKUP(C70,'Ins SINAPI PE 12-2023 Onerado'!$A$8:$E$5189,3,0),VLOOKUP(C70,'Comp SINAPI PE 12-2023 Onerado'!$G$7:$K$7500,3,0))) -> m2 | F70: 1 | G70: =IF(I70="i",VLOOKUP(C70,'Ins SINAPI PE 12-2023 Onerado'!$A$8:$E$5189,5,0),VLOOKUP(C70,'Comp SINAPI PE 12-2023 Onerado'!$G$7:$K$7500,5,0)) -> 4.32 | H70: =ROUND(F70*G70,2) -> 4.32 | I70: ca | J70: =F70*4000 -> 4000 | K70: =G70*J70 -> 17280
B71: CPU Hospedagem | C71: CODE | D71: Hospedagem | E71: un | F71: ='Memorial de cálculo'!D101 -> 0.01795 | G71: ='CPU HOSPEDAGEM'!C15 -> 100.1867083 | H71: =ROUND(F71*G71,2) -> 1.8 | I71: ca | J71: 71.8 | K71: =G71*J71 -> 7193.405658
B72: SICRO | C72: E9134 | D72: Miniônibus com capacidade para 30 passageiros - 111 Kw | E72: chp | F72: ='Memorial de cálculo'!H102 -> 0.003075 | G72: =G60 -> 217.79 | H72: 0.67 | I72: ca | J72: 12.3 | K72: 2678.817
B73: SICRO | C73: E9134 | D73: Miniônibus com capacidade para 30 passageiros - 111 Kw | E73: chi | F73: ='Memorial de cálculo'!H105 -> 0.020925 | G73: =G61 -> 74.24 | H73: 1.55 | I73: ca | J73: 83.7 | K73: 6213.888
B74: SINAPI | C74: 97913 | D74: =PROPER(IF(K74="i",VLOOKUP(C74,'Ins SINAPI PE 12-2023 Onerado'!$A$8:$E$5189,2,0),VLOOKUP(C74,'Comp SINAPI PE 12-2023 Onerado'!$G$7:$K$7500,2,0))) -> Transporte Com Caminhão Basculante De 6 M³, Em Via Urbana Em Revestimento Primário (Unidade: M3Xkm). Af_07/2020 | E74: =LOWER(IF(K74="i",VLOOKUP(C74,'Ins SINAPI PE 12-2023 Onerado'!$A$8:$E$5189,3,0),VLOOKUP(C74,'Comp SINAPI PE 12-2023 Onerado'!$G$7:$K$7500,3,0))) -> m3xkm | F74: ='Memorial de cálculo'!H108 -> 0.1155 | G74: =IF(I74="i",VLOOKUP(C74,'Ins SINAPI PE 12-2023 Onerado'!$A$8:$E$5189,5,0),VLOOKUP(C74,'Comp SINAPI PE 12-2023 Onerado'!$G$7:$K$7500,5,0)) -> 3.23 | H74: =ROUND(F74*G74,2) -> 0.37 | I74: ca | J74: 462 | K74: =G74*J74 -> 1492.26
B75: SINAPI | C75: 97914 | D75: =PROPER(IF(K75="i",VLOOKUP(C75,'Ins SINAPI PE 12-2023 Onerado'!$A$8:$E$5189,2,0),VLOOKUP(C75,'Comp SINAPI PE 12-2023 Onerado'!$G$7:$K$7500,2,0))) -> Transporte Com Caminhão Basculante De 6 M³, Em Via Urbana Pavimentada, Dmt Até 30 Km (Unidade: M3Xkm). Af_07/2020 | E75: =LOWER(IF(K75="i",VLOOKUP(C75,'Ins SINAPI PE 12-2023 Onerado'!$A$8:$E$5189,3,0),VLOOKUP(C75,'Comp SINAPI PE 12-2023 Onerado'!$G$7:$K$7500,3,0))) -> m3xkm | F75: ='Memorial de cálculo'!H111 -> 0.315 | G75: =IF(I75="i",VLOOKUP(C75,'Ins SINAPI PE 12-2023 Onerado'!$A$8:$E$5189,5,0),VLOOKUP(C75,'Comp SINAPI PE 12-2023 Onerado'!$G$7:$K$7500,5,0)) -> 2.95 | H75: 0.93 | I75: ca | J75: 1260 | K75: 3717
B76: =B66 -> 3.1.1 | D76: MÃO DE OBRA | I76: ss
I77: x
B78: ='Planilha Orçamentária'!A25 -> 3.1.2 | C78: =VLOOKUP($B78,'Planilha Orçamentária'!$A$11:$I$479,3,) -> CPU.06 | D78: =VLOOKUP($B78,'Planilha Orçamentária'!$A$11:$I$479,4,) -> Corte de tronco e remoção de raiz | E78: =VLOOKUP($B78,'Planilha Orçamentária'!$A$11:$I$479,5,) -> un | H78: =H79+H80+H81+H89 -> 425.62 | I78: S
B79: =B78 -> 3.1.2 | D79: MATERIAL | H79: 0 | I79: SS
B80: =B78 -> 3.1.2 | D80: EQUIPAMENTOS | H80: 0 | I80: SS
B81: =B78 -> 3.1.2 | D81: SERVIÇOS | H81: =SUM(H82:H88) -> 425.62 | I81: SS
B82: SINAPI | C82: 98529 | D82: =PROPER(IF(K82="i",VLOOKUP(C82,'Ins SINAPI PE 12-2023 Onerado'!$A$8:$E$5189,2,0),VLOOKUP(C82,'Comp SINAPI PE 12-2023 Onerado'!$G$7:$K$7500,2,0))) -> Corte Raso E Recorte De Árvore Com Diâmetro De Tronco Maior Ou Igual A 0,20 M E Menor Que 0,40 M. Af_03/2024 | E82: =LOWER(IF(K82="i",VLOOKUP(C82,'Ins SINAPI PE 12-2023 Onerado'!$A$8:$E$5189,3,0),VLOOKUP(C82,'Comp SINAPI PE 12-2023 Onerado'!$G$7:$K$7500,3,0))) -> un | F82: 1 | G82: =IF(I82="i",VLOOKUP(C82,'Ins SINAPI PE 12-2023 Onerado'!$A$8:$E$5189,5,0),VLOOKUP(C82,'Comp SINAPI PE 12-2023 Onerado'!$G$7:$K$7500,5,0)) -> 68.42 | H82: =ROUND(F82*G82,2) -> 68.42 | I82: ca | J82: =F82*5 -> 5 | K82: =G82*J82 -> 342.1
B83: SINAPI | C83: 98526 | D83: =PROPER(IF(K83="i",VLOOKUP(C83,'Ins SINAPI PE 12-2023 Onerado'!$A$8:$E$5189,2,0),VLOOKUP(C83,'Comp SINAPI PE 12-2023 Onerado'!$G$7:$K$7500,2,0))) -> Remoção De Raízes Remanescentes De Tronco De Árvore Com Diâmetro Maior Ou Igual A 0,20 M E Menor Que 0,40 M. Af_03/2024 | E83: =LOWER(IF(K83="i",VLOOKUP(C83,'Ins SINAPI PE 12-2023 Onerado'!$A$8:$E$5189,3,0),VLOOKUP(C83,'Comp SINAPI PE 12-2023 Onerado'!$G$7:$K$7500,3,0))) -> un | F83: 1 | G83: =IF(I83="i",VLOOKUP(C83,'Ins SINAPI PE 12-2023 Onerado'!$A$8:$E$5189,5,0),VLOOKUP(C83,'Comp SINAPI PE 12-2023 Onerado'!$G$7:$K$7500,5,0)) -> 134.84 | H83: =ROUND(F83*G83,2) -> 134.84 | I83: ca | J83: =F83*5 -> 5 | K83: =G83*J83 -> 674.2
B84: CPU Hospedagem | C84: CODE | D84: Hospedagem | E84: un | F84: ='Memorial de cálculo'!D120 -> 0.3861 | G84: ='CPU HOSPEDAGEM'!C15 -> 100.1867083 | H84: 38.68 | I84: ca | J84: 1.9305 | K84: 193.4104404
B85: SICRO | C85: E9134 | D85: Miniônibus com capacidade para 30 passageiros - 111 Kw | E85: chp | F85: ='Memorial de cálculo'!H121 -> 0.205 | G85: =G72 -> 217.79 | H85: 44.65 | I85: ca | J85: 1.025 | K85: 223.23475
B86: SICRO | C86: E9134 | D86: Miniônibus com capacidade para 30 passageiros - 111 Kw | E86: chi | F86: ='Memorial de cálculo'!H124 -> 1.395 | G86: =G73 -> 74.24 | H86: 103.56 | I86: ca | J86: 6.975 | K86: 517.824
B87: SINAPI | C87: 97913 | D87: =PROPER(IF(K87="i",VLOOKUP(C87,'Ins SINAPI PE 12-2023 Onerado'!$A$8:$E$5189,2,0),VLOOKUP(C87,'Comp SINAPI PE 12-2023 Onerado'!$G$7:$K$7500,2,0))) -> Transporte Com Caminhão Basculante De 6 M³, Em Via Urbana Em Revestimento Primário (Unidade: M3Xkm). Af_07/2020 | E87: =LOWER(IF(K87="i",VLOOKUP(C87,'Ins SINAPI PE 12-2023 Onerado'!$A$8:$E$5189,3,0),VLOOKUP(C87,'Comp SINAPI PE 12-2023 Onerado'!$G$7:$K$7500,3,0))) -> m3xkm | F87: ='Memorial de cálculo'!H127 -> 5.5 | G87: =IF(I87="i",VLOOKUP(C87,'Ins SINAPI PE 12-2023 Onerado'!$A$8:$E$5189,5,0),VLOOKUP(C87,'Comp SINAPI PE 12-2023 Onerado'!$G$7:$K$7500,5,0)) -> 3.23 | H87: =ROUND(F87*G87,2) -> 17.77 | I87: ca | J87: 27.5 | K87: 88.825
B88: SINAPI | C88: 97914 | D88: =PROPER(IF(K88="i",VLOOKUP(C88,'Ins SINAPI PE 12-2023 Onerado'!$A$8:$E$5189,2,0),VLOOKUP(C88,'Comp SINAPI PE 12-2023 Onerado'!$G$7:$K$7500,2,0))) -> Transporte Com Caminhão Basculante De 6 M³, Em Via Urbana Pavimentada, Dmt Até 30 Km (Unidade: M3Xkm). Af_07/2020 | E88: =LOWER(IF(K88="i",VLOOKUP(C88,'Ins SINAPI PE 12-2023 Onerado'!$A$8:$E$5189,3,0),VLOOKUP(C88,'Comp SINAPI PE 12-2023 Onerado'!$G$7:$K$7500,3,0))) -> m3xkm | F88: ='Memorial de cálculo'!H130 -> 6 | G88: =IF(I88="i",VLOOKUP(C88,'Ins SINAPI PE 12-2023 Onerado'!$A$8:$E$5189,5,0),VLOOKUP(C88,'Comp SINAPI PE 12-2023 Onerado'!$G$7:$K$7500,5,0)) -> 2.95 | H88: =ROUND(F88*G88,2) -> 17.7 | I88: ca | J88: 30 | K88: 88.5
B89: =B78 -> 3.1.2 | D89: MÃO DE OBRA | I89: ss
I90: x
B91: 5.1.1 | C91: =VLOOKUP($B91,'Planilha Orçamentária'!$A$11:$I$479,3,) -> CPU.07 | D91: =VLOOKUP($B91,'Planilha Orçamentária'!$A$11:$I$479,4,) -> Demolição de argamassa | E91: =VLOOKUP($B91,'Planilha Orçamentária'!$A$11:$I$479,5,) -> m² | H91: =H92+H93+H94+H96 -> 26.57 | I91: S
B92: =B91 -> 5.1.1 | D92: MATERIAL | H92: 0 | I92: SS
B93: =B91 -> 5.1.1 | D93: EQUIPAMENTOS | H93: 0 | I93: SS
B94: =B91 -> 5.1.1 | D94: SERVIÇOS | H94: =SUM(H95:H95) -> 10.78 | I94: SS
B95: SINAPI | C95: 97631 | D95: =PROPER(IF(K95="i",VLOOKUP(C95,'Ins SINAPI PE 12-2023 Onerado'!$A$8:$E$5189,2,0),VLOOKUP(C95,'Comp SINAPI PE 12-2023 Onerado'!$G$7:$K$7500,2,0))) -> Demolição De Argamassas, De Forma Manual, Sem Reaproveitamento. Af_09/2023 | E95: =LOWER(IF(K95="i",VLOOKUP(C95,'Ins SINAPI PE 12-2023 Onerado'!$A$8:$E$5189,3,0),VLOOKUP(C95,'Comp SINAPI PE 12-2023 Onerado'!$G$7:$K$7500,3,0))) -> m2 | F95: 1 | G95: =IF(I95="i",VLOOKUP(C95,'Ins SINAPI PE 12-2023 Onerado'!$A$8:$E$5189,5,0),VLOOKUP(C95,'Comp SINAPI PE 12-2023 Onerado'!$G$7:$K$7500,5,0)) -> 10.78 | H95: =ROUND(F95*G95,2) -> 10.78 | I95: ca
B96: =B75 -> SINAPI | D96: MÃO DE OBRA | H96: =SUM(H97:H102) -> 15.79 | I96: ss
B97: CPU Hospedagem | C97: CODE | D97: Hospedagem | E97: un | F97: ='Memorial de cálculo'!D149 -> 0.0627875 | G97: ='CPU HOSPEDAGEM'!C15 -> 100.1867083 | H97: =ROUND(F97*G97,2) -> 6.29 | I97: ca
B98: SICRO | C98: E9134 | D98: Miniônibus com capacidade para 30 passageiros - 111 Kw | E98: chp | F98: ='Memorial de cálculo'!H150 -> 0.01257215007 | G98: =G85 -> 217.79 | H98: =ROUND(F98*G98,2) -> 2.74 | I98: ca
B99: SICRO | C99: E9134 | D99: Miniônibus com capacidade para 30 passageiros - 111 Kw | E99: chi | F99: ='Memorial de cálculo'!H153 -> 0.08555194805 | G99: =G86 -> 74.24 | H99: 6.35 | I99: ca
B100: SINAPI | C100: 97913 | D100: =PROPER(IF(K100="i",VLOOKUP(C100,'Ins SINAPI PE 12-2023 Onerado'!$A$8:$E$5189,2,0),VLOOKUP(C100,'Comp SINAPI PE 12-2023 Onerado'!$G$7:$K$7500,2,0))) -> Transporte Com Caminhão Basculante De 6 M³, Em Via Urbana Em Revestimento Primário (Unidade: M3Xkm). Af_07/2020 | E100: =LOWER(IF(K100="i",VLOOKUP(C100,'Ins SINAPI PE 12-2023 Onerado'!$A$8:$E$5189,3,0),VLOOKUP(C100,'Comp SINAPI PE 12-2023 Onerado'!$G$7:$K$7500,3,0))) -> m3xkm | F100: ='Memorial de cálculo'!H156 -> 0.033 | G100: =IF(I100="i",VLOOKUP(C100,'Ins SINAPI PE 12-2023 Onerado'!$A$8:$E$5189,5,0),VLOOKUP(C100,'Comp SINAPI PE 12-2023 Onerado'!$G$7:$K$7500,5,0)) -> 3.23 | H100: =ROUND(F100*G100,2) -> 0.11 | I100: ca
B101: SINAPI | C101: 97914 | D101: =PROPER(IF(K101="i",VLOOKUP(C101,'Ins SINAPI PE 12-2023 Onerado'!$A$8:$E$5189,2,0),VLOOKUP(C101,'Comp SINAPI PE 12-2023 Onerado'!$G$7:$K$7500,2,0))) -> Transporte Com Caminhão Basculante De 6 M³, Em Via Urbana Pavimentada, Dmt Até 30 Km (Unidade: M3Xkm). Af_07/2020 | E101: =LOWER(IF(K101="i",VLOOKUP(C101,'Ins SINAPI PE 12-2023 Onerado'!$A$8:$E$5189,3,0),VLOOKUP(C101,'Comp SINAPI PE 12-2023 Onerado'!$G$7:$K$7500,3,0))) -> m3xkm | F101: ='Memorial de cálculo'!H159 -> 0.09 | G101: =IF(I101="i",VLOOKUP(C101,'Ins SINAPI PE 12-2023 Onerado'!$A$8:$E$5189,5,0),VLOOKUP(C101,'Comp SINAPI PE 12-2023 Onerado'!$G$7:$K$7500,5,0)) -> 2.95 | H101: =ROUND(F101*G101,2) -> 0.27 | I101: ca
B102: SINAPI | C102: 100973 | D102: =PROPER(IF(K102="i",VLOOKUP(C102,'Ins SINAPI PE 12-2023 Onerado'!$A$8:$E$5189,2,0),VLOOKUP(C102,'Comp SINAPI PE 12-2023 Onerado'!$G$7:$K$7500,2,0))) -> Carga, Manobra E Descarga De Solos E Materiais Granulares Em Caminhão Basculante 6 M³ - Carga Com Pá Carregadeira (Caçamba De 1,7 A 2,8 M³ / 128 Hp) E Descarga Livre (Unidade: M3). Af_07/2020 | E102: =LOWER(IF(K102="i",VLOOKUP(C102,'Ins SINAPI PE 12-2023 Onerado'!$A$8:$E$5189,3,0),VLOOKUP(C102,'Comp SINAPI PE 12-2023 Onerado'!$G$7:$K$7500,3,0))) -> m3 | F102: ='Memorial de cálculo'!C158/1386 -> 0.003 | G102: =IF(I102="i",VLOOKUP(C102,'Ins SINAPI PE 12-2023 Onerado'!$A$8:$E$5189,5,0),VLOOKUP(C102,'Comp SINAPI PE 12-2023 Onerado'!$G$7:$K$7500,5,0)) -> 8.92 | H102: =ROUND(F102*G102,2) -> 0.03 | I102: ca
I103: x
B104: 5.1.2 | C104: =VLOOKUP($B104,'Planilha Orçamentária'!$A$11:$I$479,3,) -> CPU.08 | D104: =VLOOKUP($B104,'Planilha Orçamentária'!$A$11:$I$479,4,) -> Limpeza da superfície | E104: =VLOOKUP($B104,'Planilha Orçamentária'!$A$11:$I$479,5,) -> m² | H104: =H105+H106+H107+H109 -> 1.83 | I104: S
B105: =B104 -> 5.1.2 | D105: MATERIAL | H105: 0 | I105: SS
B106: =B104 -> 5.1.2 | D106: EQUIPAMENTOS | H106: 0 | I106: SS
B107: =B104 -> 5.1.2 | D107: SERVIÇOS | H107: =SUM(H108:H108) -> 1.83 | I107: SS
B108: SINAPI | C108: 99814 | D108: =PROPER(IF(K108="i",VLOOKUP(C108,'Ins SINAPI PE 12-2023 Onerado'!$A$8:$E$5189,2,0),VLOOKUP(C108,'Comp SINAPI PE 12-2023 Onerado'!$G$7:$K$7500,2,0))) -> Limpeza De Superfície Com Jato De Alta Pressão. Af_04/2019 | E108: =LOWER(IF(K108="i",VLOOKUP(C108,'Ins SINAPI PE 12-2023 Onerado'!$A$8:$E$5189,3,0),VLOOKUP(C108,'Comp SINAPI PE 12-2023 Onerado'!$G$7:$K$7500,3,0))) -> m2 | F108: 1 | G108: =IF(I108="i",VLOOKUP(C108,'Ins SINAPI PE 12-2023 Onerado'!$A$8:$E$5189,5,0),VLOOKUP(C108,'Comp SINAPI PE 12-2023 Onerado'!$G$7:$K$7500,5,0)) -> 1.83 | H108: =ROUND(F108*G108,2) -> 1.83 | I108: ca
B109: =B82 -> SINAPI | D109: MÃO DE OBRA | I109: ss
I110: x
B111: 5.1.3 | C111: =VLOOKUP($B111,'Planilha Orçamentária'!$A$11:$I$479,3,) -> CPU.09 | D111: =VLOOKUP($B111,'Planilha Orçamentária'!$A$11:$I$479,4,) -> Tratamento de fissuras com injeção de adesivo estrutural à base de resina epóxi de baixa viscosidade - fornecimento e aplicação mecanizada | E111: =VLOOKUP($B111,'Planilha Orçamentária'!$A$11:$I$479,5,) -> un | H111: =H112+H113+H114+H119 -> 5116.86 | I111: S
B112: =B111 -> 5.1.3 | D112: MATERIAL | H112: 0 | I112: SS
B113: =B111 -> 5.1.3 | D113: EQUIPAMENTOS | H113: 0 | I113: SS
B114: =B111 -> 5.1.3 | D114: SERVIÇOS | H114: =SUM(H115:H118) -> 5116.86 | I114: SS
B115: SICRO | C115: 4915645 | D115: Injeção de adesivo estrutural à base de resina epóxi de baixa viscosidade para tratamento de fissuras em estruturas de concreto - fornecimento e aplicação mecanizada | E115: kg | F115: ='Memorial de cálculo'!H176 -> 18.9 | G115: 223.9 | H115: =ROUND(F115*G115,2) -> 4231.71 | I115: ca
B116: CPU Hospedagem | C116: CODE | D116: Hospedagem | E116: un | F116: ='Memorial de cálculo'!D180 -> 7.0875 | G116: ='CPU HOSPEDAGEM'!C15 -> 100.1867083 | H116: =ROUND(F116*G116,2) -> 710.07 | I116: ca
B117: SICRO | C117: E9134 | D117: Miniônibus com capacidade para 30 passageiros - 111 Kw | E117: chp | F117: ='Memorial de cálculo'!H181 -> 0.24215625 | G117: =G98 -> 217.79 | H117: 52.74 | I117: ca
B118: SICRO | C118: E9134 | D118: Miniônibus com capacidade para 30 passageiros - 111 Kw | E118: chi | F118: ='Memorial de cálculo'!H184 -> 1.64784375 | G118: =G99 -> 74.24 | H118: 122.34 | I118: ca
B119: =B84 -> CPU Hospedagem | D119: MÃO DE OBRA | H119: 0 | I119: ss
I120: x
B121: 5.1.4 | C121: =VLOOKUP($B121,'Planilha Orçamentária'!$A$11:$I$479,3,) -> CPU.10 | D121: =VLOOKUP($B121,'Planilha Orçamentária'!$A$11:$I$479,4,) -> Chapisco, emboço e reboco | E121: =VLOOKUP($B121,'Planilha Orçamentária'!$A$11:$I$479,5,) -> m² | H121: =H122+H123+H124+H130 -> 189.35 | I121: S
B122: =B121 -> 5.1.4 | D122: MATERIAL | H122: 0 | I122: SS
B123: =B121 -> 5.1.4 | D123: EQUIPAMENTOS | H123: 0 | I123: SS
B124: =B121 -> 5.1.4 | D124: SERVIÇOS | H124: =SUM(H125:H129) -> 189.35 | I124: SS
B125: SINAPI | C125: 87313 | D125: =PROPER(IF(K125="i",VLOOKUP(C125,'Ins SINAPI PE 12-2023 Onerado'!$A$8:$E$5189,2,0),VLOOKUP(C125,'Comp SINAPI PE 12-2023 Onerado'!$G$7:$K$7500,2,0))) -> Argamassa Traço 1:3 (Em Volume De Cimento E Areia Grossa Úmida) Para Chapisco Convencional, Preparo Mecânico Com Betoneira 400 L. Af_08/2019 | E125: =LOWER(IF(K125="i",VLOOKUP(C125,'Ins SINAPI PE 12-2023 Onerado'!$A$8:$E$5189,3,0),VLOOKUP(C125,'Comp SINAPI PE 12-2023 Onerado'!$G$7:$K$7500,3,0))) -> m3 | F125: ='Memorial de cálculo'!H189/1386 -> 0.004 | G125: =IF(I125="i",VLOOKUP(C125,'Ins SINAPI PE 12-2023 Onerado'!$A$8:$E$5189,5,0),VLOOKUP(C125,'Comp SINAPI PE 12-2023 Onerado'!$G$7:$K$7500,5,0)) -> 537.99 | H125: 2.15 | I125: ca
B126: SINAPI | C126: 104261 | D126: =PROPER(IF(K126="i",VLOOKUP(C126,'Ins SINAPI PE 12-2023 Onerado'!$A$8:$E$5189,2,0),VLOOKUP(C126,'Comp SINAPI PE 12-2023 Onerado'!$G$7:$K$7500,2,0))) -> Emboço Ou Massa Única Em Argamassa Traço 1:2:8, Preparo Mecânico Com Betoneira 400 L, Aplicada Manualmente Em Superfícies Externas Da Sacada, Espessura De 50 Mm, Acesso Por Andaime, Sem Uso De Tela Metálica. Af_08/2022 | E126: =LOWER(IF(K126="i",VLOOKUP(C126,'Ins SINAPI PE 12-2023 Onerado'!$A$8:$E$5189,3,0),VLOOKUP(C126,'Comp SINAPI PE 12-2023 Onerado'!$G$7:$K$7500,3,0))) -> m2 | F126: ='Memorial de cálculo'!H203/1386 -> 1 | G126: =IF(I126="i",VLOOKUP(C126,'Ins SINAPI PE 12-2023 Onerado'!$A$8:$E$5189,5,0),VLOOKUP(C126,'Comp SINAPI PE 12-2023 Onerado'!$G$7:$K$7500,5,0)) -> 114.99 | H126: 114.99 | I126: ca
B127: CPU Hospedagem | C127: CODE | D127: Hospedagem | E127: un | F127: ='Memorial de cálculo'!D195+'Memorial de cálculo'!D209 -> 0.43084295 | G127: ='CPU HOSPEDAGEM'!C15 -> 100.1867083 | H127: 43.16 | I127: ca
B128: SICRO | C128: E9134 | D128: Miniônibus com capacidade para 30 passageiros - 111 Kw | E128: chp | F128: ='Memorial de cálculo'!H207*1.5 -> 0.05384375 | G128: =G117 -> 217.79 | H128: 11.73 | I128: ca
B129: SICRO | C129: E9134 | D129: Miniônibus com capacidade para 30 passageiros - 111 Kw | E129: chi | F129: ='Memorial de cálculo'!H207*6.5 -> 0.2333229167 | G129: =G118 -> 74.24 | H129: 17.32 | I129: ca
B130: =B104 -> 5.1.2 | D130: MÃO DE OBRA | H130: 0 | I130: ss
B132: 6.1.3 | C132: =VLOOKUP($B132,'Planilha Orçamentária'!$A$11:$I$479,3,) -> CPU.11 | D132: =VLOOKUP($B132,'Planilha Orçamentária'!$A$11:$I$479,4,) -> Concreto em buracos | E132: =VLOOKUP($B132,'Planilha Orçamentária'!$A$11:$I$479,5,) -> m² | H132: =H133+H134+H135+H140 -> 913.04 | I132: S
B133: =B132 -> 6.1.3 | D133: MATERIAL | H133: 0 | I133: SS
B134: =B132 -> 6.1.3 | D134: EQUIPAMENTOS | H134: 0 | I134: SS
B135: =B132 -> 6.1.3 | D135: SERVIÇOS | H135: =SUM(H136:H139) -> 913.04 | I135: SS
B136: SINAPI | C136: 103074 | D136: =PROPER(IF(K136="i",VLOOKUP(C136,'Ins SINAPI PE 12-2023 Onerado'!$A$8:$E$5189,2,0),VLOOKUP(C136,'Comp SINAPI PE 12-2023 Onerado'!$G$7:$K$7500,2,0))) -> Execução De Piso De Concreto, Sem Acabamento Superficial, Espessura De 15 Cm, Fck = 30 Mpa, Com Uso De Formas Em Madeira Serrada. Af_09/2021 | E136: =LOWER(IF(K136="i",VLOOKUP(C136,'Ins SINAPI PE 12-2023 Onerado'!$A$8:$E$5189,3,0),VLOOKUP(C136,'Comp SINAPI PE 12-2023 Onerado'!$G$7:$K$7500,3,0))) -> m2 | F136: 1 | G136: =IF(I136="i",VLOOKUP(C136,'Ins SINAPI PE 12-2023 Onerado'!$A$8:$E$5189,5,0),VLOOKUP(C136,'Comp SINAPI PE 12-2023 Onerado'!$G$7:$K$7500,5,0)) -> 161.7 | H136: =ROUND(F136*G136,2) -> 161.7 | I136: ca
B137: CPU Hospedagem | C137: CODE | D137: Hospedagem | E137: un | F137: ='Memorial de cálculo'!D255 -> 0.10275 | G137: ='CPU HOSPEDAGEM'!C15 -> 100.1867083 | H137: 10.29 | I137: ca
B138: SICRO | C138: E9134 | D138: Miniônibus com capacidade para 30 passageiros - 111 Kw | E138: chp | F138: ='Memorial de cálculo'!H256 -> 1.025 | G138: =G128 -> 217.79 | H138: 223.23 | I138: ca
B139: SICRO | C139: E9134 | D139: Miniônibus com capacidade para 30 passageiros - 111 Kw | E139: chi | F139: ='Memorial de cálculo'!H259 -> 6.975 | G139: =G129 -> 74.24 | H139: 517.82 | I139: ca
B140: =B114 -> 5.1.3 | D140: MÃO DE OBRA | H140: 0 | I140: ss
I141: x
B142: 6.1.4 | C142: =VLOOKUP($B142,'Planilha Orçamentária'!$A$11:$I$479,3,) -> CPU.12 | D142: =VLOOKUP($B142,'Planilha Orçamentária'!$A$11:$I$479,4,) -> Execução de contrapiso em argamassa | E142: =VLOOKUP($B142,'Planilha Orçamentária'!$A$11:$I$479,5,) -> m² | H142: =H143+H144+H145+H150 -> 65 | I142: S
B143: =B142 -> 6.1.4 | D143: MATERIAL | H143: 0 | I143: SS
B144: =B142 -> 6.1.4 | D144: EQUIPAMENTOS | H144: 0 | I144: SS
B145: =B142 -> 6.1.4 | D145: SERVIÇOS | H145: =SUM(H146:H149) -> 65 | I145: SS
B146: SINAPI | C146: 87640 | D146: =PROPER(IF(K146="i",VLOOKUP(C146,'Ins SINAPI PE 12-2023 Onerado'!$A$8:$E$5189,2,0),VLOOKUP(C146,'Comp SINAPI PE 12-2023 Onerado'!$G$7:$K$7500,2,0))) -> Contrapiso Em Argamassa Traço 1:4 (Cimento E Areia), Preparo Mecânico Com Betoneira 400 L, Aplicado Em Áreas Secas Sobre Laje, Aderido, Acabamento Não Reforçado, Espessura 4Cm. Af_07/2021 | E146: =LOWER(IF(K146="i",VLOOKUP(C146,'Ins SINAPI PE 12-2023 Onerado'!$A$8:$E$5189,3,0),VLOOKUP(C146,'Comp SINAPI PE 12-2023 Onerado'!$G$7:$K$7500,3,0))) -> m2 | F146: 1 | G146: =IF(I146="i",VLOOKUP(C146,'Ins SINAPI PE 12-2023 Onerado'!$A$8:$E$5189,5,0),VLOOKUP(C146,'Comp SINAPI PE 12-2023 Onerado'!$G$7:$K$7500,5,0)) -> 46.43 | H146: =ROUND(F146*G146,2) -> 46.43 | I146: ca
B147: CPU Hospedagem | C147: CODE | D147: Hospedagem | E147: un | F147: ='Memorial de cálculo'!D268 -> 0.050875 | G147: ='CPU HOSPEDAGEM'!C15 -> 100.1867083 | H147: 5.1 | I147: ca
B148: SICRO | C148: E9134 | D148: Miniônibus com capacidade para 30 passageiros - 111 Kw | E148: chp | F148: ='Memorial de cálculo'!H269 -> 0.01863636364 | G148: =G138 -> 217.79 | H148: 4.06 | I148: ca
B149: SICRO | C149: E9134 | D149: Miniônibus com capacidade para 30 passageiros - 111 Kw | E149: chi | F149: ='Memorial de cálculo'!H272 -> 0.1268181818 | G149: =G139 -> 74.24 | H149: 9.41 | I149: ca
B150: =B124 -> 5.1.4 | D150: MÃO DE OBRA | H150: 0 | I150: ss
I151: x
B152: 7.1.2 | C152: =VLOOKUP($B152,'Planilha Orçamentária'!$A$11:$I$479,3,) -> CPU.13 | D152: =VLOOKUP($B152,'Planilha Orçamentária'!$A$11:$I$479,4,) -> Injeção de adesivo estrutural à base de resina epóxi de baixa viscosidade para tratamento de fissuras em estruturas de concreto - fornecimento e aplicação mecanizada | E152: =VLOOKUP($B152,'Planilha Orçamentária'!$A$11:$I$479,5,) -> un | H152: =H153+H154+H155+H160 -> 2664.24 | I152: S
B153: =B152 -> 7.1.2 | D153: MATERIAL | H153: 0 | I153: SS
B154: =B152 -> 7.1.2 | D154: EQUIPAMENTOS | H154: 0 | I154: SS
B155: =B152 -> 7.1.2 | D155: SERVIÇOS | H155: =SUM(H156:H159) -> 2664.24 | I155: SS
B156: SICRO | C156: 4915645 | D156: Injeção de adesivo estrutural à base de resina epóxi de baixa viscosidade para tratamento de fissuras em estruturas de concreto - fornecimento e aplicação mecanizada | E156: kg | F156: ='Memorial de cálculo'!H288 -> 5 | G156: =G115 -> 223.9 | H156: =ROUND(F156*G156,2) -> 1119.5 | I156: ca
B157: CPU Hospedagem | C157: CODE | D157: Hospedagem | E157: un | F157: ='Memorial de cálculo'!D292 -> 0.625 | G157: ='CPU HOSPEDAGEM'!C15 -> 100.1867083 | H157: 62.62 | I157: ca
B158: SICRO | C158: E9134 | D158: Miniônibus com capacidade para 30 passageiros - 111 Kw | E158: chp | F158: ='Memorial de cálculo'!H293 -> 2.05 | G158: =G148 -> 217.79 | H158: 446.47 | I158: ca | J158: Considerando 1h30min ida e volta Floresta-Barragem
B159: SICRO | C159: E9134 | D159: Miniônibus com capacidade para 30 passageiros - 111 Kw | E159: chi | F159: ='Memorial de cálculo'!H296 -> 13.95 | G159: =G149 -> 74.24 | H159: 1035.65 | I159: ca
B160: =B134 -> 6.1.3 | D160: MÃO DE OBRA | H160: 0 | I160: ss
I161: x
B162: 8.2.1 | C162: =VLOOKUP($B162,'Planilha Orçamentária'!$A$11:$I$479,3,) -> CPU.14 | D162: =VLOOKUP($B162,'Planilha Orçamentária'!$A$11:$I$479,4,) -> Instalação de mourões para medida de cota d’água | E162: =VLOOKUP($B162,'Planilha Orçamentária'!$A$11:$I$479,5,) -> un | H162: =SUM(H163,H166,H167,H174) -> 388.25 | I162: s
B163: =B162 -> 8.2.1 | D163: MATERIAL | H163: =H164+H165 -> 219.54 | I163: ss
B164: 2024-05-01 | C164: COTAÇÃO | D164: RÉGUA LINIMÉTRICA PADRÃO “ANA”, AÇO CARBONO - 2 X 70 X 1000MM | E164: un | F164: 1 | G164: =Cotações!M22 -> 169 | H164: =ROUND(F164*G164,2) -> 169 | I164: ca
B165: SINAPI | C165: 2747 | D165: =IF(I165="i",VLOOKUP(C165,'Ins SINAPI PE 12-2023 Onerado'!$A$8:$E$5189,2,0),VLOOKUP(C165,'Comp SINAPI PE 12-2023 Onerado'!$G$7:$K$7500,2,0)) -> MOURAO ROLICO DE MADEIRA TRATADA, D = 16 A 20 CM, H = 2,20 M, EM EUCALIPTO OU EQUIVALENTE DA REGIAO (PARA CERCA) | E165: =IF(I165="i",VLOOKUP(C165,'Ins SINAPI PE 12-2023 Onerado'!$A$8:$E$5189,3,0),VLOOKUP(C165,'Comp SINAPI PE 12-2023 Onerado'!$G$7:$K$7500,3,0)) -> M | F165: 1.5 | G165: =IF(I165="i",VLOOKUP(C165,'Ins SINAPI PE 12-2023 Onerado'!$A$8:$E$5189,5,0),VLOOKUP(C165,'Comp SINAPI PE 12-2023 Onerado'!$G$7:$K$7500,5,0)) -> 33.69 | H165: =ROUND(F165*G165,2) -> 50.54 | I165: i
B166: =B162 -> 8.2.1 | D166: EQUIPAMENTOS | H166: 0 | I166: ss
B167: =B162 -> 8.2.1 | D167: SERVIÇOS | H167: =SUM(H168:H173) -> 111.34 | I167: ss
B168: SINAPI | C168: 94975 | D168: =IF(I168="i",VLOOKUP(C168,'Ins SINAPI PE 12-2023 Onerado'!$A$8:$E$5189,2,0),VLOOKUP(C168,'Comp SINAPI PE 12-2023 Onerado'!$G$7:$K$7500,2,0)) -> CONCRETO FCK = 15MPA, TRAÇO 1:3,4:3,5 (EM MASSA SECA DE CIMENTO/ AREIA MÉDIA/ BRITA 1) - PREPARO MANUAL. AF_05/2021 | E168: =IF(I168="i",VLOOKUP(C168,'Ins SINAPI PE 12-2023 Onerado'!$A$8:$E$5189,3,0),VLOOKUP(C168,'Comp SINAPI PE 12-2023 Onerado'!$G$7:$K$7500,3,0)) -> M3 | F168: =0.014 -> 0.014 | G168: =IF(I168="i",VLOOKUP(C168,'Ins SINAPI PE 12-2023 Onerado'!$A$8:$E$5189,5,0),VLOOKUP(C168,'Comp SINAPI PE 12-2023 Onerado'!$G$7:$K$7500,5,0)) -> 479.76 | H168: =ROUND(F168*G168,2) -> 6.72 | I168: ca
B169: CPU Hospedagem | C169: CODE | D169: Hospedagem | E169: un | F169: ='Memorial de cálculo'!D304 -> 0.3 | G169: ='CPU HOSPEDAGEM'!C15 -> 100.1867083 | H169: =ROUND(F169*G169,2) -> 30.06 | I169: ca
B170: SICRO | C170: E9134 | D170: Miniônibus com capacidade para 30 passageiros - 111 Kw | E170: chp | F170: ='Memorial de cálculo'!H305 -> 0.1025 | G170: =G158 -> 217.79 | H170: 22.32 | I170: ca
B171: SICRO | C171: E9134 | D171: Miniônibus com capacidade para 30 passageiros - 111 Kw | E171: chi | F171: ='Memorial de cálculo'!H308 -> 0.6975 | G171: =G159 -> 74.24 | H171: 51.78 | I171: ca
B172: SINAPI | C172: 100946 | D172: TRANSPORTE COM CAMINHÃO CARROCERIA 9T, EM VIA URBANA EM REVESTIMENTO PRIMÁRIO (UNIDADE: TXKM). AF_07/2020 | E172: =IF(I172="i",VLOOKUP(C172,'Ins SINAPI PE 12-2023 Onerado'!$A$8:$E$5189,3,0),VLOOKUP(C172,'Comp SINAPI PE 12-2023 Onerado'!$G$7:$K$7500,3,0)) -> TXKM | F172: ='Memorial de cálculo'!H311 -> 0.055 | G172: =IF(I172="i",VLOOKUP(C172,'Ins SINAPI PE 12-2023 Onerado'!$A$8:$E$5189,5,0),VLOOKUP(C172,'Comp SINAPI PE 12-2023 Onerado'!$G$7:$K$7500,5,0)) -> 2.42 | H172: 0.13 | I172: ca | J172: =F172*28.5 -> 1.5675 | K172: =G172*J172 -> 3.79335
B173: SINAPI | C173: 100947 | D173: TRANSPORTE COM CAMINHÃO CARROCERIA 9T, EM VIA URBANA PAVIMENTADA, DMT ATÉ 30KM (UNIDADE: TXKM). AF_07/2020 | E173: =IF(I173="i",VLOOKUP(C173,'Ins SINAPI PE 12-2023 Onerado'!$A$8:$E$5189,3,0),VLOOKUP(C173,'Comp SINAPI PE 12-2023 Onerado'!$G$7:$K$7500,3,0)) -> TXKM | F173: ='Memorial de cálculo'!H314 -> 0.15 | G173: =IF(I173="i",VLOOKUP(C173,'Ins SINAPI PE 12-2023 Onerado'!$A$8:$E$5189,5,0),VLOOKUP(C173,'Comp SINAPI PE 12-2023 Onerado'!$G$7:$K$7500,5,0)) -> 2.23 | H173: 0.33 | I173: ca | J173: 4.275 | K173: 9.53325
B174: =B162 -> 8.2.1 | D174: MÃO DE OBRA | H174: =SUM(H175:H177) -> 57.37 | I174: mdo
B175: SINAPI | C175: 90781 | D175: =IF(I175="i",VLOOKUP(C175,'Ins SINAPI PE 12-2023 Onerado'!$A$8:$E$5189,2,0),VLOOKUP(C175,'Comp SINAPI PE 12-2023 Onerado'!$G$7:$K$7500,2,0)) -> TOPOGRAFO COM ENCARGOS COMPLEMENTARES | E175: =IF(I175="i",VLOOKUP(C175,'Ins SINAPI PE 12-2023 Onerado'!$A$8:$E$5189,3,0),VLOOKUP(C175,'Comp SINAPI PE 12-2023 Onerado'!$G$7:$K$7500,3,0)) -> H | F175: =8/10 -> 0.8 | G175: =IF(I175="i",VLOOKUP(C175,'Ins SINAPI PE 12-2023 Onerado'!$A$8:$E$5189,5,0),VLOOKUP(C175,'Comp SINAPI PE 12-2023 Onerado'!$G$7:$K$7500,5,0)) -> 31.15 | H175: =ROUND(F175*G175,2) -> 24.92 | I175: ca
B176: SINAPI | C176: 88316 | D176: =IF(I178="i",VLOOKUP(C176,'Ins SINAPI PE 12-2023 Onerado'!$A$8:$E$5189,2,0),VLOOKUP(C176,'Comp SINAPI PE 12-2023 Onerado'!$G$7:$K$7500,2,0)) -> SERVENTE COM ENCARGOS COMPLEMENTARES | E176: =IF(I178="i",VLOOKUP(C176,'Ins SINAPI PE 12-2023 Onerado'!$A$8:$E$5189,3,0),VLOOKUP(C176,'Comp SINAPI PE 12-2023 Onerado'!$G$7:$K$7500,3,0)) -> H | F176: =16/10 -> 1.6 | G176: =IF(I176="i",VLOOKUP(C176,'Ins SINAPI PE 12-2023 Onerado'!$A$8:$E$5189,5,0),VLOOKUP(C176,'Comp SINAPI PE 12-2023 Onerado'!$G$7:$K$7500,5,0)) -> 20.28 | H176: =ROUND(F176*G176,2) -> 32.45 | I176: ca

Sheet Planilha1

Sheet CPU DES (hidden)
B1: Ministério da Integração e do Desenvolvimento Regional
B2: Companhia de Desenvolvimento dos Vales do São Francisco e do Parnaíba
B4: COMPOSIÇÕES DE PREÇOS UNITÁRIOS - ORÇAMENTO DESONERADO
B5: OBRA: | C5: SERVIÇOS DE MANUTENÇÃO E OBRAS CIVIS NA ESTRUTURA DA BARRAGEM E EQUIPAMENTO HIDROMECÂNICO | F5: BDI (serv.): | G5: ='BDI serv Desonerado'!D22 -> 0.3351
B6: LOCAL: | C6: BARRAGEM POÇO DO MAGRO, GUANAMBI/BA | F6: BDI (forn.): | G6: ='BDI forn Desonerado'!D22 -> 0.212
B7: DATA BASE: | C7: 2023-05-01
B8: PRAZO: | C8: 120 DIAS
B10: REFERÊNCIA | C10: CÓDIGO | D10: DESCRIÇÃO | E10: UNIDADE | F10: ÍNDICE | G10: CUSTO UNITÁRIO | H10: PREÇO TOTAL
B11: ='Planilha Orçamentária Desoner'!A12 -> 1.1 | C11: =VLOOKUP($B11,'Planilha Orçamentária Desoner'!$A$11:$I$504,3,) -> CPU.01 | D11: =VLOOKUP($B11,'Planilha Orçamentária Desoner'!$A$11:$I$504,4,) -> ADMINISTRAÇÃO LOCAL | E11: un | H11: =SUM(H15,H14,H13,H12) -> 7834.22 | I11: S
B12: =B11 -> 1.1 | D12: MATERIAL | I12: ss
B13: =B11 -> 1.1 | D13: EQUIPAMENTOS | H13: 0 | I13: ss
B14: =B11 -> 1.1 | D14: SERVIÇOS | I14: ss
B15: =B11 -> 1.1 | D15: MÃO DE OBRA | H15: =SUM(H16:H17) -> 7834.22 | I15: mdo
B16: SINAPI | C16: 90778 | D16: =PROPER(IF(I16="i",VLOOKUP(C16,'Ins SINAPI BA 05-2023 Desoner'!$A$8:$E$5189,2,0),VLOOKUP(C16,'Comp SINAPI BA 05-2023 Desoner'!$G$7:$K$7500,2,0))) -> Engenheiro Civil De Obra Pleno Com Encargos Complementares | E16: =LOWER(IF(I16="i",VLOOKUP(C16,'Ins SINAPI BA 05-2023 Desoner'!$A$8:$E$5189,3,0),VLOOKUP(C16,'Comp SINAPI BA 05-2023 Desoner'!$G$7:$K$7500,3,0))) -> h | F16: =CPU!F16 -> 30 | G16: =IF(I16="i",VLOOKUP(C16,'Ins SINAPI BA 05-2023 Desoner'!$A$8:$E$5189,5,0),VLOOKUP(C16,'Comp SINAPI BA 05-2023 Desoner'!$G$7:$K$7500,5,0)) -> 111.26 | H16: =ROUND(F16*G16,2) -> 3337.8 | I16: ca
B17: SINAPI | C17: 93572 | D17: =PROPER(IF(I17="i",VLOOKUP(C17,'Ins SINAPI BA 05-2023 Desoner'!$A$8:$E$5189,2,0),VLOOKUP(C17,'Comp SINAPI BA 05-2023 Desoner'!$G$7:$K$7500,2,0))) -> Encarregado Geral De Obras Com Encargos Complementares | E17: =LOWER(IF(I17="i",VLOOKUP(C17,'Ins SINAPI BA 05-2023 Desoner'!$A$8:$E$5189,3,0),VLOOKUP(C17,'Comp SINAPI BA 05-2023 Desoner'!$G$7:$K$7500,3,0))) -> mes | F17: =CPU!F17 -> 0.8 | G17: =IF(I17="i",VLOOKUP(C17,'Ins SINAPI BA 05-2023 Desoner'!$A$8:$E$5189,5,0),VLOOKUP(C17,'Comp SINAPI BA 05-2023 Desoner'!$G$7:$K$7500,5,0)) -> 5620.52 | H17: =ROUND(F17*G17,2) -> 4496.42 | I17: ca
I18: x
B19: ='Planilha Orçamentária Desoner'!A22 -> 2.2.1 | C19: =VLOOKUP($B19,'Planilha Orçamentária Desoner'!$A$11:$I$504,3,) -> CPU.02 | D19: =VLOOKUP($B19,'Planilha Orçamentária Desoner'!$A$11:$I$504,4,) -> PLACA DE OBRA EM CHAPA DE ACO GALVANIZADO | E19: m² | H19: =SUM(H20,H28,H26,H27) -> 440.1 | I19: S
B20: =B19 -> 2.2.1 | D20: MATERIAL | H20: =SUM(H21:H25) -> 373.64 | I20: SS
B21: SINAPI | C21: 4417 | D21: =PROPER(IF(I21="i",VLOOKUP(C21,'Ins SINAPI BA 05-2023 Desoner'!$A$8:$E$5189,2,0),VLOOKUP(C21,'Comp SINAPI BA 05-2023 Desoner'!$G$7:$K$7500,2,0))) -> Sarrafo Nao Aparelhado *2,5 X 7* Cm, Em Macaranduba, Angelim Ou Equivalente Da Regiao - Bruta | E21: =LOWER(IF(I21="i",VLOOKUP(C21,'Ins SINAPI BA 05-2023 Desoner'!$A$8:$E$5189,3,0),VLOOKUP(C21,'Comp SINAPI BA 05-2023 Desoner'!$G$7:$K$7500,3,0))) -> m | F21: =CPU!F50 -> 2 | G21: =IF(I21="i",VLOOKUP(C21,'Ins SINAPI BA 05-2023 Desoner'!$A$8:$E$5189,5,0),VLOOKUP(C21,'Comp SINAPI BA 05-2023 Desoner'!$G$7:$K$7500,5,0)) -> 7.18 | H21: =ROUND(F21*G21,2) -> 14.36 | I21: i
B22: SINAPI | C22: 4430 | D22: =PROPER(IF(I22="i",VLOOKUP(C22,'Ins SINAPI BA 05-2023 Desoner'!$A$8:$E$5189,2,0),VLOOKUP(C22,'Comp SINAPI BA 05-2023 Desoner'!$G$7:$K$7500,2,0))) -> Caibro Nao Aparelhado *5 X 6* Cm, Em Macaranduba, Angelim Ou Equivalente Da Regiao - Bruta | E22: =LOWER(IF(I22="i",VLOOKUP(C22,'Ins SINAPI BA 05-2023 Desoner'!$A$8:$E$5189,3,0),VLOOKUP(C22,'Comp SINAPI BA 05-2023 Desoner'!$G$7:$K$7500,3,0))) -> m | F22: =CPU!F51 -> 4 | G22: =IF(I22="i",VLOOKUP(C22,'Ins SINAPI BA 05-2023 Desoner'!$A$8:$E$5189,5,0),VLOOKUP(C22,'Comp SINAPI BA 05-2023 Desoner'!$G$7:$K$7500,5,0)) -> 13.2 | H22: =ROUND(F22*G22,2) -> 52.8 | I22: I
B23: SINAPI | C23: 4813 | D23: =PROPER(IF(I23="i",VLOOKUP(C23,'Ins SINAPI BA 05-2023 Desoner'!$A$8:$E$5189,2,0),VLOOKUP(C23,'Comp SINAPI BA 05-2023 Desoner'!$G$7:$K$7500,2,0))) -> Placa De Obra (Para Construcao Civil) Em Chapa Galvanizada *N. 22*, Adesivada, De *2,4 X 1,2* M (Sem Postes Para Fixacao) | E23: =LOWER(IF(I23="i",VLOOKUP(C23,'Ins SINAPI BA 05-2023 Desoner'!$A$8:$E$5189,3,0),VLOOKUP(C23,'Comp SINAPI BA 05-2023 Desoner'!$G$7:$K$7500,3,0))) -> m2 | F23: =CPU!F52 -> 1 | G23: =IF(I23="i",VLOOKUP(C23,'Ins SINAPI BA 05-2023 Desoner'!$A$8:$E$5189,5,0),VLOOKUP(C23,'Comp SINAPI BA 05-2023 Desoner'!$G$7:$K$7500,5,0)) -> 300 | H23: =ROUND(F23*G23,2) -> 300 | I23: I
B24: SINAPI | C24: 5075 | D24: =PROPER(IF(I24="i",VLOOKUP(C24,'Ins SINAPI BA 05-2023 Desoner'!$A$8:$E$5189,2,0),VLOOKUP(C24,'Comp SINAPI BA 05-2023 Desoner'!$G$7:$K$7500,2,0))) -> Prego De Aco Polido Com Cabeca 18 X 30 (2 3/4 X 10) | E24: =LOWER(IF(I24="i",VLOOKUP(C24,'Ins SINAPI BA 05-2023 Desoner'!$A$8:$E$5189,3,0),VLOOKUP(C24,'Comp SINAPI BA 05-2023 Desoner'!$G$7:$K$7500,3,0))) -> kg | F24: =CPU!F53 -> 0.11 | G24: =IF(I24="i",VLOOKUP(C24,'Ins SINAPI BA 05-2023 Desoner'!$A$8:$E$5189,5,0),VLOOKUP(C24,'Comp SINAPI BA 05-2023 Desoner'!$G$7:$K$7500,5,0)) -> 20.6 | H24: =ROUND(F24*G24,2) -> 2.27 | I24: I
B25: SINAPI | C25: 94962 | D25: =PROPER(IF(I25="i",VLOOKUP(C25,'Ins SINAPI BA 05-2023 Desoner'!$A$8:$E$5189,2,0),VLOOKUP(C25,'Comp SINAPI BA 05-2023 Desoner'!$G$7:$K$7500,2,0))) -> Concreto Magro Para Lastro, Traço 1:4,5:4,5 (Em Massa Seca De Cimento/ Areia Média/ Brita 1) - Preparo Mecânico Com Betoneira 400 L. Af_05/2021 | E25: =LOWER(IF(I25="i",VLOOKUP(C25,'Ins SINAPI BA 05-2023 Desoner'!$A$8:$E$5189,3,0),VLOOKUP(C25,'Comp SINAPI BA 05-2023 Desoner'!$G$7:$K$7500,3,0))) -> m3 | F25: =CPU!F54 -> 0.01 | G25: =IF(I25="i",VLOOKUP(C25,'Ins SINAPI BA 05-2023 Desoner'!$A$8:$E$5189,5,0),VLOOKUP(C25,'Comp SINAPI BA 05-2023 Desoner'!$G$7:$K$7500,5,0)) -> 421.32 | H25: =ROUND(F25*G25,2) -> 4.21 | I25: ca
B26: =B19 -> 2.2.1 | D26: EQUIPAMENTOS | H26: 0 | I26: SS
B27: =B19 -> 2.2.1 | D27: SERVIÇOS | H27: 0 | I27: SS
B28: =B19 -> 2.2.1 | D28: MÃO DE OBRA | H28: =SUM(H29:H30) -> 66.46 | I28: ss
B29: SINAPI | C29: 88262 | D29: =PROPER(IF(I29="i",VLOOKUP(C29,'Ins SINAPI BA 05-2023 Desoner'!$A$8:$E$5189,2,0),VLOOKUP(C29,'Comp SINAPI BA 05-2023 Desoner'!$G$7:$K$7500,2,0))) -> Carpinteiro De Formas Com Encargos Complementares | E29: =LOWER(IF(I29="i",VLOOKUP(C29,'Ins SINAPI BA 05-2023 Desoner'!$A$8:$E$5189,3,0),VLOOKUP(C29,'Comp SINAPI BA 05-2023 Desoner'!$G$7:$K$7500,3,0))) -> h | F29: =CPU!F63 -> 1 | G29: =IF(I29="i",VLOOKUP(C29,'Ins SINAPI BA 05-2023 Desoner'!$A$8:$E$5189,5,0),VLOOKUP(C29,'Comp SINAPI BA 05-2023 Desoner'!$G$7:$K$7500,5,0)) -> 27.16 | H29: =ROUND(F29*G29,2) -> 27.16 | I29: ca
B30: SINAPI | C30: 88316 | D30: =PROPER(IF(I30="i",VLOOKUP(C30,'Ins SINAPI BA 05-2023 Desoner'!$A$8:$E$5189,2,0),VLOOKUP(C30,'Comp SINAPI BA 05-2023 Desoner'!$G$7:$K$7500,2,0))) -> Servente Com Encargos Complementares | E30: =LOWER(IF(I30="i",VLOOKUP(C30,'Ins SINAPI BA 05-2023 Desoner'!$A$8:$E$5189,3,0),VLOOKUP(C30,'Comp SINAPI BA 05-2023 Desoner'!$G$7:$K$7500,3,0))) -> h | F30: =CPU!F64 -> 2 | G30: =IF(I30="i",VLOOKUP(C30,'Ins SINAPI BA 05-2023 Desoner'!$A$8:$E$5189,5,0),VLOOKUP(C30,'Comp SINAPI BA 05-2023 Desoner'!$G$7:$K$7500,5,0)) -> 19.65 | H30: =ROUND(F30*G30,2) -> 39.3 | I30: ca
B32: ='Planilha Orçamentária Desoner'!A33 -> 4.1.1 | C32: =VLOOKUP($B32,'Planilha Orçamentária Desoner'!$A$11:$I$504,3,) -> CPU.03 | D32: =VLOOKUP($B32,'Planilha Orçamentária Desoner'!$A$11:$I$504,4,) -> Mobilização da Equipe, Camara Hiperbarica e todos os equipamentos de mergulho envolvidos na operação | E32: un | F32: 1 | H32: =SUM(H33,H35,H37) ->  | I32: S
B33: =B32 -> 4.1.1 | D33: MATERIAL | H33: 0 | I33: ss
B34: =B32 -> 4.1.1 | D34: EQUIPAMENTOS | H34: 0 | I34: ss
B35: =B32 -> 4.1.1 | D35: SERVIÇOS | H35: =H36 ->  | I35: ss
B36: COTAÇÃO | C36: 2023-05-01 | D36: Mobilização e desmobilização da Equipe, Camara Hiperbarica e todos os equipamentos de mergulho envolvidos na operação | E36: un | F36: =CPU!#REF! ->  | G36: =2*(21000+22000+19400)/3 -> 41600 | H36: =ROUND(F36*G36,2) ->  | I36: ca
B37: =B32 -> 4.1.1 | D37: MÃO DE OBRA | H37: 0 | I37: ss
I38: x
B39: ='Planilha Orçamentária Desoner'!A36 -> 4.2.1 | C39: =VLOOKUP($B39,'Planilha Orçamentária Desoner'!$A$11:$I$504,3,) -> CPU.04 | D39: =VLOOKUP($B39,'Planilha Orçamentária Desoner'!$A$11:$I$504,4,) -> Vedação da entrada da tomada d’água com chapas metálicas | E39: un | F39: 1 | H39: =SUM(H40,H51,H53,H56) ->  | I39: S
B40: =B39 -> 4.2.1 | D40: MATERIAL | H40: =SUM(H41:H50) ->  | I40: ss
B41: CODEVASF | C41: DP | D41: DIÁRIA | E41: dia | F41: =CPU!#REF! ->  | G41: 305.1 | H41: =ROUND(F41*G41,2) -> 
B42: SICRO | C42: E9043 | D42: Embarcação de alumínio com comprimento de 6 m e motor de popa - 18,60 kW | E42: h | F42: =CPU!#REF! ->  | G42: 66.1577 | H42: =ROUND(F42*G42,2) -> 
B43: SICRO | C43: 2408149 | D43: Estrutura em chapa de aço ASTM A36 corte, solda e montagem - fornecimento e instalação | E43: kg | F43: =CPU!#REF! ->  | G43: 14.84 | H43: =ROUND(F43*G43,2) -> 
B44: SICRO | C44: E9243 | D44: Câmara hiperbárica com filtro, serpentina e reservatório de ar para mergulho raso - D= 1,80 m e H = 2,22 m. | E44: h | F44: =CPU!#REF! ->  | G44: 58.3517 | H44: =ROUND(F44*G44,2) -> 
B45: SICRO | C45: E9245 | D45: Estação transmissora de superfície para comunicação com fio | E45: h | F45: =CPU!#REF! ->  | G45: 0.7428
B46: SICRO | C46: E9242 | D46: Estação transmissora de superfície para televisionamento | E46: h | F46: =CPU!#REF! ->  | G46: 1.3333
B47: SICRO | C47: E9066 | D47: Grupo gerador - 14 kVA | E47: h | F47: =CPU!#REF! ->  | G47: 19.3801
B48: SICRO | C48: E9246 | D48: Painel de controle de ar com manômetros e pneufatômetros | E48: h | F48: =CPU!#REF! ->  | G48: 1.4255
B49: SICRO | C49: E9248 | D49: Sistema de ar comprimido para mergulho até 30 m com pressão de trabalho de 1,4 MPa - 7,46 kW | E49: h | F49: =CPU!#REF! ->  | G49: 15.0543
B50: SICRO | C50: E9058 | D50: Plataforma flutuante de 12 x 24 x 1,8 m com capacidade de 150 t | E50: h | F50: =CPU!#REF! ->  | G50: 40.3012 | H50: =ROUND(F50*G50,2) -> 
B51: =B39 -> 4.2.1 | D51: EQUIPAMENTOS | H51: =SUM(H52) ->  | I51: ss
B52: CODEVASF | D52: CAMINHONETE | E52: mes | F52: =CPU!#REF! ->  | G52: 5885.33 | H52: =ROUND(F52*G52,2) ->  | I52: I
B53: =B39 -> 4.2.1 | D53: SERVIÇOS | H53: =SUM(H54:H55) ->  | I53: ss
B54: SICRO | C54: 3807863 | D54: Chumbador para concreto D = 12,5 mm tipo tecbolt - fornecimento e instalação | E54: un | F54: =CPU!#REF! ->  | G54: 13.2 | H54: =ROUND(F54*G54,2) -> 
B55: SICRO | C55: 4915639 | D55: Limpeza em superfície de concreto com escova de aço | E55: m² | F55: =CPU!#REF! ->  | G55: 3.77 | H55: =ROUND(F55*G55,2) -> 
B56: =B39 -> 4.2.1 | D56: MÃO DE OBRA | H56: =SUM(H57:H59) ->  | I56: ss
B57: SICRO | C57: P9926 | D57: Mergulhador raso auxiliar de superfície | E57: h | F57: =CPU!#REF! ->  | G57: 28.2203 | H57: =ROUND(F57*G57,2) -> 
B58: EMBASA | C58: B010000113 | D58: MERGULHADOR PROFISSIONAL | E58: h | F58: =CPU!#REF! ->  | G58: 76.19 | H58: =ROUND(F58*G58,2) -> 
B59: SICRO | C59: P9922 | D59: Mergulhador raso dependente de emergência | E59: h | F59: =CPU!#REF! ->  | G59: 31.5522
B61: ='Planilha Orçamentária Desoner'!A37 -> 4.2.2 | C61: =VLOOKUP($B61,'Planilha Orçamentária Desoner'!$A$11:$I$504,3,) -> CPU.05 | D61: =VLOOKUP($B61,'Planilha Orçamentária Desoner'!$A$11:$I$504,4,) -> Remoção da vedação da entrada da tomada d’água com chapas metálicas | E61: un | F61: 1 | H61: =SUM(H62,H72,H74,H75) ->  | I61: S
B62: =B61 -> 4.2.2 | D62: MATERIAL | H62: =SUM(H63:H71) ->  | I62: ss
B63: CODEVASF | C63: DP | D63: DIÁRIA | E63: dia | F63: =CPU!#REF! ->  | G63: 305.1 | H63: =ROUND(F63*G63,2) -> 
B64: SICRO | C64: E9043 | D64: Embarcação de alumínio com comprimento de 6 m e motor de popa - 18,60 kW | E64: h | F64: =CPU!#REF! ->  | G64: 66.1577 | H64: =ROUND(F64*G64,2) -> 
B65: SICRO | C65: E9243 | D65: Câmara hiperbárica com filtro, serpentina e reservatório de ar para mergulho raso - D= 1,80 m e H = 2,22 m. | E65: h | F65: =CPU!#REF! ->  | G65: 58.3517 | H65: =ROUND(F65*G65,2) -> 
B66: SICRO | C66: E9245 | D66: Estação transmissora de superfície para comunicação com fio | E66: h | F66: =CPU!#REF! ->  | G66: 0.7428
B67: SICRO | C67: E9242 | D67: Estação transmissora de superfície para televisionamento | E67: h | F67: =CPU!#REF! ->  | G67: 1.3333
B68: SICRO | C68: E9066 | D68: Grupo gerador - 14 kVA | E68: h | F68: =CPU!#REF! ->  | G68: 19.3801
B69: SICRO | C69: E9246 | D69: Painel de controle de ar com manômetros e pneufatômetros | E69: h | F69: =CPU!#REF! ->  | G69: 1.4255
B70: SICRO | C70: E9248 | D70: Sistema de ar comprimido para mergulho até 30 m com pressão de trabalho de 1,4 MPa - 7,46 kW | E70: h | F70: =CPU!#REF! ->  | G70: 15.0543
B71: SICRO | C71: E9058 | D71: Plataforma flutuante de 12 x 24 x 1,8 m com capacidade de 150 t | E71: h | F71: =CPU!#REF! ->  | G71: 40.3012 | H71: =ROUND(F71*G71,2) -> 
B72: =B61 -> 4.2.2 | D72: EQUIPAMENTOS | H72: =SUM(H73) ->  | I72: ss
B73: CODEVASF | D73: CAMINHONETE | E73: mes | F73: =CPU!#REF! ->  | G73: 5885.33 | H73: =ROUND(F73*G73,2) ->  | I73: I
B74: =B61 -> 4.2.2 | D74: SERVIÇOS | H74: 0 | I74: ss
B75: =B61 -> 4.2.2 | D75: MÃO DE OBRA | H75: =SUM(H76:H78) ->  | I75: ss
B76: SICRO | C76: P9926 | D76: Mergulhador raso auxiliar de superfície | E76: h | F76: =CPU!#REF! ->  | G76: 28.2203 | H76: =ROUND(F76*G76,2) -> 
B77: EMBASA | C77: B010000113 | D77: MERGULHADOR PROFISSIONAL | E77: h | F77: =CPU!#REF! ->  | G77: 76.19
B78: SICRO | C78: P9922 | D78: Mergulhador raso dependente de emergência | E78: h | F78: =CPU!#REF! ->  | G78: 31.5522
B80: ='Planilha Orçamentária Desoner'!A59 -> 6.1.6 | C80: =VLOOKUP($B80,'Planilha Orçamentária Desoner'!$A$11:$I$504,3,) -> CPU.06 | D80: =VLOOKUP($B80,'Planilha Orçamentária Desoner'!$A$11:$I$504,4,) -> ARGAMASSA TRACO 1:3 (CIMENTO E AREIA), PREPARO MANUAL, INCLUSO ADITIVO IMPERMEABILIZANTE | E80: m3 | H80: =H81+H84+H86+H87 ->  | I80: s
B81: =B80 -> 6.1.6 | D81: MATERIAL | H81: =SUM(H82:H83) ->  | I81: ss
B82: SINAPI | C82: 88629 | D82: =PROPER(IF(I82="i",VLOOKUP(C82,'Ins SINAPI BA 05-2023 Desoner'!$A$8:$E$5189,2,0),VLOOKUP(C82,'Comp SINAPI BA 05-2023 Desoner'!$G$7:$K$7500,2,0))) -> Argamassa Traço 1:3 (Em Volume De Cimento E Areia Média Úmida), Preparo Manual. Af_08/2019 | E82: =LOWER(IF(I82="i",VLOOKUP(C82,'Ins SINAPI BA 05-2023 Desoner'!$A$8:$E$5189,3,0),VLOOKUP(C82,'Comp SINAPI BA 05-2023 Desoner'!$G$7:$K$7500,3,0))) -> m3 | F82: =CPU!#REF! ->  | G82: =IF(I82="i",VLOOKUP(C82,'Ins SINAPI BA 05-2023 Desoner'!$A$8:$E$5189,5,0),VLOOKUP(C82,'Comp SINAPI BA 05-2023 Desoner'!$G$7:$K$7500,5,0)) -> 693.49 | H82: =ROUND(F82*G82,2) ->  | I82: ca
B83: SINAPI | C83: 123 | D83: =PROPER(IF(I83="i",VLOOKUP(C83,'Ins SINAPI BA 05-2023 Desoner'!$A$8:$E$5189,2,0),VLOOKUP(C83,'Comp SINAPI BA 05-2023 Desoner'!$G$7:$K$7500,2,0))) -> Aditivo Impermeabilizante De Pega Normal Para Argamassas E Concretos Sem Armacao, Liquido E Isento De Cloretos | E83: =LOWER(IF(I83="i",VLOOKUP(C83,'Ins SINAPI BA 05-2023 Desoner'!$A$8:$E$5189,3,0),VLOOKUP(C83,'Comp SINAPI BA 05-2023 Desoner'!$G$7:$K$7500,3,0))) -> l | F83: =CPU!#REF! ->  | G83: =IF(I83="i",VLOOKUP(C83,'Ins SINAPI BA 05-2023 Desoner'!$A$8:$E$5189,5,0),VLOOKUP(C83,'Comp SINAPI BA 05-2023 Desoner'!$G$7:$K$7500,5,0)) -> 6.85 | H83: =ROUND(F83*G83,2) ->  | I83: i
B84: =B80 -> 6.1.6 | D84: EQUIPAMENTOS | H84: =H85 ->  | I84: ss
B85: SICRO | C85: E9121 | D85: Plataforma elevatória articulada elétrica com alcance de 6 m com capacidade de 500 kg - 1,5 kW | E85: h | F85: =CPU!#REF! ->  | G85: 36.3564 | H85: =ROUND(F85*G85,2) ->  | I85: ca
B86: =B80 -> 6.1.6 | D86: SERVIÇOS | H86: 0 | I86: ss
B87: =B80 -> 6.1.6 | D87: MÃO DE OBRA | H87: 0 | I87: mdo
B89: ='Planilha Orçamentária Desoner'!A61 -> 6.1.8 | C89: =VLOOKUP($B89,'Planilha Orçamentária Desoner'!$A$11:$I$504,3,) -> CPU.07 | D89: =VLOOKUP($B89,'Planilha Orçamentária Desoner'!$A$11:$I$504,4,) -> CURA QUÍMICA | E89: m2 | H89: =H90+H92+H94+H95 ->  | I89: s
B90: =B89 -> 6.1.8 | D90: MATERIAL | H90: =SUM(H91) ->  | I90: ss
B91: SICRO | C91: M2152 | D91: Aditivo de cura para concreto | E91: kg | F91: =CPU!#REF! ->  | G91: 7.7205 | H91: =ROUND(F91*G91,2) ->  | I91: ca
B92: =B89 -> 6.1.8 | D92: EQUIPAMENTOS | H92: =SUM(H93) ->  | I92: ss
B93: SICRO | C93: E9589 | D93: Máquina texturizadora e aplicadora de cura química em pavimento de concreto - 44,80 kW | E93: H | F93: =CPU!#REF! ->  | G93: 206.4583 | H93: =ROUND(F93*G93,2) ->  | I93: ca
B94: =B89 -> 6.1.8 | D94: SERVIÇOS | H94: 0 | I94: ss
B95: =B89 -> 6.1.8 | D95: MÃO DE OBRA | H95: =SUM(H96) -> 15.72 | I95: mdo
B96: SINAPI | C96: 88316 | D96: =PROPER(IF(I96="i",VLOOKUP(C96,'Ins SINAPI BA 05-2023 Desoner'!$A$8:$E$5189,2,0),VLOOKUP(C96,'Comp SINAPI BA 05-2023 Desoner'!$G$7:$K$7500,2,0))) -> Servente Com Encargos Complementares | E96: =LOWER(IF(I96="i",VLOOKUP(C96,'Ins SINAPI BA 05-2023 Desoner'!$A$8:$E$5189,3,0),VLOOKUP(C96,'Comp SINAPI BA 05-2023 Desoner'!$G$7:$K$7500,3,0))) -> h | F96: =CPU!F175 -> 0.8 | G96: =IF(I96="i",VLOOKUP(C96,'Ins SINAPI BA 05-2023 Desoner'!$A$8:$E$5189,5,0),VLOOKUP(C96,'Comp SINAPI BA 05-2023 Desoner'!$G$7:$K$7500,5,0)) -> 19.65 | H96: =ROUND(F96*G96,2) -> 15.72 | I96: ca

Sheet Equipe de Mergulho (hidden)
B2: Definições de acordo com a TABELA REFERÊNCIA | H2: TABELA REFERÊNCIA
B3: 20 | C3: m | D3: Profundidade
B4: 48 | C4: min | D4: Tempo de mergulho
B5: =B4/60 -> 0.8 | C5: h
B6: 8 | C6: un | D6: Qd de mergulhadores
B8: EQUIPE ADOTADA DE ACORDO COM A NR 15 - ATIVIDADES E OPERAÇÕES INSALUBRES (POR DIA)
B9: H | C9: QTD
B10: =$B$5 -> 0.8 | C10: 1 | D10: Mergulhador Profissional
B11: =$B$5 -> 0.8 | C11: 1 | D11: Mergulhador Profissional
B12: 0.8 | C12: 1 | D12: Mergulhador Profissional
B13: 0.8 | C13: 1 | D13: Mergulhador Profissional
B14: 0.8 | C14: 1 | D14: Mergulhador Profissional
B15: 0.8 | C15: 1 | D15: Mergulhador Profissional
B16: 0.8 | C16: 1 | D16: Mergulhador Profissional
B17: 0.8 | C17: 1 | D17: Mergulhador Profissional
B18: =B5*B6 -> 6.4 | C18: 1 | D18: Mergulhador raso auxiliar de superfície
B19: =B5*B6 -> 6.4 | C19: 1 | D19: Mergulhador raso auxiliar de superfície
B20: =B5*B6 -> 6.4 | C20: 1 | D20: Mergulhador raso dependente de emergência
B21: =MAX(B10:B20) -> 6.4 | C21: =SUM(C10:C20) -> 11 | D21: TOTAL
B23: Identificação | D23: Serviço | E23: Duração (dias) | F23: Total (h)
B24: =CPU!#REF! ->  | C24: =CPU!#REF! ->  | D24: =CPU!#REF! ->  | E24: 2 | F24: =$B$21*E24 -> 12.8
B25: =CPU!#REF! ->  | C25: =CPU!#REF! ->  | D25: =CPU!#REF! ->  | E25: 2 | F25: =$B$21*E25 -> 12.8
D27: De acordo com a duração do serviço será atualizada a quantidade de diárias
D28: Duração | E28: 2
D29: Diária | E29: =E28-1 -> 1

Sheet Cronograma
A1: Ministério da Integração e do Desenvolvimento Regional
A2: Companhia de Desenvolvimento dos Vales do São Francisco e do Parnaíba
A4: CRONOGRAMA FÍSICO-FINANCEIRO ONERADO
A5: OBRA: | B5: =CPU!C5 -> SERVIÇOS DE MANUTENÇÃO E OBRAS CIVIS NA BARRAGEM ÁGUA FRIA | F5: BDI (serv.): | G5: ='BDI serv'!D22 -> 0.2378
A6: LOCAL: | B6: =CPU!C6 -> BARRAGEM ÁGUA FRIA, FLORESTA/PE | F6: BDI (forn.): | G6: ='BDI forn'!E6 -> 0.147
A7: DATA BASE: | B7: =CPU!C7 -> 2024-05-01
A8: PRAZO: | B8: =CPU!C8 -> 120 DIAS
A9: ITEM | B9: DESCRIÇÃO | C9: TOTAL POR ETAPA | D9: MESES | H9: TOTAL
D10: 1 | E10: 2 | F10: 3 | G10: 4
A11: 1 | B11: =VLOOKUP(A11,'Planilha Orçamentária'!$A$11:$D$56,4) -> ADMINISTRAÇÃO DA OBRA | C11: =SUMIF('Planilha Orçamentária'!$A$11:$A$56,A11,'Planilha Orçamentária'!$I$11:$I$56) -> 118778.9909 | D11: =$C11*D12 -> 32061.97091 | E11: =$C11*E12 -> 33995.69959 | F11: 37217.79594 | G11: 15503.5245 | H11: =SUM(D11:G11) -> 118778.9909 | I11: R$
C12: =C11/C11 -> 1 | D12: =D29 -> 0.2699296454 | E12: =D30-D29+E29 -> 0.2862097019 | F12: =E30-E29+F29 -> 0.3133365223 | G12: =1-SUM(D12:F12) -> 0.1305241304 | H12: =SUM(D12:G12) -> 1 | I12: %
A13: 2 | B13: =VLOOKUP(A13,'Planilha Orçamentária'!$A$11:$D$56,4) -> SERVIÇOS PRELIMINARES | C13: =SUMIF('Planilha Orçamentária'!$A$11:$A$56,A13,'Planilha Orçamentária'!$I$11:$I$56) -> 47117.96483 | D13: =$C13*D14 -> 42406.16835 | G13: =$C13*G14 -> 4711.796483 | H13: 47117.96483 | I13: R$
C14: =C13/C13 -> 1 | D14: 0.9 | G14: 0.1 | H14: 1 | I14: %
A15: 3 | B15: =VLOOKUP(A15,'Planilha Orçamentária'!$A$11:$D$56,4) -> CORTE DA VEGETAÇÃO E REMOÇÃO DAS RAIZES | C15: =SUMIF('Planilha Orçamentária'!$A$11:$A$56,A15,'Planilha Orçamentária'!$I$11:$I$56) -> 50363.73018 | D15: =$C15*D16 -> 50363.73018 | H15: =SUM(D15:G15) -> 50363.73018 | I15: R$
C16: =C15/C15 -> 1 | D16: 1 | H16: 1 | I16: %
A17: 4 | B17: =VLOOKUP(A17,'Planilha Orçamentária'!$A$11:$D$56,4) -> ESGOTAMENTO COM BOMBA | C17: =SUMIF('Planilha Orçamentária'!$A$11:$A$56,A17,'Planilha Orçamentária'!$I$11:$I$56) -> 264.196032 | D17: =$C17*D18 -> 66.049008 | E17: =$C17*E18 -> 66.049008 | F17: =$C17*F18 -> 66.049008 | G17: =$C17*G18 -> 66.049008 | H17: =SUM(D17:G17) -> 264.196032 | I17: R$
C18: =C17/C17 -> 1 | D18: 0.25 | E18: 0.25 | F18: 0.25 | G18: 0.25 | H18: 1 | I18: %
A19: 5 | B19: =VLOOKUP(A19,'Planilha Orçamentária'!$A$11:$D$56,4) -> RECUPERAÇÃO DA CRISTA E DO PARAMENTO DE JUSANTE | C19: =SUMIF('Planilha Orçamentária'!$A$11:$A$56,A19,'Planilha Orçamentária'!$I$11:$I$56) -> 352814.3673 | D19: =$C19*D20 -> 70562.87346 | E19: =$C19*E20 -> 141125.7469 | F19: =$C19*F20 -> 141125.7469 | H19: =SUM(D19:G19) -> 352814.3673 | I19: R$
C20: =C19/C19 -> 1 | D20: 0.2 | E20: 0.4 | F20: 0.4 | H20: 1 | I20: %
A21: 6 | B21: =VLOOKUP(A21,'Planilha Orçamentária'!$A$11:$D$56,4) -> RECUPERAÇÃO DA BACIA DE DISSIPAÇÃO | C21: =SUMIF('Planilha Orçamentária'!$A$11:$A$56,A21,'Planilha Orçamentária'!$I$11:$I$56) -> 22264.60567 | F21: =$C21*F22 -> 11132.30284 | G21: =$C21*G22 -> 11132.30284 | H21: 22264.60567 | I21: R$
C22: =C21/C21 -> 1 | F22: 0.5 | G22: 0.5 | H22: 1 | I22: %
A23: 7 | B23: =VLOOKUP(A23,'Planilha Orçamentária'!$A$11:$D$56,4) -> RECUPERAÇÃO DA OMBREIRA | C23: =SUMIF('Planilha Orçamentária'!$A$11:$A$56,A23,'Planilha Orçamentária'!$I$11:$I$56) -> 3354.878657 | F23: =$C23*F24 -> 3354.878657 | H23: =SUM(D23:G23) -> 3354.878657 | I23: R$
C24: =C23/C23 -> 1 | F24: 1 | H24: 1 | I24: %
A25: 8 | B25: =VLOOKUP(A25,'Planilha Orçamentária'!$A$11:$D$56,4) -> SERVIÇOS COMPLEMENTARES | C25: =SUMIF('Planilha Orçamentária'!$A$11:$A$56,A25,'Planilha Orçamentária'!$I$11:$I$56) -> 10379.81946 | G25: =$C25*G26 -> 10379.81946 | H25: 10379.81946 | I25: R$
C26: =C25/C25 -> 1 | G26: 1 | H26: =SUM(D26:G26) -> 1 | I26: %
B27: VALOR TOTAL: | C27: =SUMIF($I$11:$I$26,"R$",C$11:C$26) -> 605338.553 | D27: 195460.7919 | E27: 175187.4955 | F27: 192896.7733 | G27: 41793.49229 | H27: 605338.553
B28: VALOR ACUMULADO: | D28: =D27 -> 195460.7919 | E28: =E27+D28 -> 370648.2874 | F28: =F27+E28 -> 563545.0608 | G28: =G27+F28 -> 605338.553 | H28: =H27 -> 605338.553
B29: FÍSICO PARCIAL: | D29: =SUMIF($I$13:$I$26,"R$",D$13:D$26)/$C$27 -> 0.2699296454 | E29: =SUMIF($I$13:$I$26,"R$",E$13:E$26)/$C$27 -> 0.2332443477 | F29: =SUMIF($I$13:$I$26,"R$",F$13:F$26)/$C$27 -> 0.2571767098 | G29: =SUMIF($I$13:$I$26,"R$",G$13:G$26)/$C$27 -> 0.04343018903 | H29: =H27/$C$27 -> 1
B30: AVANÇO FÍSICO: | D30: =D27/$C$27 -> 0.3228949997 | E30: =E27/$C$27 -> 0.2894041601 | F30: =F27/$C$27 -> 0.3186593228 | G30: 0.06904151747

Sheet Cronograma Desoner (hidden)
A1: Ministério da Integração e do Desenvolvimento Regional
A2: Companhia de Desenvolvimento dos Vales do São Francisco e do Parnaíba
A4: CRONOGRAMA FÍSICO-FINANCEIRO DESONERADO
A5: OBRA: | B5: =UPPER("SERVIÇOS DE MANUTENÇÃO E OBRAS CIVIS NA ESTRUTURA DA BARRAGEM E EQUIPAMENTO HIDROMECÂNICO") -> SERVIÇOS DE MANUTENÇÃO E OBRAS CIVIS NA ESTRUTURA DA BARRAGEM E EQUIPAMENTO HIDROMECÂNICO | F5: BDI (serv.): | G5: ='BDI serv Desonerado'!D22 -> 0.3351
A6: LOCAL: | B6: BARRAGEM POÇO DO MAGRO, GUANAMBI/BA | F6: BDI (forn.): | G6: ='BDI forn Desonerado'!D22 -> 0.212
A7: DATA BASE: | B7: 2023-05-01
A8: PRAZO: | B8: 120 DIAS
A9: ITEM | B9: DESCRIÇÃO | C9: TOTAL POR ETAPA | D9: MESES | H9: TOTAL
D10: 1 | E10: 2 | F10: 3 | G10: 4
A11: 1 | B11: =VLOOKUP(A11,'Planilha Orçamentária Desoner'!$A$11:$D$92,4) -> ADMINISTRAÇÃO LOCAL | C11: =SUMIF('Planilha Orçamentária Desoner'!$A$11:$A$92,A11,'Planilha Orçamentária Desoner'!$I$11:$I$92) -> 41837.86849 | D11: =$C11*D12 ->  | H11: =SUM(D11:G11) ->  | I11: R$
C12: =C11/C11 -> 1 | D12: =D37 ->  | E12: =D38-D37+E37 ->  | F12: =E38-E37+F37 ->  | G12: =1-SUM(D12:F12) ->  | I12: %
A13: 2 | B13: =VLOOKUP(A13,'Planilha Orçamentária Desoner'!$A$11:$D$92,4) -> SERVIÇOS PRELIMINARES | C13: =SUMIF('Planilha Orçamentária Desoner'!$A$11:$A$92,A13,'Planilha Orçamentária Desoner'!$I$11:$I$92) ->  | D13: =$C13*D14 ->  | I13: R$
C14: =C13/C13 ->  | D14: 1 | H14: 1 | I14: %
A15: 3 | B15: =VLOOKUP(A15,'Planilha Orçamentária Desoner'!$A$11:$D$92,4) -> LIMPEZA DA REGIÃO A JUSANTE | C15: =SUMIF('Planilha Orçamentária Desoner'!$A$11:$A$92,A15,'Planilha Orçamentária Desoner'!$I$11:$I$92) ->  | D15: =$C15*D16 ->  | I15: R$
C16: =C15/C15 ->  | D16: 1 | H16: 1 | I16: %
A17: 4.1 | B17: =VLOOKUP(A17,'Planilha Orçamentária Desoner'!$A$11:$D$92,4) -> Inspeção e Laudo da região subaquática | C17: =SUMIF('Planilha Orçamentária Desoner'!$A$11:$A$92,A17,'Planilha Orçamentária Desoner'!$I$11:$I$92) ->  | D17: =$C17*D18 ->  | I17: R$
C18: =C17/C17 ->  | D18: 1 | H18: 1 | I18: %
A19: 4.2 | B19: =VLOOKUP(A19,'Planilha Orçamentária Desoner'!$A$11:$D$92,4) -> Vedação/Abertura da tomada d'água | C19: =SUMIF('Planilha Orçamentária Desoner'!$A$11:$A$92,A19,'Planilha Orçamentária Desoner'!$I$11:$I$92) ->  | D19: =$C19*D20 ->  | E19: =$C19*E20 ->  | I19: R$
C20: =C19/C19 ->  | D20: 0.5 | E20: 0.5 | H20: 1 | I20: %
A21: 5 | B21: =VLOOKUP(A21,'Planilha Orçamentária Desoner'!$A$11:$D$92,4) -> MANUTENÇÃO NOS DISPOSITIVOS DE CONTROLE | C21: =SUMIF('Planilha Orçamentária Desoner'!$A$11:$A$92,A21,'Planilha Orçamentária Desoner'!$I$11:$I$92) ->  | E21: =$C21*E22 ->  | H21: =SUM(E21:G21) ->  | I21: R$
C22: =C21/C21 ->  | E22: 1 | H22: =SUM(E22:G22) -> 1 | I22: %
A23: 6.1 | B23: =VLOOKUP(A23,'Planilha Orçamentária Desoner'!$A$11:$D$92,4) -> Paramento a jusante | C23: =SUMIF('Planilha Orçamentária Desoner'!$A$11:$A$92,A23,'Planilha Orçamentária Desoner'!$I$11:$I$92) ->  | E23: =$C23*E24 ->  | F23: =$C23*F24 ->  | H23: =SUM(E23:G23) ->  | I23: R$
C24: =C23/C23 ->  | E24: 0.5 | F24: 0.5 | H24: 1 | I24: %
A25: 6.2 | B25: =VLOOKUP(A25,'Planilha Orçamentária Desoner'!$A$11:$D$92,4) -> Crista | C25: =SUMIF('Planilha Orçamentária Desoner'!$A$11:$A$92,A25,'Planilha Orçamentária Desoner'!$I$11:$I$92) ->  | F25: =$C25*F26 ->  | I25: R$
C26: =C25/C25 ->  | F26: 1 | H26: 1 | I26: %
A27: 6.3 | B27: =VLOOKUP(A27,'Planilha Orçamentária Desoner'!$A$11:$D$92,4) -> Vertedouro | C27: =SUMIF('Planilha Orçamentária Desoner'!$A$11:$A$92,A27,'Planilha Orçamentária Desoner'!$I$11:$I$92) ->  | F27: =$C27*F28 ->  | I27: R$
C28: =C27/C27 ->  | F28: 1 | H28: 1 | I28: %
A29: 7.1 | B29: =VLOOKUP(A29,'Planilha Orçamentária Desoner'!$A$11:$D$92,4) -> Investigação do maciço | C29: =SUMIF('Planilha Orçamentária Desoner'!$A$11:$A$92,A29,'Planilha Orçamentária Desoner'!$I$11:$I$92) ->  | F29: =$C29*F30 ->  | I29: R$
C30: =C29/C29 ->  | F30: 1 | H30: 1 | I30: %
A31: 7.2 | B31: =VLOOKUP(A31,'Planilha Orçamentária Desoner'!$A$11:$D$92,4) -> Recuperação do maciço | C31: =SUMIF('Planilha Orçamentária Desoner'!$A$11:$A$92,A31,'Planilha Orçamentária Desoner'!$I$11:$I$92) ->  | F31: =$C31*F32 ->  | I31: R$
C32: =C31/C31 ->  | F32: 1 | H32: 1 | I32: %
A33: 8 | B33: =VLOOKUP(A33,'Planilha Orçamentária Desoner'!$A$11:$D$92,4) -> SERVIÇOS AUXILIARES | C33: =SUMIF('Planilha Orçamentária Desoner'!$A$11:$A$92,A33,'Planilha Orçamentária Desoner'!$I$11:$I$92) ->  | G33: =$C33*G34 ->  | I33: R$
C34: =C33/C33 ->  | G34: 1 | H34: 1 | I34: %
B35: VALOR TOTAL: | C35: =SUMIF($I$11:$I$34,"R$",C$11:C$34) -> 
B36: VALOR ACUMULADO: | D36: =D35 ->  | E36: =E35+D36 ->  | H36: =H35 -> 
B37: FÍSICO PARCIAL: | D37: =SUMIF($I$13:$I$34,"R$",D$13:D$34)/$C$35 ->  | E37: =SUMIF($I$13:$I$34,"R$",E$13:E$34)/$C$35 ->  | F37: =SUMIF($I$13:$I$34,"R$",F$13:F$34)/$C$35 ->  | G37: =SUMIF($I$13:$I$34,"R$",G$13:G$34)/$C$35 ->  | H37: =H35/$C$35 -> 
B38: AVANÇO FÍSICO: | D38: =D35/$C$35 ->  | E38: =E35/$C$35 ->  | F38: =F35/$C$35 -> 

Sheet Cotações
A1: Ministério do Desenvolvimento Regional
A2: Companhia de Desenvolvimento dos Vales do São Francisco e do Parnaíba
A3: ='Planilha Orçamentária'!A3:I3 -> 0
A4: COTAÇÕES
A5: OBRA: | B5: ='Planilha Orçamentária'!B5:D5 -> SERVIÇOS DE MANUTENÇÃO E OBRAS CIVIS NA BARRAGEM ÁGUA FRIA | K5: BDI (serv.): | L5: ='BDI serv'!D22 -> 0.2378
A6: LOCAL: | B6: ='Planilha Orçamentária'!B6 -> BARRAGEM ÁGUA FRIA, FLORESTA/PE | K6: BDI (forn.): | L6: ='BDI forn'!E6 -> 0.147
A7: DATA BASE: | B7: ='Planilha Orçamentária'!B7:C7 -> 2024-05-15
A8: PRAZO: | B8: ='Planilha Orçamentária'!B8:C8 -> 120 DIAS
A9: ITEM | B9: EMPRESA | G9: ORÇADO POR | H9: DESCRIÇÃO / OBSERVAÇÃO | I9: UNID | J9: QUANT | K9: LINK OU LOCAL DO ARQUIVO | L9: VALOR
B10: DATA | C10: EMPRESA / CNPJ | D10: RESPONSÁVEL | E10: ENDEREÇO | F10: CONTATO | L10: MAT | M10: MDO | N10: TRANSPORTE | O10: TOTAL
B11: Hospedagem
B14: Régua linimétrica
A15: 1 | B15: 2024-05-15 | C15: POLIMEDIÇÃO COMERCIAL | D15: Preço na loja online | E15: R. Arlete, 151 - Jardim Penha - São Paulo - SP | F15: Tel: (11) 4328-3003 WhatsApp: (11) 98575-6343 polimedicao@gmail.com | G15: Murilo - RHA | H15: Régua linimétrica em alumínio 2 X 70 X 1000MM | I15: un | J15: 1 | K15: https://www.polimedicao.com.br/product-page/r%C3%A9gua-linim%C3%A9trica-em-chapa-de-aluminio-2-x-70-x-1000mm | L15: 169 | O15: =SUM(L15:N15) -> 169
A16: 2 | B16: 2024-05-15 | C16: Gravametal | D16: Preço na loja online | E16: Rua Uniflor, 1012 - Emiliano Perneta Pinhais - Paraná - CEP: 83324-227 | F16: ☎ (41) 3403-0144 ✆ (41) 99672-9692 ✉ gravametal@gmail.com | G16: Murilo - RHA | H16: Régua linimétrica em alumínio 2 X 70 X 1000MM | I16: un | J16: 1 | K16: https://www.gravametal.com.br/product-page/r%C3%A9gua-linim%C3%A9trica-fluviom%C3%A9trica-1000x70x2mm | L16: 240 | O16: =SUM(L16:N16) -> 240
A17: 3 | B17: 2024-01-22 | C17: Hidromec | D17: Consulta via Whatsapp | E17: Rua Sacadura Cabral, 351 Saúde - Rio de Janeiro - RJ CEP: 20221-160 | F17: (21) 3622-8000 contato@hidromechc.com.br | G17: Murilo - RHA | H17: Régua linimétrica em alumínio 2 X 70 X 1000MM | I17: un | J17: 1 | K17: https://www.hidromechc.com.br/regua | L17: 140 | O17: 140
A18: 4 | B18: 2024-05-15 | C18: Submarino | D18: Preço na loja online | H18: Régua linimétrica em alumínio 2 X 70 X 1000MM | I18: un | J18: 1 | K18: https://www.submarino.com.br/produto/7477637379?opn=XMLGOOGLE&offerId=6572094acc55309385d79ddb | L18: 169 | O18: 169
I21: CV | K21: Média | L21: Mediana | M21: Valor Adotado
I22: =STDEVA(O14:O18)/AVERAGE(O14:O18) -> 0.237254404 | K22: =AVERAGE(O15:O18) -> 179.5 | L22: =MEDIAN(O15:O18) -> 169 | M22: =SMALL(K22:L22,1) -> 169

Sheet BDI serv
A1: Ministério da Integração e do Desenvolvimento Regional
A2: Companhia de Desenvolvimento dos Vales do São Francisco e do Parnaíba
A3: ='Planilha Orçamentária'!A3:I3 -> 0
A4: COMPOSIÇÃO DE BDI - SERVIÇOS - ONERADO
A5: OBRA: | B5: =UPPER("SERVIÇOS DE MANUTENÇÃO E OBRAS CIVIS NA ESTRUTURA DA BARRAGEM E EQUIPAMENTO HIDROMECÂNICO") -> SERVIÇOS DE MANUTENÇÃO E OBRAS CIVIS NA ESTRUTURA DA BARRAGEM E EQUIPAMENTO HIDROMECÂNICO | F5: BDI (serv.): | G5: =D22 -> 0.2378
A6: LOCAL: | B6: BARRAGEM POÇO DO MAGRO, GUANAMBI/BA | F6: BDI (forn.): | G6: ='BDI forn'!D22 -> 0.147
A7: DATA BASE: | B7: 2023-05-01
A8: PRAZO: | B8: 120 DIAS
A9: ITEM | B9: DESCRIÇÃO | C9: SIGLA | D9: % APLICADO | E9: REFERÊNCIA TCU (ACÓRDÃO Nº 2622/2013)
E10: 1º QUARTIL | F10: 2º QUARTIL | G10: 3º QUARTIL
A11: 1 | B11: ADMINISTRAÇÃO CENTRAL | C11: AC | D11: =E11 -> 0.04 | E11: 0.04 | F11: 0.0552 | G11: 0.0785
A12: 2 | B12: IMPOSTOS | C12: T | D12: =SUM(D13:D16) -> 0.0715
A13: 2.1 | B13: ISS (*) | D13: 0.035 | E13: - | F13: - | G13: -
A14: 2.2 | B14: PIS | D14: 0.0065 | E14: - | F14: - | G14: -
A15: 2.3 | B15: Cofins | D15: 0.03 | E15: - | F15: - | G15: -
A16: 2.4 | B16: Contribuição previdênciária sobre a receita bruta (CPRB) | E16: - | F16: - | G16: -
A17: 3 | B17: SEGURO, GARANTIA E RISCO | D17: =SUM(D18:D19) -> 0.0227
A18: 3.1 | B18: Seguro + Garantia | C18: S + G | D18: =E18 -> 0.0081 | E18: 0.0081 | F18: 0.0122 | G18: 0.0199
A19: 3.2 | B19: Risco | C19: R | D19: 0.0146 | E19: 0.0146 | F19: 0.0232 | G19: 0.0316
A20: 4 | B20: DESPESAS FINANCEIRAS | C20: DF | D20: 0.0094 | E20: 0.0094 | F20: 0.0102 | G20: 0.01363
A21: 5 | B21: LUCRO | C21: L | D21: =E21 -> 0.0714 | E21: 0.0714 | F21: 0.084 | G21: 0.1043
B22: BDI ADOTADO: | D22: =ROUND(((((1+D11+D17)*(1+D20)*(1+D21))/(1-D12))-1),4) -> 0.2378
A23: Considerações: O BDI foi calculado através da seguinte fórmula, regulamentada pelo Acórdão Nº 2622/2013 – TCU. * O percentual de ISSQN aqui utilizado refere-se ao município de Porteirinha/MG, conforme Lei Complementar 1899/2007 - Art. 1º (Item 7.02C). Conforme Art. 112, § 14, na base de cálculo do ISSQN considerou-se dedução do percentual abaixo discriminado.

Sheet BDI serv Desonerado (hidden)
A1: Ministério do Desenvolvimento Regional
A2: Companhia de Desenvolvimento dos Vales do São Francisco e do Parnaíba
A3: ='Planilha Orçamentária'!A3:I3 -> 0
A4: COMPOSIÇÃO DE BDI - SERVIÇOS - DESONERADO
A5: OBRA: | B5: =UPPER("SERVIÇOS DE MANUTENÇÃO E OBRAS CIVIS NA ESTRUTURA DA BARRAGEM E EQUIPAMENTO HIDROMECÂNICO") -> SERVIÇOS DE MANUTENÇÃO E OBRAS CIVIS NA ESTRUTURA DA BARRAGEM E EQUIPAMENTO HIDROMECÂNICO | D5: BDI (serv.): | E5: =D22 -> 0.3351
A6: LOCAL: | B6: BARRAGEM POÇO DO MAGRO, GUANAMBI/BA | D6: BDI (forn.): | E6: ='BDI forn Desonerado'!E6 -> 0.212
A7: DATA BASE: | B7: 2023-05-01
A8: PRAZO: | B8: 120 DIAS
A9: ITEM | B9: DESCRIÇÃO | C9: SIGLA | D9: % APLICADO | E9: REFERÊNCIA TCU (ACÓRDÃO Nº 2622/2013)
E10: 1º QUARTIL | F10: 2º QUARTIL | G10: 3º QUARTIL
A11: 1 | B11: ADMINISTRAÇÃO CENTRAL | C11: AC | D11: =E11 -> 0.04 | E11: 0.04 | F11: 0.0552 | G11: 0.0785
A12: 2 | B12: IMPOSTOS | C12: T | D12: =SUM(D13:D16) -> 0.1315
A13: 2.1 | B13: ISS (*) | D13: 0.05 | E13: - | F13: - | G13: -
A14: 2.2 | B14: PIS | D14: 0.0065 | E14: - | F14: - | G14: -
A15: 2.3 | B15: Cofins | D15: 0.03 | E15: - | F15: - | G15: -
A16: 2.4 | B16: Contribuição previdênciária sobre a receita bruta (CPRB) | D16: 0.045 | E16: - | F16: - | G16: -
A17: 3 | B17: SEGURO, GARANTIA E RISCO | D17: =SUM(D18:D19) -> 0.0313
A18: 3.1 | B18: Seguro + Garantia | C18: S + G | D18: =E18 -> 0.0081 | E18: 0.0081 | F18: 0.0122 | G18: 0.0199
A19: 3.2 | B19: Risco | C19: R | D19: =F19 -> 0.0232 | E19: 0.0146 | F19: 0.0232 | G19: 0.0316
A20: 4 | B20: DESPESAS FINANCEIRAS | C20: DF | D20: =F20 -> 0.0102 | E20: 0.0094 | F20: 0.0102 | G20: 0.01363
A21: 5 | B21: LUCRO | C21: L | D21: =E21 -> 0.0714 | E21: 0.0714 | F21: 0.084 | G21: 0.1043
B22: BDI ADOTADO: | D22: =ROUND(((((1+D11+D17)*(1+D20)*(1+D21))/(1-D12))-1),4) -> 0.3351
A23: Considerações: O BDI foi calculado através da seguinte fórmula, regulamentada pelo Acórdão Nº 2622/2013 – TCU. * O percentual de ISSQN aqui utilizado refere-se ao município de Porteirinha/MG, conforme Lei Complementar 1899/2007 - Art. 1º (Item 7.02C). Conforme Art. 112, § 14, na base de cálculo do ISSQN considerou-se dedução do percentual abaixo discriminado.

Sheet BDI forn
A1: Ministério do Desenvolvimento Regional
A2: Companhia de Desenvolvimento dos Vales do São Francisco e do Parnaíba
A3: ='Planilha Orçamentária'!A3:I3 -> 0
A4: COMPOSIÇÃO DE BDI - FORNECIMENTO - ONERADO
A5: OBRA: | B5: =UPPER("SERVIÇOS DE MANUTENÇÃO E OBRAS CIVIS NA ESTRUTURA DA BARRAGEM E EQUIPAMENTO HIDROMECÂNICO") -> SERVIÇOS DE MANUTENÇÃO E OBRAS CIVIS NA ESTRUTURA DA BARRAGEM E EQUIPAMENTO HIDROMECÂNICO | D5: BDI (serv.): | E5: ='BDI serv'!D22 -> 0.2378
A6: LOCAL: | B6: BARRAGEM POÇO DO MAGRO, GUANAMBI/BA | D6: BDI (forn.): | E6: =D22 -> 0.147
A7: DATA BASE: | B7: 2023-05-01
A8: PRAZO: | B8: 120 DIAS
A9: ITEM | B9: DESCRIÇÃO | C9: SIGLA | D9: % APLICADO | E9: REFERÊNCIA TCU (ACÓRDÃO Nº 2622/2013)
E10: 1º QUARTIL | F10: 2º QUARTIL | G10: 3º QUARTIL
A11: 1 | B11: ADMINISTRAÇÃO CENTRAL | C11: AC | D11: 0.04 | E11: 0.015 | F11: 0.0345 | G11: 0.0449
A12: 2 | B12: IMPOSTOS | C12: T | D12: =SUM(D13:D16) -> 0.0365
A13: 2.1 | B13: ISS (*) | E13: - | F13: - | G13: -
A14: 2.2 | B14: PIS | D14: 0.0065 | E14: - | F14: - | G14: -
A15: 2.3 | B15: Cofins | D15: 0.03 | E15: - | F15: - | G15: -
A16: 2.4 | B16: Contribuição previdênciária sobre a receita bruta (CPRB) | E16: - | F16: - | G16: -
A17: 3 | B17: SEGURO, GARANTIA E RISCO | D17: =SUM(D18:D19) -> 0.0086
A18: 3.1 | B18: Seguro + Garantia | C18: S + G | D18: =E18 -> 0.003 | E18: 0.003 | F18: 0.0048 | G18: 0.0082
A19: 3.3 | B19: Risco | C19: R | D19: =E19 -> 0.0056 | E19: 0.0056 | F19: 0.0085 | G19: 0.0089
A20: 4 | B20: DESPESAS FINANCEIRAS | C20: DF | D20: =E20 -> 0.0085 | E20: 0.0085 | F20: 0.0085 | G20: 0.0111
A21: 5 | B21: LUCRO | C21: L | D21: 0.045 | E21: 0.035 | F21: 0.0511 | G21: 0.0622
B22: BDI ADOTADO: | D22: =ROUND(((((1+D11+D17)*(1+D20)*(1+D21))/(1-D12))-1),4) -> 0.147
A23: Considerações: O BDI foi calculado através da seguinte fórmula, regulamentada pelo Acórdão Nº 2622/2013 – TCU.

Sheet BDI forn Desonerado (hidden)
A1: Ministério do Desenvolvimento Regional
A2: Companhia de Desenvolvimento dos Vales do São Francisco e do Parnaíba
A3: ='Planilha Orçamentária'!A3:I3 -> 0
A4: COMPOSIÇÃO DE BDI - FORNECIMENTO - DESONERADO
A5: OBRA: | B5: =UPPER("SERVIÇOS DE MANUTENÇÃO E OBRAS CIVIS NA ESTRUTURA DA BARRAGEM E EQUIPAMENTO HIDROMECÂNICO") -> SERVIÇOS DE MANUTENÇÃO E OBRAS CIVIS NA ESTRUTURA DA BARRAGEM E EQUIPAMENTO HIDROMECÂNICO | D5: BDI (serv.): | E5: ='BDI serv Desonerado'!E5 -> 0.3351
A6: LOCAL: | B6: BARRAGEM POÇO DO MAGRO, GUANAMBI/BA | D6: BDI (forn.): | E6: =D22 -> 0.212
A7: DATA BASE: | B7: 2023-05-01
A8: PRAZO: | B8: 120 DIAS
A9: ITEM | B9: DESCRIÇÃO | C9: SIGLA | D9: % APLICADO | E9: REFERÊNCIA TCU (ACÓRDÃO Nº 2622/2013)
E10: 1º QUARTIL | F10: 2º QUARTIL | G10: 3º QUARTIL
A11: 1 | B11: ADMINISTRAÇÃO CENTRAL | C11: AC | D11: 0.04 | E11: 0.015 | F11: 0.0345 | G11: 0.0449
A12: 2 | B12: IMPOSTOS | C12: T | D12: =SUM(D13:D16) -> 0.0815
A13: 2.1 | B13: ISS (*) | E13: - | F13: - | G13: -
A14: 2.2 | B14: PIS | D14: 0.0065 | E14: - | F14: - | G14: -
A15: 2.3 | B15: Cofins | D15: 0.03 | E15: - | F15: - | G15: -
A16: 2.4 | B16: Contribuição previdênciária sobre a receita bruta (CPRB) | D16: 0.045 | E16: - | F16: - | G16: -
A17: 3 | B17: SEGURO, GARANTIA E RISCO | D17: =SUM(D18:D19) -> 0.0086
A18: 3.1 | B18: Seguro +Garantia | C18: S+G | D18: =E18 -> 0.003 | E18: 0.003 | F18: 0.0048 | G18: 0.0082
A19: 3.2 | B19: Risco | C19: R | D19: =E19 -> 0.0056 | E19: 0.0056 | F19: 0.0085 | G19: 0.0089
A20: 4 | B20: DESPESAS FINANCEIRAS | C20: DF | D20: 0.01 | E20: 0.0085 | F20: 0.0085 | G20: 0.0111
A21: 5 | B21: LUCRO | C21: L | D21: =F21 -> 0.0511 | E21: 0.035 | F21: 0.0511 | G21: 0.0622
B22: BDI ADOTADO: | D22: =ROUND(((((1+D11+D17)*(1+D20)*(1+D21))/(1-D12))-1),4) -> 0.212
A23: Considerações: O BDI foi calculado através da seguinte fórmula, regulamentada pelo Acórdão Nº 2622/2013 – TCU.

Sheet Encargos Sociais
A1: Ministério da Integração e do Desenvolvimento Regional
A2: Companhia de Desenvolvimento dos Vales do São Francisco e do Parnaíba
A3: ='Planilha Orçamentária'!A3:I3 -> 0
A4: COMPOSIÇÃO DE ENCARGOS SOCIAIS SOBRE A MÃO DE OBRA
A5: OBRA: | B5: ='Planilha Orçamentária'!B5:D5 -> SERVIÇOS DE MANUTENÇÃO E OBRAS CIVIS NA BARRAGEM ÁGUA FRIA
A6: LOCAL: | B6: ='Planilha Orçamentária'!B6 -> BARRAGEM ÁGUA FRIA, FLORESTA/PE
A7: DATA BASE: | B7: ='Planilha Orçamentária'!B7:C7 -> 2024-05-15
A8: PRAZO: | B8: ='Planilha Orçamentária'!B8:C8 -> 120 DIAS
A9: Encargos Sociais – Pernambuco VIGÊNCIA A PARTIR DE 12/2023
A10: ENCARGOS SOCIAIS SOBRE A MÃO DE OBRA
A11: CÓDIGO | B11: DESCRIÇÃO | C11: COM DESONERAÇÃO | E11: SEM DESONERAÇÃO
C12: HORISTA % | D12: MENSALISTA % | E12: HORISTA % | F12: MENSALISTA %
A13: GRUPO A
A14: A1 | B14: INSS | C14: 0 | D14: 0 | E14: 0.2 | F14: 0.2
A15: A2 | B15: SESI | C15: 0.015 | D15: 0.015 | E15: 0.015 | F15: 0.015
A16: A3 | B16: SENAI | C16: 0.01 | D16: 0.01 | E16: 0.01 | F16: 0.01
A17: A4 | B17: INCRA | C17: 0.002 | D17: 0.002 | E17: 0.002 | F17: 0.002
A18: A5 | B18: SEBRAE | C18: 0.006 | D18: 0.006 | E18: 0.006 | F18: 0.006
A19: A6 | B19: Salário Educação | C19: 0.025 | D19: 0.025 | E19: 0.025 | F19: 0.025
A20: A7 | B20: Seguro Contra Acidentes de Trabalho | C20: 0.03 | D20: 0.03 | E20: 0.03 | F20: 0.03
A21: A8 | B21: FGTS | C21: 0.08 | D21: 0.08 | E21: 0.08 | F21: 0.08
A22: A9 | B22: SECONCI | C22: 0 | D22: 0 | E22: 0 | F22: 0
A23: A | B23: Total | C23: =SUM(C14:C22) -> 0.168 | D23: =SUM(D14:D22) -> 0.168 | E23: =SUM(E14:E22) -> 0.368 | F23: =SUM(F14:F22) -> 0.368
A24: GRUPO B
A25: B1 | B25: Repouso Semanal Remunerado | C25: 0.1801 | D25: Não incide | E25: 0.1801 | F25: Não incide
A26: B2 | B26: Feriados | C26: 0.0432 | D26: Não incide | E26: 0.0432 | F26: Não incide
A27: B3 | B27: Auxílio - Enfermidade | C27: 0.0085 | D27: 0.0064 | E27: 0.0085 | F27: 0.0064
A28: B4 | B28: 13º Salário | C28: 0.1103 | D28: 0.0833 | E28: 0.1103 | F28: 0.0833
A29: B5 | B29: Licença Paternidade | C29: 0.0006 | D29: 0.0004 | E29: 0.0006 | F29: 0.0004
A30: B6 | B30: Faltas Justificadas | C30: 0.0074 | D30: 0.0056 | E30: 0.0074 | F30: 0.0056
A31: B7 | B31: Dias de Chuvas | C31: 0.0198 | D31: Não incide | E31: 0.0198 | F31: Não incide
A32: B8 | B32: Auxílio Acidente de Trabalho | C32: 0.001 | D32: 0.0008 | E32: 0.001 | F32: 0.0008
A33: B9 | B33: Férias Gozadas | C33: 0.109 | D33: 0.0824 | E33: 0.109 | F33: 0.0824
A34: B10 | B34: Salário Maternidade | C34: 0.0004 | D34: 0.0003 | E34: 0.0004 | F34: 0.0003
A35: B | B35: Total | C35: =SUM(C25:C34) -> 0.4803 | D35: =SUM(D25:D34) -> 0.1792 | E35: =SUM(E25:E34) -> 0.4803 | F35: =SUM(F25:F34) -> 0.1792
A36: GRUPO C
A37: C1 | B37: Aviso Prévio Indenizado | C37: 0.048 | D37: 0.0363 | E37: 0.048 | F37: 0.0363
A38: C2 | B38: Aviso Prévio Trabalhado | C38: 0.0011 | D38: 0.0009 | E38: 0.0011 | F38: 0.0009
A39: C3 | B39: Férias Indenizadas | C39: 0.0291 | D39: 0.022 | E39: 0.0291 | F39: 0.022
A40: C4 | B40: Depósito Rescisão Sem Justa Causa | C40: 0.0283 | D40: 0.0214 | E40: 0.0283 | F40: 0.0214
A41: C5 | B41: Indenização Adicional | C41: 0.004 | D41: 0.0031 | E41: 0.004 | F41: 0.0031
A42: C | B42: Total | C42: =SUM(C37:C41) -> 0.1105 | D42: =SUM(D37:D41) -> 0.0837 | E42: =SUM(E37:E41) -> 0.1105 | F42: =SUM(F37:F41) -> 0.0837
A43: GRUPO D
A44: D1 | B44: Reincidência de Grupo A sobre Grupo B | C44: 0.0807 | D44: 0.0301 | E44: 0.1768 | F44: 0.0659
A45: D2 | B45: Reincidência de Grupo A sobre Aviso Prévio Trabalhado e Reincidência do FGTS sobre Aviso Prévio Indenizado | C45: 0.004 | D45: 0.0031 | E45: 0.0042 | F45: 0.0032
A46: D | B46: Total | C46: =SUM(C44:C45) -> 0.0847 | D46: =SUM(D44:D45) -> 0.0332 | E46: =SUM(E44:E45) -> 0.181 | F46: =SUM(F44:F45) -> 0.0691
A47: TOTAL(A+B+C+D) | C47: =C23+C35+C42+C46 -> 0.8435 | D47: =D23+D35+D42+D46 -> 0.4641 | E47: =E23+E35+E42+E46 -> 1.1398 | F47: =F23+F35+F42+F46 -> 0.7
A48: Fonte: Informação Dias de Chuva – INMET

Sheet Comp SINAPI PE 12-2023 Onerado
A1: PCI.817.01 - CUSTO DE COMPOSIÇÕES - SINTÉTICO DATA DE EMISSÃO: 17/04/2024 23:50:35 DATA DE RT: 17/04/2024
A2: ENCARGOS SOCIAIS SOBRE PREÇOS DA MÃO-DE-OBRA: 113,98%(HORA) 70,00%(MÊS)
A3: ABRANGÊNCIA : NACIONAL LOCALIDADE : RECIFE DATA DE PREÇO : 03/2024 REFERÊNCIA COLETA : MEDIANO
A5: DESCRICAO DA CLASSE | B5: SIGLA DA CLASSE | C5: DESCRICAO DO TIPO 1 | D5: SIGLA DO TIPO 1 | E5: CODIGO DO AGRUPADOR | F5: DESCRICAO DO AGRUPADOR | G5: CODIGO DA COMPOSICAO | H5: DESCRICAO DA COMPOSICAO | I5: UNIDADE | J5: ORIGEM DE PREÇO | K5: CUSTO TOTAL | L5: VINCULO
A7: ASSENTAMENTO DE TUBOS E PECAS | B7: ASTU | C7: FORNEC E/OU ASSENT DE TUBO DE FERRO FUNDIDO JUNTA ELASTICA | D7: 0045 | G7: 97141 | H7: ASSENTAMENTO DE TUBO DE FERRO FUNDIDO PARA REDE DE ÁGUA, DN 80 MM, JUNTA ELÁSTICA, INSTALADO EM LOCAL COM NÍVEL ALTO DE INTERFERÊNCIAS (NÃO INCLUI FORNECIMENTO). AF_11/2017 | I7: M | J7: COEFICIENTE DE REPRESENTATIVIDADE | K7: 8.97 | L7: CAIXA REFERENCIAL
A8: ASSENTAMENTO DE TUBOS E PECAS | B8: ASTU | C8: FORNEC E/OU ASSENT DE TUBO DE FERRO FUNDIDO JUNTA ELASTICA | D8: 0045 | G8: 97142 | H8: ASSENTAMENTO DE TUBO DE FERRO FUNDIDO PARA REDE DE ÁGUA, DN 100 MM, JUNTA ELÁSTICA, INSTALADO EM LOCAL COM NÍVEL ALTO DE INTERFERÊNCIAS (NÃO INCLUI FORNECIMENTO). AF_11/2017 | I8: M | J8: COEFICIENTE DE REPRESENTATIVIDADE | K8: 9.93 | L8: CAIXA REFERENCIAL
A9: ASSENTAMENTO DE TUBOS E PECAS | B9: ASTU | C9: FORNEC E/OU ASSENT DE TUBO DE FERRO FUNDIDO JUNTA ELASTICA | D9: 0045 | G9: 97143 | H9: ASSENTAMENTO DE TUBO DE FERRO FUNDIDO PARA REDE DE ÁGUA, DN 150 MM, JUNTA ELÁSTICA, INSTALADO EM LOCAL COM NÍVEL ALTO DE INTERFERÊNCIAS (NÃO INCLUI FORNECIMENTO). AF_11/2017 | I9: M | J9: COEFICIENTE DE REPRESENTATIVIDADE | K9: 12.37 | L9: CAIXA REFERENCIAL
A10: ASSENTAMENTO DE TUBOS E PECAS | B10: ASTU | C10: FORNEC E/OU ASSENT DE TUBO DE FERRO FUNDIDO JUNTA ELASTICA | D10: 0045 | G10: 97144 | H10: ASSENTAMENTO DE TUBO DE FERRO FUNDIDO PARA REDE DE ÁGUA, DN 200 MM, JUNTA ELÁSTICA, INSTALADO EM LOCAL COM NÍVEL ALTO DE INTERFERÊNCIAS (NÃO INCLUI FORNECIMENTO). AF_11/2017 | I10: M | J10: COEFICIENTE DE REPRESENTATIVIDADE | K10: 14.79 | L10: CAIXA REFERENCIAL
A11: ASSENTAMENTO DE TUBOS E PECAS | B11: ASTU | C11: FORNEC E/OU ASSENT DE TUBO DE FERRO FUNDIDO JUNTA ELASTICA | D11: 0045 | G11: 97145 | H11: ASSENTAMENTO DE TUBO DE FERRO FUNDIDO PARA REDE DE ÁGUA, DN 250 MM, JUNTA ELÁSTICA, INSTALADO EM LOCAL COM NÍVEL ALTO DE INTERFERÊNCIAS (NÃO INCLUI FORNECIMENTO). AF_11/2017 | I11: M | J11: COEFICIENTE DE REPRESENTATIVIDADE | K11: 17.24 | L11: CAIXA REFERENCIAL
A12: ASSENTAMENTO DE TUBOS E PECAS | B12: ASTU | C12: FORNEC E/OU ASSENT DE TUBO DE FERRO FUNDIDO JUNTA ELASTICA | D12: 0045 | G12: 97146 | H12: ASSENTAMENTO DE TUBO DE FERRO FUNDIDO PARA REDE DE ÁGUA, DN 300 MM, JUNTA ELÁSTICA, INSTALADO EM LOCAL COM NÍVEL ALTO DE INTERFERÊNCIAS (NÃO INCLUI FORNECIMENTO). AF_11/2017 | I12: M | J12: COEFICIENTE DE REPRESENTATIVIDADE | K12: 19.68 | L12: CAIXA REFERENCIAL
A13: ASSENTAMENTO DE TUBOS E PECAS | B13: ASTU | C13: FORNEC E/OU ASSENT DE TUBO DE FERRO FUNDIDO JUNTA ELASTICA | D13: 0045 | G13: 97147 | H13: ASSENTAMENTO DE TUBO DE FERRO FUNDIDO PARA REDE DE ÁGUA, DN 350 MM, JUNTA ELÁSTICA, INSTALADO EM LOCAL COM NÍVEL ALTO DE INTERFERÊNCIAS (NÃO INCLUI FORNECIMENTO). AF_11/2017 | I13: M | J13: COEFICIENTE DE REPRESENTATIVIDADE | K13: 22.12 | L13: CAIXA REFERENCIAL
A14: ASSENTAMENTO DE TUBOS E PECAS | B14: ASTU | C14: FORNEC E/OU ASSENT DE TUBO DE FERRO FUNDIDO JUNTA ELASTICA | D14: 0045 | G14: 97148 | H14: ASSENTAMENTO DE TUBO DE FERRO FUNDIDO PARA REDE DE ÁGUA, DN 400 MM, JUNTA ELÁSTICA, INSTALADO EM LOCAL COM NÍVEL ALTO DE INTERFERÊNCIAS (NÃO INCLUI FORNECIMENTO). AF_11/2017 | I14: M | J14: COEFICIENTE DE REPRESENTATIVIDADE | K14: 24.56 | L14: CAIXA REFERENCIAL
A15: ASSENTAMENTO DE TUBOS E PECAS | B15: ASTU | C15: FORNEC E/OU ASSENT DE TUBO DE FERRO FUNDIDO JUNTA ELASTICA | D15: 0045 | G15: 97149 | H15: ASSENTAMENTO DE TUBO DE FERRO FUNDIDO PARA REDE DE ÁGUA, DN 450 MM, JUNTA ELÁSTICA, INSTALADO EM LOCAL COM NÍVEL ALTO DE INTERFERÊNCIAS (NÃO INCLUI FORNECIMENTO). AF_11/2017 | I15: M | J15: COEFICIENTE DE REPRESENTATIVIDADE | K15: 27.04 | L15: CAIXA REFERENCIAL
A16: ASSENTAMENTO DE TUBOS E PECAS | B16: ASTU | C16: FORNEC E/OU ASSENT DE TUBO DE FERRO FUNDIDO JUNTA ELASTICA | D16: 0045 | G16: 97150 | H16: ASSENTAMENTO DE TUBO DE FERRO FUNDIDO PARA REDE DE ÁGUA, DN 500 MM, JUNTA ELÁSTICA, INSTALADO EM LOCAL COM NÍVEL ALTO DE INTERFERÊNCIAS (NÃO INCLUI FORNECIMENTO). AF_11/2017 | I16: M | J16: COEFICIENTE DE REPRESENTATIVIDADE | K16: 33.71 | L16: CAIXA REFERENCIAL
A17: ASSENTAMENTO DE TUBOS E PECAS | B17: ASTU | C17: FORNEC E/OU ASSENT DE TUBO DE FERRO FUNDIDO JUNTA ELASTICA | D17: 0045 | G17: 97151 | H17: ASSENTAMENTO DE TUBO DE FERRO FUNDIDO PARA REDE DE ÁGUA, DN 600 MM, JUNTA ELÁSTICA, INSTALADO EM LOCAL COM NÍVEL ALTO DE INTERFERÊNCIAS (NÃO INCLUI FORNECIMENTO). AF_11/2017 | I17: M | J17: COEFICIENTE DE REPRESENTATIVIDADE | K17: 39.24 | L17: CAIXA REFERENCIAL
A18: ASSENTAMENTO DE TUBOS E PECAS | B18: ASTU | C18: FORNEC E/OU ASSENT DE TUBO DE FERRO FUNDIDO JUNTA ELASTICA | D18: 0045 | G18: 97152 | H18: ASSENTAMENTO DE TUBO DE FERRO FUNDIDO PARA REDE DE ÁGUA, DN 700 MM, JUNTA ELÁSTICA, INSTALADO EM LOCAL COM NÍVEL ALTO DE INTERFERÊNCIAS (NÃO INCLUI FORNECIMENTO). AF_11/2017 | I18: M | J18: COEFICIENTE DE REPRESENTATIVIDADE | K18: 44.53 | L18: CAIXA REFERENCIAL
A19: ASSENTAMENTO DE TUBOS E PECAS | B19: ASTU | C19: FORNEC E/OU ASSENT DE TUBO DE FERRO FUNDIDO JUNTA ELASTICA | D19: 0045 | G19: 97153 | H19: ASSENTAMENTO DE TUBO DE FERRO FUNDIDO PARA REDE DE ÁGUA, DN 800 MM, JUNTA ELÁSTICA, INSTALADO EM LOCAL COM NÍVEL ALTO DE INTERFERÊNCIAS (NÃO INCLUI FORNECIMENTO). AF_11/2017 | I19: M | J19: COEFICIENTE DE REPRESENTATIVIDADE | K19: 49.97 | L19: CAIXA REFERENCIAL
A20: ASSENTAMENTO DE TUBOS E PECAS | B20: ASTU | C20: FORNEC E/OU ASSENT DE TUBO DE FERRO FUNDIDO JUNTA ELASTICA | D20: 0045 | G20: 97154 | H20: ASSENTAMENTO DE TUBO DE FERRO FUNDIDO PARA REDE DE ÁGUA, DN 900 MM, JUNTA ELÁSTICA, INSTALADO EM LOCAL COM NÍVEL ALTO DE INTERFERÊNCIAS (NÃO INCLUI FORNECIMENTO). AF_11/2017 | I20: M | J20: COEFICIENTE DE REPRESENTATIVIDADE | K20: 55.46 | L20: CAIXA REFERENCIAL
A21: ASSENTAMENTO DE TUBOS E PECAS | B21: ASTU | C21: FORNEC E/OU ASSENT DE TUBO DE FERRO FUNDIDO JUNTA ELASTICA | D21: 0045 | G21: 97155 | H21: ASSENTAMENTO DE TUBO DE FERRO FUNDIDO PARA REDE DE ÁGUA, DN 1000 MM, JUNTA ELÁSTICA, INSTALADO EM LOCAL COM NÍVEL ALTO DE INTERFERÊNCIAS (NÃO INCLUI FORNECIMENTO). AF_11/2017 | I21: M | J21: COEFICIENTE DE REPRESENTATIVIDADE | K21: 60.92 | L21: CAIXA REFERENCIAL
A22: ASSENTAMENTO DE TUBOS E PECAS | B22: ASTU | C22: FORNEC E/OU ASSENT DE TUBO DE FERRO FUNDIDO JUNTA ELASTICA | D22: 0045 | G22: 97156 | H22: ASSENTAMENTO DE TUBO DE FERRO FUNDIDO PARA REDE DE ÁGUA, DN 1200 MM, JUNTA ELÁSTICA, INSTALADO EM LOCAL COM NÍVEL ALTO DE INTERFERÊNCIAS (NÃO INCLUI FORNECIMENTO). AF_11/2017 | I22: M | J22: COEFICIENTE DE REPRESENTATIVIDADE | K22: 72.23 | L22: CAIXA REFERENCIAL
A23: ASSENTAMENTO DE TUBOS E PECAS | B23: ASTU | C23: FORNEC E/OU ASSENT DE TUBO DE FERRO FUNDIDO JUNTA ELASTICA | D23: 0045 | G23: 97157 | H23: ASSENTAMENTO DE TUBO DE FERRO FUNDIDO PARA REDE DE ÁGUA, DN 80 MM, JUNTA ELÁSTICA, INSTALADO EM LOCAL COM NÍVEL BAIXO DE INTERFERÊNCIAS (NÃO INCLUI FORNECIMENTO). AF_11/2017 | I23: M | J23: COEFICIENTE DE REPRESENTATIVIDADE | K23: 5.37 | L23: CAIXA REFERENCIAL
A24: ASSENTAMENTO DE TUBOS E PECAS | B24: ASTU | C24: FORNEC E/OU ASSENT DE TUBO DE FERRO FUNDIDO JUNTA ELASTICA | D24: 0045 | G24: 97158 | H24: ASSENTAMENTO DE TUBO DE FERRO FUNDIDO PARA REDE DE ÁGUA, DN 100 MM, JUNTA ELÁSTICA, INSTALADO EM LOCAL COM NÍVEL BAIXO DE INTERFERÊNCIAS (NÃO INCLUI FORNECIMENTO). AF_11/2017 | I24: M | J24: COEFICIENTE DE REPRESENTATIVIDADE | K24: 5.96 | L24: CAIXA REFERENCIAL
A25: ASSENTAMENTO DE TUBOS E PECAS | B25: ASTU | C25: FORNEC E/OU ASSENT DE TUBO DE FERRO FUNDIDO JUNTA ELASTICA | D25: 0045 | G25: 97159 | H25: ASSENTAMENTO DE TUBO DE FERRO FUNDIDO PARA REDE DE ÁGUA, DN 150 MM, JUNTA ELÁSTICA, INSTALADO EM LOCAL COM NÍVEL BAIXO DE INTERFERÊNCIAS (NÃO INCLUI FORNECIMENTO). AF_11/2017 | I25: M | J25: COEFICIENTE DE REPRESENTATIVIDADE | K25: 7.43 | L25: CAIXA REFERENCIAL
A26: ASSENTAMENTO DE TUBOS E PECAS | B26: ASTU | C26: FORNEC E/OU ASSENT DE TUBO DE FERRO FUNDIDO JUNTA ELASTICA | D26: 0045 | G26: 97160 | H26: ASSENTAMENTO DE TUBO DE FERRO FUNDIDO PARA REDE DE ÁGUA, DN 200 MM, JUNTA ELÁSTICA, INSTALADO EM LOCAL COM NÍVEL BAIXO DE INTERFERÊNCIAS (NÃO INCLUI FORNECIMENTO). AF_11/2017 | I26: M | J26: COEFICIENTE DE REPRESENTATIVIDADE | K26: 8.89 | L26: CAIXA REFERENCIAL
A27: ASSENTAMENTO DE TUBOS E PECAS | B27: ASTU | C27: FORNEC E/OU ASSENT DE TUBO DE FERRO FUNDIDO JUNTA ELASTICA | D27: 0045 | G27: 97161 | H27: ASSENTAMENTO DE TUBO DE FERRO FUNDIDO PARA REDE DE ÁGUA, DN 250 MM, JUNTA ELÁSTICA, INSTALADO EM LOCAL COM NÍVEL BAIXO DE INTERFERÊNCIAS (NÃO INCLUI FORNECIMENTO). AF_11/2017 | I27: M | J27: COEFICIENTE DE REPRESENTATIVIDADE | K27: 10.38 | L27: CAIXA REFERENCIAL
A28: ASSENTAMENTO DE TUBOS E PECAS | B28: ASTU | C28: FORNEC E/OU ASSENT DE TUBO DE FERRO FUNDIDO JUNTA ELASTICA | D28: 0045 | G28: 97162 | H28: ASSENTAMENTO DE TUBO DE FERRO FUNDIDO PARA REDE DE ÁGUA, DN 300 MM, JUNTA ELÁSTICA, INSTALADO EM LOCAL COM NÍVEL BAIXO DE INTERFERÊNCIAS (NÃO INCLUI FORNECIMENTO). AF_11/2017 | I28: M | J28: COEFICIENTE DE REPRESENTATIVIDADE | K28: 11.86 | L28: CAIXA REFERENCIAL
A29: ASSENTAMENTO DE TUBOS E PECAS | B29: ASTU | C29: FORNEC E/OU ASSENT DE TUBO DE FERRO FUNDIDO JUNTA ELASTICA | D29: 0045 | G29: 97163 | H29: ASSENTAMENTO DE TUBO DE FERRO FUNDIDO PARA REDE DE ÁGUA, DN 350 MM, JUNTA ELÁSTICA, INSTALADO EM LOCAL COM NÍVEL BAIXO DE INTERFERÊNCIAS (NÃO INCLUI FORNECIMENTO). AF_11/2017 | I29: M | J29: COEFICIENTE DE REPRESENTATIVIDADE | K29: 13.36 | L29: CAIXA REFERENCIAL
A30: ASSENTAMENTO DE TUBOS E PECAS | B30: ASTU | C30: FORNEC E/OU ASSENT DE TUBO DE FERRO FUNDIDO JUNTA ELASTICA | D30: 0045 | G30: 97164 | H30: ASSENTAMENTO DE TUBO DE FERRO FUNDIDO PARA REDE DE ÁGUA, DN 400 MM, JUNTA ELÁSTICA, INSTALADO EM LOCAL COM NÍVEL BAIXO DE INTERFERÊNCIAS (NÃO INCLUI FORNECIMENTO). AF_11/2017 | I30: M | J30: COEFICIENTE DE REPRESENTATIVIDADE | K30: 14.84 | L30: CAIXA REFERENCIAL
A31: ASSENTAMENTO DE TUBOS E PECAS | B31: ASTU | C31: FORNEC E/OU ASSENT DE TUBO DE FERRO FUNDIDO JUNTA ELASTICA | D31: 0045 | G31: 97165 | H31: ASSENTAMENTO DE TUBO DE FERRO FUNDIDO PARA REDE DE ÁGUA, DN 450 MM, JUNTA ELÁSTICA, INSTALADO EM LOCAL COM NÍVEL BAIXO DE INTERFERÊNCIAS (NÃO INCLUI FORNECIMENTO). AF_11/2017 | I31: M | J31: COEFICIENTE DE REPRESENTATIVIDADE | K31: 16.35 | L31: CAIXA REFERENCIAL
A32: ASSENTAMENTO DE TUBOS E PECAS | B32: ASTU | C32: FORNEC E/OU ASSENT DE TUBO DE FERRO FUNDIDO JUNTA ELASTICA | D32: 0045 | G32: 97166 | H32: ASSENTAMENTO DE TUBO DE FERRO FUNDIDO PARA REDE DE ÁGUA, DN 500 MM, JUNTA ELÁSTICA, INSTALADO EM LOCAL COM NÍVEL BAIXO DE INTERFERÊNCIAS (NÃO INCLUI FORNECIMENTO). AF_11/2017 | I32: M | J32: COEFICIENTE DE REPRESENTATIVIDADE | K32: 20.4 | L32: CAIXA REFERENCIAL
A33: ASSENTAMENTO DE TUBOS E PECAS | B33: ASTU | C33: FORNEC E/OU ASSENT DE TUBO DE FERRO FUNDIDO JUNTA ELASTICA | D33: 0045 | G33: 97167 | H33: ASSENTAMENTO DE TUBO DE FERRO FUNDIDO PARA REDE DE ÁGUA, DN 600 MM, JUNTA ELÁSTICA, INSTALADO EM LOCAL COM NÍVEL BAIXO DE INTERFERÊNCIAS (NÃO INCLUI FORNECIMENTO). AF_11/2017 | I33: M | J33: COEFICIENTE DE REPRESENTATIVIDADE | K33: 23.78 | L33: CAIXA REFERENCIAL
A34: ASSENTAMENTO DE TUBOS E PECAS | B34: ASTU | C34: FORNEC E/OU ASSENT DE TUBO DE FERRO FUNDIDO JUNTA ELASTICA | D34: 0045 | G34: 97168 | H34: ASSENTAMENTO DE TUBO DE FERRO FUNDIDO PARA REDE DE ÁGUA, DN 700 MM, JUNTA ELÁSTICA, INSTALADO EM LOCAL COM NÍVEL BAIXO DE INTERFERÊNCIAS (NÃO INCLUI FORNECIMENTO). AF_11/2017 | I34: M | J34: COEFICIENTE DE REPRESENTATIVIDADE | K34: 26.93 | L34: CAIXA REFERENCIAL
A35: ASSENTAMENTO DE TUBOS E PECAS | B35: ASTU | C35: FORNEC E/OU ASSENT DE TUBO DE FERRO FUNDIDO JUNTA ELASTICA | D35: 0045 | G35: 97169 | H35: ASSENTAMENTO DE TUBO DE FERRO FUNDIDO PARA REDE DE ÁGUA, DN 800 MM, JUNTA ELÁSTICA, INSTALADO EM LOCAL COM NÍVEL BAIXO DE INTERFERÊNCIAS (NÃO INCLUI FORNECIMENTO). AF_11/2017 | I35: M | J35: COEFICIENTE DE REPRESENTATIVIDADE | K35: 30.23 | L35: CAIXA REFERENCIAL
A36: ASSENTAMENTO DE TUBOS E PECAS | B36: ASTU | C36: FORNEC E/OU ASSENT DE TUBO DE FERRO FUNDIDO JUNTA ELASTICA | D36: 0045 | G36: 97170 | H36: ASSENTAMENTO DE TUBO DE FERRO FUNDIDO PARA REDE DE ÁGUA, DN 900 MM, JUNTA ELÁSTICA, INSTALADO EM LOCAL COM NÍVEL BAIXO DE INTERFERÊNCIAS (NÃO INCLUI FORNECIMENTO). AF_11/2017 | I36: M | J36: COEFICIENTE DE REPRESENTATIVIDADE | K36: 33.55 | L36: CAIXA REFERENCIAL
A37: ASSENTAMENTO DE TUBOS E PECAS | B37: ASTU | C37: FORNEC E/OU ASSENT DE TUBO DE FERRO FUNDIDO JUNTA ELASTICA | D37: 0045 | G37: 97171 | H37: ASSENTAMENTO DE TUBO DE FERRO FUNDIDO PARA REDE DE ÁGUA, DN 1000 MM, JUNTA ELÁSTICA, INSTALADO EM LOCAL COM NÍVEL BAIXO DE INTERFERÊNCIAS (NÃO INCLUI FORNECIMENTO). AF_11/2017 | I37: M | J37: COEFICIENTE DE REPRESENTATIVIDADE | K37: 36.88 | L37: CAIXA REFERENCIAL
A38: ASSENTAMENTO DE TUBOS E PECAS | B38: ASTU | C38: FORNEC E/OU ASSENT DE TUBO DE FERRO FUNDIDO JUNTA ELASTICA | D38: 0045 | G38: 97172 | H38: ASSENTAMENTO DE TUBO DE FERRO FUNDIDO PARA REDE DE ÁGUA, DN 1200 MM, JUNTA ELÁSTICA, INSTALADO EM LOCAL COM NÍVEL BAIXO DE INTERFERÊNCIAS (NÃO INCLUI FORNECIMENTO). AF_11/2017 | I38: M | J38: COEFICIENTE DE REPRESENTATIVIDADE | K38: 43.89 | L38: CAIXA REFERENCIAL
A39: ASSENTAMENTO DE TUBOS E PECAS | B39: ASTU | C39: FORNEC E/OU ASSENT DE TUBO DE ACO COM JUNTA SOLDADA | D39: 0046 | G39: 97173 | H39: ASSENTAMENTO DE TUBO DE AÇO CARBONO PARA REDE DE ÁGUA, DN 600 MM (24"), JUNTA SOLDADA, INSTALADO EM LOCAL COM NÍVEL ALTO DE INTERFERÊNCIAS (NÃO INCLUI FORNECIMENTO). AF_11/2017 | I39: M | J39: COEFICIENTE DE REPRESENTATIVIDADE | K39: 36.23 | L39: CAIXA REFERENCIAL
A40: ASSENTAMENTO DE TUBOS E PECAS | B40: ASTU | C40: FORNEC E/OU ASSENT DE TUBO DE ACO COM JUNTA SOLDADA | D40: 0046 | G40: 97174 | H40: ASSENTAMENTO DE TUBO DE AÇO CARBONO PARA REDE DE ÁGUA, DN 700 MM (28"), JUNTA SOLDADA, INSTALADO EM LOCAL COM NÍVEL ALTO DE INTERFERÊNCIAS (NÃO INCLUI FORNECIMENTO). AF_11/2017 | I40: M | J40: COEFICIENTE DE REPRESENTATIVIDADE | K40: 41.95 | L40: CAIXA REFERENCIAL
A41: ASSENTAMENTO DE TUBOS E PECAS | B41: ASTU | C41: FORNEC E/OU ASSENT DE TUBO DE ACO COM JUNTA SOLDADA | D41: 0046 | G41: 97175 | H41: ASSENTAMENTO DE TUBO DE AÇO CARBONO PARA REDE DE ÁGUA, DN 800 MM (32"), JUNTA SOLDADA, INSTALADO EM LOCAL COM NÍVEL ALTO DE INTERFERÊNCIAS (NÃO INCLUI FORNECIMENTO). AF_11/2017 | I41: M | J41: COEFICIENTE DE REPRESENTATIVIDADE | K41: 47.66 | L41: CAIXA REFERENCIAL
A42: ASSENTAMENTO DE TUBOS E PECAS | B42: ASTU | C42: FORNEC E/OU ASSENT DE TUBO DE ACO COM JUNTA SOLDADA | D42: 0046 | G42: 97176 | H42: ASSENTAMENTO DE TUBO DE AÇO CARBONO PARA REDE DE ÁGUA, DN 900 MM (36"), JUNTA SOLDADA, INSTALADO EM LOCAL COM NÍVEL ALTO DE INTERFERÊNCIAS (NÃO INCLUI FORNECIMENTO). AF_11/2017 | I42: M | J42: COEFICIENTE DE REPRESENTATIVIDADE | K42: 53.37 | L42: CAIXA REFERENCIAL
A43: ASSENTAMENTO DE TUBOS E PECAS | B43: ASTU | C43: FORNEC E/OU ASSENT DE TUBO DE ACO COM JUNTA SOLDADA | D43: 0046 | G43: 97177 | H43: ASSENTAMENTO DE TUBO DE AÇO CARBONO PARA REDE DE ÁGUA, DN 1000 MM (40") OU DN 1100 MM (44"), JUNTA SOLDADA, INSTALADO EM LOCAL COM NÍVEL ALTO DE INTERFERÊNCIAS (NÃO INCLUI FORNECIMENTO). AF_11/2017 | I43: M | J43: COEFICIENTE DE REPRESENTATIVIDADE | K43: 64.81 | L43: CAIXA REFERENCIAL
A44: ASSENTAMENTO DE TUBOS E PECAS | B44: ASTU | C44: FORNEC E/OU ASSENT DE TUBO DE ACO COM JUNTA SOLDADA | D44: 0046 | G44: 97178 | H44: ASSENTAMENTO DE TUBO DE AÇO CARBONO PARA REDE DE ÁGUA, DN 1200 MM (48") OU DN 1300 MM (52"), JUNTA SOLDADA, INSTALADO EM LOCAL COM NÍVEL ALTO DE INTERFERÊNCIAS (NÃO INCLUI FORNECIMENTO). AF_11/2017 | I44: M | J44: COEFICIENTE DE REPRESENTATIVIDADE | K44: 76.25 | L44: CAIXA REFERENCIAL
A45: ASSENTAMENTO DE TUBOS E PECAS | B45: ASTU | C45: FORNEC E/OU ASSENT DE TUBO DE ACO COM JUNTA SOLDADA | D45: 0046 | G45: 97179 | H45: ASSENTAMENTO DE TUBO DE AÇO CARBONO PARA REDE DE ÁGUA, DN 1400 MM (56'') OU DN 1500 MM (60"), JUNTA SOLDADA, INSTALADO EM LOCAL COM NÍVEL ALTO DE INTERFERÊNCIAS (NÃO INCLUI FORNECIMENTO). AF_11/2017 | I45: M | J45: COEFICIENTE DE REPRESENTATIVIDADE | K45: 87.65 | L45: CAIXA REFERENCIAL
A46: ASSENTAMENTO DE TUBOS E PECAS | B46: ASTU | C46: FORNEC E/OU ASSENT DE TUBO DE ACO COM JUNTA SOLDADA | D46: 0046 | G46: 97180 | H46: ASSENTAMENTO DE TUBO DE AÇO CARBONO PARA REDE DE ÁGUA, DN 1600 MM (64") OU DN 1700 MM (68"), JUNTA SOLDADA, INSTALADO EM LOCAL COM NÍVEL ALTO DE INTERFERÊNCIAS (NÃO INCLUI FORNECIMENTO). AF_11/2017 | I46: M | J46: COEFICIENTE DE REPRESENTATIVIDADE | K46: 99.1 | L46: CAIXA REFERENCIAL
A47: ASSENTAMENTO DE TUBOS E PECAS | B47: ASTU | C47: FORNEC E/OU ASSENT DE TUBO DE ACO COM JUNTA SOLDADA | D47: 0046 | G47: 97181 | H47: ASSENTAMENTO DE TUBO DE AÇO CARBONO PARA REDE DE ÁGUA, DN 1800 MM (72") OU DN 1900 MM (76"), JUNTA SOLDADA, INSTALADO EM LOCAL COM NÍVEL ALTO DE INTERFERÊNCIAS (NÃO INCLUI FORNECIMENTO). AF_11/2017 | I47: M | J47: COEFICIENTE DE REPRESENTATIVIDADE | K47: 115.2 | L47: CAIXA REFERENCIAL
A48: ASSENTAMENTO DE TUBOS E PECAS | B48: ASTU | C48: FORNEC E/OU ASSENT DE TUBO DE ACO COM JUNTA SOLDADA | D48: 0046 | G48: 97182 | H48: ASSENTAMENTO DE TUBO DE AÇO CARBONO PARA REDE DE ÁGUA, DN 2000 MM (80") OU DN 2100 MM (84"), JUNTA SOLDADA, INSTALADO EM LOCAL COM NÍVEL ALTO DE INTERFERÊNCIAS (NÃO INCLUI FORNECIMENTO). AF_11/2017 | I48: M | J48: COEFICIENTE DE REPRESENTATIVIDADE | K48: 127.14 | L48: CAIXA REFERENCIAL
A49: ASSENTAMENTO DE TUBOS E PECAS | B49: ASTU | C49: FORNEC E/OU ASSENT DE TUBO DE ACO COM JUNTA SOLDADA | D49: 0046 | G49: 97183 | H49: ASSENTAMENTO DE TUBO DE AÇO CARBONO PARA REDE DE ÁGUA, DN 600 MM (24"), JUNTA SOLDADA, INSTALADO EM LOCAL COM NÍVEL BAIXO DE INTERFERÊNCIAS (NÃO INCLUI FORNECIMENTO). AF_11/2017 | I49: M | J49: COEFICIENTE DE REPRESENTATIVIDADE | K49: 28.59 | L49: CAIXA REFERENCIAL
A50: ASSENTAMENTO DE TUBOS E PECAS | B50: ASTU | C50: FORNEC E/OU ASSENT DE TUBO DE ACO COM JUNTA SOLDADA | D50: 0046 | G50: 97184 | H50: ASSENTAMENTO DE TUBO DE AÇO CARBONO PARA REDE DE ÁGUA, DN 700 MM (28"), JUNTA SOLDADA, INSTALADO EM LOCAL COM NÍVEL BAIXO DE INTERFERÊNCIAS (NÃO INCLUI FORNECIMENTO). AF_11/2017 | I50: M | J50: COEFICIENTE DE REPRESENTATIVIDADE | K50: 33.15 | L50: CAIXA REFERENCIAL
A51: ASSENTAMENTO DE TUBOS E PECAS | B51: ASTU | C51: FORNEC E/OU ASSENT DE TUBO DE ACO COM JUNTA SOLDADA | D51: 0046 | G51: 97185 | H51: ASSENTAMENTO DE TUBO DE AÇO CARBONO PARA REDE DE ÁGUA, DN 800 MM (32"), JUNTA SOLDADA, INSTALADO EM LOCAL COM NÍVEL BAIXO DE INTERFERÊNCIAS (NÃO INCLUI FORNECIMENTO). AF_11/2017 | I51: M | J51: COEFICIENTE DE REPRESENTATIVIDADE | K51: 37.72 | L51: CAIXA REFERENCIAL
A52: ASSENTAMENTO DE TUBOS E PECAS | B52: ASTU | C52: FORNEC E/OU ASSENT DE TUBO DE ACO COM JUNTA SOLDADA | D52: 0046 | G52: 97186 | H52: ASSENTAMENTO DE TUBO DE AÇO CARBONO PARA REDE DE ÁGUA, DN 900 MM (36"), JUNTA SOLDADA, INSTALADO EM LOCAL COM NÍVEL BAIXO DE INTERFERÊNCIAS (NÃO INCLUI FORNECIMENTO). AF_11/2017 | I52: M | J52: COEFICIENTE DE REPRESENTATIVIDADE | K52: 42.3 | L52: CAIXA REFERENCIAL
A53: ASSENTAMENTO DE TUBOS E PECAS | B53: ASTU | C53: FORNEC E/OU ASSENT DE TUBO DE ACO COM JUNTA SOLDADA | D53: 0046 | G53: 97187 | H53: ASSENTAMENTO DE TUBO DE AÇO CARBONO PARA REDE DE ÁGUA, DN 1000 MM (40 ) OU DN 1100 MM (44 ), JUNTA SOLDADA, INSTALADO EM LOCAL COM NÍVEL BAIXO DE INTERFERÊNCIAS (NÃO INCLUI FORNECIMENTO). AF_11/2017 | I53: M | J53: COEFICIENTE DE REPRESENTATIVIDADE | K53: 51.44 | L53: CAIXA REFERENCIAL
A54: ASSENTAMENTO DE TUBOS E PECAS | B54: ASTU | C54: FORNEC E/OU ASSENT DE TUBO DE ACO COM JUNTA SOLDADA | D54: 0046 | G54: 97188 | H54: ASSENTAMENTO DE TUBO DE AÇO CARBONO PARA REDE DE ÁGUA, DN 1200 MM (48") OU DN 1300 MM (52"), JUNTA SOLDADA, INSTALADO EM LOCAL COM NÍVEL BAIXO DE INTERFERÊNCIAS (NÃO INCLUI FORNECIMENTO). AF_11/2017 | I54: M | J54: COEFICIENTE DE REPRESENTATIVIDADE | K54: 60.58 | L54: CAIXA REFERENCIAL
A55: ASSENTAMENTO DE TUBOS E PECAS | B55: ASTU | C55: FORNEC E/OU ASSENT DE TUBO DE ACO COM JUNTA SOLDADA | D55: 0046 | G55: 97189 | H55: ASSENTAMENTO DE TUBO DE AÇO CARBONO PARA REDE DE ÁGUA, DN 1400 MM (56'') OU DN 1500 MM (60"), JUNTA SOLDADA, INSTALADO EM LOCAL COM NÍVEL BAIXO DE INTERFERÊNCIAS (NÃO INCLUI FORNECIMENTO). AF_11/2017 | I55: M | J55: COEFICIENTE DE REPRESENTATIVIDADE | K55: 69.71 | L55: CAIXA REFERENCIAL
A56: ASSENTAMENTO DE TUBOS E PECAS | B56: ASTU | C56: FORNEC E/OU ASSENT DE TUBO DE ACO COM JUNTA SOLDADA | D56: 0046 | G56: 97190 | H56: ASSENTAMENTO DE TUBO DE AÇO CARBONO PARA REDE DE ÁGUA, DN 1600 MM (64") OU DN 1700 MM (68"), JUNTA SOLDADA, INSTALADO EM LOCAL COM NÍVEL BAIXO DE INTERFERÊNCIAS (NÃO INCLUI FORNECIMENTO). AF_11/2017 | I56: M | J56: COEFICIENTE DE REPRESENTATIVIDADE | K56: 78.86 | L56: CAIXA REFERENCIAL
A57: ASSENTAMENTO DE TUBOS E PECAS | B57: ASTU | C57: FORNEC E/OU ASSENT DE TUBO DE ACO COM JUNTA SOLDADA | D57: 0046 | G57: 97191 | H57: ASSENTAMENTO DE TUBO DE AÇO CARBONO PARA REDE DE ÁGUA, DN 1800 MM (72") OU DN 1900 MM (76"), JUNTA SOLDADA, INSTALADO EM LOCAL COM NÍVEL BAIXO DE INTERFERÊNCIAS (NÃO INCLUI FORNECIMENTO). AF_11/2017 | I57: M | J57: COEFICIENTE DE REPRESENTATIVIDADE | K57: 91.4 | L57: CAIXA REFERENCIAL
A58: ASSENTAMENTO DE TUBOS E PECAS | B58: ASTU | C58: FORNEC E/OU ASSENT DE TUBO DE ACO COM JUNTA SOLDADA | D58: 0046 | G58: 97192 | H58: ASSENTAMENTO DE TUBO DE AÇO CARBONO PARA REDE DE ÁGUA, DN 2000 MM (80") OU DN 2100 MM (84"), JUNTA SOLDADA, INSTALADO EM LOCAL COM NÍVEL BAIXO DE INTERFERÊNCIAS (NÃO INCLUI FORNECIMENTO). AF_11/2017 | I58: M | J58: COEFICIENTE DE REPRESENTATIVIDADE | K58: 100.91 | L58: CAIXA REFERENCIAL
A59: ASSENTAMENTO DE TUBOS E PECAS | B59: ASTU | C59: FORNEC E/OU ASSENT DE TUBO DE PVC COM JUNTA ELASTICA | D59: 0048 | G59: 90694 | H59: TUBO DE PVC PARA REDE COLETORA DE ESGOTO DE PAREDE MACIÇA, DN 100 MM, JUNTA ELÁSTICA - FORNECIMENTO E ASSENTAMENTO. AF_01/2021 | I59: M | J59: COEFICIENTE DE REPRESENTATIVIDADE | K59: 37.72 | L59: CAIXA REFERENCIAL
A60: ASSENTAMENTO DE TUBOS E PECAS | B60: ASTU | C60: FORNEC E/OU ASSENT DE TUBO DE PVC COM JUNTA ELASTICA | D60: 0048 | G60: 90695 | H60: TUBO DE PVC PARA REDE COLETORA DE ESGOTO DE PAREDE MACIÇA, DN 150 MM, JUNTA ELÁSTICA - FORNECIMENTO E ASSENTAMENTO. AF_01/2021 | I60: M | J60: COEFICIENTE DE REPRESENTATIVIDADE | K60: 71.36 | L60: CAIXA REFERENCIAL
A61: ASSENTAMENTO DE TUBOS E PECAS | B61: ASTU | C61: FORNEC E/OU ASSENT DE TUBO DE PVC COM JUNTA ELASTICA | D61: 0048 | G61: 90696 | H61: TUBO DE PVC PARA REDE COLETORA DE ESGOTO DE PAREDE MACIÇA, DN 200 MM, JUNTA ELÁSTICA - FORNECIMENTO E ASSENTAMENTO. AF_01/2021 | I61: M | J61: COEFICIENTE DE REPRESENTATIVIDADE | K61: 118.93 | L61: CAIXA REFERENCIAL
A62: ASSENTAMENTO DE TUBOS E PECAS | B62: ASTU | C62: FORNEC E/OU ASSENT DE TUBO DE PVC COM JUNTA ELASTICA | D62: 0048 | G62: 90697 | H62: TUBO DE PVC PARA REDE COLETORA DE ESGOTO DE PAREDE MACIÇA, DN 250 MM, JUNTA ELÁSTICA - FORNECIMENTO E ASSENTAMENTO. AF_01/2021 | I62: M | J62: COEFICIENTE DE REPRESENTATIVIDADE | K62: 184.27 | L62: CAIXA REFERENCIAL
A63: ASSENTAMENTO DE TUBOS E PECAS | B63: ASTU | C63: FORNEC E/OU ASSENT DE TUBO DE PVC COM JUNTA ELASTICA | D63: 0048 | G63: 90698 | H63: TUBO DE PVC PARA REDE COLETORA DE ESGOTO DE PAREDE MACIÇA, DN 300 MM, JUNTA ELÁSTICA, FORNECIMENTO E ASSENTAMENTO. AF_01/2021 | I63: M | J63: COEFICIENTE DE REPRESENTATIVIDADE | K63: 281.36 | L63: CAIXA REFERENCIAL
A64: ASSENTAMENTO DE TUBOS E PECAS | B64: ASTU | C64: FORNEC E/OU ASSENT DE TUBO DE PVC COM JUNTA ELASTICA | D64: 0048 | G64: 90699 | H64: TUBO DE PVC PARA REDE COLETORA DE ESGOTO DE PAREDE MACIÇA, DN 350 MM, JUNTA ELÁSTICA - FORNECIMENTO E ASSENTAMENTO. AF_01/2021 | I64: M | J64: COEFICIENTE DE REPRESENTATIVIDADE | K64: 395.77 | L64: CAIXA REFERENCIAL
A65: ASSENTAMENTO DE TUBOS E PECAS | B65: ASTU | C65: FORNEC E/OU ASSENT DE TUBO DE PVC COM JUNTA ELASTICA | D65: 0048 | G65: 90700 | H65: TUBO DE PVC PARA REDE COLETORA DE ESGOTO DE PAREDE MACIÇA, DN 400 MM, JUNTA ELÁSTICA FORNECIMENTO E ASSENTAMENTO. AF_01/2021 | I65: M | J65: COEFICIENTE DE REPRESENTATIVIDADE | K65: 463.2 | L65: CAIXA REFERENCIAL
A66: ASSENTAMENTO DE TUBOS E PECAS | B66: ASTU | C66: FORNEC E/OU ASSENT DE TUBO DE PVC COM JUNTA ELASTICA | D66: 0048 | G66: 90701 | H66: TUBO DE PVC CORRUGADO DE DUPLA PAREDE PARA REDE COLETORA DE ESGOTO, DN 150 MM, JUNTA ELÁSTICA - FORNECIMENTO E ASSENTAMENTO. AF_01/2021 | I66: M | J66: COEFICIENTE DE REPRESENTATIVIDADE | K66: 57.18 | L66: CAIXA REFERENCIAL
A67: ASSENTAMENTO DE TUBOS E PECAS | B67: ASTU | C67: FORNEC E/OU ASSENT DE TUBO DE PVC COM JUNTA ELASTICA | D67: 0048 | G67: 90702 | H67: TUBO DE PVC CORRUGADO DE DUPLA PAREDE PARA REDE COLETORA DE ESGOTO, DN 200 MM, JUNTA ELÁSTICA - FORNECIMENTO E ASSENTAMENTO. AF_01/2021 | I67: M | J67: COEFICIENTE DE REPRESENTATIVIDADE | K67: 94.22 | L67: CAIXA REFERENCIAL
A68: ASSENTAMENTO DE TUBOS E PECAS | B68: ASTU | C68: FORNEC E/OU ASSENT DE TUBO DE PVC COM JUNTA ELASTICA | D68: 0048 | G68: 90703 | H68: TUBO DE PVC CORRUGADO DE DUPLA PAREDE PARA REDE COLETORA DE ESGOTO, DN 250 MM, JUNTA ELÁSTICA - FORNECIMENTO E ASSENTAMENTO. AF_01/2021 | I68: M | J68: COEFICIENTE DE REPRESENTATIVIDADE | K68: 148.65 | L68: CAIXA REFERENCIAL
A69: ASSENTAMENTO DE TUBOS E PECAS | B69: ASTU | C69: FORNEC E/OU ASSENT DE TUBO DE PVC COM JUNTA ELASTICA | D69: 0048 | G69: 90704 | H69: TUBO DE PVC CORRUGADO DE DUPLA PAREDE PARA REDE COLETORA DE ESGOTO, DN 300 MM, JUNTA ELÁSTICA - FORNECIMENTO E ASSENTAMENTO. AF_01/2021 | I69: M | J69: COEFICIENTE DE REPRESENTATIVIDADE | K69: 223.36 | L69: CAIXA REFERENCIAL
A70: ASSENTAMENTO DE TUBOS E PECAS | B70: ASTU | C70: FORNEC E/OU ASSENT DE TUBO DE PVC COM JUNTA ELASTICA | D70: 0048 | G70: 90705 | H70: TUBO DE PVC CORRUGADO DE DUPLA PAREDE PARA REDE COLETORA DE ESGOTO, DN 350 MM, JUNTA ELÁSTICA - FORNECIMENTO E ASSENTAMENTO. AF_01/2021 | I70: M | J70: COEFICIENTE DE REPRESENTATIVIDADE | K70: 287.1 | L70: CAIXA REFERENCIAL
A71: ASSENTAMENTO DE TUBOS E PECAS | B71: ASTU | C71: FORNEC E/OU ASSENT DE TUBO DE PVC COM JUNTA ELASTICA | D71: 0048 | G71: 90706 | H71: TUBO DE PVC CORRUGADO DE DUPLA PAREDE PARA REDE COLETORA DE ESGOTO, DN 400 MM, JUNTA ELÁSTICA - FORNECIMENTO E ASSENTAMENTO. AF_01/2021 | I71: M | J71: COEFICIENTE DE REPRESENTATIVIDADE | K71: 381.88 | L71: CAIXA REFERENCIAL
A72: ASSENTAMENTO DE TUBOS E PECAS | B72: ASTU | C72: FORNEC E/OU ASSENT DE TUBO DE PVC COM JUNTA ELASTICA | D72: 0048 | G72: 90708 | H72: TUBO DE PEAD CORRUGADO DE DUPLA PAREDE PARA REDE COLETORA DE ESGOTO, DN 600 MM, JUNTA ELÁSTICA INTEGRADA - FORNECIMENTO E ASSENTAMENTO. AF_01/2021 | I72: M | J72: COEFICIENTE DE REPRESENTATIVIDADE | K72: 1783.84 | L72: CAIXA REFERENCIAL
A73: ASSENTAMENTO DE TUBOS E PECAS | B73: ASTU | C73: FORNEC E/OU ASSENT DE TUBO DE PVC COM JUNTA ELASTICA | D73: 0048 | G73: 90724 | H73: JUNTA ARGAMASSADA ENTRE TUBO DN 100 MM E O POÇO DE VISITA/ CAIXA DE CONCRETO OU ALVENARIA EM REDES DE ESGOTO. AF_01/2021 | I73: UN | J73: COEFICIENTE DE REPRESENTATIVIDADE | K73: 22.88 | L73: CAIXA REFERENCIAL
A74: ASSENTAMENTO DE TUBOS E PECAS | B74: ASTU | C74: FORNEC E/OU ASSENT DE TUBO DE PVC COM JUNTA ELASTICA | D74: 0048 | G74: 90725 | H74: JUNTA ARGAMASSADA ENTRE TUBO DN 150 MM E O POÇO DE VISITA/ CAIXA DE CONCRETO OU ALVENARIA EM REDES DE ESGOTO. AF_01/2021 | I74: UN | J74: COEFICIENTE DE REPRESENTATIVIDADE | K74: 28.15 | L74: CAIXA REFERENCIAL
A75: ASSENTAMENTO DE TUBOS E PECAS | B75: ASTU | C75: FORNEC E/OU ASSENT DE TUBO DE PVC COM JUNTA ELASTICA | D75: 0048 | G75: 90726 | H75: JUNTA ARGAMASSADA ENTRE TUBO DN 200 MM E O POÇO/ CAIXA DE CONCRETO OU ALVENARIA EM REDES DE ESGOTO. AF_01/2021 | I75: UN | J75: COEFICIENTE DE REPRESENTATIVIDADE | K75: 33.52 | L75: CAIXA REFERENCIAL
A76: ASSENTAMENTO DE TUBOS E PECAS | B76: ASTU | C76: FORNEC E/OU ASSENT DE TUBO DE PVC COM JUNTA ELASTICA | D76: 0048 | G76: 90727 | H76: JUNTA ARGAMASSADA ENTRE TUBO DN 250 MM E O POÇO DE VISITA/ CAIXA DE CONCRETO OU ALVENARIA EM REDES DE ESGOTO. AF_01/2021 | I76: UN | J76: COEFICIENTE DE REPRESENTATIVIDADE | K76: 38.79 | L76: CAIXA REFERENCIAL
A77: ASSENTAMENTO DE TUBOS E PECAS | B77: ASTU | C77: FORNEC E/OU ASSENT DE TUBO DE PVC COM JUNTA ELASTICA | D77: 0048 | G77: 90728 | H77: JUNTA ARGAMASSADA ENTRE TUBO DN 300 MM E O POÇO DE VISITA/ CAIXA DE CONCRETO OU ALVENARIA EM REDES DE ESGOTO. AF_01/2021 | I77: UN | J77: COEFICIENTE DE REPRESENTATIVIDADE | K77: 44.07 | L77: CAIXA REFERENCIAL
A78: ASSENTAMENTO DE TUBOS E PECAS | B78: ASTU | C78: FORNEC E/OU ASSENT DE TUBO DE PVC COM JUNTA ELASTICA | D78: 0048 | G78: 90729 | H78: JUNTA ARGAMASSADA ENTRE TUBO DN 350 MM E O POÇO DE VISITA/ CAIXA DE CONCRETO OU ALVENARIA EM REDES DE ESGOTO. AF_01/2021 | I78: UN | J78: COEFICIENTE DE REPRESENTATIVIDADE | K78: 49.36 | L78: CAIXA REFERENCIAL
A79: ASSENTAMENTO DE TUBOS E PECAS | B79: ASTU | C79: FORNEC E/OU ASSENT DE TUBO DE PVC COM JUNTA ELASTICA | D79: 0048 | G79: 90730 | H79: JUNTA ARGAMASSADA ENTRE TUBO DN 400 MM E O POÇO DE VISITA/ CAIXA DE CONCRETO OU ALVENARIA EM REDES DE ESGOTO. AF_01/2021 | I79: UN | J79: COEFICIENTE DE REPRESENTATIVIDADE | K79: 54.64 | L79: CAIXA REFERENCIAL
A80: ASSENTAMENTO DE TUBOS E PECAS | B80: ASTU | C80: FORNEC E/OU ASSENT DE TUBO DE PVC COM JUNTA ELASTICA | D80: 0048 | G80: 90731 | H80: JUNTA ARGAMASSADA ENTRE TUBO DN 450 MM E O POÇO DE VISITA/ CAIXA DE CONCRETO OU ALVENARIA EM REDES DE ESGOTO. AF_01/2021 | I80: UN | J80: COEFICIENTE DE REPRESENTATIVIDADE | K80: 59.93 | L80: CAIXA REFERENCIAL
A81: ASSENTAMENTO DE TUBOS E PECAS | B81: ASTU | C81: FORNEC E/OU ASSENT DE TUBO DE PVC COM JUNTA ELASTICA | D81: 0048 | G81: 90732 | H81: JUNTA ARGAMASSADA ENTRE TUBO DN 600 MM E O POÇO DE VISITA/ CAIXA DE CONCRETO OU ALVENARIA EM REDES DE ESGOTO. AF_01/2021 | I81: UN | J81: COEFICIENTE DE REPRESENTATIVIDADE | K81: 75.78 | L81: CAIXA REFERENCIAL
A82: ASSENTAMENTO DE TUBOS E PECAS | B82: ASTU | C82: FORNEC E/OU ASSENT DE TUBO DE PVC COM JUNTA ELASTICA | D82: 0048 | G82: 90733 | H82: ASSENTAMENTO DE TUBO DE PVC PARA REDE COLETORA DE ESGOTO DE PAREDE MACIÇA, DN 100 MM, JUNTA ELÁSTICA (NÃO INCLUI FORNECIMENTO). AF_01/2021 | I82: M | J82: COEFICIENTE DE REPRESENTATIVIDADE | K82: 3.21 | L82: CAIXA REFERENCIAL
A83: ASSENTAMENTO DE TUBOS E PECAS | B83: ASTU | C83: FORNEC E/OU ASSENT DE TUBO DE PVC COM JUNTA ELASTICA | D83: 0048 | G83: 90734 | H83: ASSENTAMENTO DE TUBO DE PVC PARA REDE COLETORA DE ESGOTO DE PAREDE MACIÇA, DN 150 MM, JUNTA ELÁSTICA, (NÃO INCLUI FORNECIMENTO). AF_01/2021 | I83: M | J83: COEFICIENTE DE REPRESENTATIVIDADE | K83: 3.8 | L83: CAIXA REFERENCIAL
A84: ASSENTAMENTO DE TUBOS E PECAS | B84: ASTU | C84: FORNEC E/OU ASSENT DE TUBO DE PVC COM JUNTA ELASTICA | D84: 0048 | G84: 90735 | H84: ASSENTAMENTO DE TUBO DE PVC PARA REDE COLETORA DE ESGOTO DE PAREDE MACIÇA, DN 200 MM, JUNTA ELÁSTICA (NÃO INCLUI FORNECIMENTO). AF_01/2021 | I84: M | J84: COEFICIENTE DE REPRESENTATIVIDADE | K84: 4.39 | L84: CAIXA REFERENCIAL
A85: ASSENTAMENTO DE TUBOS E PECAS | B85: ASTU | C85: FORNEC E/OU ASSENT DE TUBO DE PVC COM JUNTA ELASTICA | D85: 0048 | G85: 90736 | H85: ASSENTAMENTO DE TUBO DE PVC PARA REDE COLETORA DE ESGOTO DE PAREDE MACIÇA, DN 250 MM, JUNTA ELÁSTICA (NÃO INCLUI FORNECIMENTO). AF_01/2021 | I85: M | J85: COEFICIENTE DE REPRESENTATIVIDADE | K85: 4.99 | L85: CAIXA REFERENCIAL
A86: ASSENTAMENTO DE TUBOS E PECAS | B86: ASTU | C86: FORNEC E/OU ASSENT DE TUBO DE PVC COM JUNTA ELASTICA | D86: 0048 | G86: 90737 | H86: ASSENTAMENTO DE TUBO DE PVC PARA REDE COLETORA DE ESGOTO DE PAREDE MACIÇA, DN 300 MM, JUNTA ELÁSTICA (NÃO INCLUI FORNECIMENTO). AF_01/2021 | I86: M | J86: COEFICIENTE DE REPRESENTATIVIDADE | K86: 5.58 | L86: CAIXA REFERENCIAL
A87: ASSENTAMENTO DE TUBOS E PECAS | B87: ASTU | C87: FORNEC E/OU ASSENT DE TUBO DE PVC COM JUNTA ELASTICA | D87: 0048 | G87: 90738 | H87: ASSENTAMENTO DE TUBO DE PVC PARA REDE COLETORA DE ESGOTO DE PAREDE MACIÇA, DN 350 MM, JUNTA ELÁSTICA (NÃO INCLUI FORNECIMENTO). AF_01/2021 | I87: M | J87: COEFICIENTE DE REPRESENTATIVIDADE | K87: 6.18 | L87: CAIXA REFERENCIAL
A88: ASSENTAMENTO DE TUBOS E PECAS | B88: ASTU | C88: FORNEC E/OU ASSENT DE TUBO DE PVC COM JUNTA ELASTICA | D88: 0048 | G88: 90739 | H88: ASSENTAMENTO DE TUBO DE PVC PARA REDE COLETORA DE ESGOTO DE PAREDE MACIÇA, DN 400 MM, JUNTA ELÁSTICA (NÃO INCLUI FORNECIMENTO). AF_01/2021 | I88: M | J88: COEFICIENTE DE REPRESENTATIVIDADE | K88: 9.48 | L88: CAIXA REFERENCIAL
A89: ASSENTAMENTO DE TUBOS E PECAS | B89: ASTU | C89: FORNEC E/OU ASSENT DE TUBO DE PVC COM JUNTA ELASTICA | D89: 0048 | G89: 90740 | H89: ASSENTAMENTO DE TUBO DE PVC CORRUGADO DE DUPLA PAREDE PARA REDE COLETORA DE ESGOTO, DN 150 MM, JUNTA ELÁSTICA (NÃO INCLUI FORNECIMENTO). AF_01/2021 | I89: M | J89: COEFICIENTE DE REPRESENTATIVIDADE | K89: 4.24 | L89: CAIXA REFERENCIAL
A90: ASSENTAMENTO DE TUBOS E PECAS | B90: ASTU | C90: FORNEC E/OU ASSENT DE TUBO DE PVC COM JUNTA ELASTICA | D90: 0048 | G90: 90741 | H90: ASSENTAMENTO DE TUBO DE PVC CORRUGADO DE DUPLA PAREDE PARA REDE COLETORA DE ESGOTO, DN 200 MM, JUNTA ELÁSTICA (NÃO INCLUI FORNECIMENTO). AF_01/2021 | I90: M | J90: COEFICIENTE DE REPRESENTATIVIDADE | K90: 4.83 | L90: CAIXA REFERENCIAL
A91: ASSENTAMENTO DE TUBOS E PECAS | B91: ASTU | C91: FORNEC E/OU ASSENT DE TUBO DE PVC COM JUNTA ELASTICA | D91: 0048 | G91: 90742 | H91: ASSENTAMENTO DE TUBO DE PVC CORRUGADO DE DUPLA PAREDE PARA REDE COLETORA DE ESGOTO, DN 250 MM, JUNTA ELÁSTICA (NÃO INCLUI FORNECIMENTO). AF_01/2021 | I91: M | J91: COEFICIENTE DE REPRESENTATIVIDADE | K91: 5.42 | L91: CAIXA REFERENCIAL
A92: ASSENTAMENTO DE TUBOS E PECAS | B92: ASTU | C92: FORNEC E/OU ASSENT DE TUBO DE PVC COM JUNTA ELASTICA | D92: 0048 | G92: 90743 | H92: ASSENTAMENTO DE TUBO DE PVC CORRUGADO DE DUPLA PAREDE PARA REDE COLETORA DE ESGOTO, DN 300 MM, JUNTA ELÁSTICA (NÃO INCLUI FORNECIMENTO). AF_01/2021 | I92: M | J92: COEFICIENTE DE REPRESENTATIVIDADE | K92: 6.01 | L92: CAIXA REFERENCIAL
A93: ASSENTAMENTO DE TUBOS E PECAS | B93: ASTU | C93: FORNEC E/OU ASSENT DE TUBO DE PVC COM JUNTA ELASTICA | D93: 0048 | G93: 90744 | H93: ASSENTAMENTO DE TUBO DE PVC CORRUGADO DE DUPLA PAREDE PARA REDE COLETORA DE ESGOTO, DN 350 MM, JUNTA ELÁSTICA (NÃO INCLUI FORNECIMENTO). AF_01/2021 | I93: M | J93: COEFICIENTE DE REPRESENTATIVIDADE | K93: 6.62 | L93: CAIXA REFERENCIAL
A94: ASSENTAMENTO DE TUBOS E PECAS | B94: ASTU | C94: FORNEC E/OU ASSENT DE TUBO DE PVC COM JUNTA ELASTICA | D94: 0048 | G94: 90745 | H94: ASSENTAMENTO DE TUBO DE PVC CORRUGADO DE DUPLA PAREDE PARA REDE COLETORA DE ESGOTO, DN 400 MM, JUNTA ELÁSTICA (NÃO INCLUI FORNECIMENTO). AF_01/2021 | I94: M | J94: COEFICIENTE DE REPRESENTATIVIDADE | K94: 10.57 | L94: CAIXA REFERENCIAL
A95: ASSENTAMENTO DE TUBOS E PECAS | B95: ASTU | C95: FORNEC E/OU ASSENT DE TUBO DE PVC COM JUNTA ELASTICA | D95: 0048 | G95: 90746 | H95: ASSENTAMENTO DE TUBO DE PEAD CORRUGADO DE DUPLA PAREDE PARA REDE COLETORA DE ESGOTO, DN 450 MM, JUNTA ELÁSTICA INTEGRADA (NÃO INCLUI FORNECIMENTO). AF_01/2021 | I95: M | J95: COEFICIENTE DE REPRESENTATIVIDADE | K95: 3.47 | L95: CAIXA REFERENCIAL
A96: ASSENTAMENTO DE TUBOS E PECAS | B96: ASTU | C96: FORNEC E/OU ASSENT DE TUBO DE PVC COM JUNTA ELASTICA | D96: 0048 | G96: 90747 | H96: ASSENTAMENTO DE TUBO DE PEAD CORRUGADO DE DUPLA PAREDE PARA REDE COLETORA DE ESGOTO, DN 600 MM, JUNTA ELÁSTICA INTEGRADA (NÃO INCLUI FORNECIMENTO). AF_01/2021 | I96: M | J96: COEFICIENTE DE REPRESENTATIVIDADE | K96: 17.25 | L96: CAIXA REFERENCIAL
A97: ASSENTAMENTO DE TUBOS E PECAS | B97: ASTU | C97: FORNEC E/OU ASSENT DE TUBO DE PVC COM JUNTA ELASTICA | D97: 0048 | G97: 94869 | H97: TUBO DE PEAD CORRUGADO DE DUPLA PAREDE PARA REDE COLETORA DE ESGOTO, DN 250 MM, JUNTA ELÁSTICA INTEGRADA - FORNECIMENTO E ASSENTAMENTO. AF_01/2021 | I97: M | J97: COEFICIENTE DE REPRESENTATIVIDADE | K97: 316.22 | L97: CAIXA REFERENCIAL
A98: ASSENTAMENTO DE TUBOS E PECAS | B98: ASTU | C98: FORNEC E/OU ASSENT DE TUBO DE PVC COM JUNTA ELASTICA | D98: 0048 | G98: 94870 | H98: ASSENTAMENTO DE TUBO DE PEAD CORRUGADO DE DUPLA PAREDE PARA REDE COLETORA DE ESGOTO, DN 250 MM, JUNTA ELÁSTICA INTEGRADA (NÃO INCLUI FORNECIMENTO). AF_01/2021 | I98: M | J98: COEFICIENTE DE REPRESENTATIVIDADE | K98: 1.74 | L98: CAIXA REFERENCIAL
A99: ASSENTAMENTO DE TUBOS E PECAS | B99: ASTU | C99: FORNEC E/OU ASSENT DE TUBO DE PVC COM JUNTA ELASTICA | D99: 0048 | G99: 94871 | H99: TUBO DE PEAD CORRUGADO DE DUPLA PAREDE PARA REDE COLETORA DE ESGOTO, DN 300 MM, JUNTA ELÁSTICA INTEGRADA - FORNECIMENTO E ASSENTAMENTO. AF_01/2021 | I99: M | J99: COEFICIENTE DE REPRESENTATIVIDADE | K99: 495.17 | L99: CAIXA REFERENCIAL
A100: ASSENTAMENTO DE TUBOS E PECAS | B100: ASTU | C100: FORNEC E/OU ASSENT DE TUBO DE PVC COM JUNTA ELASTICA | D100: 0048 | G100: 94872 | H100: ASSENTAMENTO DE TUBO DE PEAD CORRUGADO DE DUPLA PAREDE PARA REDE COLETORA DE ESGOTO, DN 300 MM, JUNTA ELÁSTICA INTEGRADA (NÃO INCLUI FORNECIMENTO). AF_01/2021 | I100: M | J100: COEFICIENTE DE REPRESENTATIVIDADE | K100: 2.47 | L100: CAIXA REFERENCIAL
A101: ASSENTAMENTO DE TUBOS E PECAS | B101: ASTU | C101: FORNEC E/OU ASSENT DE TUBO DE PVC COM JUNTA ELASTICA | D101: 0048 | G101: 94875 | H101: TUBO DE PEAD CORRUGADO DE DUPLA PAREDE PARA REDE COLETORA DE ESGOTO, DN 800 MM, JUNTA ELÁSTICA INTEGRADA - FORNECIMENTO E ASSENTAMENTO. AF_01/2021 | I101: M | J101: COEFICIENTE DE REPRESENTATIVIDADE | K101: 2899.33 | L101: CAIXA REFERENCIAL
A102: ASSENTAMENTO DE TUBOS E PECAS | B102: ASTU | C102: FORNEC E/OU ASSENT DE TUBO DE PVC COM JUNTA ELASTICA | D102: 0048 | G102: 94876 | H102: ASSENTAMENTO DE TUBO DE PEAD CORRUGADO DE DUPLA PAREDE PARA REDE COLETORA DE ESGOTO, DN 800 MM, JUNTA ELÁSTICA INTEGRADA (NÃO INCLUI FORNECIMENTO). AF_01/2021 | I102: M | J102: COEFICIENTE DE REPRESENTATIVIDADE | K102: 28.59 | L102: CAIXA REFERENCIAL
A103: ASSENTAMENTO DE TUBOS E PECAS | B103: ASTU | C103: FORNEC E/OU ASSENT DE TUBO DE PVC COM JUNTA ELASTICA | D103: 0048 | G103: 94878 | H103: ASSENTAMENTO DE TUBO DE PEAD CORRUGADO DE DUPLA PAREDE PARA REDE COLETORA DE ESGOTO, DN 900 MM, JUNTA ELÁSTICA INTEGRADA (NÃO INCLUI FORNECIMENTO). AF_01/2021 | I103: M | J103: COEFICIENTE DE REPRESENTATIVIDADE | K103: 33.14 | L103: CAIXA REFERENCIAL
A104: ASSENTAMENTO DE TUBOS E PECAS | B104: ASTU | C104: FORNEC E/OU ASSENT DE TUBO DE PVC COM JUNTA ELASTICA | D104: 0048 | G104: 94879 | H104: TUBO DE PEAD CORRUGADO DE DUPLA PAREDE PARA REDE COLETORA DE ESGOTO, DN 1000 MM, JUNTA ELÁSTICA INTEGRADA - FORNECIMENTO E ASSENTAMENTO. AF_01/2021 | I104: M | J104: COEFICIENTE DE REPRESENTATIVIDADE | K104: 4464.79 | L104: CAIXA REFERENCIAL
A105: ASSENTAMENTO DE TUBOS E PECAS | B105: ASTU | C105: FORNEC E/OU ASSENT DE TUBO DE PVC COM JUNTA ELASTICA | D105: 0048 | G105: 94880 | H105: ASSENTAMENTO DE TUBO DE PEAD CORRUGADO DE DUPLA PAREDE PARA REDE COLETORA DE ESGOTO, DN 1000 MM, JUNTA ELÁSTICA INTEGRADA (NÃO INCLUI FORNECIMENTO). AF_01/2021 | I105: M | J105: COEFICIENTE DE REPRESENTATIVIDADE | K105: 42.48 | L105: CAIXA REFERENCIAL
A106: ASSENTAMENTO DE TUBOS E PECAS | B106: ASTU | C106: FORNEC E/OU ASSENT DE TUBO DE PVC COM JUNTA ELASTICA | D106: 0048 | G106: 94881 | H106: TUBO DE PEAD CORRUGADO DE DUPLA PAREDE PARA REDE COLETORA DE ESGOTO, DN 1200 MM, JUNTA ELÁSTICA INTEGRADA - FORNECIMENTO E ASSENTAMENTO. AF_01/2021 | I106: M | J106: COEFICIENTE DE REPRESENTATIVIDADE | K106: 6161.38 | L106: CAIXA REFERENCIAL
A107: ASSENTAMENTO DE TUBOS E PECAS | B107: ASTU | C107: FORNEC E/OU ASSENT DE TUBO DE PVC COM JUNTA ELASTICA | D107: 0048 | G107: 94882 | H107: ASSENTAMENTO DE TUBO DE PEAD CORRUGADO DE DUPLA PAREDE PARA REDE COLETORA DE ESGOTO, DN 1200 MM, JUNTA ELÁSTICA INTEGRADA (NÃO INCLUI FORNECIMENTO). AF_01/2021 | I107: M | J107: COEFICIENTE DE REPRESENTATIVIDADE | K107: 49.47 | L107: CAIXA REFERENCIAL
A108: ASSENTAMENTO DE TUBOS E PECAS | B108: ASTU | C108: FORNEC E/OU ASSENT DE TUBO DE PVC COM JUNTA ELASTICA | D108: 0048 | G108: 94884 | H108: ASSENTAMENTO DE TUBO DE PEAD CORRUGADO DE DUPLA PAREDE PARA REDE COLETORA DE ESGOTO, DN 1500 MM, JUNTA ELÁSTICA INTEGRADA (NÃO INCLUI FORNECIMENTO). AF_01/2021 | I108: M | J108: COEFICIENTE DE REPRESENTATIVIDADE | K108: 63.66 | L108: CAIXA REFERENCIAL
A109: ASSENTAMENTO DE TUBOS E PECAS | B109: ASTU | C109: FORNEC E/OU ASSENT DE TUBO DE PVC COM JUNTA ELASTICA | D109: 0048 | G109: 97121 | H109: ASSENTAMENTO DE TUBO DE PVC PBA PARA REDE DE ÁGUA, DN 50 MM, JUNTA ELÁSTICA INTEGRADA, INSTALADO EM LOCAL COM NÍVEL ALTO DE INTERFERÊNCIAS (NÃO INCLUI FORNECIMENTO). AF_11/2017 | I109: M | J109: COEFICIENTE DE REPRESENTATIVIDADE | K109: 1.91 | L109: CAIXA REFERENCIAL
A110: ASSENTAMENTO DE TUBOS E PECAS | B110: ASTU | C110: FORNEC E/OU ASSENT DE TUBO DE PVC COM JUNTA ELASTICA | D110: 0048 | G110: 97122 | H110: ASSENTAMENTO DE TUBO DE PVC PBA PARA REDE DE ÁGUA, DN 75 MM, JUNTA ELÁSTICA INTEGRADA, INSTALADO EM LOCAL COM NÍVEL ALTO DE INTERFERÊNCIAS (NÃO INCLUI FORNECIMENTO). AF_11/2017 | I110: M | J110: COEFICIENTE DE REPRESENTATIVIDADE | K110: 2.65 | L110: CAIXA REFERENCIAL
A111: ASSENTAMENTO DE TUBOS E PECAS | B111: ASTU | C111: FORNEC E/OU ASSENT DE TUBO DE PVC COM JUNTA ELASTICA | D111: 0048 | G111: 97123 | H111: ASSENTAMENTO DE TUBO DE PVC PBA PARA REDE DE ÁGUA, DN 100 MM, JUNTA ELÁSTICA INTEGRADA, INSTALADO EM LOCAL COM NÍVEL ALTO DE INTERFERÊNCIAS (NÃO INCLUI FORNECIMENTO). AF_11/2017 | I111: M | J111: COEFICIENTE DE REPRESENTATIVIDADE | K111: 3.36 | L111: CAIXA REFERENCIAL
A112: ASSENTAMENTO DE TUBOS E PECAS | B112: ASTU | C112: FORNEC E/OU ASSENT DE TUBO DE PVC COM JUNTA ELASTICA | D112: 0048 | G112: 97124 | H112: ASSENTAMENTO DE TUBO DE PVC PBA PARA REDE DE ÁGUA, DN 50 MM, JUNTA ELÁSTICA INTEGRADA, INSTALADO EM LOCAL COM NÍVEL BAIXO DE INTERFERÊNCIAS (NÃO INCLUI FORNECIMENTO). AF_11/2017 | I112: M | J112: COEFICIENTE DE REPRESENTATIVIDADE | K112: 0.84 | L112: CAIXA REFERENCIAL
A113: ASSENTAMENTO DE TUBOS E PECAS | B113: ASTU | C113: FORNEC E/OU ASSENT DE TUBO DE PVC COM JUNTA ELASTICA | D113: 0048 | G113: 97125 | H113: ASSENTAMENTO DE TUBO DE PVC PBA PARA REDE DE ÁGUA, DN 75 MM, JUNTA ELÁSTICA INTEGRADA, INSTALADO EM LOCAL COM NÍVEL BAIXO DE INTERFERÊNCIAS (NÃO INCLUI FORNECIMENTO). AF_11/2017 | I113: M | J113: COEFICIENTE DE REPRESENTATIVIDADE | K113: 1.19 | L113: CAIXA REFERENCIAL
A114: ASSENTAMENTO DE TUBOS E PECAS | B114: ASTU | C114: FORNEC E/OU ASSENT DE TUBO DE PVC COM JUNTA ELASTICA | D114: 0048 | G114: 97126 | H114: ASSENTAMENTO DE TUBO DE PVC PBA PARA REDE DE ÁGUA, DN 100 MM, JUNTA ELÁSTICA INTEGRADA, INSTALADO EM LOCAL COM NÍVEL BAIXO DE INTERFERÊNCIAS (NÃO INCLUI FORNECIMENTO). AF_11/2017 | I114: M | J114: COEFICIENTE DE REPRESENTATIVIDADE | K114: 1.51 | L114: CAIXA REFERENCIAL
A115: ASSENTAMENTO DE TUBOS E PECAS | B115: ASTU | C115: FORNEC E/OU ASSENT DE TUBO DE PVC COM JUNTA ELASTICA | D115: 0048 | G115: 102264 | H115: TUBO DE PVC BRANCO PARA REDE COLETORA DE ESGOTO CONDOMINIAL DE PAREDE MACIÇA, DN 100 MM, JUNTA ELÁSTICA - FORNECIMENTO E ASSENTAMENTO. AF_01/2021 | I115: M | J115: COEFICIENTE DE REPRESENTATIVIDADE | K115: 16.9 | L115: CAIXA REFERENCIAL
A116: ASSENTAMENTO DE TUBOS E PECAS | B116: ASTU | C116: FORNEC E/OU ASSENT DE TUBO DE PVC COM JUNTA ELASTICA | D116: 0048 | G116: 102265 | H116: JUNTA ARGAMASSADA ENTRE TUBO DN 800 MM E O POÇO DE VISITA/ CAIXA DE CONCRETO OU ALVENARIA EM REDES DE ESGOTO. AF_01/2021 | I116: UN | J116: COEFICIENTE DE REPRESENTATIVIDADE | K116: 96.9 | L116: CAIXA REFERENCIAL
A117: ASSENTAMENTO DE TUBOS E PECAS | B117: ASTU | C117: FORNEC E/OU ASSENT DE TUBO DE PVC COM JUNTA ELASTICA | D117: 0048 | G117: 102266 | H117: JUNTA ARGAMASSADA ENTRE TUBO DN 900 MM E O POÇO DE VISITA/ CAIXA DE CONCRETO OU ALVENARIA EM REDES DE ESGOTO. AF_01/2021 | I117: UN | J117: COEFICIENTE DE REPRESENTATIVIDADE | K117: 107.47 | L117: CAIXA REFERENCIAL
A118: ASSENTAMENTO DE TUBOS E PECAS | B118: ASTU | C118: FORNEC E/OU ASSENT DE TUBO DE PVC COM JUNTA ELASTICA | D118: 0048 | G118: 102267 | H118: JUNTA ARGAMASSADA ENTRE TUBO DN 1000 MM E O POÇO DE VISITA/ CAIXA DE CONCRETO OU ALVENARIA EM REDES DE ESGOTO. AF_01/2021 | I118: UN | J118: COEFICIENTE DE REPRESENTATIVIDADE | K118: 123.38 | L118: CAIXA REFERENCIAL
A119: ASSENTAMENTO DE TUBOS E PECAS | B119: ASTU | C119: FORNEC E/OU ASSENT DE TUBO DE PVC COM JUNTA ELASTICA | D119: 0048 | G119: 102268 | H119: JUNTA ARGAMASSADA ENTRE TUBO DN 1200 MM E O POÇO DE VISITA/ CAIXA DE CONCRETO OU ALVENARIA EM REDES DE ESGOTO. AF_01/2021 | I119: UN | J119: COEFICIENTE DE REPRESENTATIVIDADE | K119: 139.23 | L119: CAIXA REFERENCIAL
A120: ASSENTAMENTO DE TUBOS E PECAS | B120: ASTU | C120: FORNEC E/OU ASSENT DE TUBO DE PVC COM JUNTA ELASTICA | D120: 0048 | G120: 102269 | H120: JUNTA ARGAMASSADA ENTRE TUBO DN 1500 MM E O POÇO DE VISITA/ CAIXA DE CONCRETO OU ALVENARIA EM REDES DE ESGOTO. AF_01/2021 | I120: UN | J120: COEFICIENTE DE REPRESENTATIVIDADE | K120: 170.92 | L120: CAIXA REFERENCIAL
A121: ASSENTAMENTO DE TUBOS E PECAS | B121: ASTU | C121: FORNEC E/OU ASSENT DE TUBO DE CONCRETO COM JUNTA ELASTICA | D121: 0051 | G121: 92833 | H121: TUBO DE CONCRETO PARA REDES COLETORAS DE ESGOTO SANITÁRIO, DIÂMETRO DE 300 MM, JUNTA ELÁSTICA, INSTALADO EM LOCAL COM BAIXO NÍVEL DE INTERFERÊNCIAS - FORNECIMENTO E ASSENTAMENTO. AF_03/2024 | I121: M | J121: COEFICIENTE DE REPRESENTATIVIDADE | K121: 174.61 | L121: CAIXA REFERENCIAL
A122: ASSENTAMENTO DE TUBOS E PECAS | B122: ASTU | C122: FORNEC E/OU ASSENT DE TUBO DE CONCRETO COM JUNTA ELASTICA | D122: 0051 | G122: 92834 | H122: ASSENTAMENTO DE TUBO DE CONCRETO PARA REDES COLETORAS DE ESGOTO SANITÁRIO, DIÂMETRO DE 300 MM, JUNTA ELÁSTICA, INSTALADO EM LOCAL COM BAIXO NÍVEL DE INTERFERÊNCIAS (NÃO INCLUI FORNECIMENTO). AF_03/2024 | I122: M | J122: COEFICIENTE DE REPRESENTATIVIDADE | K122: 22.72 | L122: CAIXA REFERENCIAL
A123: ASSENTAMENTO DE TUBOS E PECAS | B123: ASTU | C123: FORNEC E/OU ASSENT DE TUBO DE CONCRETO COM JUNTA ELASTICA | D123: 0051 | G123: 92835 | H123: TUBO DE CONCRETO PARA REDES COLETORAS DE ESGOTO SANITÁRIO, DIÂMETRO DE 400 MM, JUNTA ELÁSTICA, INSTALADO EM LOCAL COM BAIXO NÍVEL DE INTERFERÊNCIAS - FORNECIMENTO E ASSENTAMENTO. AF_03/2024 | I123: M | J123: COEFICIENTE DE REPRESENTATIVIDADE | K123: 185.45 | L123: CAIXA REFERENCIAL
A124: ASSENTAMENTO DE TUBOS E PECAS | B124: ASTU | C124: FORNEC E/OU ASSENT DE TUBO DE CONCRETO COM JUNTA ELASTICA | D124: 0051 | G124: 92836 | H124: ASSENTAMENTO DE TUBO DE CONCRETO PARA REDES COLETORAS DE ESGOTO SANITÁRIO, DIÂMETRO DE 400 MM, JUNTA ELÁSTICA, INSTALADO EM LOCAL COM BAIXO NÍVEL DE INTERFERÊNCIAS (NÃO INCLUI FORNECIMENTO). AF_03/2024 | I124: M | J124: COEFICIENTE DE REPRESENTATIVIDADE | K124: 29.66 | L124: CAIXA REFERENCIAL
A125: ASSENTAMENTO DE TUBOS E PECAS | B125: ASTU | C125: FORNEC E/OU ASSENT DE TUBO DE CONCRETO COM JUNTA ELASTICA | D125: 0051 | G125: 92837 | H125: TUBO DE CONCRETO PARA REDES COLETORAS DE ESGOTO SANITÁRIO, DIÂMETRO DE 500 MM, JUNTA ELÁSTICA, INSTALADO EM LOCAL COM BAIXO NÍVEL DE INTERFERÊNCIAS - FORNECIMENTO E ASSENTAMENTO. AF_03/2024 | I125: M | J125: COEFICIENTE DE REPRESENTATIVIDADE | K125: 325.29 | L125: CAIXA REFERENCIAL
A126: ASSENTAMENTO DE TUBOS E PECAS | B126: ASTU | C126: FORNEC E/OU ASSENT DE TUBO DE CONCRETO COM JUNTA ELASTICA | D126: 0051 | G126: 92838 | H126: ASSENTAMENTO DE TUBO DE CONCRETO PARA REDES COLETORAS DE ESGOTO SANITÁRIO, DIÂMETRO DE 500 MM, JUNTA ELÁSTICA, INSTALADO EM LOCAL COM BAIXO NÍVEL DE INTERFERÊNCIAS (NÃO INCLUI FORNECIMENTO). AF_03/2024 | I126: M | J126: COEFICIENTE DE REPRESENTATIVIDADE | K126: 37.07 | L126: CAIXA REFERENCIAL
A127: ASSENTAMENTO DE TUBOS E PECAS | B127: ASTU | C127: FORNEC E/OU ASSENT DE TUBO DE CONCRETO COM JUNTA ELASTICA | D127: 0051 | G127: 92839 | H127: TUBO DE CONCRETO PARA REDES COLETORAS DE ESGOTO SANITÁRIO, DIÂMETRO DE 600 MM, JUNTA ELÁSTICA, INSTALADO EM LOCAL COM BAIXO NÍVEL DE INTERFERÊNCIAS - FORNECIMENTO E ASSENTAMENTO. AF_03/2024 | I127: M | J127: COEFICIENTE DE REPRESENTATIVIDADE | K127: 398.53 | L127: CAIXA REFERENCIAL
A128: ASSENTAMENTO DE TUBOS E PECAS | B128: ASTU | C128: FORNEC E/OU ASSENT DE TUBO DE CONCRETO COM JUNTA ELASTICA | D128: 0051 | G128: 92840 | H128: ASSENTAMENTO DE TUBO DE CONCRETO PARA REDES COLETORAS DE ESGOTO SANITÁRIO, DIÂMETRO DE 600 MM, JUNTA ELÁSTICA, INSTALADO EM LOCAL COM BAIXO NÍVEL DE INTERFERÊNCIAS (NÃO INCLUI FORNECIMENTO). AF_03/2024 | I128: M | J128: COEFICIENTE DE REPRESENTATIVIDADE | K128: 44.87 | L128: CAIXA REFERENCIAL
A129: ASSENTAMENTO DE TUBOS E PECAS | B129: ASTU | C129: FORNEC E/OU ASSENT DE TUBO DE CONCRETO COM JUNTA ELASTICA | D129: 0051 | G129: 92841 | H129: TUBO DE CONCRETO PARA REDES COLETORAS DE ESGOTO SANITÁRIO, DIÂMETRO DE 700 MM, JUNTA ELÁSTICA, INSTALADO EM LOCAL COM BAIXO NÍVEL DE INTERFERÊNCIAS - FORNECIMENTO E ASSENTAMENTO. AF_03/2024 | I129: M | J129: COEFICIENTE DE REPRESENTATIVIDADE | K129: 518.69 | L129: CAIXA REFERENCIAL
A130: ASSENTAMENTO DE TUBOS E PECAS | B130: ASTU | C130: FORNEC E/OU ASSENT DE TUBO DE CONCRETO COM JUNTA ELASTICA | D130: 0051 | G130: 92842 | H130: ASSENTAMENTO DE TUBO DE CONCRETO PARA REDES COLETORAS DE ESGOTO SANITÁRIO, DIÂMETRO DE 700 MM, JUNTA ELÁSTICA, INSTALADO EM LOCAL COM BAIXO NÍVEL DE INTERFERÊNCIAS (NÃO INCLUI FORNECIMENTO). AF_03/2024 | I130: M | J130: COEFICIENTE DE REPRESENTATIVIDADE | K130: 56.76 | L130: CAIXA REFERENCIAL
A131: ASSENTAMENTO DE TUBOS E PECAS | B131: ASTU | C131: FORNEC E/OU ASSENT DE TUBO DE CONCRETO COM JUNTA ELASTICA | D131: 0051 | G131: 92843 | H131: TUBO DE CONCRETO PARA REDES COLETORAS DE ESGOTO SANITÁRIO, DIÂMETRO DE 800 MM, JUNTA ELÁSTICA, INSTALADO EM LOCAL COM BAIXO NÍVEL DE INTERFERÊNCIAS - FORNECIMENTO E ASSENTAMENTO. AF_03/2024 | I131: M | J131: COEFICIENTE DE REPRESENTATIVIDADE | K131: 539.87 | L131: CAIXA REFERENCIAL
A132: ASSENTAMENTO DE TUBOS E PECAS | B132: ASTU | C132: FORNEC E/OU ASSENT DE TUBO DE CONCRETO COM JUNTA ELASTICA | D132: 0051 | G132: 92844 | H132: ASSENTAMENTO DE TUBO DE CONCRETO PARA REDES COLETORAS DE ESGOTO SANITÁRIO, DIÂMETRO DE 800 MM, JUNTA ELÁSTICA, INSTALADO EM LOCAL COM BAIXO NÍVEL DE INTERFERÊNCIAS (NÃO INCLUI FORNECIMENTO). AF_03/2024 | I132: M | J132: COEFICIENTE DE REPRESENTATIVIDADE | K132: 67.73 | L132: CAIXA REFERENCIAL
A133: ASSENTAMENTO DE TUBOS E PECAS | B133: ASTU | C133: FORNEC E/OU ASSENT DE TUBO DE CONCRETO COM JUNTA ELASTICA | D133: 0051 | G133: 92845 | H133: TUBO DE CONCRETO PARA REDES COLETORAS DE ESGOTO SANITÁRIO, DIÂMETRO DE 900 MM, JUNTA ELÁSTICA, INSTALADO EM LOCAL COM BAIXO NÍVEL DE INTERFERÊNCIAS - FORNECIMENTO E ASSENTAMENTO. AF_03/2024 | I133: M | J133: COEFICIENTE DE REPRESENTATIVIDADE | K133: 793.66 | L133: CAIXA REFERENCIAL
A134: ASSENTAMENTO DE TUBOS E PECAS | B134: ASTU | C134: FORNEC E/OU ASSENT DE TUBO DE CONCRETO COM JUNTA ELASTICA | D134: 0051 | G134: 92846 | H134: ASSENTAMENTO DE TUBO DE CONCRETO PARA REDES COLETORAS DE ESGOTO SANITÁRIO, DIÂMETRO DE 900 MM, JUNTA ELÁSTICA, INSTALADO EM LOCAL COM BAIXO NÍVEL DE INTERFERÊNCIAS (NÃO INCLUI FORNECIMENTO). AF_03/2024 | I134: M | J134: COEFICIENTE DE REPRESENTATIVIDADE | K134: 77.77 | L134: CAIXA REFERENCIAL
A135: ASSENTAMENTO DE TUBOS E PECAS | B135: ASTU | C135: FORNEC E/OU ASSENT DE TUBO DE CONCRETO COM JUNTA ELASTICA | D135: 0051 | G135: 92847 | H135: TUBO DE CONCRETO PARA REDES COLETORAS DE ESGOTO SANITÁRIO, DIÂMETRO DE 1000 MM, JUNTA ELÁSTICA, INSTALADO EM LOCAL COM BAIXO NÍVEL DE INTERFERÊNCIAS - FORNECIMENTO E ASSENTAMENTO. AF_03/2024 | I135: M | J135: COEFICIENTE DE REPRESENTATIVIDADE | K135: 818.36 | L135: CAIXA REFERENCIAL
A136: ASSENTAMENTO DE TUBOS E PECAS | B136: ASTU | C136: FORNEC E/OU ASSENT DE TUBO DE CONCRETO COM JUNTA ELASTICA | D136: 0051 | G136: 92848 | H136: ASSENTAMENTO DE TUBO DE CONCRETO PARA REDES COLETORAS DE ESGOTO SANITÁRIO, DIÂMETRO DE 1000 MM, JUNTA ELÁSTICA, INSTALADO EM LOCAL COM BAIXO NÍVEL DE INTERFERÊNCIAS (NÃO INCLUI FORNECIMENTO). AF_03/2024 | I136: M | J136: COEFICIENTE DE REPRESENTATIVIDADE | K136: 92.35 | L136: CAIXA REFERENCIAL
A137: ASSENTAMENTO DE TUBOS E PECAS | B137: ASTU | C137: FORNEC E/OU ASSENT DE TUBO DE CONCRETO COM JUNTA ELASTICA | D137: 0051 | G137: 92849 | H137: TUBO DE CONCRETO PARA REDES COLETORAS DE ESGOTO SANITÁRIO, DIÂMETRO DE 300 MM, JUNTA ELÁSTICA, INSTALADO EM LOCAL COM ALTO NÍVEL DE INTERFERÊNCIAS - FORNECIMENTO E ASSENTAMENTO. AF_03/2024 | I137: M | J137: COEFICIENTE DE REPRESENTATIVIDADE | K137: 177.05 | L137: CAIXA REFERENCIAL
A138: ASSENTAMENTO DE TUBOS E PECAS | B138: ASTU | C138: FORNEC E/OU ASSENT DE TUBO DE CONCRETO COM JUNTA ELASTICA | D138: 0051 | G138: 92850 | H138: ASSENTAMENTO DE TUBO DE CONCRETO PARA REDES COLETORAS DE ESGOTO SANITÁRIO, DIÂMETRO DE 300 MM, JUNTA ELÁSTICA, INSTALADO EM LOCAL COM ALTO NÍVEL DE INTERFERÊNCIAS (NÃO INCLUI FORNECIMENTO). AF_03/2024 | I138: M | J138: COEFICIENTE DE REPRESENTATIVIDADE | K138: 25.16 | L138: CAIXA REFERENCIAL
A139: ASSENTAMENTO DE TUBOS E PECAS | B139: ASTU | C139: FORNEC E/OU ASSENT DE TUBO DE CONCRETO COM JUNTA ELASTICA | D139: 0051 | G139: 92851 | H139: TUBO DE CONCRETO PARA REDES COLETORAS DE ESGOTO SANITÁRIO, DIÂMETRO DE 400 MM, JUNTA ELÁSTICA, INSTALADO EM LOCAL COM ALTO NÍVEL DE INTERFERÊNCIAS - FORNECIMENTO E ASSENTAMENTO. AF_03/2024 | I139: M | J139: COEFICIENTE DE REPRESENTATIVIDADE | K139: 188.95 | L139: CAIXA REFERENCIAL
A140: ASSENTAMENTO DE TUBOS E PECAS | B140: ASTU | C140: FORNEC E/OU ASSENT DE TUBO DE CONCRETO COM JUNTA ELASTICA | D140: 0051 | G140: 92852 | H140: ASSENTAMENTO DE TUBO DE CONCRETO PARA REDES COLETORAS DE ESGOTO SANITÁRIO, DIÂMETRO DE 400 MM, JUNTA ELÁSTICA, INSTALADO EM LOCAL COM ALTO NÍVEL DE INTERFERÊNCIAS (NÃO INCLUI FORNECIMENTO). AF_03/2024 | I140: M | J140: COEFICIENTE DE REPRESENTATIVIDADE | K140: 33.16 | L140: CAIXA REFERENCIAL
A141: ASSENTAMENTO DE TUBOS E PECAS | B141: ASTU | C141: FORNEC E/OU ASSENT DE TUBO DE CONCRETO COM JUNTA ELASTICA | D141: 0051 | G141: 92853 | H141: TUBO DE CONCRETO PARA REDES COLETORAS DE ESGOTO SANITÁRIO, DIÂMETRO DE 500 MM, JUNTA ELÁSTICA, INSTALADO EM LOCAL COM ALTO NÍVEL DE INTERFERÊNCIAS - FORNECIMENTO E ASSENTAMENTO. AF_03/2024 | I141: M | J141: COEFICIENTE DE REPRESENTATIVIDADE | K141: 329.82 | L141: CAIXA REFERENCIAL
A142: ASSENTAMENTO DE TUBOS E PECAS | B142: ASTU | C142: FORNEC E/OU ASSENT DE TUBO DE CONCRETO COM JUNTA ELASTICA | D142: 0051 | G142: 92854 | H142: ASSENTAMENTO DE TUBO DE CONCRETO PARA REDES COLETORAS DE ESGOTO SANITÁRIO, DIÂMETRO DE 500 MM, JUNTA ELÁSTICA, INSTALADO EM LOCAL COM ALTO NÍVEL DE INTERFERÊNCIAS (NÃO INCLUI FORNECIMENTO). AF_03/2024 | I142: M | J142: COEFICIENTE DE REPRESENTATIVIDADE | K142: 41.6 | L142: CAIXA REFERENCIAL
A143: ASSENTAMENTO DE TUBOS E PECAS | B143: ASTU | C143: FORNEC E/OU ASSENT DE TUBO DE CONCRETO COM JUNTA ELASTICA | D143: 0051 | G143: 92855 | H143: TUBO DE CONCRETO PARA REDES COLETORAS DE ESGOTO SANITÁRIO, DIÂMETRO DE 600 MM, JUNTA ELÁSTICA, INSTALADO EM LOCAL COM ALTO NÍVEL DE INTERFERÊNCIAS - FORNECIMENTO E ASSENTAMENTO. AF_03/2024 | I143: M | J143: COEFICIENTE DE REPRESENTATIVIDADE | K143: 404.11 | L143: CAIXA REFERENCIAL
A144: ASSENTAMENTO DE TUBOS E PECAS | B144: ASTU | C144: FORNEC E/OU ASSENT DE TUBO DE CONCRETO COM JUNTA ELASTICA | D144: 0051 | G144: 92856 | H144: ASSENTAMENTO DE TUBO DE CONCRETO PARA REDES COLETORAS DE ESGOTO SANITÁRIO, DIÂMETRO DE 600 MM, JUNTA ELÁSTICA, INSTALADO EM LOCAL COM ALTO NÍVEL DE INTERFERÊNCIAS (NÃO INCLUI FORNECIMENTO). AF_03/2024 | I144: M | J144: COEFICIENTE DE REPRESENTATIVIDADE | K144: 50.45 | L144: CAIXA REFERENCIAL
A145: ASSENTAMENTO DE TUBOS E PECAS | B145: ASTU | C145: FORNEC E/OU ASSENT DE TUBO DE CONCRETO COM JUNTA ELASTICA | D145: 0051 | G145: 92857 | H145: TUBO DE CONCRETO PARA REDES COLETORAS DE ESGOTO SANITÁRIO, DIÂMETRO DE 700 MM, JUNTA ELÁSTICA, INSTALADO EM LOCAL COM ALTO NÍVEL DE INTERFERÊNCIAS - FORNECIMENTO E ASSENTAMENTO. AF_03/2024 | I145: M | J145: COEFICIENTE DE REPRESENTATIVIDADE | K145: 525.33 | L145: CAIXA REFERENCIAL
A146: ASSENTAMENTO DE TUBOS E PECAS | B146: ASTU | C146: FORNEC E/OU ASSENT DE TUBO DE CONCRETO COM JUNTA ELASTICA | D146: 0051 | G146: 92858 | H146: ASSENTAMENTO DE TUBO DE CONCRETO PARA REDES COLETORAS DE ESGOTO SANITÁRIO, DIÂMETRO DE 700 MM, JUNTA ELÁSTICA, INSTALADO EM LOCAL COM ALTO NÍVEL DE INTERFERÊNCIAS (NÃO INCLUI FORNECIMENTO). AF_03/2024 | I146: M | J146: COEFICIENTE DE REPRESENTATIVIDADE | K146: 63.4 | L146: CAIXA REFERENCIAL
A147: ASSENTAMENTO DE TUBOS E PECAS | B147: ASTU | C147: FORNEC E/OU ASSENT DE TUBO DE CONCRETO COM JUNTA ELASTICA | D147: 0051 | G147: 92859 | H147: TUBO DE CONCRETO PARA REDES COLETORAS DE ESGOTO SANITÁRIO, DIÂMETRO DE 800 MM, JUNTA ELÁSTICA, INSTALADO EM LOCAL COM ALTO NÍVEL DE INTERFERÊNCIAS - FORNECIMENTO E ASSENTAMENTO. AF_03/2024 | I147: M | J147: COEFICIENTE DE REPRESENTATIVIDADE | K147: 547.54 | L147: CAIXA REFERENCIAL
A148: ASSENTAMENTO DE TUBOS E PECAS | B148: ASTU | C148: FORNEC E/OU ASSENT DE TUBO DE CONCRETO COM JUNTA ELASTICA | D148: 0051 | G148: 92860 | H148: ASSENTAMENTO DE TUBO DE CONCRETO PARA REDES COLETORAS DE ESGOTO SANITÁRIO, DIÂMETRO DE 800 MM, JUNTA ELÁSTICA, INSTALADO EM LOCAL COM ALTO NÍVEL DE INTERFERÊNCIAS (NÃO INCLUI FORNECIMENTO). AF_03/2024 | I148: M | J148: COEFICIENTE DE REPRESENTATIVIDADE | K148: 75.4 | L148: CAIXA REFERENCIAL
A149: ASSENTAMENTO DE TUBOS E PECAS | B149: ASTU | C149: FORNEC E/OU ASSENT DE TUBO DE CONCRETO COM JUNTA ELASTICA | D149: 0051 | G149: 92861 | H149: TUBO DE CONCRETO PARA REDES COLETORAS DE ESGOTO SANITÁRIO, DIÂMETRO DE 900 MM, JUNTA ELÁSTICA, INSTALADO EM LOCAL COM ALTO NÍVEL DE INTERFERÊNCIAS - FORNECIMENTO E ASSENTAMENTO. AF_03/2024 | I149: M | J149: COEFICIENTE DE REPRESENTATIVIDADE | K149: 802.37 | L149: CAIXA REFERENCIAL
A150: ASSENTAMENTO DE TUBOS E PECAS | B150: ASTU | C150: FORNEC E/OU ASSENT DE TUBO DE CONCRETO COM JUNTA ELASTICA | D150: 0051 | G150: 92862 | H150: ASSENTAMENTO DE TUBO DE CONCRETO PARA REDES COLETORAS DE ESGOTO SANITÁRIO, DIÂMETRO DE 900 MM, JUNTA ELÁSTICA, INSTALADO EM LOCAL COM ALTO NÍVEL DE INTERFERÊNCIAS (NÃO INCLUI FORNECIMENTO). AF_03/2024 | I150: M | J150: COEFICIENTE DE REPRESENTATIVIDADE | K150: 86.48 | L150: CAIXA REFERENCIAL
A151: ASSENTAMENTO DE TUBOS E PECAS | B151: ASTU | C151: FORNEC E/OU ASSENT DE TUBO DE CONCRETO COM JUNTA ELASTICA | D151: 0051 | G151: 92863 | H151: TUBO DE CONCRETO PARA REDES COLETORAS DE ESGOTO SANITÁRIO, DIÂMETRO DE 1000 MM, JUNTA ELÁSTICA, INSTALADO EM LOCAL COM ALTO NÍVEL DE INTERFERÊNCIAS - FORNECIMENTO E ASSENTAMENTO. AF_03/2024 | I151: M | J151: COEFICIENTE DE REPRESENTATIVIDADE | K151: 828.12 | L151: CAIXA REFERENCIAL
A152: ASSENTAMENTO DE TUBOS E PECAS | B152: ASTU | C152: FORNEC E/OU ASSENT DE TUBO DE CONCRETO COM JUNTA ELASTICA | D152: 0051 | G152: 92864 | H152: ASSENTAMENTO DE TUBO DE CONCRETO PARA REDES COLETORAS DE ESGOTO SANITÁRIO, DIÂMETRO DE 1000 MM, JUNTA ELÁSTICA, INSTALADO EM LOCAL COM ALTO NÍVEL DE INTERFERÊNCIAS (NÃO INCLUI FORNECIMENTO). AF_03/2024 | I152: M | J152: COEFICIENTE DE REPRESENTATIVIDADE | K152: 102.11 | L152: CAIXA REFERENCIAL
A153: ASSENTAMENTO DE TUBOS E PECAS | B153: ASTU | C153: FORNEC E/OU ASSENT DE TUBO DE CONCRETO COM JUNTA ARGAMASSADA | D153: 0052 | G153: 92210 | H153: TUBO DE CONCRETO PARA REDES COLETORAS DE ÁGUAS PLUVIAIS, DIÂMETRO DE 400 MM, JUNTA RÍGIDA, INSTALADO EM LOCAL COM BAIXO NÍVEL DE INTERFERÊNCIAS - FORNECIMENTO E ASSENTAMENTO. AF_03/2024 | I153: M | J153: COEFICIENTE DE REPRESENTATIVIDADE | K153: 129.8 | L153: CAIXA REFERENCIAL
A154: ASSENTAMENTO DE TUBOS E PECAS | B154: ASTU | C154: FORNEC E/OU ASSENT DE TUBO DE CONCRETO COM JUNTA ARGAMASSADA | D154: 0052 | G154: 92211 | H154: TUBO DE CONCRETO PARA REDES COLETORAS DE ÁGUAS PLUVIAIS, DIÂMETRO DE 500 MM, JUNTA RÍGIDA, INSTALADO EM LOCAL COM BAIXO NÍVEL DE INTERFERÊNCIAS - FORNECIMENTO E ASSENTAMENTO. AF_03/2024 | I154: M | J154: COEFICIENTE DE REPRESENTATIVIDADE | K154: 158.35 | L154: CAIXA REFERENCIAL
A155: ASSENTAMENTO DE TUBOS E PECAS | B155: ASTU | C155: FORNEC E/OU ASSENT DE TUBO DE CONCRETO COM JUNTA ARGAMASSADA | D155: 0052 | G155: 92212 | H155: TUBO DE CONCRETO PARA REDES COLETORAS DE ÁGUAS PLUVIAIS, DIÂMETRO DE 600 MM, JUNTA RÍGIDA, INSTALADO EM LOCAL COM BAIXO NÍVEL DE INTERFERÊNCIAS - FORNECIMENTO E ASSENTAMENTO. AF_03/2024 | I155: M | J155: COEFICIENTE DE REPRESENTATIVIDADE | K155: 239.32 | L155: CAIXA REFERENCIAL
A156: ASSENTAMENTO DE TUBOS E PECAS | B156: ASTU | C156: FORNEC E/OU ASSENT DE TUBO DE CONCRETO COM JUNTA ARGAMASSADA | D156: 0052 | G156: 92213 | H156: TUBO DE CONCRETO PARA REDES COLETORAS DE ÁGUAS PLUVIAIS, DIÂMETRO DE 700 MM, JUNTA RÍGIDA, INSTALADO EM LOCAL COM BAIXO NÍVEL DE INTERFERÊNCIAS - FORNECIMENTO E ASSENTAMENTO. AF_03/2024 | I156: M | J156: COEFICIENTE DE REPRESENTATIVIDADE | K156: 316.94 | L156: CAIXA REFERENCIAL
A157: ASSENTAMENTO DE TUBOS E PECAS | B157: ASTU | C157: FORNEC E/OU ASSENT DE TUBO DE CONCRETO COM JUNTA ARGAMASSADA | D157: 0052 | G157: 92214 | H157: TUBO DE CONCRETO PARA REDES COLETORAS DE ÁGUAS PLUVIAIS, DIÂMETRO DE 800 MM, JUNTA RÍGIDA, INSTALADO EM LOCAL COM BAIXO NÍVEL DE INTERFERÊNCIAS - FORNECIMENTO E ASSENTAMENTO. AF_03/2024 | I157: M | J157: COEFICIENTE DE REPRESENTATIVIDADE | K157: 383.27 | L157: CAIXA REFERENCIAL
A158: ASSENTAMENTO DE TUBOS E PECAS | B158: ASTU | C158: FORNEC E/OU ASSENT DE TUBO DE CONCRETO COM JUNTA ARGAMASSADA | D158: 0052 | G158: 92215 | H158: TUBO DE CONCRETO PARA REDES COLETORAS DE ÁGUAS PLUVIAIS, DIÂMETRO DE 900 MM, JUNTA RÍGIDA, INSTALADO EM LOCAL COM BAIXO NÍVEL DE INTERFERÊNCIAS - FORNECIMENTO E ASSENTAMENTO. AF_03/2024 | I158: M | J158: COEFICIENTE DE REPRESENTATIVIDADE | K158: 440.06 | L158: CAIXA REFERENCIAL
A159: ASSENTAMENTO DE TUBOS E PECAS | B159: ASTU | C159: FORNEC E/OU ASSENT DE TUBO DE CONCRETO COM JUNTA ARGAMASSADA | D159: 0052 | G159: 92216 | H159: TUBO DE CONCRETO PARA REDES COLETORAS DE ÁGUAS PLUVIAIS, DIÂMETRO DE 1000 MM, JUNTA RÍGIDA, INSTALADO EM LOCAL COM BAIXO NÍVEL DE INTERFERÊNCIAS - FORNECIMENTO E ASSENTAMENTO. AF_03/2024 | I159: M | J159: COEFICIENTE DE REPRESENTATIVIDADE | K159: 458.09 | L159: CAIXA REFERENCIAL
A160: ASSENTAMENTO DE TUBOS E PECAS | B160: ASTU | C160: FORNEC E/OU ASSENT DE TUBO DE CONCRETO COM JUNTA ARGAMASSADA | D160: 0052 | G160: 92219 | H160: TUBO DE CONCRETO PARA REDES COLETORAS DE ÁGUAS PLUVIAIS, DIÂMETRO DE 400 MM, JUNTA RÍGIDA, INSTALADO EM LOCAL COM ALTO NÍVEL DE INTERFERÊNCIAS - FORNECIMENTO E ASSENTAMENTO. AF_03/2024 | I160: M | J160: COEFICIENTE DE REPRESENTATIVIDADE | K160: 133.29 | L160: CAIXA REFERENCIAL
A161: ASSENTAMENTO DE TUBOS E PECAS | B161: ASTU | C161: FORNEC E/OU ASSENT DE TUBO DE CONCRETO COM JUNTA ARGAMASSADA | D161: 0052 | G161: 92220 | H161: TUBO DE CONCRETO PARA REDES COLETORAS DE ÁGUAS PLUVIAIS, DIÂMETRO DE 500 MM, JUNTA RÍGIDA, INSTALADO EM LOCAL COM ALTO NÍVEL DE INTERFERÊNCIAS - FORNECIMENTO E ASSENTAMENTO. AF_03/2024 | I161: M | J161: COEFICIENTE DE REPRESENTATIVIDADE | K161: 162.9 | L161: CAIXA REFERENCIAL
A162: ASSENTAMENTO DE TUBOS E PECAS | B162: ASTU | C162: FORNEC E/OU ASSENT DE TUBO DE CONCRETO COM JUNTA ARGAMASSADA | D162: 0052 | G162: 92221 | H162: TUBO DE CONCRETO PARA REDES COLETORAS DE ÁGUAS PLUVIAIS, DIÂMETRO DE 600 MM, JUNTA RÍGIDA, INSTALADO EM LOCAL COM ALTO NÍVEL DE INTERFERÊNCIAS - FORNECIMENTO E ASSENTAMENTO. AF_03/2024 | I162: M | J162: COEFICIENTE DE REPRESENTATIVIDADE | K162: 244.89 | L162: CAIXA REFERENCIAL
A163: ASSENTAMENTO DE TUBOS E PECAS | B163: ASTU | C163: FORNEC E/OU ASSENT DE TUBO DE CONCRETO COM JUNTA ARGAMASSADA | D163: 0052 | G163: 92222 | H163: TUBO DE CONCRETO PARA REDES COLETORAS DE ÁGUAS PLUVIAIS, DIÂMETRO DE 700 MM, JUNTA RÍGIDA, INSTALADO EM LOCAL COM ALTO NÍVEL DE INTERFERÊNCIAS - FORNECIMENTO E ASSENTAMENTO. AF_03/2024 | I163: M | J163: COEFICIENTE DE REPRESENTATIVIDADE | K163: 323.56 | L163: CAIXA REFERENCIAL
A164: ASSENTAMENTO DE TUBOS E PECAS | B164: ASTU | C164: FORNEC E/OU ASSENT DE TUBO DE CONCRETO COM JUNTA ARGAMASSADA | D164: 0052 | G164: 92223 | H164: TUBO DE CONCRETO PARA REDES COLETORAS DE ÁGUAS PLUVIAIS, DIÂMETRO DE 800 MM, JUNTA RÍGIDA, INSTALADO EM LOCAL COM ALTO NÍVEL DE INTERFERÊNCIAS - FORNECIMENTO E ASSENTAMENTO. AF_03/2024 | I164: M | J164: COEFICIENTE DE REPRESENTATIVIDADE | K164: 390.92 | L164: CAIXA REFERENCIAL
A165: ASSENTAMENTO DE TUBOS E PECAS | B165: ASTU | C165: FORNEC E/OU ASSENT DE TUBO DE CONCRETO COM JUNTA ARGAMASSADA | D165: 0052 | G165: 92224 | H165: TUBO DE CONCRETO PARA REDES COLETORAS DE ÁGUAS PLUVIAIS, DIÂMETRO DE 900 MM, JUNTA RÍGIDA, INSTALADO EM LOCAL COM ALTO NÍVEL DE INTERFERÊNCIAS - FORNECIMENTO E ASSENTAMENTO. AF_03/2024 | I165: M | J165: COEFICIENTE DE REPRESENTATIVIDADE | K165: 448.78 | L165: CAIXA REFERENCIAL
A166: ASSENTAMENTO DE TUBOS E PECAS | B166: ASTU | C166: FORNEC E/OU ASSENT DE TUBO DE CONCRETO COM JUNTA ARGAMASSADA | D166: 0052 | G166: 92226 | H166: TUBO DE CONCRETO PARA REDES COLETORAS DE ÁGUAS PLUVIAIS, DIÂMETRO DE 1000 MM, JUNTA RÍGIDA, INSTALADO EM LOCAL COM ALTO NÍVEL DE INTERFERÊNCIAS - FORNECIMENTO E ASSENTAMENTO. AF_03/2024 | I166: M | J166: COEFICIENTE DE REPRESENTATIVIDADE | K166: 467.86 | L166: CAIXA REFERENCIAL
A167: ASSENTAMENTO DE TUBOS E PECAS | B167: ASTU | C167: FORNEC E/OU ASSENT DE TUBO DE CONCRETO COM JUNTA ARGAMASSADA | D167: 0052 | G167: 92808 | H167: ASSENTAMENTO DE TUBO DE CONCRETO PARA REDES COLETORAS DE ÁGUAS PLUVIAIS, DIÂMETRO DE 300 MM, JUNTA RÍGIDA, INSTALADO EM LOCAL COM BAIXO NÍVEL DE INTERFERÊNCIAS (NÃO INCLUI FORNECIMENTO). AF_03/2024 | I167: M | J167: COEFICIENTE DE REPRESENTATIVIDADE | K167: 24.43 | L167: CAIXA REFERENCIAL
A168: ASSENTAMENTO DE TUBOS E PECAS | B168: ASTU | C168: FORNEC E/OU ASSENT DE TUBO DE CONCRETO COM JUNTA ARGAMASSADA | D168: 0052 | G168: 92809 | H168: ASSENTAMENTO DE TUBO DE CONCRETO PARA REDES COLETORAS DE ÁGUAS PLUVIAIS, DIÂMETRO DE 400 MM, JUNTA RÍGIDA, INSTALADO EM LOCAL COM BAIXO NÍVEL DE INTERFERÊNCIAS (NÃO INCLUI FORNECIMENTO). AF_03/2024 | I168: M | J168: COEFICIENTE DE REPRESENTATIVIDADE | K168: 33.99 | L168: CAIXA REFERENCIAL
A169: ASSENTAMENTO DE TUBOS E PECAS | B169: ASTU | C169: FORNEC E/OU ASSENT DE TUBO DE CONCRETO COM JUNTA ARGAMASSADA | D169: 0052 | G169: 92810 | H169: ASSENTAMENTO DE TUBO DE CONCRETO PARA REDES COLETORAS DE ÁGUAS PLUVIAIS, DIÂMETRO DE 500 MM, JUNTA RÍGIDA, INSTALADO EM LOCAL COM BAIXO NÍVEL DE INTERFERÊNCIAS (NÃO INCLUI FORNECIMENTO). AF_03/2024 | I169: M | J169: COEFICIENTE DE REPRESENTATIVIDADE | K169: 43.85 | L169: CAIXA REFERENCIAL
A170: ASSENTAMENTO DE TUBOS E PECAS | B170: ASTU | C170: FORNEC E/OU ASSENT DE TUBO DE CONCRETO COM JUNTA ARGAMASSADA | D170: 0052 | G170: 92811 | H170: ASSENTAMENTO DE TUBO DE CONCRETO PARA REDES COLETORAS DE ÁGUAS PLUVIAIS, DIÂMETRO DE 600 MM, JUNTA RÍGIDA, INSTALADO EM LOCAL COM BAIXO NÍVEL DE INTERFERÊNCIAS (NÃO INCLUI FORNECIMENTO). AF_03/2024 | I170: M | J170: COEFICIENTE DE REPRESENTATIVIDADE | K170: 53.92 | L170: CAIXA REFERENCIAL
A171: ASSENTAMENTO DE TUBOS E PECAS | B171: ASTU | C171: FORNEC E/OU ASSENT DE TUBO DE CONCRETO COM JUNTA ARGAMASSADA | D171: 0052 | G171: 92812 | H171: ASSENTAMENTO DE TUBO DE CONCRETO PARA REDES COLETORAS DE ÁGUAS PLUVIAIS, DIÂMETRO DE 700 MM, JUNTA RÍGIDA, INSTALADO EM LOCAL COM BAIXO NÍVEL DE INTERFERÊNCIAS (NÃO INCLUI FORNECIMENTO). AF_03/2024 | I171: M | J171: COEFICIENTE DE REPRESENTATIVIDADE | K171: 64.24 | L171: CAIXA REFERENCIAL
A172: ASSENTAMENTO DE TUBOS E PECAS | B172: ASTU | C172: FORNEC E/OU ASSENT DE TUBO DE CONCRETO COM JUNTA ARGAMASSADA | D172: 0052 | G172: 92813 | H172: ASSENTAMENTO DE TUBO DE CONCRETO PARA REDES COLETORAS DE ÁGUAS PLUVIAIS, DIÂMETRO DE 800 MM, JUNTA RÍGIDA, INSTALADO EM LOCAL COM BAIXO NÍVEL DE INTERFERÊNCIAS (NÃO INCLUI FORNECIMENTO). AF_03/2024 | I172: M | J172: COEFICIENTE DE REPRESENTATIVIDADE | K172: 74.8 | L172: CAIXA REFERENCIAL
A173: ASSENTAMENTO DE TUBOS E PECAS | B173: ASTU | C173: FORNEC E/OU ASSENT DE TUBO DE CONCRETO COM JUNTA ARGAMASSADA | D173: 0052 | G173: 92814 | H173: ASSENTAMENTO DE TUBO DE CONCRETO PARA REDES COLETORAS DE ÁGUAS PLUVIAIS, DIÂMETRO DE 900 MM, JUNTA RÍGIDA, INSTALADO EM LOCAL COM BAIXO NÍVEL DE INTERFERÊNCIAS (NÃO INCLUI FORNECIMENTO). AF_03/2024 | I173: M | J173: COEFICIENTE DE REPRESENTATIVIDADE | K173: 85.63 | L173: CAIXA REFERENCIAL
A174: ASSENTAMENTO DE TUBOS E PECAS | B174: ASTU | C174: FORNEC E/OU ASSENT DE TUBO DE CONCRETO COM JUNTA ARGAMASSADA | D174: 0052 | G174: 92815 | H174: ASSENTAMENTO DE TUBO DE CONCRETO PARA REDES COLETORAS DE ÁGUAS PLUVIAIS, DIÂMETRO DE 1000 MM, JUNTA RÍGIDA, INSTALADO EM LOCAL COM BAIXO NÍVEL DE INTERFERÊNCIAS (NÃO INCLUI FORNECIMENTO). AF_03/2024 | I174: M | J174: COEFICIENTE DE REPRESENTATIVIDADE | K174: 96.65 | L174: CAIXA REFERENCIAL
A175: ASSENTAMENTO DE TUBOS E PECAS | B175: ASTU | C175: FORNEC E/OU ASSENT DE TUBO DE CONCRETO COM JUNTA ARGAMASSADA | D175: 0052 | G175: 92816 | H175: TUBO DE CONCRETO PARA REDES COLETORAS DE ÁGUAS PLUVIAIS, DIÂMETRO DE 1200 MM, JUNTA RÍGIDA, INSTALADO EM LOCAL COM BAIXO NÍVEL DE INTERFERÊNCIAS - FORNECIMENTO E ASSENTAMENTO. AF_03/2024 | I175: M | J175: COEFICIENTE DE REPRESENTATIVIDADE | K175: 659.28 | L175: CAIXA REFERENCIAL
A176: ASSENTAMENTO DE TUBOS E PECAS | B176: ASTU | C176: FORNEC E/OU ASSENT DE TUBO DE CONCRETO COM JUNTA ARGAMASSADA | D176: 0052 | G176: 92817 | H176: ASSENTAMENTO DE TUBO DE CONCRETO PARA REDES COLETORAS DE ÁGUAS PLUVIAIS, DIÂMETRO DE 1200 MM, JUNTA RÍGIDA, INSTALADO EM LOCAL COM BAIXO NÍVEL DE INTERFERÊNCIAS (NÃO INCLUI FORNECIMENTO). AF_03/2024 | I176: M | J176: COEFICIENTE DE REPRESENTATIVIDADE | K176: 119.45 | L176: CAIXA REFERENCIAL
A177: ASSENTAMENTO DE TUBOS E PECAS | B177: ASTU | C177: FORNEC E/OU ASSENT DE TUBO DE CONCRETO COM JUNTA ARGAMASSADA | D177: 0052 | G177: 92818 | H177: TUBO DE CONCRETO PARA REDES COLETORAS DE ÁGUAS PLUVIAIS, DIÂMETRO DE 1500 MM, JUNTA RÍGIDA, INSTALADO EM LOCAL COM BAIXO NÍVEL DE INTERFERÊNCIAS - FORNECIMENTO E ASSENTAMENTO. AF_03/2024 | I177: M | J177: COEFICIENTE DE REPRESENTATIVIDADE | K177: 937.52 | L177: CAIXA REFERENCIAL
A178: ASSENTAMENTO DE TUBOS E PECAS | B178: ASTU | C178: FORNEC E/OU ASSENT DE TUBO DE CONCRETO COM JUNTA ARGAMASSADA | D178: 0052 | G178: 92819 | H178: ASSENTAMENTO DE TUBO DE CONCRETO PARA REDES COLETORAS DE ÁGUAS PLUVIAIS, DIÂMETRO DE 1500 MM, JUNTA RÍGIDA, INSTALADO EM LOCAL COM BAIXO NÍVEL DE INTERFERÊNCIAS (NÃO INCLUI FORNECIMENTO). AF_03/2024 | I178: M | J178: COEFICIENTE DE REPRESENTATIVIDADE | K178: 155.43 | L178: CAIXA REFERENCIAL
A179: ASSENTAMENTO DE TUBOS E PECAS | B179: ASTU | C179: FORNEC E/OU ASSENT DE TUBO DE CONCRETO COM JUNTA ARGAMASSADA | D179: 0052 | G179: 92820 | H179: ASSENTAMENTO DE TUBO DE CONCRETO PARA REDES COLETORAS DE ÁGUAS PLUVIAIS, DIÂMETRO DE 300 MM, JUNTA RÍGIDA, INSTALADO EM LOCAL COM ALTO NÍVEL DE INTERFERÊNCIAS (NÃO INCLUI FORNECIMENTO). AF_03/2024 | I179: M | J179: COEFICIENTE DE REPRESENTATIVIDADE | K179: 26.9 | L179: CAIXA REFERENCIAL
A180: ASSENTAMENTO DE TUBOS E PECAS | B180: ASTU | C180: FORNEC E/OU ASSENT DE TUBO DE CONCRETO COM JUNTA ARGAMASSADA | D180: 0052 | G180: 92821 | H180: ASSENTAMENTO DE TUBO DE CONCRETO PARA REDES COLETORAS DE ÁGUAS PLUVIAIS, DIÂMETRO DE 400 MM, JUNTA RÍGIDA, INSTALADO EM LOCAL COM ALTO NÍVEL DE INTERFERÊNCIAS (NÃO INCLUI FORNECIMENTO). AF_03/2024 | I180: M | J180: COEFICIENTE DE REPRESENTATIVIDADE | K180: 37.48 | L180: CAIXA REFERENCIAL
A181: ASSENTAMENTO DE TUBOS E PECAS | B181: ASTU | C181: FORNEC E/OU ASSENT DE TUBO DE CONCRETO COM JUNTA ARGAMASSADA | D181: 0052 | G181: 92822 | H181: ASSENTAMENTO DE TUBO DE CONCRETO PARA REDES COLETORAS DE ÁGUAS PLUVIAIS, DIÂMETRO DE 500 MM, JUNTA RÍGIDA, INSTALADO EM LOCAL COM ALTO NÍVEL DE INTERFERÊNCIAS (NÃO INCLUI FORNECIMENTO). AF_03/2024 | I181: M | J181: COEFICIENTE DE REPRESENTATIVIDADE | K181: 48.4 | L181: CAIXA REFERENCIAL
A182: ASSENTAMENTO DE TUBOS E PECAS | B182: ASTU | C182: FORNEC E/OU ASSENT DE TUBO DE CONCRETO COM JUNTA ARGAMASSADA | D182: 0052 | G182: 92824 | H182: ASSENTAMENTO DE TUBO DE CONCRETO PARA REDES COLETORAS DE ÁGUAS PLUVIAIS, DIÂMETRO DE 600 MM, JUNTA RÍGIDA, INSTALADO EM LOCAL COM ALTO NÍVEL DE INTERFERÊNCIAS (NÃO INCLUI FORNECIMENTO). AF_03/2024 | I182: M | J182: COEFICIENTE DE REPRESENTATIVIDADE | K182: 59.49 | L182: CAIXA REFERENCIAL
A183: ASSENTAMENTO DE TUBOS E PECAS | B183: ASTU | C183: FORNEC E/OU ASSENT DE TUBO DE CONCRETO COM JUNTA ARGAMASSADA | D183: 0052 | G183: 92825 | H183: ASSENTAMENTO DE TUBO DE CONCRETO PARA REDES COLETORAS DE ÁGUAS PLUVIAIS, DIÂMETRO DE 700 MM, JUNTA RÍGIDA, INSTALADO EM LOCAL COM ALTO NÍVEL DE INTERFERÊNCIAS (NÃO INCLUI FORNECIMENTO). AF_03/2024 | I183: M | J183: COEFICIENTE DE REPRESENTATIVIDADE | K183: 70.86 | L183: CAIXA REFERENCIAL
A184: ASSENTAMENTO DE TUBOS E PECAS | B184: ASTU | C184: FORNEC E/OU ASSENT DE TUBO DE CONCRETO COM JUNTA ARGAMASSADA | D184: 0052 | G184: 92826 | H184: ASSENTAMENTO DE TUBO DE CONCRETO PARA REDES COLETORAS DE ÁGUAS PLUVIAIS, DIÂMETRO DE 800 MM, JUNTA RÍGIDA, INSTALADO EM LOCAL COM ALTO NÍVEL DE INTERFERÊNCIAS (NÃO INCLUI FORNECIMENTO). AF_03/2024 | I184: M | J184: COEFICIENTE DE REPRESENTATIVIDADE | K184: 82.45 | L184: CAIXA REFERENCIAL
A185: ASSENTAMENTO DE TUBOS E PECAS | B185: ASTU | C185: FORNEC E/OU ASSENT DE TUBO DE CONCRETO COM JUNTA ARGAMASSADA | D185: 0052 | G185: 92827 | H185: ASSENTAMENTO DE TUBO DE CONCRETO PARA REDES COLETORAS DE ÁGUAS PLUVIAIS, DIÂMETRO DE 900 MM, JUNTA RÍGIDA, INSTALADO EM LOCAL COM ALTO NÍVEL DE INTERFERÊNCIAS (NÃO INCLUI FORNECIMENTO). AF_03/2024 | I185: M | J185: COEFICIENTE DE REPRESENTATIVIDADE | K185: 94.35 | L185: CAIXA REFERENCIAL
A186: ASSENTAMENTO DE TUBOS E PECAS | B186: ASTU | C186: FORNEC E/OU ASSENT DE TUBO DE CONCRETO COM JUNTA ARGAMASSADA | D186: 0052 | G186: 92828 | H186: ASSENTAMENTO DE TUBO DE CONCRETO PARA REDES COLETORAS DE ÁGUAS PLUVIAIS, DIÂMETRO DE 1000 MM, JUNTA RÍGIDA, INSTALADO EM LOCAL COM ALTO NÍVEL DE INTERFERÊNCIAS (NÃO INCLUI FORNECIMENTO). AF_03/2024 | I186: M | J186: COEFICIENTE DE REPRESENTATIVIDADE | K186: 106.42 | L186: CAIXA REFERENCIAL
A187: ASSENTAMENTO DE TUBOS E PECAS | B187: ASTU | C187: FORNEC E/OU ASSENT DE TUBO DE CONCRETO COM JUNTA ARGAMASSADA | D187: 0052 | G187: 92829 | H187: TUBO DE CONCRETO PARA REDES COLETORAS DE ÁGUAS PLUVIAIS, DIÂMETRO DE 1200 MM, JUNTA RÍGIDA, INSTALADO EM LOCAL COM ALTO NÍVEL DE INTERFERÊNCIAS - FORNECIMENTO E ASSENTAMENTO. AF_03/2024 | I187: M | J187: COEFICIENTE DE REPRESENTATIVIDADE | K187: 671.13 | L187: CAIXA REFERENCIAL
A188: ASSENTAMENTO DE TUBOS E PECAS | B188: ASTU | C188: FORNEC E/OU ASSENT DE TUBO DE CONCRETO COM JUNTA ARGAMASSADA | D188: 0052 | G188: 92830 | H188: ASSENTAMENTO DE TUBO DE CONCRETO PARA REDES COLETORAS DE ÁGUAS PLUVIAIS, DIÂMETRO DE 1200 MM, JUNTA RÍGIDA, INSTALADO EM LOCAL COM ALTO NÍVEL DE INTERFERÊNCIAS (NÃO INCLUI FORNECIMENTO). AF_03/2024 | I188: M | J188: COEFICIENTE DE REPRESENTATIVIDADE | K188: 131.3 | L188: CAIXA REFERENCIAL
A189: ASSENTAMENTO DE TUBOS E PECAS | B189: ASTU | C189: FORNEC E/OU ASSENT DE TUBO DE CONCRETO COM JUNTA ARGAMASSADA | D189: 0052 | G189: 92831 | H189: TUBO DE CONCRETO PARA REDES COLETORAS DE ÁGUAS PLUVIAIS, DIÂMETRO DE 1500 MM, JUNTA RÍGIDA, INSTALADO EM LOCAL COM ALTO NÍVEL DE INTERFERÊNCIAS - FORNECIMENTO E ASSENTAMENTO. AF_03/2024 | I189: M | J189: COEFICIENTE DE REPRESENTATIVIDADE | K189: 952.51 | L189: CAIXA REFERENCIAL
A190: ASSENTAMENTO DE TUBOS E PECAS | B190: ASTU | C190: FORNEC E/OU ASSENT DE TUBO DE CONCRETO COM JUNTA ARGAMASSADA | D190: 0052 | G190: 92832 | H190: ASSENTAMENTO DE TUBO DE CONCRETO PARA REDES COLETORAS DE ÁGUAS PLUVIAIS, DIÂMETRO DE 1500 MM, JUNTA RÍGIDA, INSTALADO EM LOCAL COM ALTO NÍVEL DE INTERFERÊNCIAS (NÃO INCLUI FORNECIMENTO). AF_03/2024 | I190: M | J190: COEFICIENTE DE REPRESENTATIVIDADE | K190: 170.42 | L190: CAIXA REFERENCIAL
A191: ASSENTAMENTO DE TUBOS E PECAS | B191: ASTU | C191: FORNEC E/OU ASSENT DE TUBO DE CONCRETO COM JUNTA ARGAMASSADA | D191: 0052 | G191: 95565 | H191: TUBO DE CONCRETO PARA REDES COLETORAS DE ÁGUAS PLUVIAIS, DIÂMETRO DE 300MM, JUNTA RÍGIDA, INSTALADO EM LOCAL COM BAIXO NÍVEL DE INTERFERÊNCIAS - FORNECIMENTO E ASSENTAMENTO. AF_03/2024 | I191: M | J191: COEFICIENTE DE REPRESENTATIVIDADE | K191: 109.33 | L191: CAIXA REFERENCIAL
A192: ASSENTAMENTO DE TUBOS E PECAS | B192: ASTU | C192: FORNEC E/OU ASSENT DE TUBO DE CONCRETO COM JUNTA ARGAMASSADA | D192: 0052 | G192: 95566 | H192: TUBO DE CONCRETO PARA REDES COLETORAS DE ÁGUAS PLUVIAIS, DIÂMETRO DE 300MM, JUNTA RÍGIDA, INSTALADO EM LOCAL COM ALTO NÍVEL DE INTERFERÊNCIAS - FORNECIMENTO E ASSENTAMENTO. AF_03/2024 | I192: M | J192: COEFICIENTE DE REPRESENTATIVIDADE | K192: 111.8 | L192: CAIXA REFERENCIAL
A193: ASSENTAMENTO DE TUBOS E PECAS | B193: ASTU | C193: FORNEC E/OU ASSENT DE TUBO DE CONCRETO COM JUNTA ARGAMASSADA | D193: 0052 | G193: 95567 | H193: TUBO DE CONCRETO (SIMPLES) PARA REDES COLETORAS DE ÁGUAS PLUVIAIS, DIÂMETRO DE 300 MM, JUNTA RÍGIDA, INSTALADO EM LOCAL COM BAIXO NÍVEL DE INTERFERÊNCIAS - FORNECIMENTO E ASSENTAMENTO. AF_03/2024 | I193: M | J193: ATRIBUÍDO SÃO PAULO | K193: 88.29 | L193: CAIXA REFERENCIAL
A194: ASSENTAMENTO DE TUBOS E PECAS | B194: ASTU | C194: FORNEC E/OU ASSENT DE TUBO DE CONCRETO COM JUNTA ARGAMASSADA | D194: 0052 | G194: 95568 | H194: TUBO DE CONCRETO (SIMPLES) PARA REDES COLETORAS DE ÁGUAS PLUVIAIS, DIÂMETRO DE 400 MM, JUNTA RÍGIDA, INSTALADO EM LOCAL COM BAIXO NÍVEL DE INTERFERÊNCIAS - FORNECIMENTO E ASSENTAMENTO. AF_03/2024 | I194: M | J194: ATRIBUÍDO SÃO PAULO | K194: 109.44 | L194: CAIXA REFERENCIAL
A195: ASSENTAMENTO DE TUBOS E PECAS | B195: ASTU | C195: FORNEC E/OU ASSENT DE TUBO DE CONCRETO COM JUNTA ARGAMASSADA | D195: 0052 | G195: 95569 | H195: TUBO DE CONCRETO (SIMPLES) PARA REDES COLETORAS DE ÁGUAS PLUVIAIS, DIÂMETRO DE 500 MM, JUNTA RÍGIDA, INSTALADO EM LOCAL COM BAIXO NÍVEL DE INTERFERÊNCIAS - FORNECIMENTO E ASSENTAMENTO. AF_03/2024 | I195: M | J195: ATRIBUÍDO SÃO PAULO | K195: 156.16 | L195: CAIXA REFERENCIAL
A196: ASSENTAMENTO DE TUBOS E PECAS | B196: ASTU | C196: FORNEC E/OU ASSENT DE TUBO DE CONCRETO COM JUNTA ARGAMASSADA | D196: 0052 | G196: 95570 | H196: TUBO DE CONCRETO (SIMPLES) PARA REDES COLETORAS DE ÁGUAS PLUVIAIS, DIÂMETRO DE 300 MM, JUNTA RÍGIDA, INSTALADO EM LOCAL COM ALTO NÍVEL DE INTERFERÊNCIAS - FORNECIMENTO E ASSENTAMENTO. AF_03/2024 | I196: M | J196: ATRIBUÍDO SÃO PAULO | K196: 90.76 | L196: CAIXA REFERENCIAL
A197: ASSENTAMENTO DE TUBOS E PECAS | B197: ASTU | C197: FORNEC E/OU ASSENT DE TUBO DE CONCRETO COM JUNTA ARGAMASSADA | D197: 0052 | G197: 95571 | H197: TUBO DE CONCRETO (SIMPLES) PARA REDES COLETORAS DE ÁGUAS PLUVIAIS, DIÂMETRO DE 400 MM, JUNTA RÍGIDA, INSTALADO EM LOCAL COM ALTO NÍVEL DE INTERFERÊNCIAS - FORNECIMENTO E ASSENTAMENTO. AF_03/2024 | I197: M | J197: ATRIBUÍDO SÃO PAULO | K197: 112.93 | L197: CAIXA REFERENCIAL
A198: ASSENTAMENTO DE TUBOS E PECAS | B198: ASTU | C198: FORNEC E/OU ASSENT DE TUBO DE CONCRETO COM JUNTA ARGAMASSADA | D198: 0052 | G198: 95572 | H198: TUBO DE CONCRETO (SIMPLES) PARA REDES COLETORAS DE ÁGUAS PLUVIAIS, DIÂMETRO DE 500 MM, JUNTA RÍGIDA, INSTALADO EM LOCAL COM ALTO NÍVEL DE INTERFERÊNCIAS - FORNECIMENTO E ASSENTAMENTO. AF_03/2024 | I198: M | J198: ATRIBUÍDO SÃO PAULO | K198: 160.71 | L198: CAIXA REFERENCIAL
A199: ASSENTAMENTO DE TUBOS E PECAS | B199: ASTU | C199: FORNEC E/OU ASSENT DE TUBO PVC DEFOFO COM JUNTA ELASTICA | D199: 0230 | G199: 97127 | H199: ASSENTAMENTO DE TUBO DE PVC DEFOFO OU PRFV OU RPVC PARA REDE DE ÁGUA, DN 150 MM, JUNTA ELÁSTICA INTEGRADA, INSTALADO EM LOCAL COM NÍVEL ALTO DE INTERFERÊNCIAS (NÃO INCLUI FORNECIMENTO). AF_11/2017 | I199: M | J199: COEFICIENTE DE REPRESENTATIVIDADE | K199: 4.82 | L199: CAIXA REFERENCIAL
A200: ASSENTAMENTO DE TUBOS E PECAS | B200: ASTU | C200: FORNEC E/OU ASSENT DE TUBO PVC DEFOFO COM JUNTA ELASTICA | D200: 0230 | G200: 97128 | H200: ASSENTAMENTO DE TUBO DE PVC DEFOFO OU PRFV OU RPVC PARA REDE DE ÁGUA, DN 200 MM, JUNTA ELÁSTICA INTEGRADA, INSTALADO EM LOCAL COM NÍVEL ALTO DE INTERFERÊNCIAS (NÃO INCLUI FORNECIMENTO). AF_11/2017 | I200: M | J200: COEFICIENTE DE REPRESENTATIVIDADE | K200: 10.61 | L200: CAIXA REFERENCIAL
A201: ASSENTAMENTO DE TUBOS E PECAS | B201: ASTU | C201: FORNEC E/OU ASSENT DE TUBO PVC DEFOFO COM JUNTA ELASTICA | D201: 0230 | G201: 97129 | H201: ASSENTAMENTO DE TUBO DE PVC DEFOFO OU PRFV OU RPVC PARA REDE DE ÁGUA, DN 250 MM, JUNTA ELÁSTICA INTEGRADA, INSTALADO EM LOCAL COM NÍVEL ALTO DE INTERFERÊNCIAS (NÃO INCLUI FORNECIMENTO). AF_11/2017 | I201: M | J201: COEFICIENTE DE REPRESENTATIVIDADE | K201: 13.05 | L201: CAIXA REFERENCIAL
A202: ASSENTAMENTO DE TUBOS E PECAS | B202: ASTU | C202: FORNEC E/OU ASSENT DE TUBO PVC DEFOFO COM JUNTA ELASTICA | D202: 0230 | G202: 97130 | H202: ASSENTAMENTO DE TUBO DE PVC DEFOFO OU PRFV OU RPVC PARA REDE DE ÁGUA, DN 300 MM, JUNTA ELÁSTICA INTEGRADA, INSTALADO EM LOCAL COM NÍVEL ALTO DE INTERFERÊNCIAS (NÃO INCLUI FORNECIMENTO). AF_11/2017 | I202: M | J202: COEFICIENTE DE REPRESENTATIVIDADE | K202: 15.49 | L202: CAIXA REFERENCIAL
... 7352 more rows

Sheet CPU HOSPEDAGEM
B2: Engenharia Consultiva da Codevasf
B3: CPU - HOSPEDAGEM EQUIPE DE CAMPO (4 PESSOAS/MÊS) | D3: Código/Referencia
B4: ALUGUEL | C4: 3074.56 | D4: F020003334/EMBASA
B5: Aquisição de Mobiliário | C5: =43.89*C16 -> 175.56 | D5: B8954/DNIT
B6: Material de limpeza e diarista | C6: =126.93+(123*8) -> 1110.93 | D6: 10563/ORSE - E200300131/EMBASA
B7: Manutenção da casa alugada - Serviços Gerais/Vigia | C7: 2706.8 | D7: 41096/SINAPI
B8: Energia | C8: 180 | D8: 10555/ORSE
B9: Água | C9: 394.99 | D9: 10554/ORSE
B10: telefone/Internet | C10: =154.99+89 -> 243.99 | D10: 10557/10558/ORSE
B11: IPTU (mês) | C11: =(C4*0.5)/12 -> 128.1066667
B12: Despesas Gerais - 10% | C12: =SUM(C4:C11)*0.1 -> 801.4936667
B13: Custo Mensal: | C13: =SUM(C4:C12) -> 8816.430333
B14: Custo Mensal por pessoa: | C14: =C13/C16 -> 2204.107583
B15: Custo diário por pessoa (HOSPEDAGEM): | C15: =C14/22 -> 100.1867083
B16: número de pessoas: | C16: 4
B17: Alimentação: | C17: 87 | D17: Tabela Diária Codevasf
B19: Diária Total (alimentação + hospedagem): | C19: =C15+C17 -> 187.1867083

Sheet Comp SINAPI BA 05-2023 Desoner (hidden)
A1: PCI.817.01 - CUSTO DE COMPOSIÇÕES - SINTÉTICO DATA DE EMISSÃO: 20/06/2023 16:33:11 DATA DE RT: 20/06/2023
A2: ENCARGOS SOCIAIS DESONERADOS: 85,51%(HORA) 47,56%(MÊS)
A3: ABRANGÊNCIA : NACIONAL LOCALIDADE : SALVADOR DATA DE PREÇO : 05/2023 REFERÊNCIA COLETA : MEDIANO
A5: DESCRICAO DA CLASSE | B5: SIGLA DA CLASSE | C5: DESCRICAO DO TIPO 1 | D5: SIGLA DO TIPO 1 | E5: CODIGO DO AGRUPADOR | F5: DESCRICAO DO AGRUPADOR | G5: CODIGO DA COMPOSICAO | H5: DESCRICAO DA COMPOSICAO | I5: UNIDADE | J5: ORIGEM DE PREÇO | K5: CUSTO TOTAL | L5: VINCULO
A7: ASSENTAMENTO DE TUBOS E PECAS | B7: ASTU | C7: FORNEC E/OU ASSENT DE TUBO DE FERRO FUNDIDO JUNTA ELASTICA | D7: 45 | G7: 97141 | H7: ASSENTAMENTO DE TUBO DE FERRO FUNDIDO PARA REDE DE ÁGUA, DN 80 MM, JUNTA ELÁSTICA, INSTALADO EM LOCAL COM NÍVEL ALTO DE INTERFERÊNCIAS (NÃO INCLUI FORNECIMENTO). AF_11/2017 | I7: M | J7: COEFICIENTE DE REPRESENTATIVIDADE | K7: 10.52 | L7: CAIXA REFERENCIAL
A8: ASSENTAMENTO DE TUBOS E PECAS | B8: ASTU | C8: FORNEC E/OU ASSENT DE TUBO DE FERRO FUNDIDO JUNTA ELASTICA | D8: 45 | G8: 97142 | H8: ASSENTAMENTO DE TUBO DE FERRO FUNDIDO PARA REDE DE ÁGUA, DN 100 MM, JUNTA ELÁSTICA, INSTALADO EM LOCAL COM NÍVEL ALTO DE INTERFERÊNCIAS (NÃO INCLUI FORNECIMENTO). AF_11/2017 | I8: M | J8: COEFICIENTE DE REPRESENTATIVIDADE | K8: 11.78 | L8: CAIXA REFERENCIAL
A9: ASSENTAMENTO DE TUBOS E PECAS | B9: ASTU | C9: FORNEC E/OU ASSENT DE TUBO DE FERRO FUNDIDO JUNTA ELASTICA | D9: 45 | G9: 97143 | H9: ASSENTAMENTO DE TUBO DE FERRO FUNDIDO PARA REDE DE ÁGUA, DN 150 MM, JUNTA ELÁSTICA, INSTALADO EM LOCAL COM NÍVEL ALTO DE INTERFERÊNCIAS (NÃO INCLUI FORNECIMENTO). AF_11/2017 | I9: M | J9: COEFICIENTE DE REPRESENTATIVIDADE | K9: 14.89 | L9: CAIXA REFERENCIAL
A10: ASSENTAMENTO DE TUBOS E PECAS | B10: ASTU | C10: FORNEC E/OU ASSENT DE TUBO DE FERRO FUNDIDO JUNTA ELASTICA | D10: 45 | G10: 97144 | H10: ASSENTAMENTO DE TUBO DE FERRO FUNDIDO PARA REDE DE ÁGUA, DN 200 MM, JUNTA ELÁSTICA, INSTALADO EM LOCAL COM NÍVEL ALTO DE INTERFERÊNCIAS (NÃO INCLUI FORNECIMENTO). AF_11/2017 | I10: M | J10: COEFICIENTE DE REPRESENTATIVIDADE | K10: 17.99 | L10: CAIXA REFERENCIAL
A11: ASSENTAMENTO DE TUBOS E PECAS | B11: ASTU | C11: FORNEC E/OU ASSENT DE TUBO DE FERRO FUNDIDO JUNTA ELASTICA | D11: 45 | G11: 97145 | H11: ASSENTAMENTO DE TUBO DE FERRO FUNDIDO PARA REDE DE ÁGUA, DN 250 MM, JUNTA ELÁSTICA, INSTALADO EM LOCAL COM NÍVEL ALTO DE INTERFERÊNCIAS (NÃO INCLUI FORNECIMENTO). AF_11/2017 | I11: M | J11: COEFICIENTE DE REPRESENTATIVIDADE | K11: 21.12 | L11: CAIXA REFERENCIAL
A12: ASSENTAMENTO DE TUBOS E PECAS | B12: ASTU | C12: FORNEC E/OU ASSENT DE TUBO DE FERRO FUNDIDO JUNTA ELASTICA | D12: 45 | G12: 97146 | H12: ASSENTAMENTO DE TUBO DE FERRO FUNDIDO PARA REDE DE ÁGUA, DN 300 MM, JUNTA ELÁSTICA, INSTALADO EM LOCAL COM NÍVEL ALTO DE INTERFERÊNCIAS (NÃO INCLUI FORNECIMENTO). AF_11/2017 | I12: M | J12: COEFICIENTE DE REPRESENTATIVIDADE | K12: 24.26 | L12: CAIXA REFERENCIAL
A13: ASSENTAMENTO DE TUBOS E PECAS | B13: ASTU | C13: FORNEC E/OU ASSENT DE TUBO DE FERRO FUNDIDO JUNTA ELASTICA | D13: 45 | G13: 97147 | H13: ASSENTAMENTO DE TUBO DE FERRO FUNDIDO PARA REDE DE ÁGUA, DN 350 MM, JUNTA ELÁSTICA, INSTALADO EM LOCAL COM NÍVEL ALTO DE INTERFERÊNCIAS (NÃO INCLUI FORNECIMENTO). AF_11/2017 | I13: M | J13: COEFICIENTE DE REPRESENTATIVIDADE | K13: 27.4 | L13: CAIXA REFERENCIAL
A14: ASSENTAMENTO DE TUBOS E PECAS | B14: ASTU | C14: FORNEC E/OU ASSENT DE TUBO DE FERRO FUNDIDO JUNTA ELASTICA | D14: 45 | G14: 97148 | H14: ASSENTAMENTO DE TUBO DE FERRO FUNDIDO PARA REDE DE ÁGUA, DN 400 MM, JUNTA ELÁSTICA, INSTALADO EM LOCAL COM NÍVEL ALTO DE INTERFERÊNCIAS (NÃO INCLUI FORNECIMENTO). AF_11/2017 | I14: M | J14: COEFICIENTE DE REPRESENTATIVIDADE | K14: 30.51 | L14: CAIXA REFERENCIAL
A15: ASSENTAMENTO DE TUBOS E PECAS | B15: ASTU | C15: FORNEC E/OU ASSENT DE TUBO DE FERRO FUNDIDO JUNTA ELASTICA | D15: 45 | G15: 97149 | H15: ASSENTAMENTO DE TUBO DE FERRO FUNDIDO PARA REDE DE ÁGUA, DN 450 MM, JUNTA ELÁSTICA, INSTALADO EM LOCAL COM NÍVEL ALTO DE INTERFERÊNCIAS (NÃO INCLUI FORNECIMENTO). AF_11/2017 | I15: M | J15: COEFICIENTE DE REPRESENTATIVIDADE | K15: 33.67 | L15: CAIXA REFERENCIAL
A16: ASSENTAMENTO DE TUBOS E PECAS | B16: ASTU | C16: FORNEC E/OU ASSENT DE TUBO DE FERRO FUNDIDO JUNTA ELASTICA | D16: 45 | G16: 97150 | H16: ASSENTAMENTO DE TUBO DE FERRO FUNDIDO PARA REDE DE ÁGUA, DN 500 MM, JUNTA ELÁSTICA, INSTALADO EM LOCAL COM NÍVEL ALTO DE INTERFERÊNCIAS (NÃO INCLUI FORNECIMENTO). AF_11/2017 | I16: M | J16: COEFICIENTE DE REPRESENTATIVIDADE | K16: 41.04 | L16: CAIXA REFERENCIAL
A17: ASSENTAMENTO DE TUBOS E PECAS | B17: ASTU | C17: FORNEC E/OU ASSENT DE TUBO DE FERRO FUNDIDO JUNTA ELASTICA | D17: 45 | G17: 97151 | H17: ASSENTAMENTO DE TUBO DE FERRO FUNDIDO PARA REDE DE ÁGUA, DN 600 MM, JUNTA ELÁSTICA, INSTALADO EM LOCAL COM NÍVEL ALTO DE INTERFERÊNCIAS (NÃO INCLUI FORNECIMENTO). AF_11/2017 | I17: M | J17: COEFICIENTE DE REPRESENTATIVIDADE | K17: 47.93 | L17: CAIXA REFERENCIAL
A18: ASSENTAMENTO DE TUBOS E PECAS | B18: ASTU | C18: FORNEC E/OU ASSENT DE TUBO DE FERRO FUNDIDO JUNTA ELASTICA | D18: 45 | G18: 97152 | H18: ASSENTAMENTO DE TUBO DE FERRO FUNDIDO PARA REDE DE ÁGUA, DN 700 MM, JUNTA ELÁSTICA, INSTALADO EM LOCAL COM NÍVEL ALTO DE INTERFERÊNCIAS (NÃO INCLUI FORNECIMENTO). AF_11/2017 | I18: M | J18: COEFICIENTE DE REPRESENTATIVIDADE | K18: 54.61 | L18: CAIXA REFERENCIAL
A19: ASSENTAMENTO DE TUBOS E PECAS | B19: ASTU | C19: FORNEC E/OU ASSENT DE TUBO DE FERRO FUNDIDO JUNTA ELASTICA | D19: 45 | G19: 97153 | H19: ASSENTAMENTO DE TUBO DE FERRO FUNDIDO PARA REDE DE ÁGUA, DN 800 MM, JUNTA ELÁSTICA, INSTALADO EM LOCAL COM NÍVEL ALTO DE INTERFERÊNCIAS (NÃO INCLUI FORNECIMENTO). AF_11/2017 | I19: M | J19: COEFICIENTE DE REPRESENTATIVIDADE | K19: 61.4 | L19: CAIXA REFERENCIAL
A20: ASSENTAMENTO DE TUBOS E PECAS | B20: ASTU | C20: FORNEC E/OU ASSENT DE TUBO DE FERRO FUNDIDO JUNTA ELASTICA | D20: 45 | G20: 97154 | H20: ASSENTAMENTO DE TUBO DE FERRO FUNDIDO PARA REDE DE ÁGUA, DN 900 MM, JUNTA ELÁSTICA, INSTALADO EM LOCAL COM NÍVEL ALTO DE INTERFERÊNCIAS (NÃO INCLUI FORNECIMENTO). AF_11/2017 | I20: M | J20: COEFICIENTE DE REPRESENTATIVIDADE | K20: 68.25 | L20: CAIXA REFERENCIAL
A21: ASSENTAMENTO DE TUBOS E PECAS | B21: ASTU | C21: FORNEC E/OU ASSENT DE TUBO DE FERRO FUNDIDO JUNTA ELASTICA | D21: 45 | G21: 97155 | H21: ASSENTAMENTO DE TUBO DE FERRO FUNDIDO PARA REDE DE ÁGUA, DN 1000 MM, JUNTA ELÁSTICA, INSTALADO EM LOCAL COM NÍVEL ALTO DE INTERFERÊNCIAS (NÃO INCLUI FORNECIMENTO). AF_11/2017 | I21: M | J21: COEFICIENTE DE REPRESENTATIVIDADE | K21: 75.09 | L21: CAIXA REFERENCIAL
A22: ASSENTAMENTO DE TUBOS E PECAS | B22: ASTU | C22: FORNEC E/OU ASSENT DE TUBO DE FERRO FUNDIDO JUNTA ELASTICA | D22: 45 | G22: 97156 | H22: ASSENTAMENTO DE TUBO DE FERRO FUNDIDO PARA REDE DE ÁGUA, DN 1200 MM, JUNTA ELÁSTICA, INSTALADO EM LOCAL COM NÍVEL ALTO DE INTERFERÊNCIAS (NÃO INCLUI FORNECIMENTO). AF_11/2017 | I22: M | J22: COEFICIENTE DE REPRESENTATIVIDADE | K22: 89.2 | L22: CAIXA REFERENCIAL
A23: ASSENTAMENTO DE TUBOS E PECAS | B23: ASTU | C23: FORNEC E/OU ASSENT DE TUBO DE FERRO FUNDIDO JUNTA ELASTICA | D23: 45 | G23: 97157 | H23: ASSENTAMENTO DE TUBO DE FERRO FUNDIDO PARA REDE DE ÁGUA, DN 80 MM, JUNTA ELÁSTICA, INSTALADO EM LOCAL COM NÍVEL BAIXO DE INTERFERÊNCIAS (NÃO INCLUI FORNECIMENTO). AF_11/2017 | I23: M | J23: COEFICIENTE DE REPRESENTATIVIDADE | K23: 6.3 | L23: CAIXA REFERENCIAL
A24: ASSENTAMENTO DE TUBOS E PECAS | B24: ASTU | C24: FORNEC E/OU ASSENT DE TUBO DE FERRO FUNDIDO JUNTA ELASTICA | D24: 45 | G24: 97158 | H24: ASSENTAMENTO DE TUBO DE FERRO FUNDIDO PARA REDE DE ÁGUA, DN 100 MM, JUNTA ELÁSTICA, INSTALADO EM LOCAL COM NÍVEL BAIXO DE INTERFERÊNCIAS (NÃO INCLUI FORNECIMENTO). AF_11/2017 | I24: M | J24: COEFICIENTE DE REPRESENTATIVIDADE | K24: 7.08 | L24: CAIXA REFERENCIAL
A25: ASSENTAMENTO DE TUBOS E PECAS | B25: ASTU | C25: FORNEC E/OU ASSENT DE TUBO DE FERRO FUNDIDO JUNTA ELASTICA | D25: 45 | G25: 97159 | H25: ASSENTAMENTO DE TUBO DE FERRO FUNDIDO PARA REDE DE ÁGUA, DN 150 MM, JUNTA ELÁSTICA, INSTALADO EM LOCAL COM NÍVEL BAIXO DE INTERFERÊNCIAS (NÃO INCLUI FORNECIMENTO). AF_11/2017 | I25: M | J25: COEFICIENTE DE REPRESENTATIVIDADE | K25: 8.97 | L25: CAIXA REFERENCIAL
A26: ASSENTAMENTO DE TUBOS E PECAS | B26: ASTU | C26: FORNEC E/OU ASSENT DE TUBO DE FERRO FUNDIDO JUNTA ELASTICA | D26: 45 | G26: 97160 | H26: ASSENTAMENTO DE TUBO DE FERRO FUNDIDO PARA REDE DE ÁGUA, DN 200 MM, JUNTA ELÁSTICA, INSTALADO EM LOCAL COM NÍVEL BAIXO DE INTERFERÊNCIAS (NÃO INCLUI FORNECIMENTO). AF_11/2017 | I26: M | J26: COEFICIENTE DE REPRESENTATIVIDADE | K26: 10.82 | L26: CAIXA REFERENCIAL
A27: ASSENTAMENTO DE TUBOS E PECAS | B27: ASTU | C27: FORNEC E/OU ASSENT DE TUBO DE FERRO FUNDIDO JUNTA ELASTICA | D27: 45 | G27: 97161 | H27: ASSENTAMENTO DE TUBO DE FERRO FUNDIDO PARA REDE DE ÁGUA, DN 250 MM, JUNTA ELÁSTICA, INSTALADO EM LOCAL COM NÍVEL BAIXO DE INTERFERÊNCIAS (NÃO INCLUI FORNECIMENTO). AF_11/2017 | I27: M | J27: COEFICIENTE DE REPRESENTATIVIDADE | K27: 12.75 | L27: CAIXA REFERENCIAL
A28: ASSENTAMENTO DE TUBOS E PECAS | B28: ASTU | C28: FORNEC E/OU ASSENT DE TUBO DE FERRO FUNDIDO JUNTA ELASTICA | D28: 45 | G28: 97162 | H28: ASSENTAMENTO DE TUBO DE FERRO FUNDIDO PARA REDE DE ÁGUA, DN 300 MM, JUNTA ELÁSTICA, INSTALADO EM LOCAL COM NÍVEL BAIXO DE INTERFERÊNCIAS (NÃO INCLUI FORNECIMENTO). AF_11/2017 | I28: M | J28: COEFICIENTE DE REPRESENTATIVIDADE | K28: 14.65 | L28: CAIXA REFERENCIAL
A29: ASSENTAMENTO DE TUBOS E PECAS | B29: ASTU | C29: FORNEC E/OU ASSENT DE TUBO DE FERRO FUNDIDO JUNTA ELASTICA | D29: 45 | G29: 97163 | H29: ASSENTAMENTO DE TUBO DE FERRO FUNDIDO PARA REDE DE ÁGUA, DN 350 MM, JUNTA ELÁSTICA, INSTALADO EM LOCAL COM NÍVEL BAIXO DE INTERFERÊNCIAS (NÃO INCLUI FORNECIMENTO). AF_11/2017 | I29: M | J29: COEFICIENTE DE REPRESENTATIVIDADE | K29: 16.56 | L29: CAIXA REFERENCIAL
A30: ASSENTAMENTO DE TUBOS E PECAS | B30: ASTU | C30: FORNEC E/OU ASSENT DE TUBO DE FERRO FUNDIDO JUNTA ELASTICA | D30: 45 | G30: 97164 | H30: ASSENTAMENTO DE TUBO DE FERRO FUNDIDO PARA REDE DE ÁGUA, DN 400 MM, JUNTA ELÁSTICA, INSTALADO EM LOCAL COM NÍVEL BAIXO DE INTERFERÊNCIAS (NÃO INCLUI FORNECIMENTO). AF_11/2017 | I30: M | J30: COEFICIENTE DE REPRESENTATIVIDADE | K30: 18.45 | L30: CAIXA REFERENCIAL
A31: ASSENTAMENTO DE TUBOS E PECAS | B31: ASTU | C31: FORNEC E/OU ASSENT DE TUBO DE FERRO FUNDIDO JUNTA ELASTICA | D31: 45 | G31: 97165 | H31: ASSENTAMENTO DE TUBO DE FERRO FUNDIDO PARA REDE DE ÁGUA, DN 450 MM, JUNTA ELÁSTICA, INSTALADO EM LOCAL COM NÍVEL BAIXO DE INTERFERÊNCIAS (NÃO INCLUI FORNECIMENTO). AF_11/2017 | I31: M | J31: COEFICIENTE DE REPRESENTATIVIDADE | K31: 20.39 | L31: CAIXA REFERENCIAL
A32: ASSENTAMENTO DE TUBOS E PECAS | B32: ASTU | C32: FORNEC E/OU ASSENT DE TUBO DE FERRO FUNDIDO JUNTA ELASTICA | D32: 45 | G32: 97166 | H32: ASSENTAMENTO DE TUBO DE FERRO FUNDIDO PARA REDE DE ÁGUA, DN 500 MM, JUNTA ELÁSTICA, INSTALADO EM LOCAL COM NÍVEL BAIXO DE INTERFERÊNCIAS (NÃO INCLUI FORNECIMENTO). AF_11/2017 | I32: M | J32: COEFICIENTE DE REPRESENTATIVIDADE | K32: 24.88 | L32: CAIXA REFERENCIAL
A33: ASSENTAMENTO DE TUBOS E PECAS | B33: ASTU | C33: FORNEC E/OU ASSENT DE TUBO DE FERRO FUNDIDO JUNTA ELASTICA | D33: 45 | G33: 97167 | H33: ASSENTAMENTO DE TUBO DE FERRO FUNDIDO PARA REDE DE ÁGUA, DN 600 MM, JUNTA ELÁSTICA, INSTALADO EM LOCAL COM NÍVEL BAIXO DE INTERFERÊNCIAS (NÃO INCLUI FORNECIMENTO). AF_11/2017 | I33: M | J33: COEFICIENTE DE REPRESENTATIVIDADE | K33: 29.08 | L33: CAIXA REFERENCIAL
A34: ASSENTAMENTO DE TUBOS E PECAS | B34: ASTU | C34: FORNEC E/OU ASSENT DE TUBO DE FERRO FUNDIDO JUNTA ELASTICA | D34: 45 | G34: 97168 | H34: ASSENTAMENTO DE TUBO DE FERRO FUNDIDO PARA REDE DE ÁGUA, DN 700 MM, JUNTA ELÁSTICA, INSTALADO EM LOCAL COM NÍVEL BAIXO DE INTERFERÊNCIAS (NÃO INCLUI FORNECIMENTO). AF_11/2017 | I34: M | J34: COEFICIENTE DE REPRESENTATIVIDADE | K34: 33.06 | L34: CAIXA REFERENCIAL
A35: ASSENTAMENTO DE TUBOS E PECAS | B35: ASTU | C35: FORNEC E/OU ASSENT DE TUBO DE FERRO FUNDIDO JUNTA ELASTICA | D35: 45 | G35: 97169 | H35: ASSENTAMENTO DE TUBO DE FERRO FUNDIDO PARA REDE DE ÁGUA, DN 800 MM, JUNTA ELÁSTICA, INSTALADO EM LOCAL COM NÍVEL BAIXO DE INTERFERÊNCIAS (NÃO INCLUI FORNECIMENTO). AF_11/2017 | I35: M | J35: COEFICIENTE DE REPRESENTATIVIDADE | K35: 37.17 | L35: CAIXA REFERENCIAL
A36: ASSENTAMENTO DE TUBOS E PECAS | B36: ASTU | C36: FORNEC E/OU ASSENT DE TUBO DE FERRO FUNDIDO JUNTA ELASTICA | D36: 45 | G36: 97170 | H36: ASSENTAMENTO DE TUBO DE FERRO FUNDIDO PARA REDE DE ÁGUA, DN 900 MM, JUNTA ELÁSTICA, INSTALADO EM LOCAL COM NÍVEL BAIXO DE INTERFERÊNCIAS (NÃO INCLUI FORNECIMENTO). AF_11/2017 | I36: M | J36: COEFICIENTE DE REPRESENTATIVIDADE | K36: 41.31 | L36: CAIXA REFERENCIAL
A37: ASSENTAMENTO DE TUBOS E PECAS | B37: ASTU | C37: FORNEC E/OU ASSENT DE TUBO DE FERRO FUNDIDO JUNTA ELASTICA | D37: 45 | G37: 97171 | H37: ASSENTAMENTO DE TUBO DE FERRO FUNDIDO PARA REDE DE ÁGUA, DN 1000 MM, JUNTA ELÁSTICA, INSTALADO EM LOCAL COM NÍVEL BAIXO DE INTERFERÊNCIAS (NÃO INCLUI FORNECIMENTO). AF_11/2017 | I37: M | J37: COEFICIENTE DE REPRESENTATIVIDADE | K37: 45.49 | L37: CAIXA REFERENCIAL
A38: ASSENTAMENTO DE TUBOS E PECAS | B38: ASTU | C38: FORNEC E/OU ASSENT DE TUBO DE FERRO FUNDIDO JUNTA ELASTICA | D38: 45 | G38: 97172 | H38: ASSENTAMENTO DE TUBO DE FERRO FUNDIDO PARA REDE DE ÁGUA, DN 1200 MM, JUNTA ELÁSTICA, INSTALADO EM LOCAL COM NÍVEL BAIXO DE INTERFERÊNCIAS (NÃO INCLUI FORNECIMENTO). AF_11/2017 | I38: M | J38: COEFICIENTE DE REPRESENTATIVIDADE | K38: 54.23 | L38: CAIXA REFERENCIAL
A39: ASSENTAMENTO DE TUBOS E PECAS | B39: ASTU | C39: FORNEC E/OU ASSENT DE TUBO DE ACO COM JUNTA SOLDADA | D39: 46 | G39: 97173 | H39: ASSENTAMENTO DE TUBO DE AÇO CARBONO PARA REDE DE ÁGUA, DN 600 MM (24), JUNTA SOLDADA, INSTALADO EM LOCAL COM NÍVEL ALTO DE INTERFERÊNCIAS (NÃO INCLUI FORNECIMENTO). AF_11/2017 | I39: M | J39: COEFICIENTE DE REPRESENTATIVIDADE | K39: 43.01 | L39: CAIXA REFERENCIAL
A40: ASSENTAMENTO DE TUBOS E PECAS | B40: ASTU | C40: FORNEC E/OU ASSENT DE TUBO DE ACO COM JUNTA SOLDADA | D40: 46 | G40: 97174 | H40: ASSENTAMENTO DE TUBO DE AÇO CARBONO PARA REDE DE ÁGUA, DN 700 MM (28), JUNTA SOLDADA, INSTALADO EM LOCAL COM NÍVEL ALTO DE INTERFERÊNCIAS (NÃO INCLUI FORNECIMENTO). AF_11/2017 | I40: M | J40: COEFICIENTE DE REPRESENTATIVIDADE | K40: 49.69 | L40: CAIXA REFERENCIAL
A41: ASSENTAMENTO DE TUBOS E PECAS | B41: ASTU | C41: FORNEC E/OU ASSENT DE TUBO DE ACO COM JUNTA SOLDADA | D41: 46 | G41: 97175 | H41: ASSENTAMENTO DE TUBO DE AÇO CARBONO PARA REDE DE ÁGUA, DN 800 MM (32), JUNTA SOLDADA, INSTALADO EM LOCAL COM NÍVEL ALTO DE INTERFERÊNCIAS (NÃO INCLUI FORNECIMENTO). AF_11/2017 | I41: M | J41: COEFICIENTE DE REPRESENTATIVIDADE | K41: 56.38 | L41: CAIXA REFERENCIAL
A42: ASSENTAMENTO DE TUBOS E PECAS | B42: ASTU | C42: FORNEC E/OU ASSENT DE TUBO DE ACO COM JUNTA SOLDADA | D42: 46 | G42: 97176 | H42: ASSENTAMENTO DE TUBO DE AÇO CARBONO PARA REDE DE ÁGUA, DN 900 MM (36), JUNTA SOLDADA, INSTALADO EM LOCAL COM NÍVEL ALTO DE INTERFERÊNCIAS (NÃO INCLUI FORNECIMENTO). AF_11/2017 | I42: M | J42: COEFICIENTE DE REPRESENTATIVIDADE | K42: 63.06 | L42: CAIXA REFERENCIAL
A43: ASSENTAMENTO DE TUBOS E PECAS | B43: ASTU | C43: FORNEC E/OU ASSENT DE TUBO DE ACO COM JUNTA SOLDADA | D43: 46 | G43: 97177 | H43: ASSENTAMENTO DE TUBO DE AÇO CARBONO PARA REDE DE ÁGUA, DN 1000 MM (40) OU DN 1100 MM (44), JUNTA SOLDADA, INSTALADO EM LOCAL COM NÍVEL ALTO DE INTERFERÊNCIAS (NÃO INCLUI FORNECIMENTO). AF_11/2017 | I43: M | J43: COEFICIENTE DE REPRESENTATIVIDADE | K43: 76.43 | L43: CAIXA REFERENCIAL
A44: ASSENTAMENTO DE TUBOS E PECAS | B44: ASTU | C44: FORNEC E/OU ASSENT DE TUBO DE ACO COM JUNTA SOLDADA | D44: 46 | G44: 97178 | H44: ASSENTAMENTO DE TUBO DE AÇO CARBONO PARA REDE DE ÁGUA, DN 1200 MM (48) OU DN 1300 MM (52), JUNTA SOLDADA, INSTALADO EM LOCAL COM NÍVEL ALTO DE INTERFERÊNCIAS (NÃO INCLUI FORNECIMENTO). AF_11/2017 | I44: M | J44: COEFICIENTE DE REPRESENTATIVIDADE | K44: 89.81 | L44: CAIXA REFERENCIAL
A45: ASSENTAMENTO DE TUBOS E PECAS | B45: ASTU | C45: FORNEC E/OU ASSENT DE TUBO DE ACO COM JUNTA SOLDADA | D45: 46 | G45: 97179 | H45: ASSENTAMENTO DE TUBO DE AÇO CARBONO PARA REDE DE ÁGUA, DN 1400 MM (56'') OU DN 1500 MM (60), JUNTA SOLDADA, INSTALADO EM LOCAL COM NÍVEL ALTO DE INTERFERÊNCIAS (NÃO INCLUI FORNECIMENTO). AF_11/2017 | I45: M | J45: COEFICIENTE DE REPRESENTATIVIDADE | K45: 103.18 | L45: CAIXA REFERENCIAL
A46: ASSENTAMENTO DE TUBOS E PECAS | B46: ASTU | C46: FORNEC E/OU ASSENT DE TUBO DE ACO COM JUNTA SOLDADA | D46: 46 | G46: 97180 | H46: ASSENTAMENTO DE TUBO DE AÇO CARBONO PARA REDE DE ÁGUA, DN 1600 MM (64) OU DN 1700 MM (68), JUNTA SOLDADA, INSTALADO EM LOCAL COM NÍVEL ALTO DE INTERFERÊNCIAS (NÃO INCLUI FORNECIMENTO). AF_11/2017 | I46: M | J46: COEFICIENTE DE REPRESENTATIVIDADE | K46: 116.55 | L46: CAIXA REFERENCIAL
A47: ASSENTAMENTO DE TUBOS E PECAS | B47: ASTU | C47: FORNEC E/OU ASSENT DE TUBO DE ACO COM JUNTA SOLDADA | D47: 46 | G47: 97181 | H47: ASSENTAMENTO DE TUBO DE AÇO CARBONO PARA REDE DE ÁGUA, DN 1800 MM (72) OU DN 1900 MM (76), JUNTA SOLDADA, INSTALADO EM LOCAL COM NÍVEL ALTO DE INTERFERÊNCIAS (NÃO INCLUI FORNECIMENTO). AF_11/2017 | I47: M | J47: COEFICIENTE DE REPRESENTATIVIDADE | K47: 134.18 | L47: CAIXA REFERENCIAL
A48: ASSENTAMENTO DE TUBOS E PECAS | B48: ASTU | C48: FORNEC E/OU ASSENT DE TUBO DE ACO COM JUNTA SOLDADA | D48: 46 | G48: 97182 | H48: ASSENTAMENTO DE TUBO DE AÇO CARBONO PARA REDE DE ÁGUA, DN 2000 MM (80) OU DN 2100 MM (84), JUNTA SOLDADA, INSTALADO EM LOCAL COM NÍVEL ALTO DE INTERFERÊNCIAS (NÃO INCLUI FORNECIMENTO). AF_11/2017 | I48: M | J48: COEFICIENTE DE REPRESENTATIVIDADE | K48: 147.99 | L48: CAIXA REFERENCIAL
A49: ASSENTAMENTO DE TUBOS E PECAS | B49: ASTU | C49: FORNEC E/OU ASSENT DE TUBO DE ACO COM JUNTA SOLDADA | D49: 46 | G49: 97183 | H49: ASSENTAMENTO DE TUBO DE AÇO CARBONO PARA REDE DE ÁGUA, DN 600 MM (24), JUNTA SOLDADA, INSTALADO EM LOCAL COM NÍVEL BAIXO DE INTERFERÊNCIAS (NÃO INCLUI FORNECIMENTO). AF_11/2017 | I49: M | J49: COEFICIENTE DE REPRESENTATIVIDADE | K49: 34.76 | L49: CAIXA REFERENCIAL
A50: ASSENTAMENTO DE TUBOS E PECAS | B50: ASTU | C50: FORNEC E/OU ASSENT DE TUBO DE ACO COM JUNTA SOLDADA | D50: 46 | G50: 97184 | H50: ASSENTAMENTO DE TUBO DE AÇO CARBONO PARA REDE DE ÁGUA, DN 700 MM (28), JUNTA SOLDADA, INSTALADO EM LOCAL COM NÍVEL BAIXO DE INTERFERÊNCIAS (NÃO INCLUI FORNECIMENTO). AF_11/2017 | I50: M | J50: COEFICIENTE DE REPRESENTATIVIDADE | K50: 40.27 | L50: CAIXA REFERENCIAL
A51: ASSENTAMENTO DE TUBOS E PECAS | B51: ASTU | C51: FORNEC E/OU ASSENT DE TUBO DE ACO COM JUNTA SOLDADA | D51: 46 | G51: 97185 | H51: ASSENTAMENTO DE TUBO DE AÇO CARBONO PARA REDE DE ÁGUA, DN 800 MM (32), JUNTA SOLDADA, INSTALADO EM LOCAL COM NÍVEL BAIXO DE INTERFERÊNCIAS (NÃO INCLUI FORNECIMENTO). AF_11/2017 | I51: M | J51: COEFICIENTE DE REPRESENTATIVIDADE | K51: 45.76 | L51: CAIXA REFERENCIAL
A52: ASSENTAMENTO DE TUBOS E PECAS | B52: ASTU | C52: FORNEC E/OU ASSENT DE TUBO DE ACO COM JUNTA SOLDADA | D52: 46 | G52: 97186 | H52: ASSENTAMENTO DE TUBO DE AÇO CARBONO PARA REDE DE ÁGUA, DN 900 MM (36), JUNTA SOLDADA, INSTALADO EM LOCAL COM NÍVEL BAIXO DE INTERFERÊNCIAS (NÃO INCLUI FORNECIMENTO). AF_11/2017 | I52: M | J52: COEFICIENTE DE REPRESENTATIVIDADE | K52: 51.27 | L52: CAIXA REFERENCIAL
A53: ASSENTAMENTO DE TUBOS E PECAS | B53: ASTU | C53: FORNEC E/OU ASSENT DE TUBO DE ACO COM JUNTA SOLDADA | D53: 46 | G53: 97187 | H53: ASSENTAMENTO DE TUBO DE AÇO CARBONO PARA REDE DE ÁGUA, DN 1000 MM (40 ) OU DN 1100 MM (44 ), JUNTA SOLDADA, INSTALADO EM LOCAL COM NÍVEL BAIXO DE INTERFERÊNCIAS (NÃO INCLUI FORNECIMENTO). AF_11/2017 | I53: M | J53: COEFICIENTE DE REPRESENTATIVIDADE | K53: 62.27 | L53: CAIXA REFERENCIAL
A54: ASSENTAMENTO DE TUBOS E PECAS | B54: ASTU | C54: FORNEC E/OU ASSENT DE TUBO DE ACO COM JUNTA SOLDADA | D54: 46 | G54: 97188 | H54: ASSENTAMENTO DE TUBO DE AÇO CARBONO PARA REDE DE ÁGUA, DN 1200 MM (48) OU DN 1300 MM (52), JUNTA SOLDADA, INSTALADO EM LOCAL COM NÍVEL BAIXO DE INTERFERÊNCIAS (NÃO INCLUI FORNECIMENTO). AF_11/2017 | I54: M | J54: COEFICIENTE DE REPRESENTATIVIDADE | K54: 73.28 | L54: CAIXA REFERENCIAL
A55: ASSENTAMENTO DE TUBOS E PECAS | B55: ASTU | C55: FORNEC E/OU ASSENT DE TUBO DE ACO COM JUNTA SOLDADA | D55: 46 | G55: 97189 | H55: ASSENTAMENTO DE TUBO DE AÇO CARBONO PARA REDE DE ÁGUA, DN 1400 MM (56'') OU DN 1500 MM (60), JUNTA SOLDADA, INSTALADO EM LOCAL COM NÍVEL BAIXO DE INTERFERÊNCIAS (NÃO INCLUI FORNECIMENTO). AF_11/2017 | I55: M | J55: COEFICIENTE DE REPRESENTATIVIDADE | K55: 84.29 | L55: CAIXA REFERENCIAL
A56: ASSENTAMENTO DE TUBOS E PECAS | B56: ASTU | C56: FORNEC E/OU ASSENT DE TUBO DE ACO COM JUNTA SOLDADA | D56: 46 | G56: 97190 | H56: ASSENTAMENTO DE TUBO DE AÇO CARBONO PARA REDE DE ÁGUA, DN 1600 MM (64) OU DN 1700 MM (68), JUNTA SOLDADA, INSTALADO EM LOCAL COM NÍVEL BAIXO DE INTERFERÊNCIAS (NÃO INCLUI FORNECIMENTO). AF_11/2017 | I56: M | J56: COEFICIENTE DE REPRESENTATIVIDADE | K56: 95.29 | L56: CAIXA REFERENCIAL
A57: ASSENTAMENTO DE TUBOS E PECAS | B57: ASTU | C57: FORNEC E/OU ASSENT DE TUBO DE ACO COM JUNTA SOLDADA | D57: 46 | G57: 97191 | H57: ASSENTAMENTO DE TUBO DE AÇO CARBONO PARA REDE DE ÁGUA, DN 1800 MM (72) OU DN 1900 MM (76), JUNTA SOLDADA, INSTALADO EM LOCAL COM NÍVEL BAIXO DE INTERFERÊNCIAS (NÃO INCLUI FORNECIMENTO). AF_11/2017 | I57: M | J57: COEFICIENTE DE REPRESENTATIVIDADE | K57: 109.36 | L57: CAIXA REFERENCIAL
A58: ASSENTAMENTO DE TUBOS E PECAS | B58: ASTU | C58: FORNEC E/OU ASSENT DE TUBO DE ACO COM JUNTA SOLDADA | D58: 46 | G58: 97192 | H58: ASSENTAMENTO DE TUBO DE AÇO CARBONO PARA REDE DE ÁGUA, DN 2000 MM (80) OU DN 2100 MM (84), JUNTA SOLDADA, INSTALADO EM LOCAL COM NÍVEL BAIXO DE INTERFERÊNCIAS (NÃO INCLUI FORNECIMENTO). AF_11/2017 | I58: M | J58: COEFICIENTE DE REPRESENTATIVIDADE | K58: 120.67 | L58: CAIXA REFERENCIAL
A59: ASSENTAMENTO DE TUBOS E PECAS | B59: ASTU | C59: FORNEC E/OU ASSENT DE TUBO DE PVC COM JUNTA ELASTICA | D59: 48 | G59: 90694 | H59: TUBO DE PVC PARA REDE COLETORA DE ESGOTO DE PAREDE MACIÇA, DN 100 MM, JUNTA ELÁSTICA - FORNECIMENTO E ASSENTAMENTO. AF_01/2021 | I59: M | J59: COEFICIENTE DE REPRESENTATIVIDADE | K59: 46.98 | L59: CAIXA REFERENCIAL
A60: ASSENTAMENTO DE TUBOS E PECAS | B60: ASTU | C60: FORNEC E/OU ASSENT DE TUBO DE PVC COM JUNTA ELASTICA | D60: 48 | G60: 90695 | H60: TUBO DE PVC PARA REDE COLETORA DE ESGOTO DE PAREDE MACIÇA, DN 150 MM, JUNTA ELÁSTICA - FORNECIMENTO E ASSENTAMENTO. AF_01/2021 | I60: M | J60: COEFICIENTE DE REPRESENTATIVIDADE | K60: 88.28 | L60: CAIXA REFERENCIAL
A61: ASSENTAMENTO DE TUBOS E PECAS | B61: ASTU | C61: FORNEC E/OU ASSENT DE TUBO DE PVC COM JUNTA ELASTICA | D61: 48 | G61: 90696 | H61: TUBO DE PVC PARA REDE COLETORA DE ESGOTO DE PAREDE MACIÇA, DN 200 MM, JUNTA ELÁSTICA - FORNECIMENTO E ASSENTAMENTO. AF_01/2021 | I61: M | J61: COEFICIENTE DE REPRESENTATIVIDADE | K61: 146.61 | L61: CAIXA REFERENCIAL
A62: ASSENTAMENTO DE TUBOS E PECAS | B62: ASTU | C62: FORNEC E/OU ASSENT DE TUBO DE PVC COM JUNTA ELASTICA | D62: 48 | G62: 90697 | H62: TUBO DE PVC PARA REDE COLETORA DE ESGOTO DE PAREDE MACIÇA, DN 250 MM, JUNTA ELÁSTICA - FORNECIMENTO E ASSENTAMENTO. AF_01/2021 | I62: M | J62: COEFICIENTE DE REPRESENTATIVIDADE | K62: 226.65 | L62: CAIXA REFERENCIAL
A63: ASSENTAMENTO DE TUBOS E PECAS | B63: ASTU | C63: FORNEC E/OU ASSENT DE TUBO DE PVC COM JUNTA ELASTICA | D63: 48 | G63: 90698 | H63: TUBO DE PVC PARA REDE COLETORA DE ESGOTO DE PAREDE MACIÇA, DN 300 MM, JUNTA ELÁSTICA, FORNECIMENTO E ASSENTAMENTO. AF_01/2021 | I63: M | J63: COEFICIENTE DE REPRESENTATIVIDADE | K63: 345.53 | L63: CAIXA REFERENCIAL
A64: ASSENTAMENTO DE TUBOS E PECAS | B64: ASTU | C64: FORNEC E/OU ASSENT DE TUBO DE PVC COM JUNTA ELASTICA | D64: 48 | G64: 90699 | H64: TUBO DE PVC PARA REDE COLETORA DE ESGOTO DE PAREDE MACIÇA, DN 350 MM, JUNTA ELÁSTICA - FORNECIMENTO E ASSENTAMENTO. AF_01/2021 | I64: M | J64: COEFICIENTE DE REPRESENTATIVIDADE | K64: 485.59 | L64: CAIXA REFERENCIAL
A65: ASSENTAMENTO DE TUBOS E PECAS | B65: ASTU | C65: FORNEC E/OU ASSENT DE TUBO DE PVC COM JUNTA ELASTICA | D65: 48 | G65: 90700 | H65: TUBO DE PVC PARA REDE COLETORA DE ESGOTO DE PAREDE MACIÇA, DN 400 MM, JUNTA ELÁSTICA FORNECIMENTO E ASSENTAMENTO. AF_01/2021 | I65: M | J65: COEFICIENTE DE REPRESENTATIVIDADE | K65: 565.57 | L65: CAIXA REFERENCIAL
A66: ASSENTAMENTO DE TUBOS E PECAS | B66: ASTU | C66: FORNEC E/OU ASSENT DE TUBO DE PVC COM JUNTA ELASTICA | D66: 48 | G66: 90701 | H66: TUBO DE PVC CORRUGADO DE DUPLA PAREDE PARA REDE COLETORA DE ESGOTO, DN 150 MM, JUNTA ELÁSTICA - FORNECIMENTO E ASSENTAMENTO. AF_01/2021 | I66: M | J66: COEFICIENTE DE REPRESENTATIVIDADE | K66: 70.3 | L66: CAIXA REFERENCIAL
A67: ASSENTAMENTO DE TUBOS E PECAS | B67: ASTU | C67: FORNEC E/OU ASSENT DE TUBO DE PVC COM JUNTA ELASTICA | D67: 48 | G67: 90702 | H67: TUBO DE PVC CORRUGADO DE DUPLA PAREDE PARA REDE COLETORA DE ESGOTO, DN 200 MM, JUNTA ELÁSTICA - FORNECIMENTO E ASSENTAMENTO. AF_01/2021 | I67: M | J67: COEFICIENTE DE REPRESENTATIVIDADE | K67: 115.35 | L67: CAIXA REFERENCIAL
A68: ASSENTAMENTO DE TUBOS E PECAS | B68: ASTU | C68: FORNEC E/OU ASSENT DE TUBO DE PVC COM JUNTA ELASTICA | D68: 48 | G68: 90703 | H68: TUBO DE PVC CORRUGADO DE DUPLA PAREDE PARA REDE COLETORA DE ESGOTO, DN 250 MM, JUNTA ELÁSTICA - FORNECIMENTO E ASSENTAMENTO. AF_01/2021 | I68: M | J68: COEFICIENTE DE REPRESENTATIVIDADE | K68: 180.34 | L68: CAIXA REFERENCIAL
A69: ASSENTAMENTO DE TUBOS E PECAS | B69: ASTU | C69: FORNEC E/OU ASSENT DE TUBO DE PVC COM JUNTA ELASTICA | D69: 48 | G69: 90704 | H69: TUBO DE PVC CORRUGADO DE DUPLA PAREDE PARA REDE COLETORA DE ESGOTO, DN 300 MM, JUNTA ELÁSTICA - FORNECIMENTO E ASSENTAMENTO. AF_01/2021 | I69: M | J69: COEFICIENTE DE REPRESENTATIVIDADE | K69: 268.28 | L69: CAIXA REFERENCIAL
A70: ASSENTAMENTO DE TUBOS E PECAS | B70: ASTU | C70: FORNEC E/OU ASSENT DE TUBO DE PVC COM JUNTA ELASTICA | D70: 48 | G70: 90705 | H70: TUBO DE PVC CORRUGADO DE DUPLA PAREDE PARA REDE COLETORA DE ESGOTO, DN 350 MM, JUNTA ELÁSTICA - FORNECIMENTO E ASSENTAMENTO. AF_01/2021 | I70: M | J70: COEFICIENTE DE REPRESENTATIVIDADE | K70: 348.08 | L70: CAIXA REFERENCIAL
A71: ASSENTAMENTO DE TUBOS E PECAS | B71: ASTU | C71: FORNEC E/OU ASSENT DE TUBO DE PVC COM JUNTA ELASTICA | D71: 48 | G71: 90706 | H71: TUBO DE PVC CORRUGADO DE DUPLA PAREDE PARA REDE COLETORA DE ESGOTO, DN 400 MM, JUNTA ELÁSTICA - FORNECIMENTO E ASSENTAMENTO. AF_01/2021 | I71: M | J71: COEFICIENTE DE REPRESENTATIVIDADE | K71: 459.5 | L71: CAIXA REFERENCIAL
A72: ASSENTAMENTO DE TUBOS E PECAS | B72: ASTU | C72: FORNEC E/OU ASSENT DE TUBO DE PVC COM JUNTA ELASTICA | D72: 48 | G72: 90708 | H72: TUBO DE PEAD CORRUGADO DE DUPLA PAREDE PARA REDE COLETORA DE ESGOTO, DN 600 MM, JUNTA ELÁSTICA INTEGRADA - FORNECIMENTO E ASSENTAMENTO. AF_01/2021 | I72: M | J72: COEFICIENTE DE REPRESENTATIVIDADE | K72: 824.6 | L72: CAIXA REFERENCIAL
A73: ASSENTAMENTO DE TUBOS E PECAS | B73: ASTU | C73: FORNEC E/OU ASSENT DE TUBO DE PVC COM JUNTA ELASTICA | D73: 48 | G73: 90724 | H73: JUNTA ARGAMASSADA ENTRE TUBO DN 100 MM E O POÇO DE VISITA/ CAIXA DE CONCRETO OU ALVENARIA EM REDES DE ESGOTO. AF_01/2021 | I73: UN | J73: COEFICIENTE DE REPRESENTATIVIDADE | K73: 33.78 | L73: CAIXA REFERENCIAL
A74: ASSENTAMENTO DE TUBOS E PECAS | B74: ASTU | C74: FORNEC E/OU ASSENT DE TUBO DE PVC COM JUNTA ELASTICA | D74: 48 | G74: 90725 | H74: JUNTA ARGAMASSADA ENTRE TUBO DN 150 MM E O POÇO DE VISITA/ CAIXA DE CONCRETO OU ALVENARIA EM REDES DE ESGOTO. AF_01/2021 | I74: UN | J74: COEFICIENTE DE REPRESENTATIVIDADE | K74: 41.5 | L74: CAIXA REFERENCIAL
A75: ASSENTAMENTO DE TUBOS E PECAS | B75: ASTU | C75: FORNEC E/OU ASSENT DE TUBO DE PVC COM JUNTA ELASTICA | D75: 48 | G75: 90726 | H75: JUNTA ARGAMASSADA ENTRE TUBO DN 200 MM E O POÇO/ CAIXA DE CONCRETO OU ALVENARIA EM REDES DE ESGOTO. AF_01/2021 | I75: UN | J75: COEFICIENTE DE REPRESENTATIVIDADE | K75: 49.29 | L75: CAIXA REFERENCIAL
A76: ASSENTAMENTO DE TUBOS E PECAS | B76: ASTU | C76: FORNEC E/OU ASSENT DE TUBO DE PVC COM JUNTA ELASTICA | D76: 48 | G76: 90727 | H76: JUNTA ARGAMASSADA ENTRE TUBO DN 250 MM E O POÇO DE VISITA/ CAIXA DE CONCRETO OU ALVENARIA EM REDES DE ESGOTO. AF_01/2021 | I76: UN | J76: COEFICIENTE DE REPRESENTATIVIDADE | K76: 57.02 | L76: CAIXA REFERENCIAL
A77: ASSENTAMENTO DE TUBOS E PECAS | B77: ASTU | C77: FORNEC E/OU ASSENT DE TUBO DE PVC COM JUNTA ELASTICA | D77: 48 | G77: 90728 | H77: JUNTA ARGAMASSADA ENTRE TUBO DN 300 MM E O POÇO DE VISITA/ CAIXA DE CONCRETO OU ALVENARIA EM REDES DE ESGOTO. AF_01/2021 | I77: UN | J77: COEFICIENTE DE REPRESENTATIVIDADE | K77: 64.74 | L77: CAIXA REFERENCIAL
A78: ASSENTAMENTO DE TUBOS E PECAS | B78: ASTU | C78: FORNEC E/OU ASSENT DE TUBO DE PVC COM JUNTA ELASTICA | D78: 48 | G78: 90729 | H78: JUNTA ARGAMASSADA ENTRE TUBO DN 350 MM E O POÇO DE VISITA/ CAIXA DE CONCRETO OU ALVENARIA EM REDES DE ESGOTO. AF_01/2021 | I78: UN | J78: COEFICIENTE DE REPRESENTATIVIDADE | K78: 72.46 | L78: CAIXA REFERENCIAL
A79: ASSENTAMENTO DE TUBOS E PECAS | B79: ASTU | C79: FORNEC E/OU ASSENT DE TUBO DE PVC COM JUNTA ELASTICA | D79: 48 | G79: 90730 | H79: JUNTA ARGAMASSADA ENTRE TUBO DN 400 MM E O POÇO DE VISITA/ CAIXA DE CONCRETO OU ALVENARIA EM REDES DE ESGOTO. AF_01/2021 | I79: UN | J79: COEFICIENTE DE REPRESENTATIVIDADE | K79: 80.19 | L79: CAIXA REFERENCIAL
A80: ASSENTAMENTO DE TUBOS E PECAS | B80: ASTU | C80: FORNEC E/OU ASSENT DE TUBO DE PVC COM JUNTA ELASTICA | D80: 48 | G80: 90731 | H80: JUNTA ARGAMASSADA ENTRE TUBO DN 450 MM E O POÇO DE VISITA/ CAIXA DE CONCRETO OU ALVENARIA EM REDES DE ESGOTO. AF_01/2021 | I80: UN | J80: COEFICIENTE DE REPRESENTATIVIDADE | K80: 87.91 | L80: CAIXA REFERENCIAL
A81: ASSENTAMENTO DE TUBOS E PECAS | B81: ASTU | C81: FORNEC E/OU ASSENT DE TUBO DE PVC COM JUNTA ELASTICA | D81: 48 | G81: 90732 | H81: JUNTA ARGAMASSADA ENTRE TUBO DN 600 MM E O POÇO DE VISITA/ CAIXA DE CONCRETO OU ALVENARIA EM REDES DE ESGOTO. AF_01/2021 | I81: UN | J81: COEFICIENTE DE REPRESENTATIVIDADE | K81: 111.07 | L81: CAIXA REFERENCIAL
A82: ASSENTAMENTO DE TUBOS E PECAS | B82: ASTU | C82: FORNEC E/OU ASSENT DE TUBO DE PVC COM JUNTA ELASTICA | D82: 48 | G82: 90733 | H82: ASSENTAMENTO DE TUBO DE PVC PARA REDE COLETORA DE ESGOTO DE PAREDE MACIÇA, DN 100 MM, JUNTA ELÁSTICA (NÃO INCLUI FORNECIMENTO). AF_01/2021 | I82: M | J82: COEFICIENTE DE REPRESENTATIVIDADE | K82: 4.8 | L82: CAIXA REFERENCIAL
A83: ASSENTAMENTO DE TUBOS E PECAS | B83: ASTU | C83: FORNEC E/OU ASSENT DE TUBO DE PVC COM JUNTA ELASTICA | D83: 48 | G83: 90734 | H83: ASSENTAMENTO DE TUBO DE PVC PARA REDE COLETORA DE ESGOTO DE PAREDE MACIÇA, DN 150 MM, JUNTA ELÁSTICA, (NÃO INCLUI FORNECIMENTO). AF_01/2021 | I83: M | J83: COEFICIENTE DE REPRESENTATIVIDADE | K83: 5.7 | L83: CAIXA REFERENCIAL
A84: ASSENTAMENTO DE TUBOS E PECAS | B84: ASTU | C84: FORNEC E/OU ASSENT DE TUBO DE PVC COM JUNTA ELASTICA | D84: 48 | G84: 90735 | H84: ASSENTAMENTO DE TUBO DE PVC PARA REDE COLETORA DE ESGOTO DE PAREDE MACIÇA, DN 200 MM, JUNTA ELÁSTICA (NÃO INCLUI FORNECIMENTO). AF_01/2021 | I84: M | J84: COEFICIENTE DE REPRESENTATIVIDADE | K84: 6.58 | L84: CAIXA REFERENCIAL
A85: ASSENTAMENTO DE TUBOS E PECAS | B85: ASTU | C85: FORNEC E/OU ASSENT DE TUBO DE PVC COM JUNTA ELASTICA | D85: 48 | G85: 90736 | H85: ASSENTAMENTO DE TUBO DE PVC PARA REDE COLETORA DE ESGOTO DE PAREDE MACIÇA, DN 250 MM, JUNTA ELÁSTICA (NÃO INCLUI FORNECIMENTO). AF_01/2021 | I85: M | J85: COEFICIENTE DE REPRESENTATIVIDADE | K85: 7.47 | L85: CAIXA REFERENCIAL
A86: ASSENTAMENTO DE TUBOS E PECAS | B86: ASTU | C86: FORNEC E/OU ASSENT DE TUBO DE PVC COM JUNTA ELASTICA | D86: 48 | G86: 90737 | H86: ASSENTAMENTO DE TUBO DE PVC PARA REDE COLETORA DE ESGOTO DE PAREDE MACIÇA, DN 300 MM, JUNTA ELÁSTICA (NÃO INCLUI FORNECIMENTO). AF_01/2021 | I86: M | J86: COEFICIENTE DE REPRESENTATIVIDADE | K86: 8.36 | L86: CAIXA REFERENCIAL
A87: ASSENTAMENTO DE TUBOS E PECAS | B87: ASTU | C87: FORNEC E/OU ASSENT DE TUBO DE PVC COM JUNTA ELASTICA | D87: 48 | G87: 90738 | H87: ASSENTAMENTO DE TUBO DE PVC PARA REDE COLETORA DE ESGOTO DE PAREDE MACIÇA, DN 350 MM, JUNTA ELÁSTICA (NÃO INCLUI FORNECIMENTO). AF_01/2021 | I87: M | J87: COEFICIENTE DE REPRESENTATIVIDADE | K87: 9.25 | L87: CAIXA REFERENCIAL
A88: ASSENTAMENTO DE TUBOS E PECAS | B88: ASTU | C88: FORNEC E/OU ASSENT DE TUBO DE PVC COM JUNTA ELASTICA | D88: 48 | G88: 90739 | H88: ASSENTAMENTO DE TUBO DE PVC PARA REDE COLETORA DE ESGOTO DE PAREDE MACIÇA, DN 400 MM, JUNTA ELÁSTICA (NÃO INCLUI FORNECIMENTO). AF_01/2021 | I88: M | J88: COEFICIENTE DE REPRESENTATIVIDADE | K88: 10.84 | L88: CAIXA REFERENCIAL
A89: ASSENTAMENTO DE TUBOS E PECAS | B89: ASTU | C89: FORNEC E/OU ASSENT DE TUBO DE PVC COM JUNTA ELASTICA | D89: 48 | G89: 90740 | H89: ASSENTAMENTO DE TUBO DE PVC CORRUGADO DE DUPLA PAREDE PARA REDE COLETORA DE ESGOTO, DN 150 MM, JUNTA ELÁSTICA (NÃO INCLUI FORNECIMENTO). AF_01/2021 | I89: M | J89: COEFICIENTE DE REPRESENTATIVIDADE | K89: 6.35 | L89: CAIXA REFERENCIAL
A90: ASSENTAMENTO DE TUBOS E PECAS | B90: ASTU | C90: FORNEC E/OU ASSENT DE TUBO DE PVC COM JUNTA ELASTICA | D90: 48 | G90: 90741 | H90: ASSENTAMENTO DE TUBO DE PVC CORRUGADO DE DUPLA PAREDE PARA REDE COLETORA DE ESGOTO, DN 200 MM, JUNTA ELÁSTICA (NÃO INCLUI FORNECIMENTO). AF_01/2021 | I90: M | J90: COEFICIENTE DE REPRESENTATIVIDADE | K90: 7.23 | L90: CAIXA REFERENCIAL
A91: ASSENTAMENTO DE TUBOS E PECAS | B91: ASTU | C91: FORNEC E/OU ASSENT DE TUBO DE PVC COM JUNTA ELASTICA | D91: 48 | G91: 90742 | H91: ASSENTAMENTO DE TUBO DE PVC CORRUGADO DE DUPLA PAREDE PARA REDE COLETORA DE ESGOTO, DN 250 MM, JUNTA ELÁSTICA (NÃO INCLUI FORNECIMENTO). AF_01/2021 | I91: M | J91: COEFICIENTE DE REPRESENTATIVIDADE | K91: 8.12 | L91: CAIXA REFERENCIAL
A92: ASSENTAMENTO DE TUBOS E PECAS | B92: ASTU | C92: FORNEC E/OU ASSENT DE TUBO DE PVC COM JUNTA ELASTICA | D92: 48 | G92: 90743 | H92: ASSENTAMENTO DE TUBO DE PVC CORRUGADO DE DUPLA PAREDE PARA REDE COLETORA DE ESGOTO, DN 300 MM, JUNTA ELÁSTICA (NÃO INCLUI FORNECIMENTO). AF_01/2021 | I92: M | J92: COEFICIENTE DE REPRESENTATIVIDADE | K92: 9.02 | L92: CAIXA REFERENCIAL
A93: ASSENTAMENTO DE TUBOS E PECAS | B93: ASTU | C93: FORNEC E/OU ASSENT DE TUBO DE PVC COM JUNTA ELASTICA | D93: 48 | G93: 90744 | H93: ASSENTAMENTO DE TUBO DE PVC CORRUGADO DE DUPLA PAREDE PARA REDE COLETORA DE ESGOTO, DN 350 MM, JUNTA ELÁSTICA (NÃO INCLUI FORNECIMENTO). AF_01/2021 | I93: M | J93: COEFICIENTE DE REPRESENTATIVIDADE | K93: 9.9 | L93: CAIXA REFERENCIAL
A94: ASSENTAMENTO DE TUBOS E PECAS | B94: ASTU | C94: FORNEC E/OU ASSENT DE TUBO DE PVC COM JUNTA ELASTICA | D94: 48 | G94: 90745 | H94: ASSENTAMENTO DE TUBO DE PVC CORRUGADO DE DUPLA PAREDE PARA REDE COLETORA DE ESGOTO, DN 400 MM, JUNTA ELÁSTICA (NÃO INCLUI FORNECIMENTO). AF_01/2021 | I94: M | J94: COEFICIENTE DE REPRESENTATIVIDADE | K94: 12.1 | L94: CAIXA REFERENCIAL
A95: ASSENTAMENTO DE TUBOS E PECAS | B95: ASTU | C95: FORNEC E/OU ASSENT DE TUBO DE PVC COM JUNTA ELASTICA | D95: 48 | G95: 90746 | H95: ASSENTAMENTO DE TUBO DE PEAD CORRUGADO DE DUPLA PAREDE PARA REDE COLETORA DE ESGOTO, DN 450 MM, JUNTA ELÁSTICA INTEGRADA (NÃO INCLUI FORNECIMENTO). AF_01/2021 | I95: M | J95: COEFICIENTE DE REPRESENTATIVIDADE | K95: 5.19 | L95: CAIXA REFERENCIAL
A96: ASSENTAMENTO DE TUBOS E PECAS | B96: ASTU | C96: FORNEC E/OU ASSENT DE TUBO DE PVC COM JUNTA ELASTICA | D96: 48 | G96: 90747 | H96: ASSENTAMENTO DE TUBO DE PEAD CORRUGADO DE DUPLA PAREDE PARA REDE COLETORA DE ESGOTO, DN 600 MM, JUNTA ELÁSTICA INTEGRADA (NÃO INCLUI FORNECIMENTO). AF_01/2021 | I96: M | J96: COEFICIENTE DE REPRESENTATIVIDADE | K96: 19.3 | L96: CAIXA REFERENCIAL
A97: ASSENTAMENTO DE TUBOS E PECAS | B97: ASTU | C97: FORNEC E/OU ASSENT DE TUBO DE PVC COM JUNTA ELASTICA | D97: 48 | G97: 94869 | H97: TUBO DE PEAD CORRUGADO DE DUPLA PAREDE PARA REDE COLETORA DE ESGOTO, DN 250 MM, JUNTA ELÁSTICA INTEGRADA - FORNECIMENTO E ASSENTAMENTO. AF_01/2021 | I97: M | J97: COEFICIENTE DE REPRESENTATIVIDADE | K97: 145.44 | L97: CAIXA REFERENCIAL
A98: ASSENTAMENTO DE TUBOS E PECAS | B98: ASTU | C98: FORNEC E/OU ASSENT DE TUBO DE PVC COM JUNTA ELASTICA | D98: 48 | G98: 94870 | H98: ASSENTAMENTO DE TUBO DE PEAD CORRUGADO DE DUPLA PAREDE PARA REDE COLETORA DE ESGOTO, DN 250 MM, JUNTA ELÁSTICA INTEGRADA (NÃO INCLUI FORNECIMENTO). AF_01/2021 | I98: M | J98: COEFICIENTE DE REPRESENTATIVIDADE | K98: 2.29 | L98: CAIXA REFERENCIAL
A99: ASSENTAMENTO DE TUBOS E PECAS | B99: ASTU | C99: FORNEC E/OU ASSENT DE TUBO DE PVC COM JUNTA ELASTICA | D99: 48 | G99: 94871 | H99: TUBO DE PEAD CORRUGADO DE DUPLA PAREDE PARA REDE COLETORA DE ESGOTO, DN 300 MM, JUNTA ELÁSTICA INTEGRADA - FORNECIMENTO E ASSENTAMENTO. AF_01/2021 | I99: M | J99: COEFICIENTE DE REPRESENTATIVIDADE | K99: 227.63 | L99: CAIXA REFERENCIAL
A100: ASSENTAMENTO DE TUBOS E PECAS | B100: ASTU | C100: FORNEC E/OU ASSENT DE TUBO DE PVC COM JUNTA ELASTICA | D100: 48 | G100: 94872 | H100: ASSENTAMENTO DE TUBO DE PEAD CORRUGADO DE DUPLA PAREDE PARA REDE COLETORA DE ESGOTO, DN 300 MM, JUNTA ELÁSTICA INTEGRADA (NÃO INCLUI FORNECIMENTO). AF_01/2021 | I100: M | J100: COEFICIENTE DE REPRESENTATIVIDADE | K100: 3.35 | L100: CAIXA REFERENCIAL
A101: ASSENTAMENTO DE TUBOS E PECAS | B101: ASTU | C101: FORNEC E/OU ASSENT DE TUBO DE PVC COM JUNTA ELASTICA | D101: 48 | G101: 94875 | H101: TUBO DE PEAD CORRUGADO DE DUPLA PAREDE PARA REDE COLETORA DE ESGOTO, DN 800 MM, JUNTA ELÁSTICA INTEGRADA - FORNECIMENTO E ASSENTAMENTO. AF_01/2021 | I101: M | J101: COEFICIENTE DE REPRESENTATIVIDADE | K101: 1338.84 | L101: CAIXA REFERENCIAL
A102: ASSENTAMENTO DE TUBOS E PECAS | B102: ASTU | C102: FORNEC E/OU ASSENT DE TUBO DE PVC COM JUNTA ELASTICA | D102: 48 | G102: 94876 | H102: ASSENTAMENTO DE TUBO DE PEAD CORRUGADO DE DUPLA PAREDE PARA REDE COLETORA DE ESGOTO, DN 800 MM, JUNTA ELÁSTICA INTEGRADA (NÃO INCLUI FORNECIMENTO). AF_01/2021 | I102: M | J102: COEFICIENTE DE REPRESENTATIVIDADE | K102: 32.05 | L102: CAIXA REFERENCIAL
A103: ASSENTAMENTO DE TUBOS E PECAS | B103: ASTU | C103: FORNEC E/OU ASSENT DE TUBO DE PVC COM JUNTA ELASTICA | D103: 48 | G103: 94878 | H103: ASSENTAMENTO DE TUBO DE PEAD CORRUGADO DE DUPLA PAREDE PARA REDE COLETORA DE ESGOTO, DN 900 MM, JUNTA ELÁSTICA INTEGRADA (NÃO INCLUI FORNECIMENTO). AF_01/2021 | I103: M | J103: COEFICIENTE DE REPRESENTATIVIDADE | K103: 37.13 | L103: CAIXA REFERENCIAL
A104: ASSENTAMENTO DE TUBOS E PECAS | B104: ASTU | C104: FORNEC E/OU ASSENT DE TUBO DE PVC COM JUNTA ELASTICA | D104: 48 | G104: 94879 | H104: TUBO DE PEAD CORRUGADO DE DUPLA PAREDE PARA REDE COLETORA DE ESGOTO, DN 1000 MM, JUNTA ELÁSTICA INTEGRADA - FORNECIMENTO E ASSENTAMENTO. AF_01/2021 | I104: M | J104: COEFICIENTE DE REPRESENTATIVIDADE | K104: 2060.76 | L104: CAIXA REFERENCIAL
A105: ASSENTAMENTO DE TUBOS E PECAS | B105: ASTU | C105: FORNEC E/OU ASSENT DE TUBO DE PVC COM JUNTA ELASTICA | D105: 48 | G105: 94880 | H105: ASSENTAMENTO DE TUBO DE PEAD CORRUGADO DE DUPLA PAREDE PARA REDE COLETORA DE ESGOTO, DN 1000 MM, JUNTA ELÁSTICA INTEGRADA (NÃO INCLUI FORNECIMENTO). AF_01/2021 | I105: M | J105: COEFICIENTE DE REPRESENTATIVIDADE | K105: 47.66 | L105: CAIXA REFERENCIAL
A106: ASSENTAMENTO DE TUBOS E PECAS | B106: ASTU | C106: FORNEC E/OU ASSENT DE TUBO DE PVC COM JUNTA ELASTICA | D106: 48 | G106: 94881 | H106: TUBO DE PEAD CORRUGADO DE DUPLA PAREDE PARA REDE COLETORA DE ESGOTO, DN 1200 MM, JUNTA ELÁSTICA INTEGRADA - FORNECIMENTO E ASSENTAMENTO. AF_01/2021 | I106: M | J106: COEFICIENTE DE REPRESENTATIVIDADE | K106: 2837.69 | L106: CAIXA REFERENCIAL
A107: ASSENTAMENTO DE TUBOS E PECAS | B107: ASTU | C107: FORNEC E/OU ASSENT DE TUBO DE PVC COM JUNTA ELASTICA | D107: 48 | G107: 94882 | H107: ASSENTAMENTO DE TUBO DE PEAD CORRUGADO DE DUPLA PAREDE PARA REDE COLETORA DE ESGOTO, DN 1200 MM, JUNTA ELÁSTICA INTEGRADA (NÃO INCLUI FORNECIMENTO). AF_01/2021 | I107: M | J107: COEFICIENTE DE REPRESENTATIVIDADE | K107: 55.47 | L107: CAIXA REFERENCIAL
A108: ASSENTAMENTO DE TUBOS E PECAS | B108: ASTU | C108: FORNEC E/OU ASSENT DE TUBO DE PVC COM JUNTA ELASTICA | D108: 48 | G108: 94884 | H108: ASSENTAMENTO DE TUBO DE PEAD CORRUGADO DE DUPLA PAREDE PARA REDE COLETORA DE ESGOTO, DN 1500 MM, JUNTA ELÁSTICA INTEGRADA (NÃO INCLUI FORNECIMENTO). AF_01/2021 | I108: M | J108: COEFICIENTE DE REPRESENTATIVIDADE | K108: 71.34 | L108: CAIXA REFERENCIAL
A109: ASSENTAMENTO DE TUBOS E PECAS | B109: ASTU | C109: FORNEC E/OU ASSENT DE TUBO DE PVC COM JUNTA ELASTICA | D109: 48 | G109: 97121 | H109: ASSENTAMENTO DE TUBO DE PVC PBA PARA REDE DE ÁGUA, DN 50 MM, JUNTA ELÁSTICA INTEGRADA, INSTALADO EM LOCAL COM NÍVEL ALTO DE INTERFERÊNCIAS (NÃO INCLUI FORNECIMENTO). AF_11/2017 | I109: M | J109: COEFICIENTE DE REPRESENTATIVIDADE | K109: 2.82 | L109: CAIXA REFERENCIAL
A110: ASSENTAMENTO DE TUBOS E PECAS | B110: ASTU | C110: FORNEC E/OU ASSENT DE TUBO DE PVC COM JUNTA ELASTICA | D110: 48 | G110: 97122 | H110: ASSENTAMENTO DE TUBO DE PVC PBA PARA REDE DE ÁGUA, DN 75 MM, JUNTA ELÁSTICA INTEGRADA, INSTALADO EM LOCAL COM NÍVEL ALTO DE INTERFERÊNCIAS (NÃO INCLUI FORNECIMENTO). AF_11/2017 | I110: M | J110: COEFICIENTE DE REPRESENTATIVIDADE | K110: 3.92 | L110: CAIXA REFERENCIAL
A111: ASSENTAMENTO DE TUBOS E PECAS | B111: ASTU | C111: FORNEC E/OU ASSENT DE TUBO DE PVC COM JUNTA ELASTICA | D111: 48 | G111: 97123 | H111: ASSENTAMENTO DE TUBO DE PVC PBA PARA REDE DE ÁGUA, DN 100 MM, JUNTA ELÁSTICA INTEGRADA, INSTALADO EM LOCAL COM NÍVEL ALTO DE INTERFERÊNCIAS (NÃO INCLUI FORNECIMENTO). AF_11/2017 | I111: M | J111: COEFICIENTE DE REPRESENTATIVIDADE | K111: 4.96 | L111: CAIXA REFERENCIAL
A112: ASSENTAMENTO DE TUBOS E PECAS | B112: ASTU | C112: FORNEC E/OU ASSENT DE TUBO DE PVC COM JUNTA ELASTICA | D112: 48 | G112: 97124 | H112: ASSENTAMENTO DE TUBO DE PVC PBA PARA REDE DE ÁGUA, DN 50 MM, JUNTA ELÁSTICA INTEGRADA, INSTALADO EM LOCAL COM NÍVEL BAIXO DE INTERFERÊNCIAS (NÃO INCLUI FORNECIMENTO). AF_11/2017 | I112: M | J112: COEFICIENTE DE REPRESENTATIVIDADE | K112: 1.23 | L112: CAIXA REFERENCIAL
A113: ASSENTAMENTO DE TUBOS E PECAS | B113: ASTU | C113: FORNEC E/OU ASSENT DE TUBO DE PVC COM JUNTA ELASTICA | D113: 48 | G113: 97125 | H113: ASSENTAMENTO DE TUBO DE PVC PBA PARA REDE DE ÁGUA, DN 75 MM, JUNTA ELÁSTICA INTEGRADA, INSTALADO EM LOCAL COM NÍVEL BAIXO DE INTERFERÊNCIAS (NÃO INCLUI FORNECIMENTO). AF_11/2017 | I113: M | J113: COEFICIENTE DE REPRESENTATIVIDADE | K113: 1.73 | L113: CAIXA REFERENCIAL
A114: ASSENTAMENTO DE TUBOS E PECAS | B114: ASTU | C114: FORNEC E/OU ASSENT DE TUBO DE PVC COM JUNTA ELASTICA | D114: 48 | G114: 97126 | H114: ASSENTAMENTO DE TUBO DE PVC PBA PARA REDE DE ÁGUA, DN 100 MM, JUNTA ELÁSTICA INTEGRADA, INSTALADO EM LOCAL COM NÍVEL BAIXO DE INTERFERÊNCIAS (NÃO INCLUI FORNECIMENTO). AF_11/2017 | I114: M | J114: COEFICIENTE DE REPRESENTATIVIDADE | K114: 2.2 | L114: CAIXA REFERENCIAL
A115: ASSENTAMENTO DE TUBOS E PECAS | B115: ASTU | C115: FORNEC E/OU ASSENT DE TUBO DE PVC COM JUNTA ELASTICA | D115: 48 | G115: 102264 | H115: TUBO DE PVC BRANCO PARA REDE COLETORA DE ESGOTO CONDOMINIAL DE PAREDE MACIÇA, DN 100 MM, JUNTA ELÁSTICA - FORNECIMENTO E ASSENTAMENTO. AF_01/2021 | I115: M | J115: COEFICIENTE DE REPRESENTATIVIDADE | K115: 21.3 | L115: CAIXA REFERENCIAL
A116: ASSENTAMENTO DE TUBOS E PECAS | B116: ASTU | C116: FORNEC E/OU ASSENT DE TUBO DE PVC COM JUNTA ELASTICA | D116: 48 | G116: 102265 | H116: JUNTA ARGAMASSADA ENTRE TUBO DN 800 MM E O POÇO DE VISITA/ CAIXA DE CONCRETO OU ALVENARIA EM REDES DE ESGOTO. AF_01/2021 | I116: UN | J116: COEFICIENTE DE REPRESENTATIVIDADE | K116: 141.96 | L116: CAIXA REFERENCIAL
A117: ASSENTAMENTO DE TUBOS E PECAS | B117: ASTU | C117: FORNEC E/OU ASSENT DE TUBO DE PVC COM JUNTA ELASTICA | D117: 48 | G117: 102266 | H117: JUNTA ARGAMASSADA ENTRE TUBO DN 900 MM E O POÇO DE VISITA/ CAIXA DE CONCRETO OU ALVENARIA EM REDES DE ESGOTO. AF_01/2021 | I117: UN | J117: COEFICIENTE DE REPRESENTATIVIDADE | K117: 157.41 | L117: CAIXA REFERENCIAL
A118: ASSENTAMENTO DE TUBOS E PECAS | B118: ASTU | C118: FORNEC E/OU ASSENT DE TUBO DE PVC COM JUNTA ELASTICA | D118: 48 | G118: 102267 | H118: JUNTA ARGAMASSADA ENTRE TUBO DN 1000 MM E O POÇO DE VISITA/ CAIXA DE CONCRETO OU ALVENARIA EM REDES DE ESGOTO. AF_01/2021 | I118: UN | J118: COEFICIENTE DE REPRESENTATIVIDADE | K118: 180.65 | L118: CAIXA REFERENCIAL
A119: ASSENTAMENTO DE TUBOS E PECAS | B119: ASTU | C119: FORNEC E/OU ASSENT DE TUBO DE PVC COM JUNTA ELASTICA | D119: 48 | G119: 102268 | H119: JUNTA ARGAMASSADA ENTRE TUBO DN 1200 MM E O POÇO DE VISITA/ CAIXA DE CONCRETO OU ALVENARIA EM REDES DE ESGOTO. AF_01/2021 | I119: UN | J119: COEFICIENTE DE REPRESENTATIVIDADE | K119: 203.81 | L119: CAIXA REFERENCIAL
A120: ASSENTAMENTO DE TUBOS E PECAS | B120: ASTU | C120: FORNEC E/OU ASSENT DE TUBO DE PVC COM JUNTA ELASTICA | D120: 48 | G120: 102269 | H120: JUNTA ARGAMASSADA ENTRE TUBO DN 1500 MM E O POÇO DE VISITA/ CAIXA DE CONCRETO OU ALVENARIA EM REDES DE ESGOTO. AF_01/2021 | I120: UN | J120: COEFICIENTE DE REPRESENTATIVIDADE | K120: 250.15 | L120: CAIXA REFERENCIAL
A121: ASSENTAMENTO DE TUBOS E PECAS | B121: ASTU | C121: FORNEC E/OU ASSENT DE TUBO DE CONCRETO COM JUNTA ELASTICA | D121: 51 | G121: 92833 | H121: TUBO DE CONCRETO PARA REDES COLETORAS DE ESGOTO SANITÁRIO, DIÂMETRO DE 300 MM, JUNTA ELÁSTICA, INSTALADO EM LOCAL COM BAIXO NÍVEL DE INTERFERÊNCIAS - FORNECIMENTO E ASSENTAMENTO. AF_12/2015 | I121: M | J121: COEFICIENTE DE REPRESENTATIVIDADE | K121: 218.42 | L121: CAIXA REFERENCIAL
A122: ASSENTAMENTO DE TUBOS E PECAS | B122: ASTU | C122: FORNEC E/OU ASSENT DE TUBO DE CONCRETO COM JUNTA ELASTICA | D122: 51 | G122: 92834 | H122: ASSENTAMENTO DE TUBO DE CONCRETO PARA REDES COLETORAS DE ESGOTO SANITÁRIO, DIÂMETRO DE 300 MM, JUNTA ELÁSTICA, INSTALADO EM LOCAL COM BAIXO NÍVEL DE INTERFERÊNCIAS (NÃO INCLUI FORNECIMENTO). AF_12/2015 | I122: M | J122: COEFICIENTE DE REPRESENTATIVIDADE | K122: 10.29 | L122: CAIXA REFERENCIAL
A123: ASSENTAMENTO DE TUBOS E PECAS | B123: ASTU | C123: FORNEC E/OU ASSENT DE TUBO DE CONCRETO COM JUNTA ELASTICA | D123: 51 | G123: 92835 | H123: TUBO DE CONCRETO PARA REDES COLETORAS DE ESGOTO SANITÁRIO, DIÂMETRO DE 400 MM, JUNTA ELÁSTICA, INSTALADO EM LOCAL COM BAIXO NÍVEL DE INTERFERÊNCIAS - FORNECIMENTO E ASSENTAMENTO. AF_12/2015 | I123: M | J123: COEFICIENTE DE REPRESENTATIVIDADE | K123: 228.84 | L123: CAIXA REFERENCIAL
A124: ASSENTAMENTO DE TUBOS E PECAS | B124: ASTU | C124: FORNEC E/OU ASSENT DE TUBO DE CONCRETO COM JUNTA ELASTICA | D124: 51 | G124: 92836 | H124: ASSENTAMENTO DE TUBO DE CONCRETO PARA REDES COLETORAS DE ESGOTO SANITÁRIO, DIÂMETRO DE 400 MM, JUNTA ELÁSTICA, INSTALADO EM LOCAL COM BAIXO NÍVEL DE INTERFERÊNCIAS (NÃO INCLUI FORNECIMENTO). AF_12/2015 | I124: M | J124: COEFICIENTE DE REPRESENTATIVIDADE | K124: 13.15 | L124: CAIXA REFERENCIAL
A125: ASSENTAMENTO DE TUBOS E PECAS | B125: ASTU | C125: FORNEC E/OU ASSENT DE TUBO DE CONCRETO COM JUNTA ELASTICA | D125: 51 | G125: 92837 | H125: TUBO DE CONCRETO PARA REDES COLETORAS DE ESGOTO SANITÁRIO, DIÂMETRO DE 500 MM, JUNTA ELÁSTICA, INSTALADO EM LOCAL COM BAIXO NÍVEL DE INTERFERÊNCIAS - FORNECIMENTO E ASSENTAMENTO. AF_12/2015 | I125: M | J125: COEFICIENTE DE REPRESENTATIVIDADE | K125: 404.47 | L125: CAIXA REFERENCIAL
A126: ASSENTAMENTO DE TUBOS E PECAS | B126: ASTU | C126: FORNEC E/OU ASSENT DE TUBO DE CONCRETO COM JUNTA ELASTICA | D126: 51 | G126: 92838 | H126: ASSENTAMENTO DE TUBO DE CONCRETO PARA REDES COLETORAS DE ESGOTO SANITÁRIO, DIÂMETRO DE 500 MM, JUNTA ELÁSTICA, INSTALADO EM LOCAL COM BAIXO NÍVEL DE INTERFERÊNCIAS (NÃO INCLUI FORNECIMENTO). AF_12/2015 | I126: M | J126: COEFICIENTE DE REPRESENTATIVIDADE | K126: 15.8 | L126: CAIXA REFERENCIAL
A127: ASSENTAMENTO DE TUBOS E PECAS | B127: ASTU | C127: FORNEC E/OU ASSENT DE TUBO DE CONCRETO COM JUNTA ELASTICA | D127: 51 | G127: 92839 | H127: TUBO DE CONCRETO PARA REDES COLETORAS DE ESGOTO SANITÁRIO, DIÂMETRO DE 600 MM, JUNTA ELÁSTICA, INSTALADO EM LOCAL COM BAIXO NÍVEL DE INTERFERÊNCIAS - FORNECIMENTO E ASSENTAMENTO. AF_12/2015 | I127: M | J127: COEFICIENTE DE REPRESENTATIVIDADE | K127: 494.85 | L127: CAIXA REFERENCIAL
A128: ASSENTAMENTO DE TUBOS E PECAS | B128: ASTU | C128: FORNEC E/OU ASSENT DE TUBO DE CONCRETO COM JUNTA ELASTICA | D128: 51 | G128: 92840 | H128: ASSENTAMENTO DE TUBO DE CONCRETO PARA REDES COLETORAS DE ESGOTO SANITÁRIO, DIÂMETRO DE 600 MM, JUNTA ELÁSTICA, INSTALADO EM LOCAL COM BAIXO NÍVEL DE INTERFERÊNCIAS (NÃO INCLUI FORNECIMENTO). AF_12/2015 | I128: M | J128: COEFICIENTE DE REPRESENTATIVIDADE | K128: 18.71 | L128: CAIXA REFERENCIAL
A129: ASSENTAMENTO DE TUBOS E PECAS | B129: ASTU | C129: FORNEC E/OU ASSENT DE TUBO DE CONCRETO COM JUNTA ELASTICA | D129: 51 | G129: 92841 | H129: TUBO DE CONCRETO PARA REDES COLETORAS DE ESGOTO SANITÁRIO, DIÂMETRO DE 700 MM, JUNTA ELÁSTICA, INSTALADO EM LOCAL COM BAIXO NÍVEL DE INTERFERÊNCIAS - FORNECIMENTO E ASSENTAMENTO. AF_12/2015 | I129: M | J129: COEFICIENTE DE REPRESENTATIVIDADE | K129: 644.58 | L129: CAIXA REFERENCIAL
A130: ASSENTAMENTO DE TUBOS E PECAS | B130: ASTU | C130: FORNEC E/OU ASSENT DE TUBO DE CONCRETO COM JUNTA ELASTICA | D130: 51 | G130: 92842 | H130: ASSENTAMENTO DE TUBO DE CONCRETO PARA REDES COLETORAS DE ESGOTO SANITÁRIO, DIÂMETRO DE 700 MM, JUNTA ELÁSTICA, INSTALADO EM LOCAL COM BAIXO NÍVEL DE INTERFERÊNCIAS (NÃO INCLUI FORNECIMENTO). AF_12/2015 | I130: M | J130: COEFICIENTE DE REPRESENTATIVIDADE | K130: 21.38 | L130: CAIXA REFERENCIAL
A131: ASSENTAMENTO DE TUBOS E PECAS | B131: ASTU | C131: FORNEC E/OU ASSENT DE TUBO DE CONCRETO COM JUNTA ELASTICA | D131: 51 | G131: 92843 | H131: TUBO DE CONCRETO PARA REDES COLETORAS DE ESGOTO SANITÁRIO, DIÂMETRO DE 800 MM, JUNTA ELÁSTICA, INSTALADO EM LOCAL COM BAIXO NÍVEL DE INTERFERÊNCIAS - FORNECIMENTO E ASSENTAMENTO. AF_12/2015 | I131: M | J131: COEFICIENTE DE REPRESENTATIVIDADE | K131: 667.62 | L131: CAIXA REFERENCIAL
A132: ASSENTAMENTO DE TUBOS E PECAS | B132: ASTU | C132: FORNEC E/OU ASSENT DE TUBO DE CONCRETO COM JUNTA ELASTICA | D132: 51 | G132: 92844 | H132: ASSENTAMENTO DE TUBO DE CONCRETO PARA REDES COLETORAS DE ESGOTO SANITÁRIO, DIÂMETRO DE 800 MM, JUNTA ELÁSTICA, INSTALADO EM LOCAL COM BAIXO NÍVEL DE INTERFERÊNCIAS (NÃO INCLUI FORNECIMENTO). AF_12/2015 | I132: M | J132: COEFICIENTE DE REPRESENTATIVIDADE | K132: 24.27 | L132: CAIXA REFERENCIAL
A133: ASSENTAMENTO DE TUBOS E PECAS | B133: ASTU | C133: FORNEC E/OU ASSENT DE TUBO DE CONCRETO COM JUNTA ELASTICA | D133: 51 | G133: 92845 | H133: TUBO DE CONCRETO PARA REDES COLETORAS DE ESGOTO SANITÁRIO, DIÂMETRO DE 900 MM, JUNTA ELÁSTICA, INSTALADO EM LOCAL COM BAIXO NÍVEL DE INTERFERÊNCIAS - FORNECIMENTO E ASSENTAMENTO. AF_12/2015 | I133: M | J133: COEFICIENTE DE REPRESENTATIVIDADE | K133: 989.07 | L133: CAIXA REFERENCIAL
A134: ASSENTAMENTO DE TUBOS E PECAS | B134: ASTU | C134: FORNEC E/OU ASSENT DE TUBO DE CONCRETO COM JUNTA ELASTICA | D134: 51 | G134: 92846 | H134: ASSENTAMENTO DE TUBO DE CONCRETO PARA REDES COLETORAS DE ESGOTO SANITÁRIO, DIÂMETRO DE 900 MM, JUNTA ELÁSTICA, INSTALADO EM LOCAL COM BAIXO NÍVEL DE INTERFERÊNCIAS (NÃO INCLUI FORNECIMENTO). AF_12/2015 | I134: M | J134: COEFICIENTE DE REPRESENTATIVIDADE | K134: 26.92 | L134: CAIXA REFERENCIAL
A135: ASSENTAMENTO DE TUBOS E PECAS | B135: ASTU | C135: FORNEC E/OU ASSENT DE TUBO DE CONCRETO COM JUNTA ELASTICA | D135: 51 | G135: 92847 | H135: TUBO DE CONCRETO PARA REDES COLETORAS DE ESGOTO SANITÁRIO, DIÂMETRO DE 1000 MM, JUNTA ELÁSTICA, INSTALADO EM LOCAL COM BAIXO NÍVEL DE INTERFERÊNCIAS - FORNECIMENTO E ASSENTAMENTO. AF_12/2015 | I135: M | J135: COEFICIENTE DE REPRESENTATIVIDADE | K135: 1016.16 | L135: CAIXA REFERENCIAL
A136: ASSENTAMENTO DE TUBOS E PECAS | B136: ASTU | C136: FORNEC E/OU ASSENT DE TUBO DE CONCRETO COM JUNTA ELASTICA | D136: 51 | G136: 92848 | H136: ASSENTAMENTO DE TUBO DE CONCRETO PARA REDES COLETORAS DE ESGOTO SANITÁRIO, DIÂMETRO DE 1000 MM, JUNTA ELÁSTICA, INSTALADO EM LOCAL COM BAIXO NÍVEL DE INTERFERÊNCIAS (NÃO INCLUI FORNECIMENTO). AF_12/2015 | I136: M | J136: COEFICIENTE DE REPRESENTATIVIDADE | K136: 29.88 | L136: CAIXA REFERENCIAL
A137: ASSENTAMENTO DE TUBOS E PECAS | B137: ASTU | C137: FORNEC E/OU ASSENT DE TUBO DE CONCRETO COM JUNTA ELASTICA | D137: 51 | G137: 92849 | H137: TUBO DE CONCRETO PARA REDES COLETORAS DE ESGOTO SANITÁRIO, DIÂMETRO DE 300 MM, JUNTA ELÁSTICA, INSTALADO EM LOCAL COM ALTO NÍVEL DE INTERFERÊNCIAS - FORNECIMENTO E ASSENTAMENTO. AF_12/2015 | I137: M | J137: COEFICIENTE DE REPRESENTATIVIDADE | K137: 227.62 | L137: CAIXA REFERENCIAL
A138: ASSENTAMENTO DE TUBOS E PECAS | B138: ASTU | C138: FORNEC E/OU ASSENT DE TUBO DE CONCRETO COM JUNTA ELASTICA | D138: 51 | G138: 92850 | H138: ASSENTAMENTO DE TUBO DE CONCRETO PARA REDES COLETORAS DE ESGOTO SANITÁRIO, DIÂMETRO DE 300 MM, JUNTA ELÁSTICA, INSTALADO EM LOCAL COM ALTO NÍVEL DE INTERFERÊNCIAS (NÃO INCLUI FORNECIMENTO). AF_12/2015 | I138: M | J138: COEFICIENTE DE REPRESENTATIVIDADE | K138: 19.49 | L138: CAIXA REFERENCIAL
A139: ASSENTAMENTO DE TUBOS E PECAS | B139: ASTU | C139: FORNEC E/OU ASSENT DE TUBO DE CONCRETO COM JUNTA ELASTICA | D139: 51 | G139: 92851 | H139: TUBO DE CONCRETO PARA REDES COLETORAS DE ESGOTO SANITÁRIO, DIÂMETRO DE 400 MM, JUNTA ELÁSTICA, INSTALADO EM LOCAL COM ALTO NÍVEL DE INTERFERÊNCIAS - FORNECIMENTO E ASSENTAMENTO. AF_12/2015 | I139: M | J139: COEFICIENTE DE REPRESENTATIVIDADE | K139: 240.3 | L139: CAIXA REFERENCIAL
A140: ASSENTAMENTO DE TUBOS E PECAS | B140: ASTU | C140: FORNEC E/OU ASSENT DE TUBO DE CONCRETO COM JUNTA ELASTICA | D140: 51 | G140: 92852 | H140: ASSENTAMENTO DE TUBO DE CONCRETO PARA REDES COLETORAS DE ESGOTO SANITÁRIO, DIÂMETRO DE 400 MM, JUNTA ELÁSTICA, INSTALADO EM LOCAL COM ALTO NÍVEL DE INTERFERÊNCIAS (NÃO INCLUI FORNECIMENTO). AF_12/2015 | I140: M | J140: COEFICIENTE DE REPRESENTATIVIDADE | K140: 24.61 | L140: CAIXA REFERENCIAL
A141: ASSENTAMENTO DE TUBOS E PECAS | B141: ASTU | C141: FORNEC E/OU ASSENT DE TUBO DE CONCRETO COM JUNTA ELASTICA | D141: 51 | G141: 92853 | H141: TUBO DE CONCRETO PARA REDES COLETORAS DE ESGOTO SANITÁRIO, DIÂMETRO DE 500 MM, JUNTA ELÁSTICA, INSTALADO EM LOCAL COM ALTO NÍVEL DE INTERFERÊNCIAS - FORNECIMENTO E ASSENTAMENTO. AF_12/2015 | I141: M | J141: COEFICIENTE DE REPRESENTATIVIDADE | K141: 418.65 | L141: CAIXA REFERENCIAL
